{"text_format":"3","workbook":"xlsx","n_sheets":2,"sheets":["Disclaimer","BOQ"],"not_rendered":{"images":1,"defined_names":2},"read":"whole","date_system":"1900"}

{"sheet":"Disclaimer","index":0,"n_rows":19,"n_cols":9,"rows_kept":19,"merged":[[8,1,8,8],[10,1,10,8],[12,1,12,8],[15,1,15,8],[18,1,36,8]]}
[]
[{"$nulls":8},"BILLS OF QUANTITIES"]
[]
[{"$nulls":8},"KWAZULU-NATAL PROVINCE"]
[{"$nulls":8},"PUBLIC WORKS AND INFRASTRUCTURE"]
[{"$nulls":8},"ZNTM01260W "]
[]
[null,null," "]
[null,"Woodlands Primary School"]
[]
[null,"Completion Contract"]
[]
[null,"ZNTM01260W "]
[]
[]
[null,"DISCLAIMER"]
[]
[]
[null,"Important Notice to Reader:\n\n Kindly take note of the following regarding electronic Bills of Quantities in Excel format, that we will not be held responsible for any inaccuracies in your tender submission.\n                        \n\nThis Excel BOQ is supplied subject to the following conditions:\n\n\n1. Electronic Bills of Quantities are provided for the supplementary use by the tenderer in the preparation of the tender price.\n\n2. Electronic Bills of Quantities provided do not replace any information contained in the original tender documentation, and do not constitute a priced Bills of Quantities submission if returned in similar electronic format (i.e. the original tender documentation is required to be completed by hand).\n\n3. The consultants and client do not warrant the accuracy of the electronic Bills of Quantities distributed and accepts no responsibility or claim whatsoever for the accuracy thereof. "]

{"sheet":"BOQ","index":1,"n_rows":7789,"n_cols":8,"rows_kept":7789,"merged":[[150,2,150,4],[228,2,228,4],[254,2,254,4],[343,2,343,4],[388,2,388,4],[425,2,425,4],[588,2,588,4],[621,2,621,4],[650,2,650,4],[783,2,783,4],[830,2,830,4],[951,2,951,4],[1002,2,1002,4],[1039,2,1039,4],[1564,2,1564,4],[1603,2,1603,4],[1682,2,1682,4],[1720,2,1720,4],[2886,2,2886,4],[2995,2,2995,4],[3282,2,3282,4],[3615,2,3615,4],[3882,2,3882,4],[4215,2,4215,4],[4540,2,4540,4],[4821,2,4821,4],[5148,2,5148,4],[5585,2,5585,4],[5786,2,5786,4],[6007,2,6007,4],[6358,2,6358,4],[6615,2,6615,4],[6774,2,6774,4],[6834,2,6834,4],[6868,2,6868,4],[6879,2,6879,4],[6986,2,6986,4],[7032,2,7032,4],[7105,2,7105,4],[7130,2,7130,4],[7161,2,7161,4],[7200,2,7200,4],[7345,2,7345,4],[7370,2,7370,4],[7435,2,7435,4],[7658,2,7658,4],[7682,2,7682,4],[7720,2,7720,4],[7765,2,7765,4]]}
["ITEM NO",{"$nulls":4},"QUANTITY","RATE","AMOUNT"]
[]
[null,null,"SECTION 1 : PRELIMINARIES"]
[]
[{"v":1,"d":"1 "},null,"Preliminaries (taken/transfer from document)",null,"Item",1,null,{"$f":"ROUND(F5*G5,2)","v":0}]
[]
[]
[]
[null,null,"SECTION 2 : BUILDING WORKS"]
[]
[null,null,"BILL. 1"]
[]
[null,null,"SUB-STRUCTURE (PROVISIONAL)"]
[]
[null,null,"EARTHWORKS (PROVISIONAL) (WORKGROUP 104) (LI)"]
[]
[null,null,"Tenderers are referred to the relevant clauses in the separate document: ASAQS General Preambles for trades (2017 edition) and the ASAQS supplementary preambles which are incorporated in this Bill of Quantities."]
[]
[null,null,"Note : Where trade names and catalogue numbers are given, it shall be taken to mean to be followed by the words \"equal or other approved\"."]
[]
[null,null,"EPWP Conditions and Specifications"]
[]
[null,null,"The tenderer/bidder is advised that all items within this bill are subject to the terms, conditions and specifications of section C12 as expanded from sub-sections C 12.1 to C12.10 within the P's & G's section of this bid document."]
[]
[null,null,"EXCAVATIONS, FILLING ETC (LI)"]
[]
[null,null,"Excavations in earth not exceeding 2m deep"]
[]
[{"v":1,"d":"1 "},null,"Reduced levels under floors",null,"m³",349,null,{"$f":"ROUND(F29*G29,2)","v":0}]
[]
[{"v":2,"d":"2 "},null,"Trenches",null,"m³",570,null,{"$f":"ROUND(F31*G31,2)","v":0}]
[]
[{"v":3,"d":"3 "},null,"Bases",null,"m³",89,null,{"$f":"ROUND(F33*G33,2)","v":0}]
[]
[null,null,"Excavation in earth exceeding 2m but not exceeding 4m."]
[]
[{"v":4,"d":"4 "},null,"Trenches",null,"m3",0,null,"Rate only"]
[]
[{"v":5,"d":"5 "},null,"Bases",null,"m3",0,null,"Rate only"]
[]
[null,null,"Working Space"]
[]
[null,null,"Back excavation of vertical sides of excavation in earth for working space including backfilling compacted to 95% Mod AASHTO density"]
[]
[{"v":6,"d":"6 "},null,"Not exceeding 500mm deep for erection and removal of formwork to foundation bases",null,"m²",176,null,{"$f":"ROUND(F45*G45,2)","v":0}]
[]
[{"v":7,"d":"7 "},null,"Exceeding 1000mm but not exceeding 1500mm deep for erection and removal of formwork to sides of trench excavations.",null,"m2",0,null,"Rate only"]
[]
[null,null,"Extra over trench and hole excavation in earth for excavation in"]
[]
[{"v":8,"d":"8 "},null,"Soft rock",null,"m³",95,null,{"$f":"ROUND(F51*G51,2)","v":0}]
[]
[{"v":9,"d":"9 "},null,"Hard rock",null,"m³",46,null,{"$f":"ROUND(F53*G53,2)","v":0}]
[]
[null,null,"Earth filling from excavated material compacted to 95% Mod AASHTO density"]
[]
[{"v":10,"d":"10 "},null,"Backfilling to trenches, holes, etc",null,"m³",486,null,{"$f":"ROUND(F57*G57,2)","v":0}]
[]
[null,null,"Earth filling supplied by the contractor compacted to 95% Mod AASHTO density (imported G5 type material)"]
[]
[{"v":11,"d":"11 "},null,"Under floors, steps, pavings, etc",null,"m³",448,null,{"$f":"ROUND(F61*G61,2)","v":0}]
[]
[{"v":12,"d":"12 "},null,"Backfilling to trenches, holes, etc",null,"m³",473,null,{"$f":"ROUND(F63*G63,2)","v":0}]
[]
[null,null,"Extra over all excavations for loading and carting away"]
[]
[{"v":13,"d":"13 "},null,"Surplus material from excavations and/or stock piles on site to a dumping site to be located by the Contractor",null,"m³",895,null,{"$f":"ROUND(F67*G67,2)","v":0}]
[]
[null,null,"Risk of collapse of excavations"]
[]
[{"v":14,"d":"14 "},null,"Sides of trench and hole excavations not exceeding 1,5m deep",null,"m²",2133,null,{"$f":"ROUND(F71*G71,2)","v":0}]
[]
[{"v":15,"d":"15 "},null,"Sides of trench and hole excavations exceeding 1,5m deep",null,"m2",0,null,"Rate only"]
[]
[null,null,"Keeping excavations free of water"]
[]
[{"v":16,"d":"16 "},null,"Keeping excavations free from water other than subterranean water",null,"Item",1,null,{"$f":"ROUND(F77*G77,2)","v":0}]
[]
[null,null,"Coarse river sand filling supplied by the contractor"]
[]
[{"v":17,"d":"17 "},null,"50mm Under floors etc",null,"m³",46,null,{"$f":"ROUND(F81*G81,2)","v":0}]
[]
[null,null,"Compaction of surfaces"]
[]
[{"v":18,"d":"18 "},null,"Compaction of ground surface under floors, etc. including excavating or filling, ripping and scarifying as necessary for a depth of 300mm, breaking down oversized materials, adding suitable material where necessary and compacting to 98% Modified AASTHO density.",null,"m²",2099,null,{"$f":"ROUND(F85*G85,2)","v":0}]
[]
[null,null,"TESTS"]
[]
[null,null,"Prescribed density test on filling"]
[]
[{"v":19,"d":"19 "},null,"\"Modified AASHTO Density\" test",null,"No",45,null,{"$f":"ROUND(F91*G91,2)","v":0}]
[]
[null,null,"SOIL POISONING"]
[]
[null,null,"Approved brand of anti- termite soil poison applied by a Registered Pest Control company and guaranteed against termite infestation for ten years"]
[]
[{"v":20,"d":"20 "},null,"Under concrete surface bed, etc. including forming and poisoning shallow furrows against foundation walls etc., filling in furrows and ramming.",null,"m²",2099,null,{"$f":"ROUND(F97*G97,2)","v":0}]
[]
[{"v":21,"d":"21 "},null,"Under footings and bases including forming and poisoning shallow furrows against foundation walls etc., filling in furrows and ramming",null,"m²",1479,null,{"$f":"ROUND(F99*G99,2)","v":0}]
[]
[null,null,"CONCRETE, FORMWORK AND REINFORCEMENT"]
[]
[null,null,"CONCRETE (WORKGROUP 110)"]
[]
[null,null,"UNREINFORCED CONCRETE"]
[]
[null,null,"Cement concrete class 15MPa/19mm in:"]
[]
[{"v":22,"d":"22 "},null,"Blinding layer under footings, bases and foundation beams",null,"m³",13,null,{"$f":"ROUND(F109*G109,2)","v":0}]
[]
[null,null,"REINFORCED CONCRETE"]
[]
[null,null,"Cement concrete class 25MPa/19mm in:"]
[]
[{"v":23,"d":"23 "},null,"Strip footings",null,"m³",173,null,{"$f":"ROUND(F115*G115,2)","v":0}]
[]
[{"v":24,"d":"24 "},null,"Bases",null,"m³",49,null,{"$f":"ROUND(F117*G117,2)","v":0}]
[]
[{"v":25,"d":"25 "},null,"Plinths",null,"m³",9,null,{"$f":"ROUND(F119*G119,2)","v":0}]
[]
[null,null,"TEST BLOCKS"]
[]
[{"v":26,"d":"26 "},null,"Allow for making set of test cubes, sending to an approved testing authority for testing and paying all charges in connection therewith",null,"No",40,null,{"$f":"ROUND(F123*G123,2)","v":0}]
[]
[null,null,"FORMWORK (WORKGROUP 111) (LI)"]
[]
[null,null,"Formwork To Impart Class I Finish (Rough)"]
[]
[null,null,"Rough formwork to sides"]
[]
[{"v":27,"d":"27 "},null,"Bases",null,"m²",62,null,{"$f":"ROUND(F131*G131,2)","v":0}]
[]
[{"v":28,"d":"28 "},null,"Plinths",null,"m²",99,null,{"$f":"ROUND(F133*G133,2)","v":0}]
[]
[null,null,"FOUNDATIONS (PROVISIONAL)"]
[]
[null,null,"BRICKWORK (WORKGROUP 116) (LI)"]
[]
[null,null,"Brickwork of NFX bricks (7 MPa nominal compressive strength) in class I mortar"]
[]
[{"v":29,"d":"29 "},null,"One brick walls",null,"m²",726,null,{"$f":"ROUND(F141*G141,2)","v":0}]
[]
[{"v":30,"d":"30 "},null,"Brick Pier",null,"m³",2,null,{"$f":"ROUND(F143*G143,2)","v":0}]
[]
[null,null,"Brickwork of NFX bricks (14 MPa nominal compressive strength) in class I mortar"]
[]
[{"v":31,"d":"31 "},null,"One Brick Walls",null,"m²",55,null,{"$f":"ROUND(F147*G147,2)","v":0}]
[]
[{"v":32,"d":"32 "},null,"One and Half Brick Walls",null,"m³",2,null,{"$f":"ROUND(F149*G149,2)","v":0}]
[]
[null,null,"Carried to Summary",{"$nulls":4},{"$f":"SUM(H29:H150)","v":0}]
[]
[null,null,"SECTION 2 : BUILDING WORKS"]
[]
[null,null,"BILL. 2"]
[]
[null,null,"CONCRETE, FORMWORK AND REINFORCEMENT"]
[]
[null,null,"Tenderers are referred to the relevant clauses in the separate document: ASAQS General Preambles for trades (2017 edition) and the ASAQS supplementary preambles which are incorporated in this Bill of Quantities."]
[]
[null,null,"Note : Where trade names and catalogue numbers are given, it shall be taken to mean to be followed by the words \"equal or other approved\"."]
[]
[null,null,"CONCRETE (WORKGROUP 110)"]
[]
[null,null,"REINFORCED CONCRETE"]
[]
[null,null,"Cement concrete class 30MPa/19mm in:"]
[]
[{"v":1,"d":"1 "},null,"Surface beds cast in panels on waterproofing 125mm thick",null,"m³",196,null,{"$f":"ROUND(F169*G169,2)","v":0}]
[]
[{"v":2,"d":"2 "},null,"Surface beds cast in panels on waterproofing 100mm thick",null,"m³",171,null,{"$f":"ROUND(F171*G171,2)","v":0}]
[]
[{"v":3,"d":"3 "},null,"200mm Edge Thickening",null,"m³",6,null,{"$f":"ROUND(F173*G173,2)","v":0}]
[]
[{"v":4,"d":"4 "},null,"Ramps",null,"m3",1,null,"Rate only"]
[]
[null,null,"TEST BLOCKS"]
[]
[{"v":5,"d":"5 "},null,"Allow for making set of test cubes, sending to an approved testing authority for testing and paying all charges in connection therewith",null,"No",36,null,{"$f":"ROUND(F179*G179,2)","v":0}]
[]
[null,null,"CONCRETE SUNDRIES"]
[]
[null,null,"Finishing top surfaces of concrete smooth with a power float"]
[]
[{"v":6,"d":"6 "},null,"Surface beds, slabs, etc",null,"m²",1568,null,{"$f":"ROUND(F185*G185,2)","v":0}]
[]
[null,null,"Finishing top surfaces of concrete smooth with a steel trowel"]
[]
[{"v":7,"d":"7 "},null,"Surface beds, slabs, etc",null,"m²",1710,null,{"$f":"ROUND(F189*G189,2)","v":0}]
[]
[null,null,"FORMWORK (WORKGROUP 111)"]
[]
[null,null,"Formwork To Impart Class I Finish (Smooth)"]
[]
[null,null,"Smooth Formwork to sides:"]
[]
[{"v":8,"d":"8 "},null,"Edges and risers not exceeding 300mm",null,"m",564,null,{"$f":"ROUND(F197*G197,2)","v":0}]
[]
[null,null,"Boxing in smooth formwork to form:"]
[]
[{"v":9,"d":"9 "},null,"Horizontal chamfered corner size 25 x 25mm to top or bottom edge of beams, etc",null,"m",30,null,{"$f":"ROUND(F201*G201,2)","v":0}]
[]
[null,null,"MOVEMENT JOINTS ETC"]
[]
[null,null,"Construction joints with 12mm \"Sondor Jointex\" or other approved closed cell expanded polyethylene preformed joint filler with hinged blocking piece between vertical concrete and brick surfaces"]
[]
[{"v":10,"d":"10 "},null,"Joints not exceeding 300mm high or wide",null,"m",13,null,{"$f":"ROUND(F207*G207,2)","v":0}]
[]
[null,null,"Saw Cut joints between horizontal concrete and brick surfaces including cement mortar bed (S.C.J)"]
[]
[{"v":11,"d":"11 "},null,"Joints not exceeding 300mm high or wide",null,"m",251,null,{"$f":"ROUND(F211*G211,2)","v":0}]
[]
[null,null,"REINFORCEMENT (PROVISIONAL) (WORKGROUP 114)"]
[]
[null,null,"Mild and High Tensile steel reinforcement to structural concrete work"]
[]
[{"v":12,"d":"12 "},null,"Y 10 Bars",null,"t",0.38,null,{"$f":"ROUND(F217*G217,2)","v":0}]
[]
[{"v":13,"d":"13 "},null,"Y 12 Bars",null,"t",5.65,null,{"$f":"ROUND(F219*G219,2)","v":0}]
[]
[{"v":14,"d":"14 "},null,"Y 16 Bars",null,"t",0.65,null,{"$f":"ROUND(F221*G221,2)","v":0}]
[]
[null,null,"Fabric reinforcement"]
[]
[{"v":15,"d":"15 "},null,"Type 193 Mesh reinforcement in concrete surface beds, slabs, etc",null,"m²",1568,null,{"$f":"ROUND(F225*G225,2)","v":0}]
[]
[{"v":16,"d":"16 "},null,"Type 395 Mesh reinforcement in concrete surface beds, slabs, etc in walkways",null,"m²",1710,null,{"$f":"ROUND(F227*G227,2)","v":0}]
[]
[null,null,"Carried to Summary",{"$nulls":4},{"$f":"SUM(H169:H228)","v":0}]
[]
[null,null,"SECTION 2 : BUILDING WORKS"]
[]
[null,null,"BILL. 3"]
[]
[null,null,"PRECAST CONCRETE (WORKGROUP 115)"]
[]
[null,null,"Tenderers are referred to the relevant clauses in the separate document: ASAQS General Preambles for trades (2017 edition) and the ASAQS supplementary preambles which are incorporated in this Bill of Quantities."]
[]
[null,null,"Note : Where trade names and catalogue numbers are given, it shall be taken to mean to be followed by the words \"equal or other approved\"."]
[]
[null,null,"PRECAST CONCRETE (LI)"]
[]
[null,null,"SUPPLEMENTARY PREAMBLES"]
[]
[null,null,"Sizes"]
[]
[null,null,"Planks, lintels, sills, etc measured linear shall be made in short lengths. Large size setting out drawings shall be prepared where necessary and submitted to the architect for approval before moulds are made"]
[]
[null,null,"PRECAST CONCRETE"]
[]
[null,null,"Prestressed fabricated concrete lintels including necessary temporary supports"]
[]
[{"v":1,"d":"1 "},null,"110 x 75mm Lintels in lengths not exceeding 3m",null,"m",226,null,{"$f":"ROUND(F253*G253,2)","v":0}]
[]
[null,null,"Carried to Summary",{"$nulls":4},{"$f":"SUM(H253:H254)","v":0}]
[]
[]
[null,null,"SECTION 2 : BUILDING WORKS"]
[]
[null,null,"BILL. 4"]
[]
[null,null,"BRICKWORK (WORKGROUP 116) (LI)"]
[]
[null,null,"Tenderers are referred to the relevant clauses in the separate document: ASAQS General Preambles for trades (2017 edition) and the ASAQS supplementary preambles which are incorporated in this Bill of Quantities."]
[]
[null,null,"Note : Where trade names and catalogue numbers are given, it shall be taken to mean to be followed by the words \"equal or other approved\"."]
[]
[null,null,"SUPPLEMENTARY PREAMBLES"]
[]
[null,null,"EPWP Conditions and Specifications"]
[]
[null,null,"The tenderer/bidder is advised that all items within this bill are subject to the terms, conditions and specifications of section C12 as expanded from sub-sections C 12.1 to C12.10 within the P's & G's section of this bid document."]
[]
[null,null,"Sizes in descriptions"]
[]
[null,null,"Where sizes in descriptions are given in brick units, \"one brick\" shall represent the length and \"half brick\" the width of a brick"]
[]
[null,null,"Hollow walls etc"]
[]
[null,null,"Descriptions of hollow walls shall be deemed to include leaving every fifth perpend of the bottom course of the external skin open as a weep hole."]
[]
[null,null,"Walls in two skins described as \"bagged and sealed\" shall be deemed to include having the outer face of the inner skin bagged with 1:6 cement and sand mixture and sealed with two coats \"Brixeal\" bitumen emulsion waterproofing coating."]
[]
[null,null,"Face bricks"]
[]
[null,null,"Bricks shall be ordered timeously to obtain uniformity in size and colour. The Principal Agent is, from time to time, at liberty to request batching information and these must be produced within 48 hours thereof."]
[]
[null,null,"Pointing"]
[]
[null,null,"Descriptions of recessed pointing to fair face brickwork and face brickwork shall be deemed to include square recessed, hollow recessed, weathered pointing, etc"]
[]
[null,null,"BRICKWORK (LI)"]
[]
[null,null,"Brickwork in class II mortar"]
[]
[{"v":1,"d":"1 "},null,"Half brick walls",null,"m²",118,null,{"$f":"ROUND(F296*G296,2)","v":0}]
[]
[{"v":2,"d":"2 "},null,"Half brick walls in beam filling (Provisional)",null,"m²",121,null,{"$f":"ROUND(F298*G298,2)","v":0}]
[]
[{"v":3,"d":"3 "},null,"Half Brick walls in Columns",null,"m²",49,null,{"$f":"ROUND(F300*G300,2)","v":0}]
[]
[{"v":4,"d":"4 "},null,"Half brick walls in lintels",null,"m²",2,null,{"$f":"ROUND(F302*G302,2)","v":0}]
[]
[{"v":5,"d":"5 "},null,"One brick walls",null,"m²",1771,null,{"$f":"ROUND(F304*G304,2)","v":0}]
[]
[{"v":6,"d":"6 "},null,"One brick walls in lintels",null,"m²",9,null,{"$f":"ROUND(F306*G306,2)","v":0}]
[]
[{"v":7,"d":"7 "},null,"One and a Half Brick walls",null,"m²",37,null,{"$f":"ROUND(F308*G308,2)","v":0}]
[]
[{"v":8,"d":"8 "},null,"Piers",null,"m³",3,null,{"$f":"ROUND(F310*G310,2)","v":0}]
[]
[null,null,"BRICKWORK SUNDRIES"]
[]
[null,null,"Brick reinforcement"]
[]
[{"v":9,"d":"9 "},null,"75mm Wide galvanised reinforcement built in horizontally",null,"m",341,null,{"$f":"ROUND(F316*G316,2)","v":0}]
[]
[{"v":10,"d":"10 "},null,"150mm Wide galvanised reinforcement built in horizontally",null,"m",1761,null,{"$f":"ROUND(F318*G318,2)","v":0}]
[]
[null,null,"Turning Pieces"]
[]
[{"v":11,"d":"11 "},null,"230mm wide turning piece",null,"No",45,null,{"$f":"ROUND(F322*G322,2)","v":0}]
[]
[null,null,"Galvanised wire ties"]
[]
[{"v":12,"d":"12 "},null,"30 x 1.6mm roof tie 1.5m long with one end fixed to timber and other end built into brickwork",null,"No",182,null,{"$f":"ROUND(F326*G326,2)","v":0}]
[]
[null,null,"Galvanised hoop iron, cramps, ties, etc."]
[]
[{"v":13,"d":"13 "},null,"40 x 1,6mm tie bond \"Tibond\" wall tie strips shot pinned to concrete and with the ties bent out and built into brickwork",null,"No",50,null,{"$f":"ROUND(F330*G330,2)","v":0}]
[]
[null,null,"FACE BRICKWORK"]
[]
[null,null,"Corobrik \"Roan Satin\" face bricks  pointed with recessed horizontal and vertical joints"]
[]
[{"v":14,"d":"14 "},null,"Extra over brickwork for face brickwork to External Walls",null,"m²",1069,null,{"$f":"ROUND(F336*G336,2)","v":0}]
[]
[{"v":15,"d":"15 "},null,"Extra over brickwork for face brickwork to External Columns",null,"m²",230,null,{"$f":"ROUND(F338*G338,2)","v":0}]
[]
[{"v":16,"d":"16 "},null,"Extra over brickwork for face brickwork to Internal Walls",null,"m²",211,null,{"$f":"ROUND(F340*G340,2)","v":0}]
[]
[{"v":17,"d":"17 "},null,"Facebrick-on-edge header cill 130mm wide, formed of cut standard bricks, set sloping, fair and pointed on top of front edge (In no.77)",null,"m",204,null,{"$f":"ROUND(F342*G342,2)","v":0}]
[]
[null,null,"Carried to Summary",{"$nulls":4},{"$f":"SUM(H296:H343)","v":0}]
[]
[]
[null,null,"SECTION 2 : BUILDING WORKS"]
[]
[null,null,"BILL. 5"]
[]
[null,null,"WATERPROOFING (WORKGROUP 120)"]
[]
[null,null,"Tenderers are referred to the relevant clauses in the separate document: ASAQS General Preambles for trades (2017 edition) and the ASAQS supplementary preambles which are incorporated in this Bill of Quantities."]
[]
[null,null,"Note : Where trade names and catalogue numbers are given, it shall be taken to mean to be followed by the words \"equal or other approved\"."]
[]
[null,null,"SUPPLEMENTARY PREAMBLES"]
[]
[null,null,"Waterproofing"]
[]
[null,null,"Waterproofing of roofs, basements, etc shall be laid under a ten year guarantee.  Waterproofing to roofs shall be laid to even falls to outlets etc with necessary ridges, hips and valleys. Descriptions of sheet or membrane waterproofing shall be deemed to include additional labour to turn-ups and turn-downs"]
[]
[null,null,"DAMPPROOFING OF WALLS AND FLOORS"]
[]
[null,null,"One layer of 375 micron \"Consol Plastics Brikgrip DPC\" embossed damp proof course"]
[]
[{"v":1,"d":"1 "},null,"In walls, cills, etc",null,"m²",74,null,{"$f":"ROUND(F367*G367,2)","v":0}]
[]
[null,null,"One layer of 250 Micron \"Consol Plastics Gunplas USB Green\" waterproof sheeting sealed at laps with Gunplas Pressure Sensitive Tape"]
[]
[{"v":2,"d":"2 "},null,"Under surface beds and thickenings",null,"m²",3278,null,{"$f":"ROUND(F371*G371,2)","v":0}]
[]
[null,null,"2 Coats \"BRIXEAL\" bitumen emulsion waterproofing compound"]
[]
[{"v":3,"d":"3 "},null,"On bagged brick walls",null,"m²",1067,null,{"$f":"ROUND(F375*G375,2)","v":0}]
[]
[null,null,"JOINT SEALANTS ETC"]
[]
[null,null,"\"Bostik 22DS100 Highway\" polysulphide sealant including backing cord, bond breaker, primer type \"Bostik 22DS100GH3\", etc"]
[]
[{"v":4,"d":"4 "},null,"12 x 12mm In expansion joint including removing blocking piece as necessary",null,"m",751,null,{"$f":"ROUND(F381*G381,2)","v":0}]
[]
[null,null,"\"Polymatic\" non hardening waterproofing compound in pointing all round frames at junction with brickwork or concrete and leave perfectly watertight"]
[]
[{"v":5,"d":"5 "},null,"Steel window frames",null,"m",436,null,{"$f":"ROUND(F385*G385,2)","v":0}]
[]
[{"v":6,"d":"6 "},null,"Steel door frames",null,"m",275,null,{"$f":"ROUND(F387*G387,2)","v":0}]
[]
[null,null,"Carried to Summary",{"$nulls":4},{"$f":"SUM(H367:H388)","v":0}]
[]
[]
[null,null,"SECTION 2 : BUILDING WORKS"]
[]
[null,null,"BILL. 6"]
[]
[null,null,"ROOF COVERINGS ETC (WORKGROUP 122)"]
[]
[null,null,"Tenderers are referred to the relevant clauses in the separate document: ASAQS General Preambles for trades (2017 edition) and the ASAQS supplementary preambles which are incorporated in this Bill of Quantities."]
[]
[null,null,"Note : Where trade names and catalogue numbers are given, it shall be taken to mean to be followed by the words \"equal or other approved\"."]
[]
[null,null,"PROFILED METAL SHEETING AND ACCESSORIES"]
[]
[null,null,"User note:"]
[]
[null,null,"Supplementary preambles in connection with fixing of sheeting and accessories and laps are to be inserted when the Model Preambles for Trades (or other preambles not covering the fixing of sheeting and accessories and laps) are used"]
[]
[null,null,"When the pitch of troughed roof covering is less than 5 degrees or if dustproofing is required then the description of roof coverings \"with side laps sealed\" is to be used"]
[]
[null,null,"Where roof coverings are fixed on top of rigid board insulation to purlins etc descriptions of roof coverings are to include therefore"]
[]
[null,null,"Note that sheeting is also available in corten steel, stainless steel, copper and aluminium"]
[]
[null,null,"\"Safintra\" 0.53mm thick 760mm cover Widedek Deep Ocean CLEAN COLORBOND roof sheeting, fixed to timber purlins at 1632mm c/c and eaves and end-span purlins at 1550mm c/c using \"Fixlite\" self tapping fastners or approved fastners with EPDM seals or equally approved."]
[]
[{"v":1,"d":"1 "},null,"Roof covering with pitch not exceeding 25 degrees",null,"m²",2852,null,{"$f":"ROUND(F416*G416,2)","v":0}]
[]
[{"v":2,"d":"2 "},null,"Ridge capping including poly closure on both sides",null,"m",176,null,{"$f":"ROUND(F418*G418,2)","v":0}]
[]
[null,null,"ROOF INSULATION"]
[]
[null,null,"\"Sisalation 420\" heavy industrial grade reinforced aluminium foil based insulation"]
[]
[{"v":3,"d":"3 "},null,"Insulation fixed to top of rafters (At approximately 760mm centres) and fixed concurrently with tiling batterns, purlins etc with 150mm laps sealed with an approved contact adhesive, including all cutting and waste, labours and dressings and holing or cutting and fitting and sealing around pipes, etc. (Provisional)",null,"m²",1881,null,{"$f":"ROUND(F424*G424,2)","v":0}]
[]
[null,null,"Carried to Summary",{"$nulls":4},{"$f":"SUM(H416:H425)","v":0}]
[]
[]
[null,null,"SECTION 2 : BUILDING WORKS"]
[]
[null,null,"BILL. 7"]
[]
[null,null,"CARPENTRY AND JOINERY (WORKGROUP 126) (LI)"]
[]
[null,null,"Tenderers are referred to the relevant clauses in the separate document: ASAQS General Preambles for trades (2017 edition) and the ASAQS supplementary preambles which are incorporated in this Bill of Quantities."]
[]
[null,null,"Note : Where trade names and catalogue numbers are given, it shall be taken to mean to be followed by the words \"equal or other approved\"."]
[]
[null,null,"SUPPLEMENTARY PREAMBLES"]
[]
[null,null,"ROOFS ETC"]
[]
[null,null,"Refer to the Standard Preambles to all trades pages SP22 and SP23 and the engineers drawings. Both the preambles and the drawings are issued with these bills of quantities. All timber roof trusses including nail plated trusses and bolted trusses with lapped members must comply with SABS 0243: THE DESIGN, MANUFACTURE and ERECTION OF TIMBER TRUSSES inclusive of the provision of T1 and T2 Certificates. The trusses vary between centres. Roof covering is interlocking concrete tiles and the ceiling where applicable, is gypsum plasterboard. Where applicable, fascias are pressed NUTEC cement and eaves gutters rainwater are aluminium. Roof ties, bearer plates, roof coverings, fascias, sprockets, ceilings, brandering, flashings, soffit and verge linings, rainwater goods etc are all elsewhere measured.  Prices for roof trusses are to include for all temporary bracing and supports and for all necessary top and bottom chord bracing, wind bracing and runners, where required."]
[]
[null,null,"GENERAL SPECIFICATIONS OF MATERIAL TO BE USED"]
[]
[null,null,"All prices include for supply and installation of joinery fittings complete as per Architect's drawings including ironmongery as specified and as necessary, precast concrete plinths, metalwork, shelving, brackets and wall bands, glazing, finishes, sealing, aluminium work, making good finishes, etc. and fixing in position"]
[]
[null,null,"NOTE: All services (water, waste, electricity, gas, etc.) to fittings have been included in the relevant fittings unless otherwise stated."]
[]
[null,null,"SKIRTINGS ETC"]
[]
[null,null,"Wrought meranti"]
[]
[{"v":1,"d":"1 "},null,"19 x 76mm Hardwood skirting",null,"m",1978,null,{"$f":"ROUND(F455*G455,2)","v":0}]
[]
[null,null,"EAVES, VERGES, ETC"]
[]
[null,null,"\"Everite Flexit\" or other equal and approved pressed nutec-cement"]
[]
[{"v":2,"d":"2 "},null,"12 x 225mm Fascias and barge boards including galvanised steel H-profile jointing strips",null,"m",250,null,{"$f":"ROUND(F461*G461,2)","v":0}]
[]
[null,null,"DOORS, ETC"]
[]
[null,null,"NOTE:  a) Rates must include for hanging (Frames are elsewhere measured unless otherwise described)  b) Tenderers are advised to refer to architect's detailed drawings, included in these Bills of Quantities, which indicate the various door types, details, specifications and references where applicable  c) All opening sizes must be verified on site before hanging commences  d) Fire doors to comply with SANS 1253 as applicable"]
[]
[null,null,"Saligna \"Blaco\" doors hung to steel door frames"]
[]
[{"v":3,"d":"3 "},null,"44mm framed Saligna \"Blaco\" legded and braced battened door size 2032 x 813mm with 40 x 110mm styles and top rail 20 x 150mm middle ledge 20 x 225mm bottom ledge and 20 20 x 110mm braces. (D1)",null,"No",56,null,{"$f":"ROUND(F469*G469,2)","v":0}]
[]
[{"v":4,"d":"4 "},null,"44mm framed Saligna \"Blaco\" legded and braced battened door size 2032 x 1511mm with 40 x 110mm styles and top rail 20 x 150mm middle ledge 20 x 225mm bottom ledge and 20 20 x 110mm braces. (D4)",null,"No",2,null,{"$f":"ROUND(F471*G471,2)","v":0}]
[]
[null,null,"Solid flush panel doors with hardwood edge strips and finished with 3mm hard board on both sides and hung to steel door frames (door frames elsewhere measured)"]
[]
[{"v":5,"d":"5 "},null,"44mm Solid core Hardwood Panel Single Door size 762mm x 1800mm high with commercial veneer.(D6)",null,"No",7,null,{"$f":"ROUND(F475*G475,2)","v":0}]
[]
[{"v":6,"d":"6 "},null,"44mm Solid core Hardwood Panel Single Door size 762mm x 2032mm high with commercial veneer.(D3)",null,"No",20,null,{"$f":"ROUND(F477*G477,2)","v":0}]
[]
[{"v":7,"d":"7 "},null,"44mm Solid core Hardwood Panel Single Door size 813mm x 2032mm high with commercial veneer.(D2)",null,"No",51,null,{"$f":"ROUND(F479*G479,2)","v":0}]
[]
[{"v":8,"d":"8 "},null,"44mm Solid core Hardwood Panel Single Door size 1000mm x 2032mm high with commercial veneer.(D5)",null,"No",1,null,{"$f":"ROUND(F481*G481,2)","v":0}]
[]
[null,null,"JOINERY FITTINGS"]
[]
[null,null,"WHITE BOARDS ETC"]
[]
[{"v":9,"d":"9 "},null,"Complete Educational Magnetic Whiteboard with overall size of 3660 x 1220mm high consisting of center panel 1820 x 1220mm and two side panels 920 x 1220mm fixed strictly in accordance to the manufacturers instructions.",null,"No",40,null,{"$f":"ROUND(F487*G487,2)","v":0}]
[]
[null,null,"WORKTOPS"]
[]
[null,null,"Worktop as per Joinery Detail"]
[]
[null,null,"\"Bisonbord V313\" with \"Melamine\" finish on both sides and edges"]
[]
[{"v":10,"d":"10 "},null,"18mm x 110mm framed framing in legs bearers etc.",null,"m",123,null,{"$f":"ROUND(F495*G495,2)","v":0}]
[]
[{"v":11,"d":"11 "},null,"18mm x 110mm bearer plugged to wall",null,"m",49,null,{"$f":"ROUND(F497*G497,2)","v":0}]
[]
[{"v":12,"d":"12 "},null,"18mm x 110mm bearer screwed/glued to frame",null,"m",49,null,{"$f":"ROUND(F499*G499,2)","v":0}]
[]
[{"v":13,"d":"13 "},null,"19mm Bottom, sides, shelving, divisions, etc., all tongued, grooved, glued and screwed together. Finished on both sides and exposed edges with white melamine, housed and glued into divisions.",null,"m²",95,null,{"$f":"ROUND(F501*G501,2)","v":0}]
[]
[null,null,"Doors"]
[]
[{"v":14,"d":"14 "},null,"18mm thick doors finished on both sides and exposed edges with white melamine.",null,"m²",40,null,{"$f":"ROUND(F505*G505,2)","v":0}]
[]
[null,null,"Laminated wrot timber"]
[]
[{"v":15,"d":"15 "},null,"32mm Worktop screwed on",null,"m²",18,null,{"$f":"ROUND(F509*G509,2)","v":0}]
[]
[null,null,"FIXED SHELVING"]
[]
[null,null,"Fixed shelving as per Joinery Detail"]
[]
[null,null,"SA Pine"]
[]
[{"v":16,"d":"16 "},null,"32mm x 44mm Upright plugged and screwed to wall, all with coats clear polyurethane varnish.",null,"m",231,null,{"$f":"ROUND(F517*G517,2)","v":0}]
[]
[{"v":17,"d":"17 "},null,"32mm x 44mm Upright countersunk screwed to framing, all with coats clear polyurethane varnish.",null,"m",199,null,{"$f":"ROUND(F519*G519,2)","v":0}]
[]
[{"v":18,"d":"18 "},null,"32mm x 44 mm Bearer countersunk screwed to framing",null,"m",126,null,{"$f":"ROUND(F521*G521,2)","v":0}]
[]
[{"v":19,"d":"19 "},null,"32mm x 68mm Front, rear and cross bearers, 20mm recess at front",null,"m",130,null,{"$f":"ROUND(F523*G523,2)","v":0}]
[]
[{"v":20,"d":"20 "},null,"20mm Bottom, sides, shelving, divisions, etc., all tongued, grooved, glued and screwed together.",null,"m²",123,null,{"$f":"ROUND(F525*G525,2)","v":0}]
[]
[null,null,"MAGAZINE STAND"]
[]
[null,null,"Magazine Stand as per Joinery Detail"]
[]
[null,null,"Wrot Softwood"]
[]
[{"v":21,"d":"21 "},null,"20mm x 45mm Once splayed filler batten plugged to wall",null,"m",12,null,{"$f":"ROUND(F533*G533,2)","v":0}]
[]
[{"v":22,"d":"22 "},null,"20mm x 75 mm Filler piece plugged to wall",null,"m",12,null,{"$f":"ROUND(F535*G535,2)","v":0}]
[]
[{"v":23,"d":"23 "},null,"20mm x 75mm Floor bearer",null,"m",12,null,{"$f":"ROUND(F537*G537,2)","v":0}]
[]
[{"v":24,"d":"24 "},null,"20mm x 1400mm High wedge shaped strengthener 231mm wide at bottom and 40mm wide at top screwed on",null,"No",12,null,{"$f":"ROUND(F539*G539,2)","v":0}]
[]
[null,null,"Wrot Saligna"]
[]
[{"v":25,"d":"25 "},null,"20mm x 75mm Headpiece with rounded front edge",null,"m",12,null,{"$f":"ROUND(F543*G543,2)","v":0}]
[]
[{"v":26,"d":"26 "},null,"20mm x 75mm Skirting with and including 19mm diameter quadrant pinned on",null,"m",12,null,{"$f":"ROUND(F545*G545,2)","v":0}]
[]
[null,null,"Laminated wrot Saligna"]
[]
[{"v":27,"d":"27 "},null,"20mm Panel screwed on",null,"m²",4,null,{"$f":"ROUND(F549*G549,2)","v":0}]
[]
[{"v":28,"d":"28 "},null,"20mm x 1400mm High wedge shaped end piece 306mm wide at bottom and 115mm wide at top with rounded front edge, screwed on",null,"No",25,null,{"$f":"ROUND(F551*G551,2)","v":0}]
[]
[null,null,"Tempered Hardboard"]
[]
[{"v":29,"d":"29 "},null,"6.4mm Tempered hardboard panel",null,"m²",25,null,{"$f":"ROUND(F555*G555,2)","v":0}]
[]
[null,null,"PIGEON HOLE SHELVING"]
[]
[null,null,"Pigeon hole shelving as per Joinery Detail"]
[]
[null,null,"Wrot Softwood"]
[]
[{"v":30,"d":"30 "},null,"20mm x 75 mm Filler piece plugged to wall",null,"m",12,null,{"$f":"ROUND(F563*G563,2)","v":0}]
[]
[{"v":31,"d":"31 "},null,"20mm x 75mm Skirting with and including 19mm diameter quadrant pinned on",null,"m",12,null,{"$f":"ROUND(F565*G565,2)","v":0}]
[]
[null,null,"Laminated wrot Saligna"]
[]
[{"v":32,"d":"32 "},null,"20mm Pigeon hole bottom, sides, shelving, divisions, etc., all tongued, grooved, glued and screwed together.",null,"m²",21,null,{"$f":"ROUND(F569*G569,2)","v":0}]
[]
[null,null,"FIXED SHELVING"]
[]
[null,null,"Fixed shelving as per Joinery Detail"]
[]
[null,null,"Wrot Softwood"]
[]
[{"v":33,"d":"33 "},null,"20mm x 40mm Rail plugged to wall",null,"m",65,null,{"$f":"ROUND(F577*G577,2)","v":0}]
[]
[{"v":34,"d":"34 "},null,"20mm x 75 mm Bearer plugged to wall",null,"m",18,null,{"$f":"ROUND(F579*G579,2)","v":0}]
[]
[null,null,"Wrot Saligna"]
[]
[{"v":35,"d":"35 "},null,"20mm x 75mm Skirting with and including 19mm diameter quadrant pinned on",null,"m",15,null,{"$f":"ROUND(F583*G583,2)","v":0}]
[]
[null,null,"Laminated wrot Saligna"]
[]
[{"v":36,"d":"36 "},null,"20mm Bottom, sides, shelving, divisions, etc., all tongued, grooved, glued and screwed together.",null,"m²",35,null,{"$f":"ROUND(F587*G587,2)","v":0}]
[]
[null,null,"Carried to Summary",{"$nulls":4},{"$f":"SUM(H454:H588)","v":0}]
[]
[]
[null,null,"SECTION 2 : BUILDING WORKS"]
[]
[null,null,"BILL. 8"]
[]
[null,null,"CEILINGS, PARTITIONS ETC (WORKGROUP 129)"]
[]
[null,null,"Tenderers are referred to the relevant clauses in the separate document: ASAQS General Preambles for trades (2017 edition) and the ASAQS supplementary preambles which are incorporated in this Bill of Quantities."]
[]
[null,null,"Note : Where trade names and catalogue numbers are given, it shall be taken to mean to be followed by the words \"equal or other approved\"."]
[]
[null,null,"SUPPLEMENTARY PREAMBLES"]
[]
[null,null,"Descriptions"]
[]
[null,null,"Items described as \"nailed\" shall be deemed to be fixed with hardened steel nails or pins or shot pinned to brickwork or concrete."]
[]
[null,null,"Items described as \"plugged\" shall be deemed to include screwing to fibre, plastic or metal plugs at not exceeding 600mm centres, and where described as \"bolted\" the bolts have been given elsewhere."]
[]
[null,null,"NAILED UP CEILINGS ETC. (LI)"]
[]
[null,null,"6,4mm \"Rhino\" gypsum plasterboard with taped and skimmed joints"]
[]
[{"v":1,"d":"1 "},null,"Ceilings including 38 x 38mm sawn softwood brandering at 450mm centres in both directions",null,"m²",1592,null,{"$f":"ROUND(F614*G614,2)","v":0}]
[]
[{"v":2,"d":"2 "},null,"Extra over ceilings for square openings for ceiling trap door size 600 x 600mm",null,"No",13,null,{"$f":"ROUND(F616*G616,2)","v":0}]
[]
[null,null,"\"Rhino\" gypsum plasterboard cornices"]
[]
[{"v":3,"d":"3 "},null,"75mm coved cornice",null,"m",998,null,{"$f":"ROUND(F620*G620,2)","v":0}]
[]
[null,null,"Carried to Summary",{"$nulls":4},{"$f":"SUM(H614:H621)","v":0}]
[]
[]
[null,null,"SECTION 2 : BUILDING WORKS"]
[]
[null,null,"BILL. 9"]
[]
[null,null,"FLOOR COVERINGS, WALL LININGS, ETC (WORKGROUP 130) (LI)"]
[]
[null,null,"Tenderers are referred to the relevant clauses in the separate document: ASAQS General Preambles for trades (2017 edition) and the ASAQS supplementary preambles which are incorporated in this Bill of Quantities."]
[]
[null,null,"Note : Where trade names and catalogue numbers are given, it shall be taken to mean to be followed by the words \"equal or other approved\"."]
[]
[null,null,"SUPPLEMENTARY PREAMBLES"]
[]
[null,null,"EPWP Conditions and Specifications"]
[]
[null,null,"The tenderer/bidder is advised that all items within this bill are subject to the terms, conditions and specifications of section C12 as expanded from sub-sections C 12.1 to C12.10 within the P's & G's section of this bid document."]
[]
[null,null,"FLOOR COVERINGS"]
[]
[null,null,"300 x 300 x 2,5mm \"Marleyflex\" semi flexible vinyl floor tiles"]
[]
[{"v":1,"d":"1 "},null,"On floors",null,"m²",3306,null,{"$f":"ROUND(F645*G645,2)","v":0}]
[]
[null,null,"POLISH SEALERS ETC."]
[]
[{"v":2,"d":"2 "},null,"Two coats wax polish on vinyl flooring",null,"m²",3306,null,{"$f":"ROUND(F649*G649,2)","v":0}]
[]
[null,null,"Carried to Summary",{"$nulls":4},{"$f":"SUM(H645:H650)","v":0}]
[]
[]
[null,null,"SECTION 2 : BUILDING WORKS"]
[]
[null,null,"BILL. 10"]
[]
[null,null,"IRONMONGERY (WORKGROUP 132) (LI)"]
[]
[null,null,"Tenderers are referred to the relevant clauses in the separate document: ASAQS General Preambles for trades (2017 edition) and the ASAQS supplementary preambles which are incorporated in this Bill of Quantities."]
[]
[null,null,"Note : Where trade names and catalogue numbers are given, it shall be taken to mean to be followed by the words \"equal or other approved\"."]
[]
[null,null,"SUPPLEMENTARY PREAMBLES"]
[]
[null,null,"NOTE:  a)  All lock sets are to be suitable for master and grand-master keying and each supplied with two keys  b)  Rates must include for master keys and grand-master keys  c)  Rates must include for the preparation of frames, etc. to receive ironmongery"]
[]
[null,null,"Finishes to ironmongery"]
[]
[null,null,"Where applicable finishes to ironmongery are indicated by suffixes in accordance with the following list: BS Satin bronze lacquered CH Chromium plated SC Satin chromium plated SE Silver enamelled GE Grey enamelled AS Anodised silver AB Anodised bronze AG Anodised gold ABL Anodised black PB Polished brass PL Polished and lacquered PT Epoxy coated SD Sanded"]
[]
[null,null,"DOOR FURNITURE, ETC"]
[]
[{"v":1,"d":"1 "},null,"Solid art 390/313 4 lever mortice",null,"No",274,null,{"$f":"ROUND(F674*G674,2)","v":0}]
[]
[null,null,"\"Union\""]
[]
[{"v":2,"d":"2 "},null,"Hat and coat hook with rubber buffer as 'Union AL8722AS'",null,"No",137,null,{"$f":"ROUND(F678*G678,2)","v":0}]
[]
[null,null,"EN SUITE LOCKS"]
[]
[null,null,"\"Union\""]
[]
[{"v":3,"d":"3 "},null,"Solid Art 390/313 4 lever mortice lockset and stain metal handles",null,"No",137,null,{"$f":"ROUND(F684*G684,2)","v":0}]
[]
[{"v":4,"d":"4 "},null,"Master key",null,"No",2,null,{"$f":"ROUND(F686*G686,2)","v":0}]
[]
[{"v":5,"d":"5 "},null,"Grand master key",null,"No",2,null,{"$f":"ROUND(F688*G688,2)","v":0}]
[]
[null,null,"LETTERS, NAMEPLATES, ETC"]
[]
[{"v":6,"d":"6 "},null,"3mm thick clear perspex plate size 90 x 32mm reversed engraved with one 15mm high black numeral or letter to detail on white background including twice holing for and screwing on with chromium plated brass raise head countersunk screws (Provisional)",null,"No",3,null,{"$f":"ROUND(F692*G692,2)","v":0}]
[]
[{"v":7,"d":"7 "},null,"Ditto size 190 x 19mm ditto. Sign to read \"STORE ROOM\" (Provisional)",null,"No",10,null,{"$f":"ROUND(F694*G694,2)","v":0}]
[]
[{"v":8,"d":"8 "},null,"Ditto size 270 x 19mm ditto. Sign to read \"EQUIPMENT STORE\" (Provisional)",null,"No",10,null,{"$f":"ROUND(F696*G696,2)","v":0}]
[]
[{"v":9,"d":"9 "},null,"4mm clear perspex plates size 150 x 19mm reversed engraved with 15mm black letters to detail, including four times holing for and screwing on with chromium plated brass raised head countersunk screws. Sign to read \"KITCHEN\" (Provisional)",null,"No",2,null,{"$f":"ROUND(F698*G698,2)","v":0}]
[]
[{"v":10,"d":"10 "},null,"Ditto size 150 x 19mm ditto. Sign to read \"TEAM TEACHING\" (Provisional)",null,"No",2,null,{"$f":"ROUND(F700*G700,2)","v":0}]
[]
[{"v":11,"d":"11 "},null,"Ditto size 190 x 19mm ditto. Sign to read \"COMPUTER ROOM\" (Provisional)",null,"No",2,null,{"$f":"ROUND(F702*G702,2)","v":0}]
[]
[{"v":12,"d":"12 "},null,"Ditto size 150 x 19mm ditto. Sign to read \"PRINCIPAL\" (Provisional)",null,"No",2,null,{"$f":"ROUND(F704*G704,2)","v":0}]
[]
[{"v":13,"d":"13 "},null,"Ditto size 150 x 19mm ditto. Sign to read \"COUNSELLING ROOM\" (Provisional)",null,"No",2,null,{"$f":"ROUND(F706*G706,2)","v":0}]
[]
[{"v":14,"d":"14 "},null,"Ditto size 150 x 19mm ditto. Sign to read \"TEACHERS' WORK ROOM\" (Provisional)",null,"No",2,null,{"$f":"ROUND(F708*G708,2)","v":0}]
[]
[{"v":15,"d":"15 "},null,"Ditto size 160 x 19mm ditto. Sign to read \"STAFF ROOM\" (Provisional)",null,"No",2,null,{"$f":"ROUND(F710*G710,2)","v":0}]
[]
[{"v":16,"d":"16 "},null,"Ditto size 160 x 19mm ditto. Sign to read \"STOCK ROOM\" (Provisional)",null,"No",2,null,{"$f":"ROUND(F712*G712,2)","v":0}]
[]
[{"v":17,"d":"17 "},null,"Ditto size 180 x 19mm ditto. Sign to read \"RECEPTION\" (Provisional)",null,"No",2,null,{"$f":"ROUND(F714*G714,2)","v":0}]
[]
[{"v":18,"d":"18 "},null,"Ditto size 180 x 19mm ditto. Sign to read \"RECORD ROOM\" (Provisional)",null,"No",2,null,{"$f":"ROUND(F716*G716,2)","v":0}]
[]
[{"v":19,"d":"19 "},null,"Ditto size 180 x 19mm ditto. Sign to read \"VICE PRINCIPAL\" (Provisional)",null,"No",2,null,{"$f":"ROUND(F718*G718,2)","v":0}]
[]
[{"v":20,"d":"20 "},null,"Ditto size 190 x 19mm ditto. Sign to read \"GENERAL OFFICE\" (Provisional)",null,"No",2,null,{"$f":"ROUND(F720*G720,2)","v":0}]
[]
[{"v":21,"d":"21 "},null,"Ditto size 190 x 19mm ditto. Sign to read \"STATIONERY STORE\" (Provisional)",null,"No",2,null,{"$f":"ROUND(F722*G722,2)","v":0}]
[]
[{"v":22,"d":"22 "},null,"Ditto size 190 x 19mm ditto. Sign to read \"STRONG ROOM\" (Provisional)",null,"No",2,null,{"$f":"ROUND(F724*G724,2)","v":0}]
[]
[{"v":23,"d":"23 "},null,"Ditto size 190 x 19mm ditto. Sign to read \"COMPUTER ROOM\" (Provisional)",null,"No",2,null,{"$f":"ROUND(F726*G726,2)","v":0}]
[]
[{"v":24,"d":"24 "},null,"Ditto size 190 x 19mm ditto. Sign to read \"MEDIA CENTRE\" (Provisional)",null,"No",2,null,{"$f":"ROUND(F728*G728,2)","v":0}]
[]
[{"v":25,"d":"25 "},null,"Ditto size 270 x 19mm ditto. Sign to read \"AUDIO VISUAL STORE\" (Provisional)",null,"No",2,null,{"$f":"ROUND(F730*G730,2)","v":0}]
[]
[{"v":26,"d":"26 "},null,"Ditto size 320 x 19mm ditto. Sign to read \"MULTI PURPOSE CLASSROOM 1\" (Provisional)",null,"No",2,null,{"$f":"ROUND(F732*G732,2)","v":0}]
[]
[{"v":27,"d":"27 "},null,"Ditto size 320 x 19mm ditto. Sign to read \"MULTI PURPOSE CLASSROOM 2\" (Provisional)",null,"No",2,null,{"$f":"ROUND(F734*G734,2)","v":0}]
[]
[{"v":28,"d":"28 "},null,"Ditto size 450 x 150mm reversed engraved to detail, including six times holing for and screwing to plugs in wall with chromium plated brass raised head countersunk screws. Sign engraved with 25mm high black letters to read \"ADMINISTRATION OFFICES\"",null,"No",2,null,{"$f":"ROUND(F736*G736,2)","v":0}]
[]
[null,null,"\"Union\""]
[]
[{"v":29,"d":"29 "},null,"\"AL5063E-06ASE10/E11\" 76 x 152 x 3mm thick anodised aluminium plate with male or female symbol",null,"No",6,null,{"$f":"ROUND(F740*G740,2)","v":0}]
[]
[{"v":30,"d":"30 "},null,"\"AL5066E-06ASE04/E05/E06/E15/E16\" 152 x 152 x 3mm thick anodised aluminium plate with fire exit, fire extinguisher, fire hose reel or fire hydrant symbol, including four times holing for and screwing to plugs in wall with anodised aluminium brass raised head countersunk screws",null,"No",15,null,{"$f":"ROUND(F742*G742,2)","v":0}]
[]
[null,null,"PELMETS AND CURTAINS"]
[]
[{"v":31,"d":"31 "},null,"750mm Long x 112mm high \"Kirsch\" box type pressed steel pelmet with 50mm projection with and including aluminium I section curtain track with 12 rollers per metre  plugged to brick walls with fixing brackets. (W3)",null,"No",10,null,{"$f":"ROUND(F746*G746,2)","v":0}]
[]
[{"v":32,"d":"32 "},null,"1500mm Long x 112mm high \"Kirsch\" box type pressed steel pelmet with 50mm projection wih and including aluminium I section curtain track with 12 rollers per metre  plugged to brick walls with fixing brackets (W1).",null,"No",10,null,{"$f":"ROUND(F748*G748,2)","v":0}]
[]
[{"v":33,"d":"33 "},null,"1800mm Long x 112mm high \"Kirsch\" box type pressed steel pelmet with 50mm projection wih and including aluminium I section curtain track with 12 rollers per metre  plugged to brick walls with fixing brackets (W4).",null,"No",10,null,{"$f":"ROUND(F750*G750,2)","v":0}]
[]
[null,null,"BATHROOM FITTINGS"]
[]
[{"v":34,"d":"34 "},null,"19mm diameter chromium plated towel rail 600mm long including end brackets plugged",null,"No",8,null,{"$f":"ROUND(F754*G754,2)","v":0}]
[]
[{"v":35,"d":"35 "},null,"Stainless steel back grab rail 206 x 750 x 206mm plugged as \"Franke Cistern back rail CNTXBR-359910\"",null,"No",3,null,{"$f":"ROUND(F756*G756,2)","v":0}]
[]
[{"v":36,"d":"36 "},null,"Stainless steel cranked general purpose paraplegic side grab rail 300 x 300 x 300mm plugged as \"Franke paraplegic CNTXPAR-359885\"",null,"No",3,null,{"$f":"ROUND(F758*G758,2)","v":0}]
[]
[{"v":37,"d":"37 "},null,"380 x 610mm Standard white melamine finished medicine cabinet complete with mirrors on doors, shelves etc. plugged",null,"No",1,null,{"$f":"ROUND(F760*G760,2)","v":0}]
[]
[null,null,"SUNDRIES"]
[]
[null,null,"\"Union\""]
[]
[{"v":38,"d":"38 "},null,"38mm door stop",null,"No",117,null,{"$f":"ROUND(F766*G766,2)","v":0}]
[]
[null,null,"PINNING BOARDS, WRITING BOARDS, PROJECTION SCREENS, ETC"]
[]
[null,null,"\"Parrot\""]
[]
[{"v":39,"d":"39 "},null,"\"BD0476\" Aluminium framed carpet bulletin board 2400 x 1200mm high plugged",null,"No",43,null,{"$f":"ROUND(F772*G772,2)","v":0}]
[]
[null,null,"SAFES"]
[]
[{"v":40,"d":"40 "},null,"Wall mounted safe 280 x 230 x 310mm high, bolted to wall with expansion bolts to inside of safe, with intergrated security lock",null,"No",1,null,{"$f":"ROUND(F776*G776,2)","v":0}]
[]
[null,null,"STEEL LOCKERS"]
[]
[null,null,"Steel lockers with standard baked enamel finish"]
[]
[{"v":41,"d":"41 "},null,"Steel cupboard bolted to wall 457 x 915 x 1829mm (similar approved)",null,"No",3,null,{"$f":"ROUND(F782*G782,2)","v":0}]
[]
[null,null,"Carried to Summary",{"$nulls":4},{"$f":"SUM(H674:H783)","v":0}]
[]
[]
[null,null,"SECTION 2 : BUILDING WORKS"]
[]
[null,null,"BILL. 11"]
[]
[null,null,"STRUCTURAL STEEL (WORKGROUP 134)"]
[]
[null,null,"STRUCTURAL STEEL"]
[]
[null,null,"Tenderers are referred to the relevant clauses in the separate document: ASAQS General Preambles for trades (2017 edition) and the ASAQS supplementary preambles which are incorporated in this Bill of Quantities."]
[]
[null,null,"Note : Where trade names and catalogue numbers are given, it shall be taken to mean to be followed by the words \"equal or other approved\"."]
[]
[null,null,"SUPPLEMENTARY PREAMBLES"]
[]
[null,null,"Descriptions"]
[]
[null,null,"Descriptions of bolts shall be deemed to include nuts and washers  Descriptions of L-shaped and U-shaped anchor bolts shall be deemed to include bending, threading, nuts and washers and embedding in concrete. Where anchor bolts are described as embedded in sides or soffits of concrete it shall be deemed to include holes through formwork  Descriptions of expansion anchors and bolts and chemical anchors and bolts shall be deemed to include nuts, washers and mortices in brickwork or concrete  All structural steelwork to be grade 300W except for cold rolled purlins which shall be commercial grade steel"]
[]
[null,null,"Surface preparation"]
[]
[null,null,"Sand blast all hot rolled steelwork to SA 2.5 of Swedish Code and wire brush cold rolled purlins to SA 3.0 of the Swedish Code"]
[]
[null,null,"Corrosion protection"]
[]
[null,null,"All steelwork including nuts and bolts to be hot dipped galvanised to SABS 763 (Heavy Duty) and all necessary precautions taken to ensure straightness of members after galvanising"]
[]
[null,null,"Workshop Details"]
[]
[null,null,"Workshop details to be submitted to the engineer for approval prior to manufacture. All details and manufacturing to be done strictly in accordance with standard practice for hot dipped galvanising, with due care being taken in the preparation of and welding of connections to ensure all over protection of the steelwork"]
[]
[null,null,"HOT DIPPED GALVANISED MILD STEEL"]
[]
[null,null,"STEEL COLUMNS AND BEAMS"]
[]
[null,null,"Welded columns in single lengths with flat section base, top, bearer and connection plates bolted to concrete"]
[]
[{"v":1,"d":"1 "},null,"100 x 100 x 4mm thick galvanised hollow columns approximately 1500mm long including 50mm wide x 100mm high U-shaped truss holder and 200 x 200 x 8mm thick base plate welded on",null,"No",137,null,{"$f":"ROUND(F823*G823,2)","v":0}]
[]
[null,null,"Sundries"]
[]
[{"v":2,"d":"2 "},null,"16mm diameter expansion anchor with loose bolt",null,"No",548,null,{"$f":"ROUND(F827*G827,2)","v":0}]
[]
[{"v":3,"d":"3 "},null,"150 x 150mm Mild steel plate",null,"No",137,null,{"$f":"ROUND(F829*G829,2)","v":0}]
[]
[null,null,"Carried to Summary",{"$nulls":4},{"$f":"SUM(H823:H830)","v":0}]
[]
[]
[null,null,"SECTION 2 : BUILDING WORKS"]
[]
[null,null,"BILL. 12"]
[]
[null,null,"METALWORK (WORKGROUP 136)"]
[]
[null,null,"Tenderers are referred to the relevant clauses in the separate document: ASAQS General Preambles for trades (2017 edition) and the ASAQS supplementary preambles which are incorporated in this Bill of Quantities."]
[]
[null,null,"Note : Where trade names and catalogue numbers are given, it shall be taken to mean to be followed by the words \"equal or other approved\"."]
[]
[null,null,"SUPPLEMENTARY PREAMBLES"]
[]
[null,null,"Note: Tenderers are referred to architect's drawings annexed to these bills of quantities/accompanying these bills of quantities for tender purposes"]
[]
[null,null,"Descriptions"]
[]
[null,null,"Descriptions of bolts shall be deemed to include nuts and washers"]
[]
[null,null,"Descriptions of expansion anchors and bolts and chemical anchors and bolts shall be deemed to include nuts, washers and mortices in brickwork or concrete"]
[]
[null,null,"Metalwork described as\"holed for bolt(s)\" shall be deemed to exclude the bolts unless otherwise described"]
[]
[null,null,"GALVANISED MILD STEEL BALUSTRADES, HANDRAILS ETC"]
[]
[null,null,"Welded balustrading to walkways and staircases"]
[]
[{"v":1,"d":"1 "},null,"Balustrading to walkway 1000mm high overall formed of 50mm diameter hollow section continuous handrail with stanchions at 1200mm centres formed of two 10 x 50mm flat sections side by side, each welded to 150 x 150 x 10mm thick flat section base plate bolted to concrete, infill frame between stanchions formed of two 10 x 50mm flat sections side by side framing filled in with 12mm diameter hollow section vertical rails at 92mm centres all as per detail drawings in back of these bills of quantities. 2908-09",null,"m",61,null,{"$f":"ROUND(F860*G860,2)","v":0}]
[]
[{"v":2,"d":"2 "},null,"Raking balustrading to staircase 1000mm high overall formed of 50mm diameter hollow section continuous handrail with stanchions at 1200mm centres formed of two 10 x 50mm flat sections side by side, each welded to 150 x 150 x 10mm thick flat section base plate bolted to concrete, infill frame between stanchions formed of two 10 x 50mm flat sections side by side framing filled in with 12mm diameter hollow section vertical rails at 92mm centres all as per detail drawings in back of these bills of quantities. 2908-09",null,"m",60,null,{"$f":"ROUND(F862*G862,2)","v":0}]
[]
[{"v":3,"d":"3 "},null,"Extra over 10 x 50mm double flat bar sections for mitred angle intersection",null,"No",60,null,{"$f":"ROUND(F864*G864,2)","v":0}]
[]
[{"v":4,"d":"4 "},null,"Extra over 10 x 50mm double flat bar sections for ramp or knee",null,"No",60,null,{"$f":"ROUND(F866*G866,2)","v":0}]
[]
[{"v":5,"d":"5 "},null,"Extra over 50mm diameter hollow sections for ramp or knee",null,"No",60,null,{"$f":"ROUND(F868*G868,2)","v":0}]
[]
[{"v":6,"d":"6 "},null,"Extra over 50mm diameter hollow section for closed end",null,"No",60,null,{"$f":"ROUND(F870*G870,2)","v":0}]
[]
[null,null,"SUNDRY GALVANISED STEELWORK"]
[]
[null,null,"Bolts"]
[]
[{"v":7,"d":"7 "},null,"12mm diameter expansion anchor with loose bolt",null,"No",120,null,{"$f":"ROUND(F876*G876,2)","v":0}]
[]
[null,null,"WELDED SCREENS, GATES ETC"]
[]
[{"v":8,"d":"8 "},null,"Galvanised steel single gate and frame size 1100 x 1800mm high",null,"No",54,null,{"$f":"ROUND(F880*G880,2)","v":0}]
[]
[{"v":9,"d":"9 "},null,"Double gate and frame 1800 x 2150mm high",null,"No",1,null,{"$f":"ROUND(F882*G882,2)","v":0}]
[]
[{"v":10,"d":"10 "},null,"Double gate and frame 2655 x 2150mm high",null,"No",1,null,{"$f":"ROUND(F884*G884,2)","v":0}]
[]
[null,null,"STEEL WINDOWS, DOORS, ETC"]
[]
[null,null,"BURGLAR PROOFING"]
[]
[null,null,"To consist of galvanised 3 x 25mm flat steel bars at 100mm centres"]
[]
[null,null,"To consist of galvanised 3 x 25mm flat steel bars at 100mm centres"]
[]
[null,null,"Standard Steel Doors"]
[]
[{"v":11,"d":"11 "},null,"Expandable security gate size approx. 3635mm x 2130mm",null,"No",1,null,{"$f":"ROUND(F896*G896,2)","v":0}]
[]
[{"v":12,"d":"12 "},null,"Expanding security gate 813mm x 2032mm high",null,"No",3,null,{"$f":"ROUND(F898*G898,2)","v":0}]
[]
[{"v":13,"d":"13 "},null,"Steel Door size 1022mm x 2134mm OEN cut",null,"No",1,null,{"$f":"ROUND(F900*G900,2)","v":0}]
[]
[{"v":14,"d":"14 "},null,"Steel Door size 1574mm x 2134mm OEN cut",null,"No",1,null,{"$f":"ROUND(F902*G902,2)","v":0}]
[]
[null,null,"Residential type windows including polymatic\" non hardening waterproofing compound in pointing all round frames"]
[]
[{"v":15,"d":"15 "},null,"Window Type NG1 533mm x 359mm high, fitted with burglar proofing (W1)",null,"No",16,null,{"$f":"ROUND(F906*G906,2)","v":0}]
[]
[{"v":16,"d":"16 "},null,"Window Type NE1 533mm x 654mm high, fitted with burglar proofing (W2)",null,"No",3,null,{"$f":"ROUND(F908*G908,2)","v":0}]
[]
[{"v":17,"d":"17 "},null,"Window Type 4-BH 889mm x 457mm high, fitted with burglar proofing (W4)",null,"No",22,null,{"$f":"ROUND(F910*G910,2)","v":0}]
[]
[{"v":18,"d":"18 "},null,"Window Type 4BH 889mm x 854mm high, fitted with burglar proofing (W5)",null,"No",99,null,{"$f":"ROUND(F912*G912,2)","v":0}]
[]
[{"v":19,"d":"19 "},null,"Window Type 14BH 889mm x 1250mm high, fitted with burglar proofing (W6)",null,"No",97,null,{"$f":"ROUND(F914*G914,2)","v":0}]
[]
[{"v":20,"d":"20 "},null,"Window Type NC2 1022mm x 949mm high, fitted with burglar proofing (W9)",null,"No",2,null,{"$f":"ROUND(F916*G916,2)","v":0}]
[]
[{"v":21,"d":"21 "},null,"Window Type NC4 1511mm x 949mm high, fitted with burglar proofing (W10)",null,"No",1,null,{"$f":"ROUND(F918*G918,2)","v":0}]
[]
[null,null,"BEARERS TO BRICK LININGS, LINTELS ETC"]
[]
[{"v":22,"d":"22 "},null,"90 x 90 x 8mm Angle section bearer bolted to concrete",null,"m",250,null,{"$f":"ROUND(F922*G922,2)","v":0}]
[]
[{"v":23,"d":"23 "},null,"20mm diameter chemical expansion anchor with loose bolt including hole through 8mm thick steel",null,"No",250,null,{"$f":"ROUND(F924*G924,2)","v":0}]
[]
[null,null,"HOT DIPPED GALVANISED PRESSED STEEL DOOR FRAMES"]
[]
[null,null,"1,2mm Double rebated galvanised pressed metal frame suitable for 230/115mm walls complete with straps for building in, 2 x 100mm galvanised and welded loose pin hinges, adjust. Chrome plated striking plate."]
[]
[{"v":24,"d":"24 "},null,"Frame for door 762mm x 1800mm high",null,"No",2,null,{"$f":"ROUND(F930*G930,2)","v":0}]
[]
[{"v":25,"d":"25 "},null,"Frame for door 762mm x 2032mm high",null,"No",5,null,{"$f":"ROUND(F932*G932,2)","v":0}]
[]
[{"v":26,"d":"26 "},null,"Frame for door 813mm x 2032mm high",null,"No",67,null,{"$f":"ROUND(F934*G934,2)","v":0}]
[]
[{"v":27,"d":"27 "},null,"Frame for door 1000mm x 2033mm high",null,"No",1,null,{"$f":"ROUND(F936*G936,2)","v":0}]
[]
[{"v":28,"d":"28 "},null,"Frame for door 1574mm x 2032mm high",null,"No",1,null,{"$f":"ROUND(F938*G938,2)","v":0}]
[]
[{"v":29,"d":"29 "},null,"Frame for door 1840mm x 2032mm high",null,"No",1,null,{"$f":"ROUND(F940*G940,2)","v":0}]
[]
[null,null,"STEEL ROLLER SHUTTERS ETC"]
[]
[null,null,"Galvanized roller shutters fixed to brickwork"]
[]
[{"v":30,"d":"30 "},null,"Push-up operated galvanized door 1971mm x 1321mm high",null,"No",1,null,{"$f":"ROUND(F946*G946,2)","v":0}]
[]
[null,null,"RECORD ROOM DOORS AND VENTILATORS"]
[]
[{"v":31,"d":"31 "},null,"Steel record room door and frame for 150mm think wall, the masonry/concrete opening of minimum size 900 x 1940mm to provide clear opening minimum size 785 x 1875, the door constructed of 6mm thick front plate, the door and frame to weigh not less than 245kg and the door/frame tolerance to be a maximum of  1,5mm all around. All other requirements shall comply with SABS 949 and clauses 12, 19(b) and (c) of HDL 20",null,"No",1,null,{"$f":"ROUND(F950*G950,2)","v":0}]
[]
[null,null,"Carried to Summary",{"$nulls":4},{"$f":"SUM(H860:H951)","v":0}]
[]
[]
[null,null,"SECTION 2 : BUILDING WORKS"]
[]
[null,null,"BILL. 13"]
[]
[null,null,"PLASTERING (WORKGROUP 142) (LI)"]
[]
[null,null,"Tenderers are referred to the relevant clauses in the separate document: ASAQS General Preambles for trades (2017 edition) and the ASAQS supplementary preambles which are incorporated in this Bill of Quantities."]
[]
[null,null,"Note : Where trade names and catalogue numbers are given, it shall be taken to mean to be followed by the words \"equal or other approved\"."]
[]
[null,null,"SUPPLEMENTARY PREAMBLES"]
[]
[null,null,"EPWP Conditions and Specifications"]
[]
[null,null,"The tenderer/bidder is advised that all items within this bill are subject to the terms, conditions and specifications of section C12 as expanded from sub-sections C 12.1 to C12.10 within the P's & G's section of this bid document."]
[]
[null,null,"Screed Specification"]
[]
[null,null,"The screed is to be a cementitious material made from a 1:3 or 1:4.5 ratio of cement to sharp sand. It may be applied onto either a solid in-situ concrete ground floor slab or onto a precast concrete floor unit. Materials for screeds SandThe quality of the sand, i.e. its concrete-making properties, has a large influence on the quality of the resulting screed. It should be a “concrete” sand – not a “plaster” sand – but the largest particles should be removed by sieving the sand through a sieve with openings about 5mm wide to facilitate finishing. Where possible, the sand should be tested in a laboratorybeforehand. It should then, in a mix of 3,5 parts of dry sand and 1 part of cement by mass, produce a plastic, easy-working, cohesive mortar of plastering consistence (i.e. a slump of about 40 mm) with a water content per cubic metre of not more than 320 l but preferably not more than 300 l. To produce a mix that is easy to finish to a smooth surface, it may be necessary to blend two or more sands. Commonly a blend consisting of 4 parts of crusher sand, sieved as above, and 1 part of a clean “plaster” sand, gives good results. Note: Sieving must be done on horizontal sieves whichare shaken, or on cylindrical sieves which are rotated. The practice of throwing the sand onto a sloping sieve with a shovel is unacceptable because it is inaccurate, unreliable and wasteful.CementUse cement complying with SANS 50197-1 type CEM I orCEM II A."]
[]
[null,null,"SCREEDS"]
[]
[null,null,"Screeds on concrete"]
[]
[{"v":1,"d":"1 "},null,"25mm Thick on floors and landings to receive vinyl tiles",null,"m²",1597,null,{"$f":"ROUND(F979*G979,2)","v":0}]
[]
[null,null,"EXTERNAL PLASTER"]
[]
[null,null,"Cement plaster on brickwork"]
[]
[{"v":2,"d":"2 "},null,"On walls",null,"m²",905,null,{"$f":"ROUND(F985*G985,2)","v":0}]
[]
[null,null,"INTERNAL PLASTER"]
[]
[null,null,"Cement plaster on brickwork"]
[]
[{"v":3,"d":"3 "},null,"On walls",null,"m²",900,null,{"$f":"ROUND(F991*G991,2)","v":0}]
[]
[{"v":4,"d":"4 "},null,"On narrow widths",null,"m²",85,null,{"$f":"ROUND(F993*G993,2)","v":0}]
[]
[{"v":5,"d":"5 "},null,"On soffit of slab",null,"m²",749,null,{"$f":"ROUND(F995*G995,2)","v":0}]
[]
[null,null,"CORNER PROTECTORS, DIVIDING STRIPS, ETC"]
[]
[{"v":6,"d":"6 "},null,"3 x 25mm Flat section brass dividing strips between different floor finishes",null,"m",45,null,{"$f":"ROUND(F999*G999,2)","v":0}]
[]
[{"v":7,"d":"7 "},null,"3 x 50mm Flat section brass waterbar with 3mm diameter lugs 75mm long brazed on at 300mm centres",null,"m",15,null,{"$f":"ROUND(F1001*G1001,2)","v":0}]
[]
[null,null,"Carried to Summary",{"$nulls":4},{"$f":"SUM(H978:H1002)","v":0}]
[]
[]
[null,null,"SECTION 2 : BUILDING WORKS"]
[]
[null,null,"BILL. 14"]
[]
[null,null,"TILING (WORKGROUP 144) (LI)"]
[]
[null,null,"Tenderers are referred to the relevant clauses in the separate document: ASAQS General Preambles for trades (2017 edition) and the ASAQS supplementary preambles which are incorporated in this Bill of Quantities."]
[]
[null,null,"Note : Where trade names and catalogue numbers are given, it shall be taken to mean to be followed by the words \"equal or other approved\"."]
[]
[null,null,"Descriptions"]
[]
[null,null,"Unless described as \"Fixed with adhesive to plaster (Plaster elsewhere)\" descriptions of tiling on brick or concrete walls, columns, etc shall be deemed to include 1:4 cement plaster backing and description of tiling on concrete floors etc shall be deemed to include 1:3 plaster bedding"]
[]
[null,null,"SUPPLEMENTARY PREAMBLES"]
[]
[null,null,"EPWP Conditions and Specifications"]
[]
[null,null,"The tenderer/bidder is advised that all items within this bill are subject to the terms, conditions and specifications of section C12 as expanded from sub-sections C 12.1 to C12.10 within the P's & G's section of this bid document."]
[]
[null,null,"WALL TILING"]
[]
[null,null,"152mm x 152mm x 5mm White glazed ceramic tiles fixed with adhesive to plaster (Plaster elsewhere measured) on walls in isolated panels, splashbacks etc"]
[]
[{"v":1,"d":"1 "},null,"On walls in isolated panels, splashbacks etc",null,"m²",50,null,{"$f":"ROUND(F1030*G1030,2)","v":0}]
[]
[null,null,"FLOOR TILING"]
[]
[null,null,"250 x 250 x 22mm \"Union tiles, Unigrip EJ no. AGEJ250\" non slip floor tiles fixed with adhesive to bedding (Bedding elsewhere measured) and flush pointed with tinted waterproof jointing compound"]
[]
[{"v":2,"d":"2 "},null,"On floors and landings",null,"m²",141,null,{"$f":"ROUND(F1036*G1036,2)","v":0}]
[]
[{"v":3,"d":"3 "},null,"Skirting 75mm high of cut stretcher course tiles",null,"m",181,null,{"$f":"ROUND(F1038*G1038,2)","v":0}]
[]
[null,null,"Carried to Summary",{"$nulls":4},{"$f":"SUM(H1030:H1039)","v":0}]
[]
[]
[null,null,"SECTION 2 : BUILDING WORKS"]
[]
[null,null,"BILL. 15"]
[]
[null,null,"PLUMBING AND DRAINAGE (PROVISIONAL)"]
[]
[null,null,"Tenderers are referred to the relevant clauses in the separate document: ASAQS General Preambles for trades (2017 edition) and the ASAQS supplementary preambles which are incorporated in this Bill of Quantities."]
[]
[null,null,"Note : Where trade names and catalogue numbers are given, it shall be taken to mean to be followed by the words \"equal or other approved\"."]
[]
[null,null,"SUPPLEMENTARY PREAMBLES"]
[]
[null,null,"\"Polycop\" polypropylene pipes:"]
[]
[null,null,"Polypropylene pipes 54mm diameter and under shall be seamless copper coloured class 16 pipes jointed with \"Fast-fuse\" heat welded thermoplastic or brass compression fittings as designed for use with copper pipes as stated"]
[]
[null,null,"Pipes shall be firmly fixed to walls etc with coloured nylon snap-in pipe clips with provision for accommodating thermal movement and jointed and fixed strictly in accordance with the manufacturer's instructions"]
[]
[null,null,"All pipe diameters are nominal external"]
[]
[null,null,"\"Polylink\" polypropylene pipes:"]
[]
[null,null,"Polypropylene pipes 63mm diameter and over shall be class 12 pipes jointed with cast iron \"Supraclamp\" running joints"]
[]
[null,null,"Fusion welded bends, once or twice mitred as necessary, and tees shall be factory manufactured"]
[]
[null,null,"Fusion welded bends and tees shall include jointing to pipes with PVC rubber ring double Z joint couplers"]
[]
[null,null,"Branch tees shall include flanged and bolted joints to \"Polycop\" branch pipes in addition and for brass compression male iron to copper straight couplers"]
[]
[null,null,"Reducers shall include jointing to pipes with PVC rubber ring double Z joint couplers and reducers shall be of sufficient overall length to accommodate same"]
[]
[null,null,"All pipes shall be jointed and fixed strictly in accordance with the manufacturer's instructions"]
[]
[null,null,"All pipe diameters are nominal external"]
[]
[null,null,"Concrete pipes:"]
[]
[null,null,"Pipes shall be jointed with ogee joints with rubber collars or socket and spigot joints with rubber rings"]
[]
[null,null,"Vitrified clay pipes:"]
[]
[null,null,"Pipes shall rest on solid ground and, where necessary, pockets of sufficient size shall be cut around joints to enable the jointing to be properly performed or, alternatively, pipes shall be bedded full length on and including unreinforced concrete laid in a semi-dry state immediately before pipes are laid"]
[]
[null,null,"uPVC pipes and fittings:"]
[]
[null,null,"Sewer and drainage pipes and fittings shall be jointed and sealed with butyl rubber rings"]
[]
[null,null,"Soil, waste and vent pipes and fittings shall be solvent weld jointed"]
[]
[null,null,"uPVC pressure pipes and fittings:"]
[]
[null,null,"Pipes for water supply shall be of the class stated"]
[]
[null,null,"Pipes of 40mm diameter and smaller shall be plain ended with solvent welded uPVC loose sockets and fittings"]
[]
[null,null,"Pipes of 50mm diameter and greater shall have sockets and spigots with push in type integral rubber ring joints.  Bends shall be uPVC and all other fittings shall be cast iron, all with similar push-in type joints"]
[]
[null,null,"Copper pipes:"]
[]
[null,null,"Pipes shall be hard drawn and half-hard pipes of the class stated.  Class 0 (thin walled hard drawn) pipes shall not be bent.  Class 1 (thin walled half-hard), class 2 (half-hard) and class 3 (heavy walled half-hard) pipes shall only be bent with benders with inner and outer formers.  Fittings to copper waste, vent and anti-syphon pipes, capillary solder fittings and compression fittings shall be \"Cobra Watertech\" type.  Capillary solder fittings shall comply with ISO 2016.  Only compression fittings shall be used in walls or in ground"]
[]
[null,null,"Lead pipes and traps"]
[]
[null,null,"All soldered joints shall be wiped and brass unions shall be used for jointing lead to steel"]
[]
[null,null,"Reducing fittings"]
[]
[null,null,"Where fittings have reducing ends or branches they are described as \"reducing\".  In the case of pipes with diameters not exceeding 60mm only the largest end or branch size is given. Should the contractor wish to use other fittings and bushes or reducers he may do so on the understanding that no claim in this regard will be entertained.  In the case of pipes with diameters exceeding 60mm all sizes are given and no claim for extra bushes, reducers, etc will be entertained"]
[]
[null,null,"Wire gratings"]
[]
[null,null,"Descriptions of gutter outlets etc shall be deemed to include wire balloon gratings"]
[]
[null,null,"Septic tanks"]
[]
[null,null,"Descriptions of septic tanks shall be deeemed to include excavation, bedding and jointing, concrete base slabs, jointing to drains and backfilling, compaction, etc all in accordance with the manufacturer's instrucions"]
[]
[null,null,"Exposed concrete surfaces"]
[]
[null,null,"Exposed surfaces of concrete stormwater channels, cover slabs, inspection eye marker slabs, gulley tops, cleaning eye tops, catchpits, inspection chambers, etc shall be finished smooth with plaster"]
[]
[null,null,"Excavations"]
[]
[null,null,"No claim for rock excavation will be entertained unless the contractor has timeously notified the quantity surveyor thereof prior to backfilling"]
[]
[null,null,"\"Soft rock\" and \"hard rock\" shall be as defined in \"Earthworks\""]
[]
[null,null,"All excavations are measured as being in \"soft material\" and/or filling compacted to 98% Modified AASHTO density"]
[]
[null,null,"Descriptions of excavations shall be deemed to include for setting aside surplus excavated material in spoil heaps for use as filling or for depositing within 150m of the perimeter of the excavations and spreading and roughly levelling as directed, as well as for increase in bulk and multiple handling of excavated material caused by the contractor's method of operation"]
[]
[null,null,"Descriptions of carting away of excavated material shall be deemed to include loading excavated material onto trucks directly from the excavations or, alternatively, from stock piles situated on the building site and for bulking"]
[]
[null,null,"Laying, backfilling, bedding, etc. of pipes"]
[]
[null,null,"Pipes shall be laid and bedded and trenches shall be carefully backfilled in accordance with manufacturers' instructions"]
[]
[null,null,"Where no manufacturers' instructions exist pipes shall be laid in accordance with clauses 5.1 and 5.2 of each of the following: SABS 1200 L : Medium-pressure pipelines LD : Sewers LE : Stormwater drainage Pipe trenches etc shall be backfilled in accordance with clauses 3, 5.5, 5.6, 5.7 and 7 of SABS 1200 DB : Earthworks (Pipe trenches) Pipes shall be bedded in accordance with clauses 3.1 to 3.4.1, 5.1 to 5.3 and 7 of SABS 1200 LB : Bedding (Pipes). Unless otherwise described bedding of rigid pipes shall be class B bedding"]
[]
[null,null,"Flush pans"]
[]
[null,null,"Flush pans shall have straight or side outlets and \"P\" or \"S\" traps as necessary"]
[]
[null,null,"Stainless steelbasins, sinks, wash troughs, urinals, etc."]
[]
[null,null,"Units shall have standard aprons on all exposed edges and tiling keys against walls where applicable"]
[]
[null,null,"Waste unions"]
[]
[null,null,"Descriptions of waste unions shall be deemed to include rubber or vulcanite plugs and chains fixed to fittings"]
[]
[null,null,"\"Densyl\" petrolatum anti-corrosion tape as manufactured by Denso SA (Pty) Ltd."]
[]
[null,null,"Pipes to be taped shall be coated with the appropriate primer and the tape shall be applied with minimum 15mm lap per spiral unless otherwise described"]
[]
[null,null,"Couplings and fittings to pipes shall be taped in strict accordance with the manufacturer's instructions including all mastic, tape, \"Layflat\" sheeting, securing of same, etc"]
[]
[null,null,"Prices for wrapping of pipes shall include for all work as described to couplings in the length"]
[]
[null,null,"Stormwater and Soil Drainage"]
[]
[null,null,"Note:  The Tenderer is to make provision in his rates for any imported selected material that may be necessary below, around and above the pipe (i.e. pipe bedding only) as per manufacturer's recommendations (includes Stormwater and Soilwater rates)"]
[]
[null,null,"PLUMBING (WORKGROUP 148)"]
[]
[null,null,"RAINWATER DISPOSAL"]
[]
[null,null,"0,6mm Baked enamel prepainted (white) aluminium alloy H13-35H4"]
[]
[{"v":1,"d":"1 "},null,"150 x 125mm OGEE profile eaves gutter with 20mm wide overlapping joints sealed with and including \"Compriband\" or other approved sealing strip and riveted at 20mm centres, hung on internal aluminium hangers at 600mm centres",null,"m",409,null,{"$f":"ROUND(F1173*G1173,2)","v":0}]
[]
[{"v":2,"d":"2 "},null,"Extra for stopped end",null,"No",32,null,{"$f":"ROUND(F1175*G1175,2)","v":0}]
[]
[{"v":3,"d":"3 "},null,"Extra for eaves outlet with nozzle for and joint to 100 x 75mm rectangular downpipe including wire balloon grating",null,"No",54,null,{"$f":"ROUND(F1177*G1177,2)","v":0}]
[]
[{"v":4,"d":"4 "},null,"100 x 75mm Rectangular rainwater pipes with aluminium brackets fixed to brickwall or concrete",null,"m",200,null,{"$f":"ROUND(F1179*G1179,2)","v":0}]
[]
[{"v":5,"d":"5 "},null,"Extra for shoe",null,"No",44,null,{"$f":"ROUND(F1181*G1181,2)","v":0}]
[]
[{"v":6,"d":"6 "},null,"Extra over eaves offset 600mm projection",null,"No",44,null,{"$f":"ROUND(F1183*G1183,2)","v":0}]
[]
[null,null,"SANITARY PLUMBING"]
[]
[null,null,"uPVC pipes"]
[]
[{"v":7,"d":"7 "},null,"50mm Pipes to walls, in ceilings, in roofs, etc",null,"m",150,null,{"$f":"ROUND(F1189*G1189,2)","v":0}]
[]
[{"v":8,"d":"8 "},null,"110mm pipes to walls, in ceilings, in roofs, etc",null,"m",250,null,{"$f":"ROUND(F1191*G1191,2)","v":0}]
[]
[{"v":9,"d":"9 "},null,"50mm pipes in and including chases in brickwork or concrete",null,"m",200,null,{"$f":"ROUND(F1193*G1193,2)","v":0}]
[]
[{"v":10,"d":"10 "},null,"50mm pipes laid in and including trenches not exceeding 1m deep under surface beds",null,"m",132,null,{"$f":"ROUND(F1195*G1195,2)","v":0}]
[]
[{"v":11,"d":"11 "},null,"110mm pipes laid in and including trenches not exceeding 1m deep under surface beds",null,"m",175,null,{"$f":"ROUND(F1197*G1197,2)","v":0}]
[]
[null,null,"Extra over uPVC pipes for fittings"]
[]
[{"v":12,"d":"12 "},null,"50mm End cap",null,"No",43,null,{"$f":"ROUND(F1201*G1201,2)","v":0}]
[]
[{"v":13,"d":"13 "},null,"110mm End cap",null,"No",30,null,{"$f":"ROUND(F1203*G1203,2)","v":0}]
[]
[{"v":14,"d":"14 "},null,"50mm x 50mm BSP adaptor",null,"No",16,null,{"$f":"ROUND(F1205*G1205,2)","v":0}]
[]
[{"v":15,"d":"15 "},null,"110mm Reducer",null,"No",24,null,{"$f":"ROUND(F1207*G1207,2)","v":0}]
[]
[{"v":16,"d":"16 "},null,"50mm Bend",null,"No",60,null,{"$f":"ROUND(F1209*G1209,2)","v":0}]
[]
[{"v":17,"d":"17 "},null,"110mm Bend",null,"No",58,null,{"$f":"ROUND(F1211*G1211,2)","v":0}]
[]
[{"v":18,"d":"18 "},null,"50mm Junction",null,"No",50,null,{"$f":"ROUND(F1213*G1213,2)","v":0}]
[]
[{"v":19,"d":"19 "},null,"110mm Junction",null,"No",40,null,{"$f":"ROUND(F1215*G1215,2)","v":0}]
[]
[{"v":20,"d":"20 "},null,"110mm Reducing junction",null,"No",24,null,{"$f":"ROUND(F1217*G1217,2)","v":0}]
[]
[{"v":21,"d":"21 "},null,"110mm Double junction",null,"No",14,null,{"$f":"ROUND(F1219*G1219,2)","v":0}]
[]
[{"v":22,"d":"22 "},null,"110mm Pan connector",null,"No",14,null,{"$f":"ROUND(F1221*G1221,2)","v":0}]
[]
[{"v":23,"d":"23 "},null,"110mm Bend pan connector",null,"No",33,null,{"$f":"ROUND(F1223*G1223,2)","v":0}]
[]
[{"v":24,"d":"24 "},null,"50mm Access bend",null,"No",33,null,{"$f":"ROUND(F1225*G1225,2)","v":0}]
[]
[{"v":25,"d":"25 "},null,"110mm Access bend",null,"No",46,null,{"$f":"ROUND(F1227*G1227,2)","v":0}]
[]
[{"v":26,"d":"26 "},null,"50mm Access junction",null,"No",24,null,{"$f":"ROUND(F1229*G1229,2)","v":0}]
[]
[{"v":27,"d":"27 "},null,"110mm Access junction",null,"No",24,null,{"$f":"ROUND(F1231*G1231,2)","v":0}]
[]
[{"v":28,"d":"28 "},null,"50mm \"GI Two-way\" or other approved vent valve",null,"No",36,null,{"$f":"ROUND(F1233*G1233,2)","v":0}]
[]
[{"v":29,"d":"29 "},null,"110mm \"GI Two-way\" or other approved vent valve",null,"No",36,null,{"$f":"ROUND(F1235*G1235,2)","v":0}]
[]
[null,null,"Sundries"]
[]
[{"v":30,"d":"30 "},null,"Testing waste pipe system",null,"Item",1,null,{"$f":"ROUND(F1239*G1239,2)","v":0}]
[]
[null,null,"SANITARY FITTINGS"]
[]
[null,null,"\"Franke\" stainless steel"]
[]
[{"v":31,"d":"31 "},null,"Franke SA94 model SA94 grade 304 18/10 polished stainless steel single drop on sink with right hand drainer (code: 1030004), overall size 900 x 535mm with one 460 x 410 x 120mm deep, fitted onto cupboard (elsewhere specified) including spazi f/1 plumbing kit (code: 1120008) with 38mm waste fitting and one tube of inox cream. <br>sink to include highrise swivel mixer (code: 1150019) with overarm swivel spout, 15mm flexible connections with 5 year guarantee on body construction.",null,"No",6,null,{"$f":"ROUND(F1245*G1245,2)","v":0}]
[]
[{"v":32,"d":"32 "},null,"Franke 0,8mm grade 403 17/10 stainless steel et103 mini wash trough (code: 2560007), size 540 x 370 x 240mm deep with sloped front, wash ridges and 40mm waste outlet, fixing lugs (elsewhere measured).",null,"No",3,null,{"$f":"ROUND(F1247*G1247,2)","v":0}]
[]
[null,null,"\"Vaal\""]
[]
[{"v":33,"d":"33 "},null,"Vitreous China “Junior” 104° outlet wash down pan (code 751300) and matching 6 litre cistern (code 712034) complete with lid and fitments, and junior seat. pan can also be used with a duct cistern (code 712035), a back inlet flush valve (FJ2.100 or equivalent), or a Wisa concealed cistern. heavy duty plastic seat.",null,"No",6,null,{"$f":"ROUND(F1251*G1251,2)","v":0}]
[]
[{"v":34,"d":"34 "},null,"\"Pearl paraplegic\" semi close couple 90° outlet open rim washdown pan and matching 9 litre cistern complete with lid, lever and grab railsand purpose made c.p. side- flush lever (left or right). supplied with purpose made urea seat and cover plate.",null,"No",4,null,{"$f":"ROUND(F1253*G1253,2)","v":0}]
[]
[{"v":35,"d":"35 "},null,"Vaal hibiscus (702303wh)locally manufactured vitreous china wall hung basin colour white, overall size 510 x 405mm with one taphole including integrated overflow and chainstay hole and chrome plated basin waste, bolted to wall with 2no.10mm bolts and sealed with silicone sealant where basin meets wall.",null,"No",20,null,{"$f":"ROUND(F1255*G1255,2)","v":0}]
[]
[{"v":36,"d":"36 "},null,"Vaal hibiscus for paraplegic locally manufactured vitreous china wall hung basin colour white, overall size 510 x 405mm with one taphole including integrated overflow and chainstay hole and chrome plated basin waste, bolted to wall with 2no.10mm bolts and sealed with silicone sealant where basin meets wall.",null,"No",4,null,{"$f":"ROUND(F1257*G1257,2)","v":0}]
[]
[{"v":37,"d":"37 "},null,"Vitreous China \"hibiscus elite\" close coupled 90° outlet open rim front single flush suite complete with lid and fitments (code: 772402), or top dual flush suite. overall size 643 x 355 x 830mm high with thermoset soft-close seat, comprising hibiscus front single flush vandal proof cistern.",null,"No",24,null,{"$f":"ROUND(F1259*G1259,2)","v":0}]
[]
[{"v":38,"d":"38 "},null,"Sweet pee back inlet(705127wh): locally manufactured 565 x 275 x 310mm white vitreous china wall mounted urinal including 38mm chromium plated domical grating and chromium plated back inlet spreader, flush valve, flush pipe and fittings (by others), fixed on and including two hanger brackets.",null,"No",8,null,{"$f":"ROUND(F1261*G1261,2)","v":0}]
[]
[null,null,"Sundries"]
[]
[{"v":39,"d":"39 "},null,"Franke Stratos strx672 1,2/1,5mm thick satin finished stainless steel double toilet roll dispenser (code: 2120044), size 156 x 141 x 303mm high for 2 rolls maximum 108mm diameter with spindle system and cylinder lock with standard franke key, plugged and screwed to the wall with stainless steel screws.",null,"No",25,null,{"$f":"ROUND(F1265*G1265,2)","v":0}]
[]
[null,null,"WASTE UNIONS ETC"]
[]
[null,null,"\"Cobra Watertech\""]
[]
[{"v":40,"d":"40 "},null,"Code 301 chromium plated slotted basin waste with back nut, plug, chain and stay",null,"No",24,null,{"$f":"ROUND(F1271*G1271,2)","v":0}]
[]
[{"v":41,"d":"41 "},null,"Code 306 chromium plated sink waste with back nut, plug, chain and stay",null,"No",24,null,{"$f":"ROUND(F1273*G1273,2)","v":0}]
[]
[null,null,"TRAPS ETC"]
[]
[null,null,"\"Cobra Watertech\""]
[]
[{"v":42,"d":"42 "},null,"Code 345/50 chromium plated bottle trap",null,"No",57,null,{"$f":"ROUND(F1279*G1279,2)","v":0}]
[]
[null,null,"\"Flexi Traps\""]
[]
[{"v":43,"d":"43 "},null,"32 x 40mm butyl rubber \"P\" or \"S\" trap",null,"No",33,null,{"$f":"ROUND(F1283*G1283,2)","v":0}]
[]
[{"v":44,"d":"44 "},null,"40 x 300mm sink combination for double bowl with deepseal \"P\" trap",null,"No",24,null,{"$f":"ROUND(F1285*G1285,2)","v":0}]
[]
[null,null,"TAPS, VALVES, ETC."]
[]
[null,null,"\"Cobra Watertech\""]
[]
[{"v":45,"d":"45 "},null,"Cobra Watertech pillat tap karoo ko-951 single lever plain chrome includes: 1/2\"\" bsp female inlets manufactured chrome basin mixer, installed in accordance with the manufacturers recommendations.",null,"No",21,null,{"$f":"ROUND(F1291*G1291,2)","v":0}]
[]
[{"v":46,"d":"46 "},null,"Cobra watertech pillat tap locally manufactured chrome medical mixer, medical nm-851 medical single lever, elbow-action basin mixer. chrome. includes: progressive cartridge, and 1/2\"\" bsp female inlets. sans 1480.",null,"No",4,null,{"$f":"ROUND(F1293*G1293,2)","v":0}]
[]
[null,null,"\"Brass\""]
[]
[{"v":47,"d":"47 "},null,"22mm Fullway gate valve",null,"No",14,null,{"$f":"ROUND(F1297*G1297,2)","v":0}]
[]
[{"v":48,"d":"48 "},null,"28mm Fullway gate valve",null,"No",20,null,{"$f":"ROUND(F1299*G1299,2)","v":0}]
[]
[{"v":49,"d":"49 "},null,"35mm Fullway gate valve",null,"No",24,null,{"$f":"ROUND(F1301*G1301,2)","v":0}]
[]
[{"v":50,"d":"50 "},null,"42mm Fullway gate valve",null,"No",14,null,{"$f":"ROUND(F1303*G1303,2)","v":0}]
[]
[{"v":51,"d":"51 "},null,"15mm \"Ball-o-stop\" valve",null,"No",33,null,{"$f":"ROUND(F1305*G1305,2)","v":0}]
[]
[{"v":52,"d":"52 "},null,"22mm \"Ball-o-stop\" valve",null,"No",20,null,{"$f":"ROUND(F1307*G1307,2)","v":0}]
[]
[null,null,"\"Cobra Watertech\""]
[]
[{"v":53,"d":"53 "},null,"15mm 136CP Stop cock",null,"No",33,null,{"$f":"ROUND(F1311*G1311,2)","v":0}]
[]
[{"v":54,"d":"54 "},null,"20mm 226CP Stop cock",null,"No",40,null,{"$f":"ROUND(F1313*G1313,2)","v":0}]
[]
[{"v":55,"d":"55 "},null,"15mm, 111CP \"Star\" pillar cock",null,"No",33,null,{"$f":"ROUND(F1315*G1315,2)","v":0}]
[]
[{"v":56,"d":"56 "},null,"15mm, 266/041/10 Wall type sink mixer with over arm swivel outlet",null,"No",2,null,{"$f":"ROUND(F1317*G1317,2)","v":0}]
[]
[{"v":57,"d":"57 "},null,"FJ2.210 \"Junior Flushmaster\" top entry flush valve with FJT1.2 straight CP flush valve",null,"No",33,null,{"$f":"ROUND(F1319*G1319,2)","v":0}]
[]
[null,null,"WATER SUPPLIES"]
[]
[null,null,"Class 460/1 Copper pipes"]
[]
[{"v":58,"d":"58 "},null,"15mm pipes in walls, in celings, in roofs, etc",null,"m",100,null,{"$f":"ROUND(F1325*G1325,2)","v":0}]
[]
[{"v":59,"d":"59 "},null,"22mm pipes in walls, in celings, in roofs, etc",null,"m",100,null,{"$f":"ROUND(F1327*G1327,2)","v":0}]
[]
[{"v":60,"d":"60 "},null,"28mm pipes in walls, in celings, in roofs, etc",null,"m",100,null,{"$f":"ROUND(F1329*G1329,2)","v":0}]
[]
[{"v":61,"d":"61 "},null,"35mm pipes in walls, in celings, in roofs, etc",null,"m",200,null,{"$f":"ROUND(F1331*G1331,2)","v":0}]
[]
[{"v":62,"d":"62 "},null,"42mm pipes in walls, in celings, in roofs, etc",null,"m",150,null,{"$f":"ROUND(F1333*G1333,2)","v":0}]
[]
[{"v":63,"d":"63 "},null,"15mm pipes in and including chases in brickwork or concrete",null,"m",150,null,{"$f":"ROUND(F1335*G1335,2)","v":0}]
[]
[{"v":64,"d":"64 "},null,"22mm pipes in and including chases in brickwork or concrete",null,"m",150,null,{"$f":"ROUND(F1337*G1337,2)","v":0}]
[]
[{"v":65,"d":"65 "},null,"28mm pipes in and including chases in brickwork or concrete",null,"m",150,null,{"$f":"ROUND(F1339*G1339,2)","v":0}]
[]
[{"v":66,"d":"66 "},null,"35mm pipes in and including chases in brickwork or concrete",null,"m",180,null,{"$f":"ROUND(F1341*G1341,2)","v":0}]
[]
[{"v":67,"d":"67 "},null,"42mm Pipes including chases in brickwork or concrete",null,"m",80,null,{"$f":"ROUND(F1343*G1343,2)","v":0}]
[]
[null,null,"Extra over 460/1 copper pipes for capillary fittings"]
[]
[{"v":68,"d":"68 "},null,"15mm fittings",null,"No",30,null,{"$f":"ROUND(F1347*G1347,2)","v":0}]
[]
[{"v":69,"d":"69 "},null,"22mm fittings",null,"No",32,null,{"$f":"ROUND(F1349*G1349,2)","v":0}]
[]
[{"v":70,"d":"70 "},null,"28mm fittings",null,"No",30,null,{"$f":"ROUND(F1351*G1351,2)","v":0}]
[]
[{"v":71,"d":"71 "},null,"35mm Reducer",null,"No",30,null,{"$f":"ROUND(F1353*G1353,2)","v":0}]
[]
[{"v":72,"d":"72 "},null,"42mm Reducer",null,"No",24,null,{"$f":"ROUND(F1355*G1355,2)","v":0}]
[]
[{"v":73,"d":"73 "},null,"35mm Elbow",null,"No",18,null,{"$f":"ROUND(F1357*G1357,2)","v":0}]
[]
[{"v":74,"d":"74 "},null,"42mm Elbow",null,"No",22,null,{"$f":"ROUND(F1359*G1359,2)","v":0}]
[]
[{"v":75,"d":"75 "},null,"35mm Tee",null,"No",24,null,{"$f":"ROUND(F1361*G1361,2)","v":0}]
[]
[{"v":76,"d":"76 "},null,"42mm Tee",null,"No",20,null,{"$f":"ROUND(F1363*G1363,2)","v":0}]
[]
[{"v":77,"d":"77 "},null,"35mm Reducing Tee",null,"No",20,null,{"$f":"ROUND(F1365*G1365,2)","v":0}]
[]
[{"v":78,"d":"78 "},null,"42mm Reducing Tee",null,"No",20,null,{"$f":"ROUND(F1367*G1367,2)","v":0}]
[]
[null,null,"Extra over 460/1 copper pipes for brass compression fittings"]
[]
[{"v":79,"d":"79 "},null,"15mm fittings",null,"No",50,null,{"$f":"ROUND(F1371*G1371,2)","v":0}]
[]
[{"v":80,"d":"80 "},null,"22mm fittings",null,"No",50,null,{"$f":"ROUND(F1373*G1373,2)","v":0}]
[]
[{"v":81,"d":"81 "},null,"28mm fittings",null,"No",50,null,{"$f":"ROUND(F1375*G1375,2)","v":0}]
[]
[{"v":82,"d":"82 "},null,"35mm Reducer",null,"No",50,null,{"$f":"ROUND(F1377*G1377,2)","v":0}]
[]
[{"v":83,"d":"83 "},null,"42mm Reducer",null,"No",50,null,{"$f":"ROUND(F1379*G1379,2)","v":0}]
[]
[{"v":84,"d":"84 "},null,"35mm Elbow",null,"No",50,null,{"$f":"ROUND(F1381*G1381,2)","v":0}]
[]
[{"v":85,"d":"85 "},null,"42mm Elbow",null,"No",40,null,{"$f":"ROUND(F1383*G1383,2)","v":0}]
[]
[{"v":86,"d":"86 "},null,"35mm Tee",null,"No",40,null,{"$f":"ROUND(F1385*G1385,2)","v":0}]
[]
[{"v":87,"d":"87 "},null,"42mm Tee",null,"No",40,null,{"$f":"ROUND(F1387*G1387,2)","v":0}]
[]
[{"v":88,"d":"88 "},null,"35mm Reducing Tee",null,"No",40,null,{"$f":"ROUND(F1389*G1389,2)","v":0}]
[]
[{"v":89,"d":"89 "},null,"42mm Reducing Tee",null,"No",40,null,{"$f":"ROUND(F1391*G1391,2)","v":0}]
[]
[null,null,"Copper overflow and service pipes"]
[]
[{"v":90,"d":"90 "},null,"22mm overflow pipe 500mm girth twice bent",null,"No",40,null,{"$f":"ROUND(F1395*G1395,2)","v":0}]
[]
[null,null,"ELECTRIC WATER HEATERS"]
[]
[null,null,"\"Kwikot\""]
[]
[{"v":91,"d":"91 "},null,"150 liter 600i dual (round) horizontal 3KW geyser including all necessary connections, pressure reducing valves, safety valves, vaccuum breaker and non-return and control valve mounted in roof space with and including galvanised metal overflow tray",null,"No",2,null,{"$f":"ROUND(F1401*G1401,2)","v":0}]
[]
[null,null,"Connections"]
[]
[{"v":92,"d":"92 "},null,"Tie into municipal line, complete including all necessary liaison",null,"Item",1,null,{"$f":"ROUND(F1405*G1405,2)","v":0}]
[]
[null,null,"FIRE APPLIANCES, ETC"]
[]
[null,null,"Hose reels etc"]
[]
[{"v":93,"d":"93 "},null,"\"Everyway\" hose reel complete with 30m plastic hose, chromium plated stopcock, shut off nozzle and wall bracket",null,"No",18,null,{"$f":"ROUND(F1411*G1411,2)","v":0}]
[]
[null,null,"Fire extignuishers etc"]
[]
[{"v":94,"d":"94 "},null,"4.5 kg DCP dry powder portable fire extinguisher on and including wrought meranti backboard size  520 x 115 x 22mm thick plugged and screwed to wall and finished with two coats of signal red enamel paint, including 120 x 20 x 2mm mild steel strip bent to form hook",null,"No",24,null,{"$f":"ROUND(F1415*G1415,2)","v":0}]
[]
[null,null,"SLEEVES"]
[]
[null,null,"Plastic sleeves for pipes not exceeding 100mm diameter"]
[]
[{"v":95,"d":"95 "},null,"Sleeve not exceeding 250mm long",null,"No",290,null,{"$f":"ROUND(F1421*G1421,2)","v":0}]
[]
[null,null,"BUILDER'S WORK, INCLUDING ALL MAKING GOOD"]
[]
[null,null,"PAINTWORK (CPAP WORK GROUP NO. 152 UNLESS OTHERWISE STATED)"]
[]
[null,null,"Prepare, apply one undercoat and one coat high gloss enamel paint"]
[]
[{"v":96,"d":"96 "},null,"On uPVC pipe not exceeding 300 mm girth",null,"m",200,null,{"$f":"ROUND(F1429*G1429,2)","v":0}]
[]
[null,null,"Prepare and apply two coats of bitumen based aluminium paint, one undercoat and one coat high gloss enamel paint"]
[]
[{"v":97,"d":"97 "},null,"On copper pipe not exceeding 300 mm girth",null,"m",100,null,{"$f":"ROUND(F1433*G1433,2)","v":0}]
[]
[null,null,"WATER SUPPLIES AND FIRE SERVICES"]
[]
[null,null,"Class 460/0 copper pipes"]
[]
[{"v":98,"d":"98 "},null,"40mm pipes laid in surface beds",null,"m",90,null,{"$f":"ROUND(F1439*G1439,2)","v":0}]
[]
[{"v":99,"d":"99 "},null,"35mm Pipe to walls, ceilings, roofs, etc",null,"m",90,null,{"$f":"ROUND(F1441*G1441,2)","v":0}]
[]
[null,null,"Extra over class 460/0 copper pipes for the following copper capillary fittings"]
[]
[{"v":100,"d":"100 "},null,"35mm Copper to HDPE straight coupler",null,"No",20,null,{"$f":"ROUND(F1445*G1445,2)","v":0}]
[]
[{"v":101,"d":"101 "},null,"35mm 45 Degree elbow",null,"No",20,null,{"$f":"ROUND(F1447*G1447,2)","v":0}]
[]
[{"v":102,"d":"102 "},null,"35mm 90 Degree elbow",null,"No",20,null,{"$f":"ROUND(F1449*G1449,2)","v":0}]
[]
[{"v":103,"d":"103 "},null,"35mm Copper to HDPE 90 degree elbow",null,"No",20,null,{"$f":"ROUND(F1451*G1451,2)","v":0}]
[]
[{"v":104,"d":"104 "},null,"35mm Tee",null,"No",20,null,{"$f":"ROUND(F1453*G1453,2)","v":0}]
[]
[{"v":105,"d":"105 "},null,"35mm Reducing tee",null,"No",20,null,{"$f":"ROUND(F1455*G1455,2)","v":0}]
[]
[{"v":106,"d":"106 "},null,"35mm End cap",null,"No",20,null,{"$f":"ROUND(F1457*G1457,2)","v":0}]
[]
[{"v":107,"d":"107 "},null,"35mm Union coupler",null,"No",20,null,{"$f":"ROUND(F1459*G1459,2)","v":0}]
[]
[{"v":108,"d":"108 "},null,"40mm Copper to HDPE straight coupler",null,"No",25,null,{"$f":"ROUND(F1461*G1461,2)","v":0}]
[]
[{"v":109,"d":"109 "},null,"40mm 45 Degree elbow",null,"No",25,null,{"$f":"ROUND(F1463*G1463,2)","v":0}]
[]
[{"v":110,"d":"110 "},null,"40mm 90 Degree elbow",null,"No",25,null,{"$f":"ROUND(F1465*G1465,2)","v":0}]
[]
[{"v":111,"d":"111 "},null,"40mm Copper to HDPE 90 degree elbow",null,"No",25,null,{"$f":"ROUND(F1467*G1467,2)","v":0}]
[]
[{"v":112,"d":"112 "},null,"40mm Tee",null,"No",25,null,{"$f":"ROUND(F1469*G1469,2)","v":0}]
[]
[{"v":113,"d":"113 "},null,"40mm Reducing tee",null,"No",25,null,{"$f":"ROUND(F1471*G1471,2)","v":0}]
[]
[{"v":114,"d":"114 "},null,"40mm End cap",null,"No",25,null,{"$f":"ROUND(F1473*G1473,2)","v":0}]
[]
[{"v":115,"d":"115 "},null,"40mm Union coupler",null,"No",25,null,{"$f":"ROUND(F1475*G1475,2)","v":0}]
[]
[null,null,"Extra over Class 460/0 copper pipes for the following brass compression fittings"]
[]
[{"v":116,"d":"116 "},null,"35mm Copper to HDPE straight coupler",null,"No",15,null,{"$f":"ROUND(F1479*G1479,2)","v":0}]
[]
[{"v":117,"d":"117 "},null,"35mm 45 Degree elbow",null,"No",20,null,{"$f":"ROUND(F1481*G1481,2)","v":0}]
[]
[{"v":118,"d":"118 "},null,"35mm 90 Degree elbow",null,"No",20,null,{"$f":"ROUND(F1483*G1483,2)","v":0}]
[]
[{"v":119,"d":"119 "},null,"35mm Copper to HDPE 90 degree elbow",null,"No",20,null,{"$f":"ROUND(F1485*G1485,2)","v":0}]
[]
[{"v":120,"d":"120 "},null,"35mm Tee",null,"No",20,null,{"$f":"ROUND(F1487*G1487,2)","v":0}]
[]
[{"v":121,"d":"121 "},null,"35mm Reducing tee",null,"No",20,null,{"$f":"ROUND(F1489*G1489,2)","v":0}]
[]
[{"v":122,"d":"122 "},null,"35mm End cap",null,"No",20,null,{"$f":"ROUND(F1491*G1491,2)","v":0}]
[]
[{"v":123,"d":"123 "},null,"35mm Union coupler",null,"No",20,null,{"$f":"ROUND(F1493*G1493,2)","v":0}]
[]
[{"v":124,"d":"124 "},null,"40mm Copper to HDPE straight coupler",null,"No",20,null,{"$f":"ROUND(F1495*G1495,2)","v":0}]
[]
[{"v":125,"d":"125 "},null,"40mm 45 Degree elbow",null,"No",20,null,{"$f":"ROUND(F1497*G1497,2)","v":0}]
[]
[{"v":126,"d":"126 "},null,"40mm 90 Degree elbow",null,"No",20,null,{"$f":"ROUND(F1499*G1499,2)","v":0}]
[]
[{"v":127,"d":"127 "},null,"40mm Copper to HDPE 90 degree elbow",null,"No",20,null,{"$f":"ROUND(F1501*G1501,2)","v":0}]
[]
[{"v":128,"d":"128 "},null,"40mm Tee",null,"No",20,null,{"$f":"ROUND(F1503*G1503,2)","v":0}]
[]
[{"v":129,"d":"129 "},null,"40mm Reducing tee",null,"No",20,null,{"$f":"ROUND(F1505*G1505,2)","v":0}]
[]
[{"v":130,"d":"130 "},null,"40mm End cap",null,"No",20,null,{"$f":"ROUND(F1507*G1507,2)","v":0}]
[]
[{"v":131,"d":"131 "},null,"40mm Union coupler",null,"No",20,null,{"$f":"ROUND(F1509*G1509,2)","v":0}]
[]
[{"v":132,"d":"132 "},null,"Allow for testing the whole of the Sanitary Plumbing, Water Supplies and Fire Services to the satisfaction of the Architect and Local Authorities. all defective work is to taken out and replaced at the Contractor's expense and the whole re-tested until found satisfactory",null,"Item",1,null,{"$f":"ROUND(F1511*G1511,2)","v":0}]
[]
[null,null,"HOLES, ETC"]
[]
[null,null,"Core drilling of hole for pipe not exceeding 50mm nominal diameter"]
[]
[{"v":133,"d":"133 "},null,"250mm Reinforced concrete slab, beam, wall, etc",null,"No",30,null,{"$f":"ROUND(F1517*G1517,2)","v":0}]
[]
[null,null,"Core drilling of hole for pipe exceeding 50mm and not exceeding 100mm nominal diameter"]
[]
[{"v":134,"d":"134 "},null,"250mm Reinforced concrete slab, beam, wall, etc",null,"No",30,null,{"$f":"ROUND(F1521*G1521,2)","v":0}]
[]
[null,null,"SEWER RETICULATION (WORK GROUP 146)"]
[]
[null,null,"SEWER RETICULATION SYSTEM"]
[]
[null,null,"Underground class 34 rigid uPVC pipes for sewers and drains including trench excavatons of an effective width of 500mm and backfilling with 150mm of imported selected bedding material, 150mm of selected backfill material and normal compacted backfill"]
[]
[{"v":135,"d":"135 "},null,"160mm Pipe including excavations not exceeding 1m deep",null,"m",25,null,{"$f":"ROUND(F1529*G1529,2)","v":0}]
[]
[{"v":136,"d":"136 "},null,"160mm Pipe including excavations exceeding 1m and not exceeding 2m deep",null,"m",59,null,{"$f":"ROUND(F1531*G1531,2)","v":0}]
[]
[{"v":137,"d":"137 "},null,"160mm Pipe including excavations exceeding 2m and not exceeding 4m deep",null,"m",53,null,{"$f":"ROUND(F1533*G1533,2)","v":0}]
[]
[null,null,"Extra over uPVC for the following fittings."]
[]
[{"v":138,"d":"138 "},null,"160mm Bend",null,"No",42,null,{"$f":"ROUND(F1537*G1537,2)","v":0}]
[]
[{"v":139,"d":"139 "},null,"160mm Access pipe",null,"No",43,null,{"$f":"ROUND(F1539*G1539,2)","v":0}]
[]
[{"v":140,"d":"140 "},null,"160mm Junction",null,"No",24,null,{"$f":"ROUND(F1541*G1541,2)","v":0}]
[]
[{"v":141,"d":"141 "},null,"160mm Access junction",null,"No",14,null,{"$f":"ROUND(F1543*G1543,2)","v":0}]
[]
[{"v":142,"d":"142 "},null,"160mm ABC Rodding eye",null,"No",15,null,{"$f":"ROUND(F1545*G1545,2)","v":0}]
[]
[null,null,"Anchor Blocks"]
[]
[{"v":143,"d":"143 "},null,"20MPa/19mm concrete anchor blocks, 1000mm (L) x 350mm (W) x 300mm (H) effective size. See detail drawing no: 051347/CVL-DD09 attached to the back of these Bills of Quantities",null,"No",30,null,{"$f":"ROUND(F1549*G1549,2)","v":0}]
[]
[null,null,"Inspection chambers and manholes"]
[]
[null,null,"Manhole Type 1"]
[]
[{"v":144,"d":"144 "},null,"Excavate in earth exceeding 3m deep including risk of collapse of vertical sides of excavations exceeding 1,5m deep. Concrete class 20/19 in benching to bottom of manhole forming half round channel to suit diameter of outlet, the bottom graded to falls and the top having 1:5 slope and finished smooth on all exposed surfaces. 1050mm Internal diameter precast concrete manhole rings to SABS 1294 (Heavy Duty). 150mm Thick precast concrete cover slab with rebated opening to suit concrete cover and finished smooth on exposed surfaces with plaster including necessary reinforcement and formwork. All as per drawing no: 051347/CVL-DD09",null,"No",13,null,{"$f":"ROUND(F1555*G1555,2)","v":0}]
[]
[null,null,"Connections"]
[]
[{"v":145,"d":"145 "},null,"Tie into municipal line, complete including all necessary liaison",null,"Item",1,null,{"$f":"ROUND(F1559*G1559,2)","v":0}]
[]
[null,null,"Testing"]
[]
[{"v":146,"d":"146 "},null,"Testing of sewer pipe system",null,"Item",1,null,{"$f":"ROUND(F1563*G1563,2)","v":0}]
[]
[null,null,"Carried to Summary",{"$nulls":4},{"$f":"SUM(H1172:H1564)","v":0}]
[]
[]
[null,null,"SECTION 2 : BUILDING WORKS"]
[]
[null,null,"BILL. 16"]
[]
[null,null,"GLAZING (WORKGROUP 150) (LI)"]
[]
[null,null,"Tenderers are referred to the relevant clauses in the separate document: ASAQS General Preambles for trades (2017 edition) and the ASAQS supplementary preambles which are incorporated in this Bill of Quantities."]
[]
[null,null,"Note : Where trade names and catalogue numbers are given, it shall be taken to mean to be followed by the words \"equal or other approved\"."]
[]
[null,null,"GLAZING"]
[]
[null,null,"GLAZING TO STEEL WITH PUTTY"]
[]
[null,null,"6mm clear float glass"]
[]
[{"v":1,"d":"1 "},null,"Panes exceeding 0,1m2 but not exceeding  0,5m2",null,"m²",490,null,{"$f":"ROUND(F1584*G1584,2)","v":0}]
[]
[null,null,"6mm \"Pacific\" obscure glass"]
[]
[{"v":2,"d":"2 "},null,"Panes not exceeding  0,1m2",null,"m²",243,null,{"$f":"ROUND(F1588*G1588,2)","v":0}]
[]
[null,null,"GLAZING TO WOOD WITH PINNED ON BEADS (BEADS ELSEWHERE MEASURED)"]
[]
[null,null,"3mm clear float glass"]
[]
[{"v":3,"d":"3 "},null,"Panes exceeding  0,1m2 but not exceeding 0,5m2",null,"m²",100,null,{"$f":"ROUND(F1594*G1594,2)","v":0}]
[]
[null,null,"TOPS, SHELVES, DOORS, MIRRORS, ETC"]
[]
[null,null,"\"Franke\""]
[]
[{"v":4,"d":"4 "},null,"6mm Clear float glass silver backed mirror size 450mm (w) x 900mm(h) with bevelled and polished edges, mirrors shall be holed at corners and fixed with four brass screws with chromium plated domes and felt wachers to and including patent plugs in plastered walls and make good, 450 x 600mm for paraplegic toilets",null,"No",21,null,{"$f":"ROUND(F1600*G1600,2)","v":0}]
[]
[{"v":5,"d":"5 "},null,"6mm Clear float glass silver backed mirror size 450mm x 600mm for paraplegic toilets with bevelled and polished edges, mirrors shall be holed at corners and fixed with four brass screws with chromium plated domes and felt wachers to and including patent plugs in plastered walls and make good",null,"No",4,null,{"$f":"ROUND(F1602*G1602,2)","v":0}]
[]
[null,null,"Carried to Summary",{"$nulls":4},{"$f":"SUM(H1583:H1603)","v":0}]
[]
[]
[null,null,"SECTION 2 : BUILDING WORKS"]
[]
[null,null,"BILL. 17"]
[]
[null,null,"PAINTWORK (WORKGROUP 152) (LI)"]
[]
[null,null,"Tenderers are referred to the relevant clauses in the separate document: ASAQS General Preambles for trades (2017 edition) and the ASAQS supplementary preambles which are incorporated in this Bill of Quantities."]
[]
[null,null,"Note : Where trade names and catalogue numbers are given, it shall be taken to mean to be followed by the words \"equal or other approved\"."]
[]
[null,null,"SUPPLEMENTARY PREAMBLES"]
[]
[null,null,"EPWP Conditions and Specifications"]
[]
[null,null,"The tenderer/bidder is advised that all items within this bill are subject to the terms, conditions and specifications of section C12 as expanded from sub-sections C 12.1 to C12.10 within the P's & G's section of this bid document."]
[]
[null,null,"PAINTWORK ETC TO NEW WORK"]
[]
[null,null,"ON FLOATED PLASTER"]
[]
[null,null,"One coat primer, one undercoat and two coats poly acrylic emulsion paint"]
[]
[{"v":1,"d":"1 "},null,"On internal walls",null,"m²",1851,null,{"$f":"ROUND(F1629*G1629,2)","v":0}]
[]
[{"v":2,"d":"2 "},null,"On internal ceilings and cornices",null,"m²",469,null,{"$f":"ROUND(F1631*G1631,2)","v":0}]
[]
[{"v":3,"d":"3 "},null,"On external walls",null,"m²",852,null,{"$f":"ROUND(F1633*G1633,2)","v":0}]
[]
[null,null,"ON PLASTER BOARD"]
[]
[null,null,"One coat primer, one undercoat and two coats poly acrylic emulsion paint"]
[]
[{"v":4,"d":"4 "},null,"On internal ceilings and cornices",null,"m²",2549,null,{"$f":"ROUND(F1639*G1639,2)","v":0}]
[]
[null,null,"ON FIBRE CEMENT"]
[]
[null,null,"One coat primer, one undercoat and two coats poly acrylic emulsion paint"]
[]
[{"v":5,"d":"5 "},null,"On fascia boards",null,"m²",407,null,{"$f":"ROUND(F1645*G1645,2)","v":0}]
[]
[{"v":6,"d":"6 "},null,"On barge boards",null,"m²",123,null,{"$f":"ROUND(F1647*G1647,2)","v":0}]
[]
[null,null,"ON METAL"]
[]
[null,null,"Two coats bitumen paint"]
[]
[{"v":7,"d":"7 "},null,"On backs of steel doors, windows, etc",null,"m²",145,null,{"$f":"ROUND(F1653*G1653,2)","v":0}]
[]
[null,null,"Clean down, prepare, decrease with galvoclean, one coat calcium plumbate primer and two coats polyurethane enamel paint"]
[]
[{"v":8,"d":"8 "},null,"On door frames",null,"m²",275,null,{"$f":"ROUND(F1657*G1657,2)","v":0}]
[]
[{"v":9,"d":"9 "},null,"On windows with burglar bars",null,"m²",24,null,{"$f":"ROUND(F1659*G1659,2)","v":0}]
[]
[{"v":10,"d":"10 "},null,"On gates, grills, burglar screens, balustrades, etc (Both sides measured over the full flat area)",null,"m²",27,null,{"$f":"ROUND(F1661*G1661,2)","v":0}]
[]
[null,null,"ON WOOD"]
[]
[null,null,"Prepare and apply two coats wood primer"]
[]
[{"v":11,"d":"11 "},null,"On backs of frames, linings, etc not exceeding 300mm wide",null,"m",143,null,{"$f":"ROUND(F1667*G1667,2)","v":0}]
[]
[null,null,"One coat pink wood primer, one undercoat and two coats polyurethane enamel paint"]
[]
[{"v":12,"d":"12 "},null,"On doors",null,"m²",320,null,{"$f":"ROUND(F1671*G1671,2)","v":0}]
[]
[null,null,"Prepare and apply carbolineum"]
[]
[{"v":13,"d":"13 "},null,"Roof trusses overhangs and exposed trusses",null,"m",548,null,{"$f":"ROUND(F1675*G1675,2)","v":0}]
[]
[null,null,"Three coats clear polyurethane gloss varnish"]
[]
[{"v":14,"d":"14 "},null,"On doors",null,"m²",320,null,{"$f":"ROUND(F1679*G1679,2)","v":0}]
[]
[{"v":15,"d":"15 "},null,"On skirtings, rails, etc not exceeding 300mm girth",null,"m",1978,null,{"$f":"ROUND(F1681*G1681,2)","v":0}]
[]
[null,null,"Carried to Summary",{"$nulls":4},{"$f":"SUM(H1629:H1682)","v":0}]
[]
[null,null,"BUILDING WORKS SUMMARY"]
[]
[{"v":1,"d":"1 "},null,"SUB-STRUCTURE (PROVISIONAL)",null,"Page",23,null,{"$f":"H151","v":0}]
[]
[{"v":2,"d":"2 "},null,"CONCRETE, FORMWORK  AND REINFORCING",null,"Page",26,null,{"$f":"H229","v":0}]
[]
[{"v":3,"d":"3 "},null,"PRECAST CONCRETE",null,"Page",27,null,{"$f":"H255","v":0}]
[]
[{"v":4,"d":"4 "},null,"MASONRY",null,"Page",30,null,{"$f":"H344","v":0}]
[]
[{"v":5,"d":"5 "},null,"WATERPROOFING",null,"Page",32,null,{"$f":"H389","v":0}]
[]
[{"v":6,"d":"6 "},null,"ROOF COVERINGS",null,"Page",34,null,{"$f":"H426","v":0}]
[]
[{"v":7,"d":"7 "},null,"CARPENTRY AND JOINERY",null,"Page",40,null,{"$f":"H589","v":0}]
[]
[{"v":8,"d":"8 "},null,"CEILINGS PARTITIONS AND ACCESS FLOORING",null,"Page",41,null,{"$f":"H622","v":0}]
[]
[{"v":9,"d":"9 "},null,"FLOOR COVERINGS",null,"Page",42,null,{"$f":"H651","v":0}]
[]
[{"v":10,"d":"10 "},null,"IRONMONGERY",null,"Page",48,null,{"$f":"H784","v":0}]
[]
[{"v":11,"d":"11 "},null,"STRUCTURAL STEEL",null,"Page",50,null,{"$f":"H831","v":0}]
[]
[{"v":12,"d":"12 "},null,"METALWORK",null,"Page",55,null,{"$f":"H952","v":0}]
[]
[{"v":13,"d":"13 "},null,"PLASTERING",null,"Page",58,null,{"$f":"H1003","v":0}]
[]
[{"v":14,"d":"14 "},null,"TILING",null,"Page",60,null,{"$f":"H1040","v":0}]
[]
[{"v":15,"d":"15 "},null,"PLUMBING AND DRAINAGE (PROVISIONAL)",null,"Page",77,null,{"$f":"H1565","v":0}]
[]
[{"v":16,"d":"16 "},null,"GLAZING",null,"Page",79,null,{"$f":"H1604","v":0}]
[]
[{"v":17,"d":"17 "},null,"PAINTWORK",null,"Page",82,null,{"$f":"H1683","v":0}]
[]
[null,null,"Carried to Final Summary",{"$nulls":4},{"$f":"SUM(H1687:H1720)","v":0}]
[]
[null,null,"SECTION 3 : EXTERNAL WORKS(PROVISIONAL)"]
[]
[null,null,"BILL. 1"]
[]
[null,null,"EXTERNAL WORKS (PROVISIONAL)"]
[]
[null,null,"Tenderers are referred to the relevant clauses in the separate document: ASAQS General Preambles for trades (2017 edition) and the ASAQS supplementary preambles which are incorporated in this Bill of Quantities."]
[]
[null,null,"Where posible abbreviated descriptions have been used in the following bills and except where otherwise described all preambles and full descriptions of the items appearing in the preceding bills are to apply equally to these bills."]
[]
[null,null,"Note : Where trade names and catalogue numbers are given, it shall be taken to mean to be followed by the words \"equal or other approved\"."]
[]
[null,null,"ALTERATIONS (WORKGROUP 102)"]
[]
[null,null,"DEMOLITIONS"]
[]
[{"v":1,"d":"1 "},null,"Break up and remove 100mm thick reinforced concrete surface bed and cart away",null,"m²",644,null,{"$f":"ROUND(F1739*G1739,2)","v":0}]
[]
[{"v":2,"d":"2 "},null,"Demolish complete and remove single storey buildings of various sizes. The buildings are constructed generally with steel posts, asbestos panelled wall, corrugated asbestos cement roof sheeting on double pitched timber roof structure and solid concrete floors including safety disposal of asbestos",null,"m²",487,null,{"$f":"ROUND(F1741*G1741,2)","v":0}]
[]
[{"v":3,"d":"3 "},null,"Asbestos air monitoring during the process of removal and producing a clearance certificate (AIA)",null,"Item",1,null,{"$f":"ROUND(F1743*G1743,2)","v":0}]
[]
[null,null,"FUMIGATION OF BUILDINGS TO BE DEMOLISHED"]
[]
[null,null,"Tenderers must allow against the following items for the fumigation of the buildings as necessary to obtain a certificate from the Local Health Authority certifying that the premises are free from rodents or other pests before demolition commences.  Fumigation is to be executed by a firm specialising in this type of work.  The fumigation of the buildings to be demolished shall only be carried out if called for by the Health Authorities and will be omited from the contract if not required."]
[]
[{"v":4,"d":"4 "},null,"Allow for the fumigation of all buildings to render it free from rodents, etc",null,"m2",1,null,"Rate only"]
[]
[null,null,"EARTHWORKS (WORK GROUP NO. 104 )"]
[]
[null,null,"SITE CLEARANCE ETC"]
[]
[null,null,"Site clearance"]
[]
[{"v":5,"d":"5 "},null,"Digging up and removing rubbish, debris, vegetation, hedges, shrubs and trees not exceeding 200mm girth, bush, etc",null,"m²",325,null,{"$f":"ROUND(F1757*G1757,2)","v":0}]
[]
[{"v":6,"d":"6 "},null,"Stripping average 200mm thick layer of top soil and stockpiling on site",null,"m²",325,null,{"$f":"ROUND(F1759*G1759,2)","v":0}]
[]
[null,null,"BULK EXCAVATION, FILLING, ETC"]
[]
[null,null,"Open face excavation in earth over sloping site"]
[]
[{"v":7,"d":"7 "},null,"Cut to spoil",null,"m³",1998,null,{"$f":"ROUND(F1765*G1765,2)","v":0}]
[]
[null,null,"Extra over bulk excavation in earth for excavation in"]
[]
[{"v":8,"d":"8 "},null,"Soft rock",null,"m³",277,null,{"$f":"ROUND(F1769*G1769,2)","v":0}]
[]
[{"v":9,"d":"9 "},null,"Hard rock",null,"m³",138,null,{"$f":"ROUND(F1771*G1771,2)","v":0}]
[]
[null,null,"Imported material to be used as earthfilling compacted to 93% Mod AASHTO density"]
[]
[{"v":10,"d":"10 "},null,"Over site",null,"m³",1263,null,{"$f":"ROUND(F1775*G1775,2)","v":0}]
[]
[null,null,"SENIOR PRIMARY COURTYARD"]
[]
[null,null,"SUBBASE"]
[]
[null,null,"Earthfilling obtained from the excavation and/or prescribed stock piles on site compacted to 95% Modified AASHTO Density"]
[]
[{"v":11,"d":"11 "},null,"150mm G10/G9 insitu-subgrade ripped and recompacted to 93% MOD AASHTO density",null,"m³",103,null,{"$f":"ROUND(F1783*G1783,2)","v":0}]
[]
[null,null,"PAVERS"]
[]
[null,null,"PAVERS  All pavers supplied to contractor to have the following quality specifications when supplied to site:  Compressive strength: SABS Class 35 (35Mpa no less than 30 Mpa - After 28 days Shrinkage: 0,05% Density: 2200kg/m3 The contractor is to take responsibility for all pavers. All paving to consider stormwater requirements & levels as per detailed drawings. Tenderers to inform all paving suppliers that final paving selections will only occur once paving samples are approved. All pavers to have a maximum tolerance of 5mm on depth across length and width"]
[]
[null,null,"Construction of Paving Complete."]
[]
[{"v":12,"d":"12 "},null,"Supply, deliver and construct paving: A.Paving of 200x100x65mm Corobrik Burgundy pavers B. Colours: To Architects appoval C. Pattern: As per detail drawings D. Inclusive of pavers being laid on 20mm layer clean fine river sand E. Pavers laid with 10mm joints and finished off with 4:1 sand/ cement/ mortar filling with smooth finish F. Inclusive of all cutting and waste G. Base preparation and compaction povided elsewhere H. Inclusive of all relevant works, material and labour I. Inclusive of laying a 2m x 3m sample panel - area to be instructed by Landscape Architect. J. Payment per m2 laid",null,"m²",688,null,{"$f":"ROUND(F1791*G1791,2)","v":0}]
[]
[null,null,"PRECAST CONCRETE"]
[]
[null,null,"Precast concrete kerbs"]
[]
[{"v":13,"d":"13 "},null,"125 x 230mm Kerb as Fig. 6, in approximately 1000mm lengths, bedded, jointed and pointed in 1:3 cement mortar, including unreinforced concrete class 15/19mm footing size 300 x 100mm thick under and 100 x 100mm unreinforced concrete haunching behind and necessary excavation",null,"m",166,null,{"$f":"ROUND(F1797*G1797,2)","v":0}]
[]
[null,null,"PAINTWORK"]
[]
[{"v":14,"d":"14 "},null,"Two coats approved road marking paint in 100mm wide lines on paving",null,"m",288,null,{"$f":"ROUND(F1801*G1801,2)","v":0}]
[]
[null,null,"JUNIOR PRIMARY COURTYARD"]
[]
[null,null,"SUBBASE"]
[]
[null,null,"Earthfilling obtained from the excavation and/or prescribed stock piles on site compacted to 95% Modified AASHTO Density"]
[]
[{"v":15,"d":"15 "},null,"150mm G10/G9 insitu-subgrade ripped and recompacted to 93% MOD AASHTO density",null,"m³",137,null,{"$f":"ROUND(F1809*G1809,2)","v":0}]
[]
[null,null,"PAVERS"]
[]
[null,null,"PAVERS  All pavers supplied to contractor to have the following quality specifications when supplied to site:  Compressive strength: SABS Class 35 (35Mpa no less than 30 Mpa - After 28 days Shrinkage: 0,05% Density: 2200kg/m3 The contractor is to take responsibility for all pavers. All paving to consider stormwater requirements & levels as per detailed drawings. Tenderers to inform all paving suppliers that final paving selections will only occur once paving samples are approved. All pavers to have a maximum tolerance of 5mm on depth across length and width"]
[]
[null,null,"Construction of Paving Complete."]
[]
[{"v":16,"d":"16 "},null,"Supply, deliver and construct paving: A.Paving of 200x100x65mm Corobrik Burgundy pavers B. Colours: To Architects appoval C. Pattern: As per detail drawings D. Inclusive of pavers being laid on 20mm layer clean fine river sand E. Pavers laid with 10mm joints and finished off with 4:1 sand/ cement/ mortar filling with smooth finish F. Inclusive of all cutting and waste G. Base preparation and compaction povided elsewhere H. Inclusive of all relevant works, material and labour I. Inclusive of laying a 2m x 3m sample panel - area to be instructed by Landscape Architect. J. Payment per m2 laid",null,"m²",910,null,{"$f":"ROUND(F1817*G1817,2)","v":0}]
[]
[null,null,"PRECAST CONCRETE"]
[]
[null,null,"Precast concrete kerbs"]
[]
[{"v":17,"d":"17 "},null,"125 x 230mm Kerb as Fig. 6, in approximately 1000mm lengths, bedded, jointed and pointed in 1:3 cement mortar, including unreinforced concrete class 15/19mm footing size 300 x 100mm thick under and 100 x 100mm unreinforced concrete haunching behind and necessary excavation",null,"m",181,null,{"$f":"ROUND(F1823*G1823,2)","v":0}]
[]
[null,null,"PAINTWORK"]
[]
[{"v":18,"d":"18 "},null,"Two coats approved road marking paint in 100mm wide lines on paving",null,"m",368,null,{"$f":"ROUND(F1827*G1827,2)","v":0}]
[]
[null,null,"SEATING"]
[]
[null,null,"Excavation in earth not exceeding 2m deep"]
[]
[{"v":19,"d":"19 "},null,"Reduced levels under floors",null,"m³",22,null,{"$f":"ROUND(F1833*G1833,2)","v":0}]
[]
[{"v":20,"d":"20 "},null,"Trenches",null,"m³",55,null,{"$f":"ROUND(F1835*G1835,2)","v":0}]
[]
[null,null,"Extra over all excavations for loading and carting away"]
[]
[{"v":21,"d":"21 "},null,"Surplus material from excavations and/or stock piles on site to a dumping site to be located by the Contractor",null,"m³",27,null,{"$f":"ROUND(F1839*G1839,2)","v":0}]
[]
[null,null,"Earth filling from stock pile onsite compacted to 95% Mod AASHTO density"]
[]
[{"v":22,"d":"22 "},null,"Backfilling to trenches, holes, etc",null,"m³",110,null,{"$f":"ROUND(F1843*G1843,2)","v":0}]
[]
[null,null,"Risk of collapse of excavations"]
[]
[{"v":23,"d":"23 "},null,"Sides of trench and hole excavations not exceeding 1,5m deep",null,"m²",176,null,{"$f":"ROUND(F1847*G1847,2)","v":0}]
[]
[null,null,"SOIL POISONING"]
[]
[null,null,"Approved brand of anti- termite soil poison applied by a Registered Pest Control company and guaranteed against termite infestation for ten years"]
[]
[{"v":24,"d":"24 "},null,"Under footings and bases including forming and poisoning shallow furrows against foundation walls etc., filling in furrows and ramming",null,"m²",299,null,{"$f":"ROUND(F1853*G1853,2)","v":0}]
[]
[null,null,"CONCRETE (WORKGROUP 110)"]
[]
[null,null,"UNREINFORCED CONCRETE"]
[]
[null,null,"Cement concrete class 25MPa/19mm in:"]
[]
[{"v":25,"d":"25 "},null,"Strip footings",null,"m³",18,null,{"$f":"ROUND(F1861*G1861,2)","v":0}]
[]
[null,null,"TEST BLOCKS"]
[]
[{"v":26,"d":"26 "},null,"Allow for making set of test cubes, sending to an approved testing authority for testing and paying all charges in connection therewith",null,"No",12,null,{"$f":"ROUND(F1865*G1865,2)","v":0}]
[]
[null,null,"BRICKWORK (LI)"]
[]
[null,null,"NFC brick with pointed flush jointing box in class II mortar"]
[]
[{"v":27,"d":"27 "},null,"230mm One brick walls",null,"m²",101,null,{"$f":"ROUND(F1871*G1871,2)","v":0}]
[]
[null,null,"BRICKWORK SUNDRIES"]
[]
[null,null,"Brick reinforcement"]
[]
[{"v":28,"d":"28 "},null,"150mm Wide galvanised reinforcement built in horizontally",null,"m",823,null,{"$f":"ROUND(F1877*G1877,2)","v":0}]
[]
[null,null,"FACE BRICKWORK"]
[]
[null,null,"Corobrik \"Roan Satin\" face bricks  pointed with recessed horizontal and vertical joints"]
[]
[{"v":29,"d":"29 "},null,"Extra over brickwork for face brickwork to External Walls",null,"m²",69,null,{"$f":"ROUND(F1883*G1883,2)","v":0}]
[]
[{"v":30,"d":"30 "},null,"Facebrick soldier course to form seat, fair and pointed on top and front",null,"m",126,null,{"$f":"ROUND(F1885*G1885,2)","v":0}]
[]
[null,null,"ASSEMBLY COURTYARD AND HARD SURFACE"]
[]
[null,null,"CONCRETE (WORKGROUP 110)"]
[]
[null,null,"VIBRATED REINFORCED CONCRETE"]
[]
[null,null,"Cement concrete class 25/19mm in:"]
[]
[{"v":31,"d":"31 "},null,"Surface beds cast in panels",null,"m³",112,null,{"$f":"ROUND(F1895*G1895,2)","v":0}]
[]
[null,null,"TEST BLOCKS"]
[]
[{"v":32,"d":"32 "},null,"Allow for making set of test cubes, sending to an approved testing authority for testing and paying all charges in connection therewith",null,"No",68,null,{"$f":"ROUND(F1899*G1899,2)","v":0}]
[]
[null,null,"CONCRETE SUNDRIES"]
[]
[null,null,"Finishing top surfaces of concrete to an evenly non-slip surface"]
[]
[{"v":33,"d":"33 "},null,"Powerfloated to falls and currents",null,"m²",745,null,{"$f":"ROUND(F1905*G1905,2)","v":0}]
[]
[null,null,"FORMWORK (WORKGROUP 111)"]
[]
[null,null,"Formwork To Impart Class I Finish (Smooth)"]
[]
[null,null,"Rough formwork to sides"]
[]
[{"v":34,"d":"34 "},null,"Edges, risers, ends and reveals not exceeding 300mm high or wide",null,"m",170,null,{"$f":"ROUND(F1913*G1913,2)","v":0}]
[]
[null,null,"MOVEMENT JOINTS ETC"]
[]
[null,null,"Expansion joints with 10mm polystyrene between vertical concrete surfaces"]
[]
[{"v":35,"d":"35 "},null,"10mm Joints not exceeding 300mm high",null,"m",100,null,{"$f":"ROUND(F1919*G1919,2)","v":0}]
[]
[null,null,"Expansion joints with 10mm polystyrene between vertical concrete and brick surfaces"]
[]
[{"v":36,"d":"36 "},null,"10mm Joints not exceeding 300mm high",null,"m",150,null,{"$f":"ROUND(F1923*G1923,2)","v":0}]
[]
[null,null,"Saw cut joints"]
[]
[{"v":37,"d":"37 "},null,"3 x 30mm saw cut joints in top of concrete surface bed",null,"m",283,null,{"$f":"ROUND(F1927*G1927,2)","v":0}]
[]
[null,null,"REINFORCEMENT (WORKGROUP 114)"]
[]
[null,null,"Fabric reinforcement"]
[]
[{"v":38,"d":"38 "},null,"Type 193 fabric reinforcement in concrete surface beds, slabs, etc",null,"m²",745,null,{"$f":"ROUND(F1933*G1933,2)","v":0}]
[]
[null,null,"PAINTWORK"]
[]
[{"v":39,"d":"39 "},null,"Two coats approved road marking paint in 100mm wide lines on concrete",null,"m",120,null,{"$f":"ROUND(F1937*G1937,2)","v":0}]
[]
[null,null,"ROAD AND PARKING AREAS"]
[]
[null,null,"ROADS, PAVINGS ETC"]
[]
[null,null,"ROADWORKS (WORKGROUP 154)"]
[]
[null,null,"PREMIX SURFACES"]
[]
[{"v":40,"d":"40 "},null,"30mm Consolidated asphalt wearing course on and including bitumen primer including compacting and consolidating to falls",null,"m²",1062,null,{"$f":"ROUND(F1947*G1947,2)","v":0}]
[]
[{"v":41,"d":"41 "},null,"Slurry seal (6.7mm maximum stone) including tack coat on existing asphalt surface at a rate of 0.51/m2, etc to falls",null,"m²",1062,null,{"$f":"ROUND(F1949*G1949,2)","v":0}]
[]
[null,null,"PRECAST CONCRETE"]
[]
[null,null,"Precast concrete kerbs"]
[]
[{"v":42,"d":"42 "},null,"125 x 230mm Kerb as Fig. 6, in approximately 1000mm lengths, bedded, jointed and pointed in 1:3 cement mortar, including unreinforced concrete class 15/19mm footing size 300 x 100mm thick under and 100 x 100mm unreinforced concrete haunching behind and necessary excavation",null,"m",174,null,{"$f":"ROUND(F1955*G1955,2)","v":0}]
[]
[null,null,"PAINTWORK"]
[]
[{"v":43,"d":"43 "},null,"Two coats approved road marking paint in 100mm wide lines on tarmacadam",null,"m",1062,null,{"$f":"ROUND(F1959*G1959,2)","v":0}]
[]
[{"v":44,"d":"44 "},null,"Ditto but traffic arrow 4000 x 1000mm wide extreme tail with 1500 x 2000mm wide extreme triangular shaped shaft",null,"No",50,null,{"$f":"ROUND(F1961*G1961,2)","v":0}]
[]
[null,null,"MULTI SPORTS, SOCCER FIELD AND COMBI COURT"]
[]
[null,null,"BULK EXCAVATION, FILLING, ETC"]
[]
[null,null,"Earthfilling obtained from the excavation and/or prescribed stock piles on site compacted to 95% Modified AASHTO Density"]
[]
[{"v":45,"d":"45 "},null,"150mm G10/G9 insitu-subgrade ripped and recompacted to 93% MOD AASHTO density",null,"m³",1468,null,{"$f":"ROUND(F1969*G1969,2)","v":0}]
[]
[null,null,"Imported fill supplied by the contractor"]
[]
[{"v":46,"d":"46 "},null,"Approved G2 natural gravel selected subgrade compacted to 95% MOD AASHTO density filling under floors etc",null,"m³",734,null,{"$f":"ROUND(F1973*G1973,2)","v":0}]
[]
[null,null,"TESTS"]
[]
[null,null,"Prescribed density tests on filling"]
[]
[{"v":47,"d":"47 "},null,"\"Modified AASHTO Density\" test",null,"No",20,null,{"$f":"ROUND(F1979*G1979,2)","v":0}]
[]
[null,null,"SOIL POISONING"]
[]
[null,null,"Soil Insecticide"]
[]
[null,null,"Approved brand of anti- termite soil poison applied by a Registered Pest Control company and guaranteed against termite infestation for ten years"]
[]
[{"v":48,"d":"48 "},null,"Under footings and bases including forming and poisoning shallow furrows against foundation walls etc., filling in furrows and ramming",null,"m²",713,null,{"$f":"ROUND(F1987*G1987,2)","v":0}]
[]
[null,null,"WATERPROOFING (WORKGROUP 120)"]
[]
[null,null,"DAMPPROOFING OF WALLS AND FLOORS"]
[]
[null,null,"One layer of 250 Micron \"Consol Plastics Gunplas USB Green\" waterproof sheeting sealed at laps with Gunplas Pressure Sensitive Tape"]
[]
[{"v":49,"d":"49 "},null,"Under surface beds",null,"m²",713,null,{"$f":"ROUND(F1995*G1995,2)","v":0}]
[]
[null,null,"CONCRETE (WORKGROUP 110)"]
[]
[null,null,"REINFORCED CONCRETE"]
[]
[null,null,"Cement concrete class 30MPa/19mm in:"]
[]
[{"v":50,"d":"50 "},null,"Surface beds cast in panels on waterproofing 200mm thick",null,"m³",143,null,{"$f":"ROUND(F2003*G2003,2)","v":0}]
[]
[null,null,"TEST BLOCKS"]
[]
[{"v":51,"d":"51 "},null,"Allow for making set of test cubes, sending to an approved testing authority for testing and paying all charges in connection therewith",null,"No",38,null,{"$f":"ROUND(F2007*G2007,2)","v":0}]
[]
[null,null,"CONCRETE SUNDRIES"]
[]
[null,null,"Finishing top surfaces of concrete smooth with a power float"]
[]
[{"v":52,"d":"52 "},null,"Surface beds, slabs, etc",null,"m²",713,null,{"$f":"ROUND(F2013*G2013,2)","v":0}]
[]
[null,null,"FORMWORK (WORKGROUP 111)"]
[]
[null,null,"Smooth Formwork to sides"]
[]
[{"v":53,"d":"53 "},null,"Edges, risers, ends and reveals not exceeding 300mm high",null,"m",118,null,{"$f":"ROUND(F2019*G2019,2)","v":0}]
[]
[null,null,"MOVEMENT JOINTS ETC"]
[]
[null,null,"Saw Cut joints between horizontal concrete and brick surfaces including cement mortar bed (S.C.J)"]
[]
[{"v":54,"d":"54 "},null,"Joints not exceeding 300mm high as per Engineer's details",null,"m",385,null,{"$f":"ROUND(F2025*G2025,2)","v":0}]
[]
[null,null,"REINFORCEMENT (PROVISIONAL) (WORKGROUP 114)"]
[]
[null,null,"Mild and High Tensile steel reinforcement to structural concrete work"]
[]
[null,null,"Fabric reinforcement"]
[]
[{"v":55,"d":"55 "},null,"Type 193 Mesh reinforcement in concrete surface beds, slabs, etc",null,"m²",713,null,{"$f":"ROUND(F2033*G2033,2)","v":0}]
[]
[null,null,"GRASS PLANTING, ETC"]
[]
[null,null,"Grassed areas and embankments, where prescribed, are to be covered with either Kikuya or Erogrostis all having shoots, at the rate of 25 per square meter.  Before planting, all areas are to the racked free of stones and other superfluous matter and brought to a weed-free fine tilth by ploughing, dicing and spike tooth harrowing or rotavating and harrowing and fertilised, before final dicing or rotavating, by the application of \"2-3-2\" fertiliser mixture at the rate of 20grams per square meter.  The full responsibility of maintaining the grasses areas shall rest with the Contractor until the end of the maintenance period and he must allow in his prices accordingly.  The maintenance shall include watering, weeding, mowing, re-fertilisation when necessary, re-grassing of unsatisfactory areas and any other work which is necessary to achieve full, healthy and weed free grass cover to banks and plateaux before the end of the maintenance period."]
[]
[{"v":56,"d":"56 "},null,"Spread imported topsoil to an average depth of 150mm on plateaux  to an even surface on sports field",null,"m²",3900,null,{"$f":"ROUND(F2039*G2039,2)","v":0}]
[]
[{"v":57,"d":"57 "},null,"Grassing to levelled areas to form multi-sports field and sports field",null,"m²",3900,null,{"$f":"ROUND(F2041*G2041,2)","v":0}]
[]
[null,null,"PAINTWORK"]
[]
[{"v":58,"d":"58 "},null,"Two coats approved field marking paint on grassed areas of the sports field",null,"m",452,null,{"$f":"ROUND(F2045*G2045,2)","v":0}]
[]
[{"v":59,"d":"59 "},null,"Two coats approved field marking paint on hard surface (combo court) areas of the sports field",null,"m",104,null,{"$f":"ROUND(F2047*G2047,2)","v":0}]
[]
[null,null,"CONCRETE WALL"]
[]
[null,null,"EARTHWORKS (WORKGROUP 104)"]
[]
[null,null,"Excavations in earth not exceeding 2m deep"]
[]
[{"v":60,"d":"60 "},null,"Trenches",null,"m³",202,null,{"$f":"ROUND(F2055*G2055,2)","v":0}]
[]
[null,null,"Extra over trench and hole excavation in earth for excavation in"]
[]
[{"v":61,"d":"61 "},null,"Soft rock",null,"m³",10,null,{"$f":"ROUND(F2059*G2059,2)","v":0}]
[]
[{"v":62,"d":"62 "},null,"Hard rock",null,"m³",7,null,{"$f":"ROUND(F2061*G2061,2)","v":0}]
[]
[null,null,"Extra over all excavations for loading and carting away"]
[]
[{"v":63,"d":"63 "},null,"Surplus material from excavations and/or stock piles on site to a dumping site to be located by the Contractor",null,"m³",178,null,{"$f":"ROUND(F2065*G2065,2)","v":0}]
[]
[null,null,"Earthfilling obtained  from the excavation and/or prescribed stock piles on site compacted to 95% Modified AASHTO Density"]
[]
[{"v":64,"d":"64 "},null,"Backfilling to trenches and holes",null,"m³",24,null,{"$f":"ROUND(F2069*G2069,2)","v":0}]
[]
[null,null,"Risk of collapse of excavations"]
[]
[{"v":65,"d":"65 "},null,"Sides of trench and hole excavations not exceeding 1,5m deep",null,"m²",422,null,{"$f":"ROUND(F2073*G2073,2)","v":0}]
[]
[null,null,"Keeping excavations free of water"]
[]
[{"v":66,"d":"66 "},null,"Keeping excavations free of water",null,"Item",1,null,{"$f":"ROUND(F2077*G2077,2)","v":0}]
[]
[null,null,"SOIL POISONING"]
[]
[null,null,"Approved brand of anti- termite soil poison applied by a Registered Pest Control company and guaranteed against termite infestation for ten years"]
[]
[{"v":67,"d":"67 "},null,"Under footings and bases including forming and poisoning shallow furrows against foundation walls etc., filling in furrows and ramming",null,"m²",513,null,{"$f":"ROUND(F2083*G2083,2)","v":0}]
[]
[null,null,"CONCRETE (WORK GROUP 110)"]
[]
[null,null,"REINFORCED CONCRETE CAST AGAINST EXCAVATED SURFACES"]
[]
[null,null,"25MPa/19mm concrete in:"]
[]
[{"v":68,"d":"68 "},null,"Strip footings",null,"m³",76,null,{"$f":"ROUND(F2091*G2091,2)","v":0}]
[]
[null,null,"REINFORCED CONCRETE"]
[]
[null,null,"25MPa/19mm concrete in:"]
[]
[{"v":69,"d":"69 "},null,"Concrete Walls",null,"m³",257,null,{"$f":"ROUND(F2097*G2097,2)","v":0}]
[]
[null,null,"TEST CUBES"]
[]
[{"v":70,"d":"70 "},null,"Making and testing 150 x 150 x 150mm concrete strength test cubes (Provisional)",null,"No",52,null,{"$f":"ROUND(F2101*G2101,2)","v":0}]
[]
[null,null,"ROUGH FORMWORK (DEGREE OF ACCURACY 1)"]
[]
[null,null,"Rough formwork to sides"]
[]
[{"v":71,"d":"71 "},null,"Strip footings",null,"m²",236,null,{"$f":"ROUND(F2107*G2107,2)","v":0}]
[]
[null,null,"SMOOTH FORMWORK (DEGREE OF ACCURACY 1)"]
[]
[null,null,"Smooth formwork to sides"]
[]
[{"v":72,"d":"72 "},null,"Concrete walls",null,"m²",1254,null,{"$f":"ROUND(F2113*G2113,2)","v":0}]
[]
[{"v":73,"d":"73 "},null,"Concrete walls circular on plan",null,"m²",10,null,{"$f":"ROUND(F2115*G2115,2)","v":0}]
[]
[null,null,"Boxing in smooth formwork to form"]
[]
[{"v":74,"d":"74 "},null,"25 x 25mm chamfers at corners",null,"m",506,null,{"$f":"ROUND(F2119*G2119,2)","v":0}]
[]
[null,null,"Smooth formwork to form"]
[]
[{"v":75,"d":"75 "},null,"50mm Diameter opening through not exceeding 230mm wall or beam",null,"No",100,null,{"$f":"ROUND(F2123*G2123,2)","v":0}]
[]
[null,null,"REINFORCEMENT (WORKGROUP 114)"]
[]
[null,null,"Mild steel reinforcement to structural concrete work"]
[]
[{"v":76,"d":"76 "},null,"8 to 40mm Diameter bars",null,"t",9,null,{"$f":"ROUND(F2129*G2129,2)","v":0}]
[]
[null,null,"High tensile reinforcement to structural concrete work"]
[]
[{"v":77,"d":"77 "},null,"8 to 40mm Diameter bars",null,"t",5,null,{"$f":"ROUND(F2133*G2133,2)","v":0}]
[]
[null,null,"uPVC Pipes"]
[]
[{"v":78,"d":"78 "},null,"50mm Pipes in weepholes not exceeding 500mm long",null,"No",100,null,{"$f":"ROUND(F2137*G2137,2)","v":0}]
[]
[null,null,"WATERPROOFING"]
[]
[null,null,"500 micron DPC membrane with 10mm masonite board behind as protection"]
[]
[{"v":79,"d":"79 "},null,"In walls vertically",null,"m²",506,null,{"$f":"ROUND(F2143*G2143,2)","v":0}]
[]
[null,null,"WATER TANK PLATFORM"]
[]
[null,null,"EARTHWORKS (PROVISIONAL) (WORKGROUP 104)"]
[]
[null,null,"EXCAVATIONS, FILLING ETC"]
[]
[null,null,"Excavation in earth not exceeding 2m deep"]
[]
[{"v":80,"d":"80 "},null,"Trenches",null,"m³",12,null,{"$f":"ROUND(F2153*G2153,2)","v":0}]
[]
[null,null,"Extra over all excavations for loading and carting away"]
[]
[{"v":81,"d":"81 "},null,"Surplus material from excavations and/or stock piles on site to a dumping site to be located by the contractor",null,"m³",12,null,{"$f":"ROUND(F2157*G2157,2)","v":0}]
[]
[null,null,"Risk of collapse of excavations"]
[]
[{"v":82,"d":"82 "},null,"Sides of trench and hole excavations not exceeding 1,5m deep",null,"m²",46,null,{"$f":"ROUND(F2161*G2161,2)","v":0}]
[]
[null,null,"Earth filling supplied by the contractor compacted to 98% MOD AASHTO density test"]
[]
[{"v":83,"d":"83 "},null,"Approved G2 crushed stone filling under floors etc",null,"m³",17,null,{"$f":"ROUND(F2165*G2165,2)","v":0}]
[]
[null,null,"Compaction of surfaces"]
[]
[{"v":84,"d":"84 "},null,"Compaction of ground surface under floors, etc. including excavating or filling, ripping and scarifying as necessary for a depth of 150mm, breaking down oversized materials, adding suitable material where necessary and compacting to 95% Modified AASTHO density.",null,"m²",24,null,{"$f":"ROUND(F2169*G2169,2)","v":0}]
[]
[null,null,"TESTS"]
[]
[null,null,"Prescribed density tests on filling"]
[]
[{"v":85,"d":"85 "},null,"\"Modified AASHTO Density\" test",null,"No",1,null,{"$f":"ROUND(F2175*G2175,2)","v":0}]
[]
[{"v":86,"d":"86 "},null,"\"Field Density\" test including \"Optimum Moisture Content\". (four readings per test)",null,"No",1,null,{"$f":"ROUND(F2177*G2177,2)","v":0}]
[]
[null,null,"SOIL POISONING"]
[]
[null,null,"Approved brand of anti- termite soil poison applied by a Registered Pest Control company and guaranteed against termite infestation for ten years"]
[]
[{"v":87,"d":"87 "},null,"Under concrete surface bed, etc. including forming and poisoning shallow furrows against foundation walls etc., filling in furrows and ramming.",null,"m²",30,null,{"$f":"ROUND(F2183*G2183,2)","v":0}]
[]
[null,null,"CONCRETE (WORKGROUP 110)"]
[]
[null,null,"REINFORCED CONCRETE CAST AGAINST EXCAVATED SURFACES"]
[]
[null,null,"15MPa/19mm concrete"]
[]
[{"v":88,"d":"88 "},null,"Surface beds on waterproofing",null,"m³",4,null,{"$f":"ROUND(F2191*G2191,2)","v":0}]
[]
[null,null,"20MPa/15mm concrete"]
[]
[{"v":89,"d":"89 "},null,"Strip footings",null,"m³",1,null,{"$f":"ROUND(F2195*G2195,2)","v":0}]
[]
[null,null,"TEST BLOCKS"]
[]
[{"v":90,"d":"90 "},null,"Allow for making set of test cubes, sending to an approved testing authority for testing and paying all charges in connection therewith",null,"No",1,null,{"$f":"ROUND(F2199*G2199,2)","v":0}]
[]
[null,null,"CONCRETE SUNDRIES"]
[]
[null,null,"Finishing top surfaces of concrete smooth with a wood float"]
[]
[{"v":91,"d":"91 "},null,"Surface beds, slabs, aprons, verandahs etc",null,"m²",24,null,{"$f":"ROUND(F2205*G2205,2)","v":0}]
[]
[null,null,"FORMWORK (WORKGROUP 111)"]
[]
[null,null,"Smooth Formwork Class F1 (Ordinary Finish) to sides:"]
[]
[{"v":92,"d":"92 "},null,"Slabs",null,"m²",5,null,{"$f":"ROUND(F2211*G2211,2)","v":0}]
[]
[null,null,"REINFORCEMENT (PROVISIONAL) (WORKGROUP 114)"]
[]
[null,null,"Fabric reinforcement"]
[]
[{"v":93,"d":"93 "},null,"Type 193 Mesh reinforcement in concrete surface beds, slabs, etc",null,"m²",30,null,{"$f":"ROUND(F2217*G2217,2)","v":0}]
[]
[null,null,"BRICKWORK (WORKGROUP 116)"]
[]
[null,null,"Brickwork in class II mortar"]
[]
[{"v":94,"d":"94 "},null,"One Brick walls",null,"m²",31,null,{"$f":"ROUND(F2223*G2223,2)","v":0}]
[]
[null,null,"BRICKWORK SUNDRIES"]
[]
[null,null,"Brick reinforcement"]
[]
[{"v":95,"d":"95 "},null,"150mm Wide reinforcement built in horizontally",null,"m",226,null,{"$f":"ROUND(F2229*G2229,2)","v":0}]
[]
[null,null,"PLUMBING (WORKGROUP 148)"]
[]
[null,null,"WATER HARVESTING TANK"]
[]
[{"v":96,"d":"96 "},null,"2500 litre vertical polyethelene fresh water tank with 75mm hole for downpipe, fixed on top of platform with four 4mm diameter galvanised wires with 15mm diameter garden hosebib tap including protector sleeves around tank fittings and looped double on top of slab with Y10 rod cast into slab at four corners. (Platform measured elsewhere)",null,"No",6,null,{"$f":"ROUND(F2235*G2235,2)","v":0}]
[]
[null,null,"FENCING AND GATES"]
[]
[null,null,"EARTHWORKS (PROVISIONAL) (WORKGROUP 104)"]
[]
[null,null,"EXCAVATIONS, FILLING ETC"]
[]
[null,null,"Excavation in earth not exceeding 2m deep"]
[]
[{"v":97,"d":"97 "},null,"Holes for poles",null,"m³",24,null,{"$f":"ROUND(F2245*G2245,2)","v":0}]
[]
[null,null,"Extra over all excavations for loading and carting away"]
[]
[{"v":98,"d":"98 "},null,"Surplus material from excavations and/or stock piles on site to a dumping site to be located by the contractor",null,"m³",24,null,{"$f":"ROUND(F2249*G2249,2)","v":0}]
[]
[null,null,"Risk of collapse of excavations"]
[]
[{"v":99,"d":"99 "},null,"Sides of trench and hole excavations not exceeding 1,5m deep",null,"m²",315,null,{"$f":"ROUND(F2253*G2253,2)","v":0}]
[]
[null,null,"SOIL POISONING"]
[]
[null,null,"Approved brand of anti- termite soil poison applied by a Registered Pest Control company and guaranteed against termite infestation for ten years"]
[]
[{"v":100,"d":"100 "},null,"Under concrete surface bed, etc. including forming and poisoning shallow furrows against foundation walls etc., filling in furrows and ramming.",null,"m²",39,null,{"$f":"ROUND(F2259*G2259,2)","v":0}]
[]
[null,null,"METALWORK"]
[]
[null,null,"\"ClearVu\" or equal approved plastic coated black Security Fencing"]
[]
[{"v":101,"d":"101 "},null,"2400mm high x 3000mm long Panel Marine fusion ClearVU fencing (Colour: Black) including posts, fixings, stiffeners to specialist details requirements",null,"m",1050,null,{"$f":"ROUND(F2265*G2265,2)","v":0}]
[]
[{"v":102,"d":"102 "},null,"Extraover fence for sharktooth spikes",null,"m",1050,null,{"$f":"ROUND(F2267*G2267,2)","v":0}]
[]
[null,null,"Gates to match ClearVu"]
[]
[{"v":103,"d":"103 "},null,"Vehicular double swing 4000mm x 2400mm high",null,"No",1,null,{"$f":"ROUND(F2271*G2271,2)","v":0}]
[]
[{"v":104,"d":"104 "},null,"Pedestrian swing gate 1400mm x 2400mm high",null,"No",3,null,{"$f":"ROUND(F2273*G2273,2)","v":0}]
[]
[null,null,"STORMWATER RETICULATION (WORK GROUP 146)"]
[]
[null,null,"V-DRAINS (Stormwater)"]
[]
[null,null,"EXCAVATION, FILLING, ETC OTHER THAN BULK"]
[]
[null,null,"Excavation in earth not exceeding 2m deep"]
[]
[{"v":105,"d":"105 "},null,"Reduced levels under floors",null,"m³",126,null,{"$f":"ROUND(F2283*G2283,2)","v":0}]
[]
[null,null,"Extra over trench and hole excavation in earth for excavation in:"]
[]
[{"v":106,"d":"106 "},null,"Soft rock",null,"m³",12,null,{"$f":"ROUND(F2287*G2287,2)","v":0}]
[]
[{"v":107,"d":"107 "},null,"Hard rock",null,"m³",6,null,{"$f":"ROUND(F2289*G2289,2)","v":0}]
[]
[null,null,"Keeping excavations free of water"]
[]
[{"v":108,"d":"108 "},null,"Keeping excavations free from water other than subterranean water",null,"Item",1,null,{"$f":"ROUND(F2293*G2293,2)","v":0}]
[]
[null,null,"Earthfilling obtained from the excavation and/or prescribed stock piles on site compacted to 95% Modified AASHTO Density"]
[]
[{"v":109,"d":"109 "},null,"150mm G10 insitu-subgrade ripped and recompacted to 93% MOD AASHTO density",null,"m³",47,null,{"$f":"ROUND(F2297*G2297,2)","v":0}]
[]
[null,null,"Earth filling supplied by the contractor compacted to 98% MOD AASHTO density test"]
[]
[{"v":110,"d":"110 "},null,"Approved G5 material under floors etc",null,"m³",38,null,{"$f":"ROUND(F2301*G2301,2)","v":0}]
[]
[null,null,"Compaction of surfaces"]
[]
[{"v":111,"d":"111 "},null,"Compaction of ground surface under floors, etc. including excavating or filling, ripping and scarifying as necessary for a depth of 150mm, breaking down oversized materials, adding suitable material where necessary and compacting to 95% Modified AASTHO density.",null,"m²",397,null,{"$f":"ROUND(F2305*G2305,2)","v":0}]
[]
[null,null,"TESTS"]
[]
[null,null,"Prescribed density tests on filling"]
[]
[{"v":112,"d":"112 "},null,"\"Modified AASHTO Density\" test",null,"No",1,null,{"$f":"ROUND(F2311*G2311,2)","v":0}]
[]
[{"v":113,"d":"113 "},null,"\"Field Density\" test including \"Optimum Moisture Content\". (four readings per test)",null,"No",1,null,{"$f":"ROUND(F2313*G2313,2)","v":0}]
[]
[null,null,"SOIL POISONING"]
[]
[null,null,"Approved brand of anti- termite soil poison applied by a Registered Pest Control company and guaranteed against termite infestation for ten years"]
[]
[{"v":114,"d":"114 "},null,"Under concrete surface bed, etc. including forming and poisoning shallow furrows against foundation walls etc., filling in furrows and ramming.",null,"m²",397,null,{"$f":"ROUND(F2319*G2319,2)","v":0}]
[]
[null,null,"CONCRETE (WORKGROUP 110)"]
[]
[null,null,"VIBRATED REINFORCED CONCRETE"]
[]
[null,null,"Cement concrete class 25/19mm in:"]
[]
[{"v":115,"d":"115 "},null,"Surface beds cast in panels",null,"m³",124,null,{"$f":"ROUND(F2327*G2327,2)","v":0}]
[]
[null,null,"TEST BLOCKS"]
[]
[{"v":116,"d":"116 "},null,"Allow for making set of three test cubes, sending to an approved testing authority for testing and paying all charges in connection therewith",null,"Item",1,null,{"$f":"ROUND(F2331*G2331,2)","v":0}]
[]
[null,null,"CONCRETE SUNDRIES"]
[]
[null,null,"Finishing top surfaces of concrete to an evenly non-slip surface"]
[]
[{"v":117,"d":"117 "},null,"To falls and currents",null,"m²",467,null,{"$f":"ROUND(F2337*G2337,2)","v":0}]
[]
[null,null,"FORMWORK (WORKGROUP 111)"]
[]
[null,null,"Formwork To Impart Class I Finish (Smooth)"]
[]
[null,null,"Rough formwork to sides"]
[]
[{"v":118,"d":"118 "},null,"Edges, risers, ends and reveals not exceeding 300mm high or wide",null,"m",602,null,{"$f":"ROUND(F2345*G2345,2)","v":0}]
[]
[null,null,"MOVEMENT JOINTS ETC"]
[]
[null,null,"Expansion joints with 10mm polystyrene between vertical concrete surfaces"]
[]
[{"v":119,"d":"119 "},null,"10mm Joints not exceeding 300mm high",null,"m",284,null,{"$f":"ROUND(F2351*G2351,2)","v":0}]
[]
[null,null,"Saw cut joints"]
[]
[{"v":120,"d":"120 "},null,"3 x 30mm saw cut joints in top of concrete surface bed",null,"m",284,null,{"$f":"ROUND(F2355*G2355,2)","v":0}]
[]
[null,null,"REINFORCEMENT (WORKGROUP 114)"]
[]
[null,null,"Fabric reinforcement"]
[]
[{"v":121,"d":"121 "},null,"Type 193 fabric reinforcement in concrete surface beds, slabs, etc",null,"m²",467,null,{"$f":"ROUND(F2361*G2361,2)","v":0}]
[]
[null,null,"GRIDINLETS, CATCHPITS, GULLEYS AND MANHOLES TO ENGINEERS DETAIL"]
[]
[null,null,"The following in grid inlet Type A"]
[]
[{"v":122,"d":"122 "},null,"Excavation not exceeding 2m deep",null,"m³",13,null,{"$f":"ROUND(F2367*G2367,2)","v":0}]
[]
[{"v":123,"d":"123 "},null,"Excavation exceeding 2m not exceeding 4m deep",null,"m³",5,null,{"$f":"ROUND(F2369*G2369,2)","v":0}]
[]
[{"v":124,"d":"124 "},null,"Excavation exceeding 4m and not exceeding 6m deep",null,"m3",0,null,"Rate only"]
[]
[{"v":125,"d":"125 "},null,"20Mpa Reinforced concrete in bottoms",null,"m³",6,null,{"$f":"ROUND(F2373*G2373,2)","v":0}]
[]
[{"v":126,"d":"126 "},null,"1200mm  x 1200mm  x 150mm Thick precast concrete reducer slab including necessary formwork and reinforcement",null,"No",16,null,{"$f":"ROUND(F2375*G2375,2)","v":0}]
[]
[{"v":127,"d":"127 "},null,"8mm Diameter mild steel reinforcement bars in concrete bottoms",null,"t",1,null,{"$f":"ROUND(F2377*G2377,2)","v":0}]
[]
[{"v":128,"d":"128 "},null,"One brick wall not exceeding 1.5m deep",null,"m²",27,null,{"$f":"ROUND(F2379*G2379,2)","v":0}]
[]
[{"v":129,"d":"129 "},null,"One brick wall exceeding 1.5m and not exceeding 2.5m deep",null,"m²",19,null,{"$f":"ROUND(F2381*G2381,2)","v":0}]
[]
[{"v":130,"d":"130 "},null,"One brick wall exceeding 2.5m and not exceeding 4m deep",null,"m2",0,null,"Rate only"]
[]
[{"v":131,"d":"131 "},null,"Plaster on brick walls not exceeding 1.5m deep",null,"m²",27,null,{"$f":"ROUND(F2385*G2385,2)","v":0}]
[]
[{"v":132,"d":"132 "},null,"Plaster on one brick wall exceeding 1.5m and not exceeding 2.5m deep",null,"m²",19,null,{"$f":"ROUND(F2387*G2387,2)","v":0}]
[]
[{"v":133,"d":"133 "},null,"Plaster on one brick wall exceeding 2.5m and not exceeding 4m deep",null,"m2",0,null,"Rate only"]
[]
[{"v":134,"d":"134 "},null,"600mm  x 600mm x 15kg Cast iron dished grating and frame",null,"No",17,null,{"$f":"ROUND(F2391*G2391,2)","v":0}]
[]
[{"v":135,"d":"135 "},null,"Lifting key for manhole cover",null,"No",1,null,{"$f":"ROUND(F2393*G2393,2)","v":0}]
[]
[null,null,"Catchpit Type X"]
[]
[{"v":136,"d":"136 "},null,"Excavate for and build 400mm square catchpit with NFX brick sides 380mm x 380mm by 20kg cast iron grating and frame, size internally 380mm x 380mm x average 1,000mm deep and a 25MPa mass concrete base average all as per drawing",null,"No",0,null,"Rate only"]
[]
[null,null,"Manholes"]
[]
[{"v":137,"d":"137 "},null,"Excavate in earth not exceeding 1.2m deep including risk of collapse of vertical sides of excavations. Concrete class 20/19 in benching to bottom of manhole forming half round channel to suit diameter of outlet, the bottom graded to falls and finished smooth on all exposed surfaces. 500mm Internal diameter precast concrete manhole rings to SABS 1294 (Heavy Duty). 150mm Thick precast concrete cover slab with rebated opening to suit concrete cover and finished smooth on exposed surfaces with plaster including necessary reinforcement and formwork. All as per Engineer's details. Manhole Type A",null,"No",3,null,{"$f":"ROUND(F2401*G2401,2)","v":0}]
[]
[{"v":138,"d":"138 "},null,"Excavate in earth not exceeding 1.2m deep including risk of collapse of vertical sides of excavations. Concrete class 20/19 in benching to bottom of manhole forming half round channel to suit diameter of outlet, the bottom graded to falls and finished smooth on all exposed surfaces. 500mm Internal diameter precast concrete manhole rings to SABS 1294 (Heavy Duty). 150mm Thick precast concrete cover slab with rebated opening to suit concrete cover and finished smooth on exposed surfaces with plaster including necessary reinforcement and formwork. All as per Engineer's details. Drop Manhole",null,"No",2,null,{"$f":"ROUND(F2403*G2403,2)","v":0}]
[]
[null,null,"Connections"]
[]
[{"v":139,"d":"139 "},null,"Tie into municipal line, complete including all necessary liaison",null,"Item",1,null,{"$f":"ROUND(F2407*G2407,2)","v":0}]
[]
[null,null,"Testing"]
[]
[{"v":140,"d":"140 "},null,"Testing of stormwater pipe system",null,"Item",1,null,{"$f":"ROUND(F2411*G2411,2)","v":0}]
[]
[null,null,"UPVC PIPEWORK"]
[]
[null,null,"Underground class 34 rigid uPVC pipes for stormwater drains including trench excavatons of an effective width of 500mm and backfilling with 150mm of imported selected bedding material, 150mm of selected backfill material and normal compacted backfill"]
[]
[null,null,"250mm diameter uPVC pipe"]
[]
[{"v":141,"d":"141 "},null,"250mm Pipe including excavations not exceeding 1m deep including preparation of trench bottoms (compaction, bedding of imported material, and back fill with selected material)",null,"m",160,null,{"$f":"ROUND(F2419*G2419,2)","v":0}]
[]
[{"v":142,"d":"142 "},null,"250mm Pipe including excavations exceeding 1m and not exceeding 2m deep including preparation of trench bottoms (compaction, bedding of imported material, and back fill with selected material)",null,"m",70,null,{"$f":"ROUND(F2421*G2421,2)","v":0}]
[]
[{"v":143,"d":"143 "},null,"250mm Pipe including excavations exceeding 2m and not exceeding 4m deep including preparation of trench bottoms (compaction, bedding of imported material, and back fill with selected material)",null,"m",10,null,{"$f":"ROUND(F2423*G2423,2)","v":0}]
[]
[null,null,"315mm diameter uPVC pipe"]
[]
[{"v":144,"d":"144 "},null,"315mm Pipe including excavations not exceeding 1m deep including preparation of trench bottoms (compaction, bedding of imported material, and back fill with selected material)",null,"m",30,null,{"$f":"ROUND(F2427*G2427,2)","v":0}]
[]
[{"v":145,"d":"145 "},null,"315mm Pipe including excavations exceeding 1m and not exceeding 2m deep including preparation of trench bottoms (compaction, bedding of imported material, and back fill with selected material)",null,"m",58,null,{"$f":"ROUND(F2429*G2429,2)","v":0}]
[]
[{"v":146,"d":"146 "},null,"315mm Pipe including excavations exceeding 2m and not exceeding 4m deep including preparation of trench bottoms (compaction, bedding of imported material, and back fill with selected material)",null,"m",10,null,{"$f":"ROUND(F2431*G2431,2)","v":0}]
[]
[null,null,"Extra over uPVC for the following fittings."]
[]
[{"v":147,"d":"147 "},null,"250mm Bend",null,"No",7,null,{"$f":"ROUND(F2435*G2435,2)","v":0}]
[]
[{"v":148,"d":"148 "},null,"250mm Access pipe",null,"No",8,null,{"$f":"ROUND(F2437*G2437,2)","v":0}]
[]
[{"v":149,"d":"149 "},null,"250mm Junction",null,"No",3,null,{"$f":"ROUND(F2439*G2439,2)","v":0}]
[]
[{"v":150,"d":"150 "},null,"250mm Access junction",null,"No",2,null,{"$f":"ROUND(F2441*G2441,2)","v":0}]
[]
[{"v":151,"d":"151 "},null,"250mm ABC Rodding eye",null,"No",3,null,{"$f":"ROUND(F2443*G2443,2)","v":0}]
[]
[{"v":152,"d":"152 "},null,"315mm Bend",null,"No",3,null,{"$f":"ROUND(F2445*G2445,2)","v":0}]
[]
[{"v":153,"d":"153 "},null,"315mm Access pipe",null,"No",2,null,{"$f":"ROUND(F2447*G2447,2)","v":0}]
[]
[{"v":154,"d":"154 "},null,"315mm Junction",null,"No",1,null,{"$f":"ROUND(F2449*G2449,2)","v":0}]
[]
[{"v":155,"d":"155 "},null,"315mm Access junction",null,"No",2,null,{"$f":"ROUND(F2451*G2451,2)","v":0}]
[]
[{"v":156,"d":"156 "},null,"315mm ABC Rodding eye",null,"No",1,null,{"$f":"ROUND(F2453*G2453,2)","v":0}]
[]
[null,null,"CONCRETE PIPEWORK"]
[]
[null,null,"375mm diameter class 50d concrete pipe"]
[]
[{"v":157,"d":"157 "},null,"375mm Pipe including excavations not exceeding 1m deep including preparation of trench bottoms (compaction, bedding of imported material, and back fill with selected material)",null,"m",4,null,{"$f":"ROUND(F2459*G2459,2)","v":0}]
[]
[{"v":158,"d":"158 "},null,"375mm Pipe including excavations exceeding 1m and not exceeding 2m deep including preparation of trench bottoms (compaction, bedding of imported material, and back fill with selected material)",null,"m",14,null,{"$f":"ROUND(F2461*G2461,2)","v":0}]
[]
[{"v":159,"d":"159 "},null,"375mm Pipe including excavations exceeding 2m and not exceeding 4m deep including preparation of trench bottoms (compaction, bedding of imported material, and back fill with selected material)",null,"m",0,null,"Rate only"]
[]
[null,null,"WATER SUPPLIES AND FIRE SERVICES"]
[]
[null,null,"WATER SUPPLIES"]
[]
[null,null,"Underground class 9 rigid HDPE pipes for water and fire supply including trench excavatons of an effective width of 500mm and backfilling with 150mm of imported selected bedding material, 150mm of selected backfill material and normal compacted backfill"]
[]
[{"v":160,"d":"160 "},null,"50mm Pipe including excavations not exceeding 1m deep",null,"m",686,null,{"$f":"ROUND(F2471*G2471,2)","v":0}]
[]
[{"v":161,"d":"161 "},null,"50mm Pipe including excavations exceeding 1m and not exceeding 2m deep",null,"m",85,null,{"$f":"ROUND(F2473*G2473,2)","v":0}]
[]
[null,null,"Extra over uPVC for the following fittings."]
[]
[{"v":162,"d":"162 "},null,"50mm Fittings",null,"No",52,null,{"$f":"ROUND(F2477*G2477,2)","v":0}]
[]
[null,null,"FIRE SUPPLIES"]
[]
[null,null,"Underground class 9 rigid HDPE pipes for water and fire supply including trench excavatons of an effective width of 500mm and backfilling with 150mm of imported selected bedding material, 150mm of selected backfill material and normal compacted backfill"]
[]
[{"v":163,"d":"163 "},null,"50mm Pipe including excavations not exceeding 1m deep",null,"m",686,null,{"$f":"ROUND(F2483*G2483,2)","v":0}]
[]
[{"v":164,"d":"164 "},null,"50mm Pipe including excavations exceeding 1m and not exceeding 2m deep",null,"m",85,null,{"$f":"ROUND(F2485*G2485,2)","v":0}]
[]
[null,null,"Extra over uPVC for the following fittings."]
[]
[{"v":165,"d":"165 "},null,"50mm Bend",null,"No",37,null,{"$f":"ROUND(F2489*G2489,2)","v":0}]
[]
[null,null,"ATTENUATION POND"]
[]
[null,null,"UNREINFORCED CONCRETE CAST AGAINST  EXCAVATED SURFACES"]
[]
[null,null,"15MPa/19mm Concrete (LI)"]
[]
[{"v":166,"d":"166 "},null,"Blinding layer (LI)",null,"m³",13,null,{"$f":"ROUND(F2497*G2497,2)","v":0}]
[]
[null,null,"REINFORCED CONCRETE (CLASS I)"]
[]
[null,null,"30MPa/19mm Concrete with and including \"Sika 1\" or equal approved waterproofing admixture all in accordance with manufacturer's specifications (LI)"]
[]
[{"v":167,"d":"167 "},null,"Surface beds to falls in panels (LI)",null,"m³",40,null,{"$f":"ROUND(F2503*G2503,2)","v":0}]
[]
[{"v":168,"d":"168 "},null,"Slabs, beams and inverted beams (LI)",null,"m³",40,null,{"$f":"ROUND(F2505*G2505,2)","v":0}]
[]
[{"v":169,"d":"169 "},null,"Walls (LI)",null,"m³",33,null,{"$f":"ROUND(F2507*G2507,2)","v":0}]
[]
[null,null,"TEST BLOCKS"]
[]
[{"v":170,"d":"170 "},null,"Making and testing set of 150 x 150 x 150mm concrete  strength test cube (Provisional) (LI)",null,"No",10,null,{"$f":"ROUND(F2511*G2511,2)","v":0}]
[]
[null,null,"CONCRETE SUNDRIES"]
[]
[null,null,"Finishing top surfaces of concrete smooth with a  powerfloat and including \"Sika Percem-21N\" or equal approved floor hardener all to manufacturer's specifications (LI)"]
[]
[{"v":171,"d":"171 "},null,"Surface beds, slabs, etc (LI)",null,"m²",283,null,{"$f":"ROUND(F2517*G2517,2)","v":0}]
[]
[null,null,"ROUGH FORMWORK (DEGREE OF ACCURACY II)"]
[]
[null,null,"Rough formwork to sides (LI)"]
[]
[{"v":172,"d":"172 "},null,"Walls (LI)",null,"m²",335,null,{"$f":"ROUND(F2523*G2523,2)","v":0}]
[]
[null,null,"SMOOTH FORMWORK (DEGREE OF ACCURACY I)"]
[]
[null,null,"Smooth formwork to sides (LI)"]
[]
[{"v":173,"d":"173 "},null,"Walls not exceeding 3,5m high (LI)",null,"m²",315,null,{"$f":"ROUND(F2529*G2529,2)","v":0}]
[]
[null,null,"Smooth formwork to soffits (LI)"]
[]
[{"v":174,"d":"174 "},null,"Slabs not exceeding 3,5m above bearing level (LI)",null,"m²",123,null,{"$f":"ROUND(F2533*G2533,2)","v":0}]
[]
[null,null,"SMOOTH FORMWORK SUNDRIES"]
[]
[{"v":175,"d":"175 "},null,"Boxing in of formwork to form 1000 x 150mm side overflow opening (LI)",null,"m",30,null,{"$f":"ROUND(F2537*G2537,2)","v":0}]
[]
[{"v":176,"d":"176 "},null,"Forming 600m x 450mm opening through 250mm concete slab (LI)",null,"No",15,null,{"$f":"ROUND(F2539*G2539,2)","v":0}]
[]
[null,null,"REINFORCEMENT"]
[]
[null,null,"Fabric reinforcement"]
[]
[{"v":177,"d":"177 "},null,"Type 888 fabric reinforcement in concrete surface beds, slabs, etc (LI)",null,"m²",1428,null,{"$f":"ROUND(F2545*G2545,2)","v":0}]
[]
[null,null,"DAMP-PROOFING OF WALLS AND FLOORS"]
[]
[null,null,"One layer of 500 micron waterproof sheeting  sealed at laps with Pressure Sensitive Tape (LI)"]
[]
[{"v":178,"d":"178 "},null,"Under surface beds (LI)",null,"m²",155,null,{"$f":"ROUND(F2551*G2551,2)","v":0}]
[]
[null,null,"DOORS AND FRAMES"]
[]
[null,null,"Grilles and lids (LI)"]
[]
[{"v":179,"d":"179 "},null,"600mm x 450mm x 72kg Cast Iron cover type 8A (BdP Ref. M2250) and frame (access opening inclusing mechanical installation) (LI)",null,"No",15,null,{"$f":"ROUND(F2557*G2557,2)","v":0}]
[]
[null,null,"PAINTWORK ON OFF-SHUTTER CONCRETE"]
[]
[null,null,"Prepare and apply three coats ABE flintcote (LI)"]
[]
[{"v":180,"d":"180 "},null,"On internal walls (LI)",null,"m²",605,null,{"$f":"ROUND(F2563*G2563,2)","v":0}]
[]
[null,null,"RAMPS, LANDINGS, ETC"]
[]
[null,null,"EXCAVATION, FILLING, ETC OTHER THAN BULK"]
[]
[null,null,"Excavation in earth not exceeding 2m deep (LI)"]
[]
[{"v":181,"d":"181 "},null,"Trenches and holes (LI)",null,"m³",436,null,{"$f":"ROUND(F2571*G2571,2)","v":0}]
[]
[null,null,"Extra over bulk excavation in earth for excavation in"]
[]
[{"v":182,"d":"182 "},null,"Soft rock",null,"m³",109,null,{"$f":"ROUND(F2575*G2575,2)","v":0}]
[]
[{"v":183,"d":"183 "},null,"Hard rock",null,"m³",44,null,{"$f":"ROUND(F2577*G2577,2)","v":0}]
[]
[null,null,"Extra over all excavations for Carting away (LI)"]
[]
[{"v":184,"d":"184 "},null,"Surplus material from excavations and/or stock piles on site to  a dumping site to be contractor (LI)",null,"m³",218,null,{"$f":"ROUND(F2581*G2581,2)","v":0}]
[]
[null,null,"Risk of collapse of excavations"]
[]
[{"v":185,"d":"185 "},null,"Sides of trench and hole excavations not exceeding 1,5m deep",null,"m²",872,null,{"$f":"ROUND(F2585*G2585,2)","v":0}]
[]
[null,null,"Earth filling obtained from the excavations and/or  prescribed stock piles on site compacted to 98% Mod  AASHTO density (LI)"]
[]
[{"v":186,"d":"186 "},null,"Backfilling to trenches and holes (LI)",null,"m³",65,null,{"$f":"ROUND(F2589*G2589,2)","v":0}]
[]
[null,null,"Earth filling with G6 material and compacted in layers of 150mm to 98% Mod  AASHTO density (LI)"]
[]
[{"v":187,"d":"187 "},null,"Backfilling to trenches and holes (LI)",null,"m³",65,null,{"$f":"ROUND(F2593*G2593,2)","v":0}]
[]
[null,null,"Compaction of surfaces (LI)"]
[]
[{"v":188,"d":"188 "},null,"Compaction of ground surface including scarifying for a depth of 150mm, breaking down oversize  material, adding suitable material where necessary and  compacting to 98% Mod AASHTO density (LI)",null,"m²",436,null,{"$f":"ROUND(F2597*G2597,2)","v":0}]
[]
[null,null,"Prescribed density tests on filling (LI)"]
[]
[{"v":189,"d":"189 "},null,"\"Modified AASHTO Density\" test (LI)",null,"No",12,null,{"$f":"ROUND(F2601*G2601,2)","v":0}]
[]
[null,null,"SOIL POISONING"]
[]
[null,null,"Soil insecticide"]
[]
[{"v":190,"d":"190 "},null,"Under floors etc including forming and poisoning shallow  furrows against foundation walls etc, filling in furrows and  ramming (LI)",null,"m²",436,null,{"$f":"ROUND(F2607*G2607,2)","v":0}]
[]
[null,null,"VIBRATED REINFORCED CONCRETE"]
[]
[null,null,"25MPa/19mm concrete (LI)"]
[]
[{"v":191,"d":"191 "},null,"Ramps and aprons (LI)",null,"m³",65,null,{"$f":"ROUND(F2613*G2613,2)","v":0}]
[]
[{"v":192,"d":"192 "},null,"Strip footings (LI)",null,"m³",25,null,{"$f":"ROUND(F2615*G2615,2)","v":0}]
[]
[null,null,"TEST BLOCKS"]
[]
[{"v":193,"d":"193 "},null,"Allow for making test cubes 150mm x150mmx150mm, sending to an approved testing authority for testing and paying all charges in connection therewith (provisional) (LI)",null,"No",12,null,{"$f":"ROUND(F2619*G2619,2)","v":0}]
[]
[null,null,"CONCRETE SUNDRIES"]
[]
[null,null,"Finishing top surfaces of concrete smooth with a wood float finish (LI)"]
[]
[{"v":194,"d":"194 "},null,"Surface beds, slabs, etc to falls (LI)",null,"m²",436,null,{"$f":"ROUND(F2625*G2625,2)","v":0}]
[]
[null,null,"FORMWORK\t (WORKGROUP 111)"]
[]
[null,null,"Rough Formwork to sides of strips footings (LI)"]
[]
[{"v":195,"d":"195 "},null,"Strip footings (LI)",null,"m²",125,null,{"$f":"ROUND(F2631*G2631,2)","v":0}]
[]
[null,null,"MOVEMENT JOINTS ETC"]
[]
[null,null,"Slip joints between horizontial concrete and brick surfaces including cement mortar bed (LI)"]
[]
[{"v":196,"d":"196 "},null,"Two layers of masonite board and two sheets DPC not exceeding 300mm wide (LI)",null,"m",290,null,{"$f":"ROUND(F2637*G2637,2)","v":0}]
[]
[null,null,"REINFORCEMENT"]
[]
[null,null,"Fabric reinforcement (LI)"]
[]
[{"v":197,"d":"197 "},null,"Type 193 fabric reinforcement in concrete surface beds, slabs, etc (LI)",null,"m²",436,null,{"$f":"ROUND(F2643*G2643,2)","v":0}]
[]
[null,null,"EXTERNAL STAIRCASES"]
[]
[null,null,"EXCAVATION, FILLING, ETC OTHER THAN BULK"]
[]
[null,null,"Excavation in earth not exceeding 2m  (LI)"]
[]
[{"v":198,"d":"198 "},null,"Trenches and holes (LI)",null,"m³",27,null,{"$f":"ROUND(F2651*G2651,2)","v":0}]
[]
[null,null,"Extra over bulk excavation in earth for excavation in"]
[]
[{"v":199,"d":"199 "},null,"Soft rock",null,"m³",7,null,{"$f":"ROUND(F2655*G2655,2)","v":0}]
[]
[{"v":200,"d":"200 "},null,"Hard rock",null,"m³",4,null,{"$f":"ROUND(F2657*G2657,2)","v":0}]
[]
[null,null,"Extra over all excavations for Carting away (LI)"]
[]
[{"v":201,"d":"201 "},null,"Surplus material from excavations and/or stock piles on site to  a dumping site to be contractor (LI)",null,"m³",28,null,{"$f":"ROUND(F2661*G2661,2)","v":0}]
[]
[null,null,"Risk of collapse of excavations"]
[]
[{"v":202,"d":"202 "},null,"Sides of trench and hole excavations not exceeding 1,5m deep",null,"m²",60,null,{"$f":"ROUND(F2665*G2665,2)","v":0}]
[]
[null,null,"Earth filling with G6 material and compacted in layers of 150mm to 98% Mod  AASHTO density (LI)"]
[]
[{"v":203,"d":"203 "},null,"Backfilling to trenches and holes (LI)",null,"m³",9,null,{"$f":"ROUND(F2669*G2669,2)","v":0}]
[]
[null,null,"Compaction of surfaces (LI)"]
[]
[{"v":204,"d":"204 "},null,"Compaction of ground surface including scarifying for a depth of 150mm, breaking down oversize  material, adding suitable material where necessary and  compacting to 98% Mod AASHTO density (LI)",null,"m²",60,null,{"$f":"ROUND(F2673*G2673,2)","v":0}]
[]
[null,null,"Prescribed density tests on filling (LI)"]
[]
[{"v":205,"d":"205 "},null,"\"Modified AASHTO Density\" test (LI)",null,"No",2,null,{"$f":"ROUND(F2677*G2677,2)","v":0}]
[]
[null,null,"SOIL POISONING"]
[]
[null,null,"Soil insecticide"]
[]
[{"v":206,"d":"206 "},null,"Under floors etc including forming and poisoning shallow  furrows against foundation walls etc, filling in furrows and  ramming (LI)",null,"m²",60,null,{"$f":"ROUND(F2683*G2683,2)","v":0}]
[]
[null,null,"VIBRATED REINFORCED CONCRETE"]
[]
[null,null,"30MPa/19mm concrete (LI)"]
[]
[{"v":207,"d":"207 "},null,"Staircases (LI)",null,"m³",9,null,{"$f":"ROUND(F2689*G2689,2)","v":0}]
[]
[{"v":208,"d":"208 "},null,"Strip footings (LI)",null,"m³",9,null,{"$f":"ROUND(F2691*G2691,2)","v":0}]
[]
[{"v":209,"d":"209 "},null,"Landings (LI)",null,"m³",6,null,{"$f":"ROUND(F2693*G2693,2)","v":0}]
[]
[null,null,"TEST BLOCKS"]
[]
[{"v":210,"d":"210 "},null,"Allow for making test cubes 150mm x150mmx150mm, sending to an approved testing authority for testing and paying all charges in connection therewith (provisional) (LI)",null,"No",12,null,{"$f":"ROUND(F2697*G2697,2)","v":0}]
[]
[null,null,"CONCRETE SUNDRIES"]
[]
[null,null,"Finishing top surfaces of concrete smooth with a wood float finish (LI)"]
[]
[{"v":211,"d":"211 "},null,"Surface beds, slabs, etc to falls (LI)",null,"m²",60,null,{"$f":"ROUND(F2703*G2703,2)","v":0}]
[]
[null,null,"FORMWORK\t (WORKGROUP 111)"]
[]
[null,null,"Rough Formwork to sides of strips footings (LI)"]
[]
[{"v":212,"d":"212 "},null,"Strip footings (LI)",null,"m²",60,null,{"$f":"ROUND(F2709*G2709,2)","v":0}]
[]
[null,null,"Smooth Formwork to sides (LI)"]
[]
[{"v":213,"d":"213 "},null,"Edges, risers, ends and reveals not exceeding 300mm high (LI)",null,"m",100,null,{"$f":"ROUND(F2713*G2713,2)","v":0}]
[]
[{"v":214,"d":"214 "},null,"Sloping and stepped outter edges of stairs 325mm high extreme (LI)",null,"m",125,null,{"$f":"ROUND(F2715*G2715,2)","v":0}]
[]
[null,null,"Smooth Formwork to soffits: (LI)"]
[]
[{"v":215,"d":"215 "},null,"Landings (LI)",null,"m²",25,null,{"$f":"ROUND(F2719*G2719,2)","v":0}]
[]
[{"v":216,"d":"216 "},null,"Stairs with raking soffits (LI)",null,"m²",25,null,{"$f":"ROUND(F2721*G2721,2)","v":0}]
[]
[null,null,"REINFORCEMENT"]
[]
[null,null,"Fabric reinforcement (LI)"]
[]
[{"v":217,"d":"217 "},null,"Type 193 fabric reinforcement in concrete surface beds, slabs, etc (LI)",null,"m²",60,null,{"$f":"ROUND(F2727*G2727,2)","v":0}]
[]
[null,null,"Mild and High Tensile steel reinforcement to structural concrete work (LI)"]
[]
[{"v":218,"d":"218 "},null,"8 to 40mm Diameter bars (LI)",null,"t",1,null,{"$f":"ROUND(F2731*G2731,2)","v":0}]
[]
[null,null,"FLAG POLE"]
[]
[null,null,"EXCAVATION, FILLING, ETC OTHER THAN BULK"]
[]
[null,null,"Excavation in earth not exceeding 2m  (LI)"]
[]
[{"v":219,"d":"219 "},null,"Trenches and holes (LI)",null,"m³",1,null,{"$f":"ROUND(F2739*G2739,2)","v":0}]
[]
[null,null,"Extra over trench and hole excavations in earth for excavation in (LI)"]
[]
[{"v":220,"d":"220 "},null,"Soft rock (LI)",null,"m³",1,null,{"$f":"ROUND(F2743*G2743,2)","v":0}]
[]
[{"v":221,"d":"221 "},null,"Hard rock (LI)",null,"m³",1,null,{"$f":"ROUND(F2745*G2745,2)","v":0}]
[]
[null,null,"Extra over all excavations for Carting away (LI)"]
[]
[{"v":222,"d":"222 "},null,"Surplus material from excavations and/or stock piles on site to  a dumping site to be contractor (LI)",null,"m³",1,null,{"$f":"ROUND(F2749*G2749,2)","v":0}]
[]
[null,null,"Risk of collapse of excavations (LI)"]
[]
[{"v":223,"d":"223 "},null,"Sides of 53.13 degrees sloping excavations exceeding 1,5m deep (LI)",null,"m²",4,null,{"$f":"ROUND(F2753*G2753,2)","v":0}]
[]
[null,null,"SOIL POISONING"]
[]
[null,null,"Soil insecticide"]
[]
[{"v":224,"d":"224 "},null,"Under floors etc including forming and poisoning shallow  furrows against foundation walls etc, filling in furrows and  ramming (LI)",null,"m²",5,null,{"$f":"ROUND(F2759*G2759,2)","v":0}]
[]
[null,null,"CONCRETE CAST AGAINST EXCAVATED SURFACES"]
[]
[null,null,"30MPa/19mm concrete (LI)"]
[]
[{"v":225,"d":"225 "},null,"Bases (LI)",null,"m³",1,null,{"$f":"ROUND(F2765*G2765,2)","v":0}]
[]
[null,null,"TEST BLOCKS"]
[]
[{"v":226,"d":"226 "},null,"Allow for making test cubes 150mm x150mmx150mm, sending to an approved testing authority for testing and paying all charges in connection therewith (provisional) (LI)",null,"No",1,null,{"$f":"ROUND(F2769*G2769,2)","v":0}]
[]
[null,null,"CONCRETE SUNDRIES"]
[]
[null,null,"Finishing top surfaces of concrete smooth with a wood float finish (LI)"]
[]
[{"v":227,"d":"227 "},null,"Surface beds, slabs, etc to falls (LI)",null,"m²",2,null,{"$f":"ROUND(F2775*G2775,2)","v":0}]
[]
[null,null,"Smooth Formwork to sides (LI)"]
[]
[{"v":228,"d":"228 "},null,"Edges, risers, ends and reveals not exceeding 300mm high (LI)",null,"m",4,null,{"$f":"ROUND(F2779*G2779,2)","v":0}]
[]
[null,null,"POLES AND ACCESSORIES"]
[]
[{"v":229,"d":"229 "},null,"Flag pole 4000mm long above ground and 1000mm deep in foundation including 100 x 40 x 8mm channel, 70mm diameter end cap, 60 x 2.5mm MS pipe 1000mm long, 70 x 3mm MS pipe 1000mm long, 1000 x 3.5mm MS pipe 1000mm long, stop plates, bolts, etc. all complete as per the Architect's Drawing No.062854",null,"No",1,null,{"$f":"ROUND(F2783*G2783,2)","v":0}]
[]
[null,null,"BIN AREA"]
[]
[null,null,"EXCAVATION, FILLING, ETC OTHER THAN BULK"]
[]
[null,null,"Excavation in earth not exceeding 2m  (LI)"]
[]
[{"v":230,"d":"230 "},null,"Reducing levels",null,"m²",44,null,{"$f":"ROUND(F2791*G2791,2)","v":0}]
[]
[{"v":231,"d":"231 "},null,"Extra over reducing level for forming waste pit 600mm deep",null,"m²",12,null,{"$f":"ROUND(F2793*G2793,2)","v":0}]
[]
[{"v":232,"d":"232 "},null,"Trenches and holes (LI)",null,"m³",12,null,{"$f":"ROUND(F2795*G2795,2)","v":0}]
[]
[null,null,"Extra over trench and hole excavations in earth for excavation in (LI)"]
[]
[{"v":233,"d":"233 "},null,"Soft rock (LI)",null,"m³",1,null,{"$f":"ROUND(F2799*G2799,2)","v":0}]
[]
[{"v":234,"d":"234 "},null,"Hard rock (LI)",null,"m³",1,null,{"$f":"ROUND(F2801*G2801,2)","v":0}]
[]
[null,null,"Extra over all excavations for Carting away (LI)"]
[]
[{"v":235,"d":"235 "},null,"Surplus material from excavations and/or stock piles on site to  a dumping site to be contractor (LI)",null,"m³",8,null,{"$f":"ROUND(F2805*G2805,2)","v":0}]
[]
[null,null,"Risk of collapse of excavations (LI)"]
[]
[{"v":236,"d":"236 "},null,"Sides of 53.13 degrees sloping excavations exceeding 1,5m deep (LI)",null,"m²",35,null,{"$f":"ROUND(F2809*G2809,2)","v":0}]
[]
[null,null,"SOIL POISONING"]
[]
[null,null,"Soil insecticide"]
[]
[{"v":237,"d":"237 "},null,"Under floors etc including forming and poisoning shallow  furrows against foundation walls etc, filling in furrows and  ramming (LI)",null,"m²",65,null,{"$f":"ROUND(F2815*G2815,2)","v":0}]
[]
[null,null,"CONCRETE CAST AGAINST EXCAVATED SURFACES"]
[]
[null,null,"Cement concrete class 25MPa/19mm in:"]
[]
[{"v":238,"d":"238 "},null,"Strip footings",null,"m³",4,null,{"$f":"ROUND(F2821*G2821,2)","v":0}]
[]
[{"v":239,"d":"239 "},null,"Surface bed",null,"m³",3,null,{"$f":"ROUND(F2823*G2823,2)","v":0}]
[]
[{"v":240,"d":"240 "},null,"Apron",null,"m³",1,null,{"$f":"ROUND(F2825*G2825,2)","v":0}]
[]
[null,null,"TEST BLOCKS"]
[]
[{"v":241,"d":"241 "},null,"Allow for making test cubes 150mm x150mmx150mm, sending to an approved testing authority for testing and paying all charges in connection therewith (provisional) (LI)",null,"No",2,null,{"$f":"ROUND(F2829*G2829,2)","v":0}]
[]
[null,null,"CONCRETE SUNDRIES"]
[]
[null,null,"Finishing top surfaces of concrete smooth with a steel trowel"]
[]
[{"v":242,"d":"242 "},null,"Surface beds, slabs, etc",null,"m²",25,null,{"$f":"ROUND(F2835*G2835,2)","v":0}]
[]
[null,null,"FORMWORK (WORKGROUP 111)"]
[]
[null,null,"Formwork To Impart Class I Finish (Smooth)"]
[]
[null,null,"Smooth Formwork to sides:"]
[]
[{"v":243,"d":"243 "},null,"Edges and risers not exceeding 300mm",null,"m",24,null,{"$f":"ROUND(F2843*G2843,2)","v":0}]
[]
[null,null,"Fabric reinforcement"]
[]
[{"v":244,"d":"244 "},null,"Type 193 Mesh reinforcement in concrete surface beds, slabs, etc",null,"m²",25,null,{"$f":"ROUND(F2847*G2847,2)","v":0}]
[]
[null,null,"BRICKWORK (LI)"]
[]
[null,null,"Brickwork in class II mortar"]
[]
[{"v":245,"d":"245 "},null,"Half brick walls",null,"m²",8,null,{"$f":"ROUND(F2853*G2853,2)","v":0}]
[]
[{"v":246,"d":"246 "},null,"One brick walls",null,"m²",54,null,{"$f":"ROUND(F2855*G2855,2)","v":0}]
[]
[null,null,"Brick reinforcement"]
[]
[{"v":247,"d":"247 "},null,"75mm Wide galvanised reinforcement built in horizontally",null,"m",22,null,{"$f":"ROUND(F2859*G2859,2)","v":0}]
[]
[{"v":248,"d":"248 "},null,"150mm Wide galvanised reinforcement built in horizontally",null,"m",167,null,{"$f":"ROUND(F2861*G2861,2)","v":0}]
[]
[null,null,"FACE BRICKWORK"]
[]
[null,null,"Corobrik \"Roan Satin\" face bricks  pointed with recessed horizontal and vertical joints"]
[]
[{"v":249,"d":"249 "},null,"Extra over brickwork for face brickwork to External Walls",null,"m²",41,null,{"$f":"ROUND(F2867*G2867,2)","v":0}]
[]
[null,null,"SUNDRIES"]
[]
[{"v":250,"d":"250 "},null,"150mm Wide wall openings",null,"m²",1,null,{"$f":"ROUND(F2871*G2871,2)","v":0}]
[]
[{"v":251,"d":"251 "},null,"Drain including all accessories",null,"No",2,null,{"$f":"ROUND(F2873*G2873,2)","v":0}]
[]
[{"v":252,"d":"252 "},null,"Precast concrete coping at top of wall",null,"m",21,null,{"$f":"ROUND(F2875*G2875,2)","v":0}]
[]
[null,null,"GRANOLITHIC"]
[]
[null,null,"Untinted granolithic on concrete"]
[]
[{"v":253,"d":"253 "},null,"35mm Thick on floors and landings",null,"m²",25,null,{"$f":"ROUND(F2881*G2881,2)","v":0}]
[]
[null,null,"WELDED SCREENS, GATES ETC"]
[]
[{"v":254,"d":"254 "},null,"Steel mentis grating single gate and frame size 1100 x 1800mm high",null,"No",1,null,{"$f":"ROUND(F2885*G2885,2)","v":0}]
[]
[null,null,"Carried to Final Summary",{"$nulls":4},{"$f":"SUM(H1739:H2886)","v":0}]
[]
[]
[null,null,"SECTION 4: ELECTRICAL INSTALLATION (PROVISIONAL)"]
[]
[null,null,"BILL 1"]
[]
[null,null,"EXTERNAL WORKS"]
[]
[null,null,"LV RETICULATION"]
[]
[null,null,"COPPER CABLES"]
[]
[null,null,"Supply and Installation of 1000/600 volts PVC/SWA/PVC ECC copper cables as specified, excluding terminations and cable supports. Lengths given shall be taken as measured lengths to cable runs from terminal to terminal and rates quoted shall include for off-cuts and wastage. Note should cables without ECC be utilized the tenderer will supply the additional external earth at no additional cost."]
[]
[null,null,"6mm² 4C PVC/SWA/PVC ECC Cable"]
[]
[{"v":1,"d":"1 "},null,"Supply",null,"m",150,null,{"$f":"ROUND(F2904*G2904,2)","v":0}]
[]
[{"v":2,"d":"2 "},null,"Install",null,"m",150,null,{"$f":"ROUND(F2906*G2906,2)","v":0}]
[]
[null,null,"CABLE TERMINATIONS"]
[]
[null,null,"For PVC/SWA/PVC shall include supply and fitting of the cable gland, neoprene shroud, making-off the cable, lugs, and fitting the gland to the board gland plate, switchgear and final connection of cable tails into board or terminals."]
[]
[null,null,"6mm² 4C PVC/SWA/PVC ECC Cable"]
[]
[{"v":3,"d":"3 "},null,"Supply",null,"No",11,null,{"$f":"ROUND(F2914*G2914,2)","v":0}]
[]
[{"v":4,"d":"4 "},null,"Install",null,"No",11,null,{"$f":"ROUND(F2916*G2916,2)","v":0}]
[]
[null,null,"CABLE MARKER TAPE (320mm Wide)"]
[]
[null,null,"Cable marker tape"]
[]
[{"v":5,"d":"5 "},null,"Supply",null,"m",400,null,{"$f":"ROUND(F2922*G2922,2)","v":0}]
[]
[{"v":6,"d":"6 "},null,"Install",null,"m",400,null,{"$f":"ROUND(F2924*G2924,2)","v":0}]
[]
[null,null,"Supply cable route markers,must consist of 150x150x300mm high concrete blocks with aluminium or other rust free metal marked with arrows to indicate cable route."]
[]
[null,null,"Cable route markers"]
[]
[{"v":7,"d":"7 "},null,"Supply",null,"No",80,null,{"$f":"ROUND(F2930*G2930,2)","v":0}]
[]
[{"v":8,"d":"8 "},null,"Install",null,"No",80,null,{"$f":"ROUND(F2932*G2932,2)","v":0}]
[]
[null,null,"EXCAVATION AND BACKFILLING"]
[]
[null,null,"Excavate, backfill and compact in all materials including disposal of unsuitable/surplus material per running meter 600mm deep x 450mm wide."]
[]
[{"v":9,"d":"9 "},null,"600mm deep x 450mm wide  soft excavation",null,"m",200,null,{"$f":"ROUND(F2938*G2938,2)","v":0}]
[]
[{"v":10,"d":"10 "},null,"600mm deep x 450mm wide intermediate excavation",null,"m",300,null,{"$f":"ROUND(F2940*G2940,2)","v":0}]
[]
[{"v":11,"d":"11 "},null,"Rock (Provisional)",null,"Item",1,null,{"$f":"ROUND(F2942*G2942,2)","v":0}]
[]
[{"v":12,"d":"12 "},null,"Allow for the importation of bedding material as directed by the Engineer.",null,"Item",1,null,{"$f":"ROUND(F2944*G2944,2)","v":0}]
[]
[null,null,"CABLE SLEEVES."]
[]
[null,null,"Supply and Installation of Cable Sleeve as specified in trenches or cast in concrete, excluding trenching or backfilling"]
[]
[null,null,"110mm² PVC cable sleeves"]
[]
[{"v":13,"d":"13 "},null,"Supply",null,"m",200,null,{"$f":"ROUND(F2952*G2952,2)","v":0}]
[]
[{"v":14,"d":"14 "},null,"Install",null,"m",200,null,{"$f":"ROUND(F2954*G2954,2)","v":0}]
[]
[null,null,"50mm² PVC cable sleeves"]
[]
[{"v":15,"d":"15 "},null,"Supply",null,"m",100,null,{"$f":"ROUND(F2958*G2958,2)","v":0}]
[]
[{"v":16,"d":"16 "},null,"Install",null,"m",100,null,{"$f":"ROUND(F2960*G2960,2)","v":0}]
[]
[null,null,"MANHOLES"]
[]
[null,null,"600mm x 600mm manhole"]
[]
[{"v":17,"d":"17 "},null,"Supply",null,"No",12,null,{"$f":"ROUND(F2966*G2966,2)","v":0}]
[]
[{"v":18,"d":"18 "},null,"Install",null,"No",12,null,{"$f":"ROUND(F2968*G2968,2)","v":0}]
[]
[null,null,"1000mm x1000mm manhole"]
[]
[{"v":19,"d":"19 "},null,"Supply",null,"No",6,null,{"$f":"ROUND(F2972*G2972,2)","v":0}]
[]
[{"v":20,"d":"20 "},null,"Install",null,"No",6,null,{"$f":"ROUND(F2974*G2974,2)","v":0}]
[]
[null,null,"DRAW WIRES"]
[]
[null,null,"Supply and Installation of galvanized steel draw wires drawn into conduit, cable sleeve or wiring channel."]
[]
[null,null,"1mm² Galvanized draw wire"]
[]
[{"v":21,"d":"21 "},null,"Supply",null,"m",500,null,{"$f":"ROUND(F2982*G2982,2)","v":0}]
[]
[{"v":22,"d":"22 "},null,"Install",null,"m",500,null,{"$f":"ROUND(F2984*G2984,2)","v":0}]
[]
[null,null,"LUMINAIRES"]
[]
[null,null,"Supply and Installation of the following SABS approved luminaries, complete with lamps as specified"]
[]
[null,null,"Type K The Luminaire shall be LIHLE or other SABS approved 20W LED Postop with MCB on a 3500mm HDG Black Pole."]
[]
[{"v":23,"d":"23 "},null,"Supply",null,"No",11,null,{"$f":"ROUND(F2992*G2992,2)","v":0}]
[]
[{"v":24,"d":"24 "},null,"Install",null,"No",11,null,{"$f":"ROUND(F2994*G2994,2)","v":0}]
[]
[null,null,"Carried to Summary",{"$nulls":4},{"$f":"SUM(H2904:H2995)","v":0}]
[]
[]
[null,null,"SECTION 4 : ELECTRICAL INSTALLATION (PROVISIONAL)"]
[]
[null,null,"BILL 2"]
[]
[null,null,"BLOCK A"]
[]
[null,null,"LV RETICULATION"]
[]
[null,null,"COPPER CABLES"]
[]
[null,null,"Supply and Installation of 1000/600 volts PVC/SWA/PVC ECC copper cables as specified, excluding terminations and cable supports. Lengths ginen shall be taken as measured lengths to cable runs from terminal to terminal and rates quoted shall include for off-cuts and wastage. Note should cables without ECC be utilized the tenderer will supply the additional external earth at no additional cost."]
[]
[null,null,"10mm² 3C PVC/SWA/PVC ECC Cable"]
[]
[{"v":1,"d":"1 "},null,"Supply",null,"m",100,null,{"$f":"ROUND(F3013*G3013,2)","v":0}]
[]
[{"v":2,"d":"2 "},null,"Install",null,"m",100,null,{"$f":"ROUND(F3015*G3015,2)","v":0}]
[]
[null,null,"CABLE TERMINATIONS"]
[]
[null,null,"For PVC/SWA/PVC shall include supply and fitting of the cable gland, neoprene shroud, making-off the cable, lugs, and fitting the gland to the board gland plate, switchgear and final connection of cable tails into board or terminals."]
[]
[null,null,"10mm² 3C PVC/SWA/PVC ECC Cable"]
[]
[{"v":3,"d":"3 "},null,"Supply",null,"No",4,null,{"$f":"ROUND(F3023*G3023,2)","v":0}]
[]
[{"v":4,"d":"4 "},null,"Install",null,"No",4,null,{"$f":"ROUND(F3025*G3025,2)","v":0}]
[]
[null,null,"DRAW WIRES"]
[]
[null,null,"Supply and Installation of galvanized steel draw wires drawn into conduit, cable sleeve or wiring channel."]
[]
[null,null,"1mm² Galvanized draw wire"]
[]
[{"v":5,"d":"5 "},null,"Supply",null,"m",200,null,{"$f":"ROUND(F3033*G3033,2)","v":0}]
[]
[{"v":6,"d":"6 "},null,"Install",null,"m",200,null,{"$f":"ROUND(F3035*G3035,2)","v":0}]
[]
[null,null,"LIGHTING AND POWER I"]
[]
[null,null,"DISTRIBUTION BOARDS"]
[]
[null,null,"Supply and Installation of the specified Distribution Boards, including making off all wire connections, earthing and conduit terminations but exclude cable terminations."]
[]
[null,null,"DB -A1 Sub Distribution Board as per Schematic Layout"]
[]
[{"v":7,"d":"7 "},null,"Supply",null,"No",1,null,{"$f":"ROUND(F3045*G3045,2)","v":0}]
[]
[{"v":8,"d":"8 "},null,"Install",null,"No",1,null,{"$f":"ROUND(F3047*G3047,2)","v":0}]
[]
[null,null,"DB -A2 Sub - Distribution Board as per Schematic Layout"]
[]
[{"v":9,"d":"9 "},null,"Supply",null,"No",1,null,{"$f":"ROUND(F3051*G3051,2)","v":0}]
[]
[{"v":10,"d":"10 "},null,"Install",null,"No",1,null,{"$f":"ROUND(F3053*G3053,2)","v":0}]
[]
[null,null,"LUMINAIRES"]
[]
[null,null,"Supply and Installation of the following SABS approved luminaries, complete with lamps as specified"]
[]
[null,null,"Type B The Luminaire shall be LIHLE or other SABS approved 1500mm T8, 2x22W LED Open Channel surface mounted fitting complete with LED tubes"]
[]
[{"v":11,"d":"11 "},null,"Supply",null,"No",30,null,{"$f":"ROUND(F3061*G3061,2)","v":0}]
[]
[{"v":12,"d":"12 "},null,"Install",null,"No",30,null,{"$f":"ROUND(F3063*G3063,2)","v":0}]
[]
[null,null,"Type G The Luminaire shall be Round  LIHLE or other SABS approved MC 15W LED Bulkhead ceiling/wall mounted fitting at 2200mm AFFL (black trim external/white trim internal)."]
[]
[{"v":13,"d":"13 "},null,"Supply",null,"No",19,null,{"$f":"ROUND(F3067*G3067,2)","v":0}]
[]
[{"v":14,"d":"14 "},null,"Install",null,"No",19,null,{"$f":"ROUND(F3069*G3069,2)","v":0}]
[]
[null,null,"LIGHTING AND POWER II"]
[]
[null,null,"LIGHT SWITCHES"]
[]
[null,null,"Supply and Installation of the following SABS approved flush or surface mounted 16A switched socket outlet, complete with 100x50 PVC box and cover plates"]
[]
[null,null,"1 Lever, 1 Way 16A Light Switch complete with PVC Cover plate (Crabtree or Clipsal)"]
[]
[{"v":15,"d":"15 "},null,"Supply",null,"No",11,null,{"$f":"ROUND(F3079*G3079,2)","v":0}]
[]
[{"v":16,"d":"16 "},null,"Install",null,"No",11,null,{"$f":"ROUND(F3081*G3081,2)","v":0}]
[]
[null,null,"2 Lever, 1 Way 16A Light Switch complete with Steel Cover plate (Crabtree or Clipsal)"]
[]
[{"v":17,"d":"17 "},null,"Supply",null,"No",1,null,{"$f":"ROUND(F3085*G3085,2)","v":0}]
[]
[{"v":18,"d":"18 "},null,"Install",null,"No",1,null,{"$f":"ROUND(F3087*G3087,2)","v":0}]
[]
[null,null,"Type ZS 20A National Day Light electric cell or similar"]
[]
[{"v":19,"d":"19 "},null,"Supply",null,"No",2,null,{"$f":"ROUND(F3091*G3091,2)","v":0}]
[]
[{"v":20,"d":"20 "},null,"Install",null,"No",2,null,{"$f":"ROUND(F3093*G3093,2)","v":0}]
[]
[null,null,"OCCUPANCY SENSOR"]
[]
[null,null,"Type 1 ( OS1 ) as type schneider Electric SLSCPS 1000  or other approved .This sensor to be the PIR  ceiling mounted sensor with time delay, sensitivity and light level adjustment.Minimum 7m radius detection ( minor detection ) and 9.7m radius ( Major detection )"]
[]
[{"v":21,"d":"21 "},null,"Supply",null,"No",3,null,{"$f":"ROUND(F3099*G3099,2)","v":0}]
[]
[{"v":22,"d":"22 "},null,"Install",null,"No",3,null,{"$f":"ROUND(F3101*G3101,2)","v":0}]
[]
[null,null,"SOCKET OUTLETS"]
[]
[null,null,"Supply and Installation of flush or surface mounted switched or un-switched socket outlets in 100x100,100x50, round box or wiring channel, excluding box (for flush type ) and conduit connections, but including cover plate."]
[]
[null,null,"16A Flush wall mounted normal Double switched socket outlet complete with 100x100x50mm"]
[]
[{"v":23,"d":"23 "},null,"Supply",null,"No",15,null,{"$f":"ROUND(F3109*G3109,2)","v":0}]
[]
[{"v":24,"d":"24 "},null,"Install",null,"No",15,null,{"$f":"ROUND(F3111*G3111,2)","v":0}]
[]
[null,null,"POWER TRUNKING"]
[]
[null,null,"Supply, Installation and commissioning of the Galvanized compact trunking, including all additional supports which may be required."]
[]
[null,null,"P2000 (41mm x 41mm) Galvanised Trunking"]
[]
[{"v":25,"d":"25 "},null,"Supply",null,"m",80,null,{"$f":"ROUND(F3119*G3119,2)","v":0}]
[]
[{"v":26,"d":"26 "},null,"Install",null,"m",80,null,{"$f":"ROUND(F3121*G3121,2)","v":0}]
[]
[null,null,"CONDUIT"]
[]
[null,null,"Supply and installation of PVC or Bosal conduit as specified. Lengths given shall be taken as measured horizontal and vertical runs between conduit terminations. Rates quoted shall allow for westage, offcuts, couplings,saddles, cuttings, bending, jointing socket and tees."]
[]
[null,null,"20 mm Ø PVC conduit fixed to steel/timber roof structure"]
[]
[{"v":27,"d":"27 "},null,"Supply",null,"m",260,null,{"$f":"ROUND(F3129*G3129,2)","v":0}]
[]
[{"v":28,"d":"28 "},null,"Install",null,"m",260,null,{"$f":"ROUND(F3131*G3131,2)","v":0}]
[]
[null,null,"20 mm Ø PVC conduit fixed onto common brick/ cast into concrete"]
[]
[{"v":29,"d":"29 "},null,"Supply",null,"m",300,null,{"$f":"ROUND(F3135*G3135,2)","v":0}]
[]
[{"v":30,"d":"30 "},null,"Install",null,"m",300,null,{"$f":"ROUND(F3137*G3137,2)","v":0}]
[]
[null,null,"20 mm Ø Galvanised Steel pipe fixed onto the wall."]
[]
[{"v":31,"d":"31 "},null,"Supply",null,"m",100,null,{"$f":"ROUND(F3141*G3141,2)","v":0}]
[]
[{"v":32,"d":"32 "},null,"Install",null,"m",100,null,{"$f":"ROUND(F3143*G3143,2)","v":0}]
[]
[null,null,"32 mm Ø Galvanised Steel pipe fixed onto the wall."]
[]
[{"v":33,"d":"33 "},null,"Supply",null,"m",12,null,{"$f":"ROUND(F3147*G3147,2)","v":0}]
[]
[{"v":34,"d":"34 "},null,"Install",null,"m",12,null,{"$f":"ROUND(F3149*G3149,2)","v":0}]
[]
[null,null,"Terminate and connect one pair of conduit ends including supply and installation of 1, 2, 3 or 4 way box on surface or in brickwork(excluding cover plates), including holes for conduit."]
[]
[null,null,"20mm round PVC conduit box c/w covers."]
[]
[{"v":35,"d":"35 "},null,"Supply",null,"No",60,null,{"$f":"ROUND(F3155*G3155,2)","v":0}]
[]
[{"v":36,"d":"36 "},null,"Install",null,"No",60,null,{"$f":"ROUND(F3157*G3157,2)","v":0}]
[]
[null,null,"100 x 50 x 50mm Galvanized box"]
[]
[{"v":37,"d":"37 "},null,"Supply",null,"No",15,null,{"$f":"ROUND(F3161*G3161,2)","v":0}]
[]
[{"v":38,"d":"38 "},null,"Install",null,"No",15,null,{"$f":"ROUND(F3163*G3163,2)","v":0}]
[]
[null,null,"100 x 100 x 50mm Galvanized box"]
[]
[{"v":39,"d":"39 "},null,"Supply",null,"No",15,null,{"$f":"ROUND(F3167*G3167,2)","v":0}]
[]
[{"v":40,"d":"40 "},null,"Install",null,"No",15,null,{"$f":"ROUND(F3169*G3169,2)","v":0}]
[]
[null,null,"COPPER CONDUCTORS"]
[]
[null,null,"Supply and Installation of PVC insulated copper conductors drawn into conduit or wiring channel in groups of 2, 3, 4 etc. with the required colour coding, but excluding any wiring connections."]
[]
[null,null,"2,5 mm² red PVC insulated"]
[]
[{"v":41,"d":"41 "},null,"Supply",null,"m",600,null,{"$f":"ROUND(F3177*G3177,2)","v":0}]
[]
[{"v":42,"d":"42 "},null,"Install",null,"m",600,null,{"$f":"ROUND(F3179*G3179,2)","v":0}]
[]
[null,null,"2,5 mm² black PVC insulated"]
[]
[{"v":43,"d":"43 "},null,"Supply",null,"m",500,null,{"$f":"ROUND(F3183*G3183,2)","v":0}]
[]
[{"v":44,"d":"44 "},null,"Install",null,"m",500,null,{"$f":"ROUND(F3185*G3185,2)","v":0}]
[]
[null,null,"4,0 mm² red PVC insulated"]
[]
[{"v":45,"d":"45 "},null,"Supply",null,"m",500,null,{"$f":"ROUND(F3189*G3189,2)","v":0}]
[]
[{"v":46,"d":"46 "},null,"Install",null,"m",500,null,{"$f":"ROUND(F3191*G3191,2)","v":0}]
[]
[null,null,"4,0 mm² black PVC insulated"]
[]
[{"v":47,"d":"47 "},null,"Supply",null,"m",500,null,{"$f":"ROUND(F3195*G3195,2)","v":0}]
[]
[{"v":48,"d":"48 "},null,"Install",null,"m",500,null,{"$f":"ROUND(F3197*G3197,2)","v":0}]
[]
[null,null,"EARTH CONDUCTORS"]
[]
[null,null,"Supply and Installation of PVC insulated earth conductors drawn into conduit or wiring channel with the required colour coding, but excluding any wiring connections."]
[]
[null,null,"2,5 mm² yellow/green PVC insulated"]
[]
[{"v":49,"d":"49 "},null,"Supply",null,"m",1000,null,{"$f":"ROUND(F3205*G3205,2)","v":0}]
[]
[{"v":50,"d":"50 "},null,"Install",null,"m",1000,null,{"$f":"ROUND(F3207*G3207,2)","v":0}]
[]
[null,null,"EARTHING SYSTEM"]
[]
[null,null,"EARTH SPIKE"]
[]
[null,null,"1.5m copper coated earth spike at the Distribution Board"]
[]
[{"v":51,"d":"51 "},null,"Supply",null,"No",2,null,{"$f":"ROUND(F3215*G3215,2)","v":0}]
[]
[{"v":52,"d":"52 "},null,"Install",null,"No",2,null,{"$f":"ROUND(F3217*G3217,2)","v":0}]
[]
[{"v":53,"d":"53 "},null,"Allow for earthing and bonding of cold and hot water pipes and all the metal to comply with SANS regulations.",null,"Item",1,null,{"$f":"ROUND(F3219*G3219,2)","v":0}]
[]
[null,null,"LIGHTNING  PROTECTION"]
[]
[null,null,"PVC CONDUITS"]
[]
[null,null,"Supply and installation of conduit as specified in General Specification Lengths shall be taken as measured horizontal and vertical runs between terminations. Rates quoted shall allow for wastage off-cuts, couplings, bends, extention boxes, covers fixing and chasing etc. in accordance with the specification."]
[]
[null,null,"20mm diameter CIB, FOS, CIC"]
[]
[{"v":54,"d":"54 "},null,"Supply",null,"m",40,null,{"$f":"ROUND(F3229*G3229,2)","v":0}]
[]
[{"v":55,"d":"55 "},null,"Install",null,"m",40,null,{"$f":"ROUND(F3231*G3231,2)","v":0}]
[]
[null,null,"LIGHTNING PROTECTION SYSTEM"]
[]
[null,null,"50mm² Diameter copper conductor installed in conduit"]
[]
[{"v":56,"d":"56 "},null,"Supply",null,"m",60,null,{"$f":"ROUND(F3237*G3237,2)","v":0}]
[]
[{"v":57,"d":"57 "},null,"Install",null,"m",60,null,{"$f":"ROUND(F3239*G3239,2)","v":0}]
[]
[null,null,"Caldweld copper earth electrodes driven in ground 16mm Diameter x 1500mm long earth electrode driven into ground"]
[]
[{"v":58,"d":"58 "},null,"Supply",null,"No",10,null,{"$f":"ROUND(F3243*G3243,2)","v":0}]
[]
[{"v":59,"d":"59 "},null,"Install",null,"No",10,null,{"$f":"ROUND(F3245*G3245,2)","v":0}]
[]
[null,null,"Bonds from down conductor to roof sheets or gutters"]
[]
[{"v":60,"d":"60 "},null,"Supply",null,"No",10,null,{"$f":"ROUND(F3249*G3249,2)","v":0}]
[]
[{"v":61,"d":"61 "},null,"Install",null,"No",10,null,{"$f":"ROUND(F3251*G3251,2)","v":0}]
[]
[null,null,"Bond down conductors to Copper Earth Electrode"]
[]
[{"v":62,"d":"62 "},null,"Supply",null,"No",10,null,{"$f":"ROUND(F3255*G3255,2)","v":0}]
[]
[{"v":63,"d":"63 "},null,"Install",null,"No",10,null,{"$f":"ROUND(F3257*G3257,2)","v":0}]
[]
[null,null,"Lightning protection Test point incl 100x100x50 box and engraved cover as per specification"]
[]
[{"v":64,"d":"64 "},null,"Supply",null,"No",4,null,{"$f":"ROUND(F3261*G3261,2)","v":0}]
[]
[{"v":65,"d":"65 "},null,"Install",null,"No",4,null,{"$f":"ROUND(F3263*G3263,2)","v":0}]
[]
[{"v":66,"d":"66 "},null,"Allow for site survey, resistivity test reports and    issuing of workshop drawing to the engineer prior to installation.",null,"Item",1,null,{"$f":"ROUND(F3265*G3265,2)","v":0}]
[]
[{"v":67,"d":"67 "},null,"Allow for resistivity tests after completion",null,"Item",1,null,{"$f":"ROUND(F3267*G3267,2)","v":0}]
[]
[{"v":68,"d":"68 "},null,"Allow for testing, commissioning and issuing of Certificate.",null,"Item",1,null,{"$f":"ROUND(F3269*G3269,2)","v":0}]
[]
[null,null,"TESTING AND COMMISSIONING"]
[]
[{"v":69,"d":"69 "},null,"Allow for a Lump Sum for testing and commissioning of the entire electrical installation, including the provision of Compliance Certificate",null,"Item",1,null,{"$f":"ROUND(F3273*G3273,2)","v":0}]
[]
[null,null,"GENERAL"]
[]
[{"v":70,"d":"70 "},null,"Allow for the 12 months guarantee period",null,"Item",1,null,{"$f":"ROUND(F3277*G3277,2)","v":0}]
[]
[{"v":71,"d":"71 "},null,"Allow all necessary labelling of equipment where required",null,"Item",1,null,{"$f":"ROUND(F3279*G3279,2)","v":0}]
[]
[{"v":72,"d":"72 "},null,"Allow for the submission of Asbuilt drawings",null,"Item",1,null,{"$f":"ROUND(F3281*G3281,2)","v":0}]
[]
[null,null,"Carried to Summary",{"$nulls":4},{"$f":"SUM(H3013:H3282)","v":0}]
[]
[]
[null,null,"SECTION 4 : ELECTRICAL INSTALLATION (PROVISIONAL)"]
[]
[null,null,"BILL 3"]
[]
[null,null,"BLOCK B"]
[]
[null,null,"LV RETICULATION"]
[]
[null,null,"COPPER CABLES"]
[]
[null,null,"Supply and Installation of 1000/600 volts PVC/SWA/PVC ECC copper cables as specified, excluding terminations and cable supports. Lengths ginen shall be taken as measured lengths to cable runs from terminal to terminal and rates quoted shall include for off-cuts and wastage. Note should cables without ECC be utilized the tenderer will supply the additional external earth at no additional cost."]
[]
[null,null,"16mm² 4C PVC/SWA/PVC ECC Cable"]
[]
[{"v":1,"d":"1 "},null,"Supply",null,"m",140,null,{"$f":"ROUND(F3300*G3300,2)","v":0}]
[]
[{"v":2,"d":"2 "},null,"Install",null,"m",140,null,{"$f":"ROUND(F3302*G3302,2)","v":0}]
[]
[null,null,"CABLE TERMINATIONS"]
[]
[null,null,"For PVC/SWA/PVC shall include supply and fitting of the cable gland, neoprene shroud, making-off the cable, lugs, and fitting the gland to the board gland plate, switchgear and final connection of cable tails into board or terminals."]
[]
[null,null,"16mm² 4C PVC/SWA/PVC ECC Cable"]
[]
[{"v":3,"d":"3 "},null,"Supply",null,"No",2,null,{"$f":"ROUND(F3310*G3310,2)","v":0}]
[]
[{"v":4,"d":"4 "},null,"Install",null,"No",2,null,{"$f":"ROUND(F3312*G3312,2)","v":0}]
[]
[null,null,"DRAW WIRES"]
[]
[null,null,"Supply and Installation of galvanized steel draw wires drawn into conduit, cable sleeve or wiring channel."]
[]
[null,null,"1mm² Galvanized draw wire"]
[]
[{"v":5,"d":"5 "},null,"Supply",null,"m",200,null,{"$f":"ROUND(F3320*G3320,2)","v":0}]
[]
[{"v":6,"d":"6 "},null,"Install",null,"m",200,null,{"$f":"ROUND(F3322*G3322,2)","v":0}]
[]
[null,null,"LIGHTING AND POWER I"]
[]
[null,null,"DISTRIBUTION BOARDS"]
[]
[null,null,"Supply and Installation of the specified Distribution Boards, including making off all wire connections, earthing and conduit terminations but exclude cable terminations."]
[]
[null,null,"DB -B Sub Distribution Board as per Schematic Layout"]
[]
[{"v":7,"d":"7 "},null,"Supply",null,"No",1,null,{"$f":"ROUND(F3332*G3332,2)","v":0}]
[]
[{"v":8,"d":"8 "},null,"Install",null,"No",1,null,{"$f":"ROUND(F3334*G3334,2)","v":0}]
[]
[null,null,"LUMINAIRES"]
[]
[null,null,"Supply and Installation of the following SABS approved luminaries, complete with lamps as specified"]
[]
[null,null,"Type A The Luminaire shall be LIHLE or other SABS approved 1500x300mm T8, 2x22W LED low  brightness with clip in louvre surface mounted fitting, complete with LED tubes"]
[]
[{"v":9,"d":"9 "},null,"Supply",null,"No",2,null,{"$f":"ROUND(F3342*G3342,2)","v":0}]
[]
[{"v":10,"d":"10 "},null,"Install",null,"No",2,null,{"$f":"ROUND(F3344*G3344,2)","v":0}]
[]
[null,null,"Type B The Luminaire shall be LIHLE or other SABS approved 1500mm T8, 2x22W LED Open Channel surface mounted fitting complete with LED tubes"]
[]
[{"v":11,"d":"11 "},null,"Supply",null,"No",20,null,{"$f":"ROUND(F3348*G3348,2)","v":0}]
[]
[{"v":12,"d":"12 "},null,"Install",null,"No",20,null,{"$f":"ROUND(F3350*G3350,2)","v":0}]
[]
[null,null,"Type G The Luminaire shall be Round  LIHLE or other SABS approved MC 15W LED Bulkhead ceiling/wall mounted fitting at 2200mm AFFL (black trim external/white trim internal)."]
[]
[{"v":13,"d":"13 "},null,"Supply",null,"No",17,null,{"$f":"ROUND(F3354*G3354,2)","v":0}]
[]
[{"v":14,"d":"14 "},null,"Install",null,"No",17,null,{"$f":"ROUND(F3356*G3356,2)","v":0}]
[]
[null,null,"LIGHTING AND POWER II"]
[]
[null,null,"LIGHT SWITCHES"]
[]
[null,null,"Supply and Installation of the following SABS approved flush or surface mounted 16A switched socket outlet, complete with 100x50 PVC box and cover plates"]
[]
[null,null,"1 Lever, 1 Way 16A Light Switch complete with PVC Cover plate (Crabtree or Clipsal)"]
[]
[{"v":15,"d":"15 "},null,"Supply",null,"No",7,null,{"$f":"ROUND(F3366*G3366,2)","v":0}]
[]
[{"v":16,"d":"16 "},null,"Install",null,"No",7,null,{"$f":"ROUND(F3368*G3368,2)","v":0}]
[]
[null,null,"3 Lever, 1 Way 16A Light Switch complete with Steel Cover plate (Crabtree or Clipsal)"]
[]
[{"v":17,"d":"17 "},null,"Supply",null,"No",1,null,{"$f":"ROUND(F3372*G3372,2)","v":0}]
[]
[{"v":18,"d":"18 "},null,"Install",null,"No",1,null,{"$f":"ROUND(F3374*G3374,2)","v":0}]
[]
[null,null,"Type ZS 20A National Day Light electric cell or similar"]
[]
[{"v":19,"d":"19 "},null,"Supply",null,"No",1,null,{"$f":"ROUND(F3378*G3378,2)","v":0}]
[]
[{"v":20,"d":"20 "},null,"Install",null,"No",1,null,{"$f":"ROUND(F3380*G3380,2)","v":0}]
[]
[null,null,"OCCUPANCY SENSOR"]
[]
[null,null,"Type 1 ( OS1 ) as type schneider Electric SLSCPS 1000  or other approved .This sensor to be the PIR  ceiling mounted sensor with time delay, sensitivity and light level adjustment.Minimum 7m radius detection ( minor detection ) and 9.7m radius ( Major detection )"]
[]
[{"v":21,"d":"21 "},null,"Supply",null,"No",3,null,{"$f":"ROUND(F3386*G3386,2)","v":0}]
[]
[{"v":22,"d":"22 "},null,"Install",null,"No",3,null,{"$f":"ROUND(F3388*G3388,2)","v":0}]
[]
[null,null,"SOCKET OUTLETS"]
[]
[null,null,"Supply and Installation of flush or surface mounted switched or un-switched socket outlets in 100x100,100x50, round box or wiring channel, excluding box (for flush type ) and conduit connections, but including cover plate."]
[]
[null,null,"16A Flush wall mounted normal Single switched socket outlet complete with 100x100x50mm Steel box"]
[]
[{"v":23,"d":"23 "},null,"Supply",null,"No",1,null,{"$f":"ROUND(F3396*G3396,2)","v":0}]
[]
[{"v":24,"d":"24 "},null,"Install",null,"No",1,null,{"$f":"ROUND(F3398*G3398,2)","v":0}]
[]
[null,null,"16A Flush wall mounted normal Double switched socket outlet complete with 100x100x50mm Steel box"]
[]
[{"v":25,"d":"25 "},null,"Supply",null,"No",11,null,{"$f":"ROUND(F3402*G3402,2)","v":0}]
[]
[{"v":26,"d":"26 "},null,"Install",null,"No",11,null,{"$f":"ROUND(F3404*G3404,2)","v":0}]
[]
[null,null,"CLUSTER BOXES"]
[]
[null,null,"Supply and Installation of powercomm or other approved cluster box, complete with dividers."]
[]
[null,null,"9 - Way cluster box"]
[]
[{"v":27,"d":"27 "},null,"Supply",null,"No",1,null,{"$f":"ROUND(F3412*G3412,2)","v":0}]
[]
[{"v":28,"d":"28 "},null,"Install",null,"No",1,null,{"$f":"ROUND(F3414*G3414,2)","v":0}]
[]
[null,null,"9 - Way cover plate to cluster box, complete with yoke"]
[]
[{"v":29,"d":"29 "},null,"Supply",null,"No",1,null,{"$f":"ROUND(F3418*G3418,2)","v":0}]
[]
[{"v":30,"d":"30 "},null,"Install",null,"No",1,null,{"$f":"ROUND(F3420*G3420,2)","v":0}]
[]
[null,null,"16A Normal Single EURO with 2 Pin and USB switched socket outlet mounted on cluster box."]
[]
[{"v":31,"d":"31 "},null,"Supply",null,"No",1,null,{"$f":"ROUND(F3424*G3424,2)","v":0}]
[]
[{"v":32,"d":"32 "},null,"Install",null,"No",1,null,{"$f":"ROUND(F3426*G3426,2)","v":0}]
[]
[null,null,"16A  Standard Dedicated switched socket outlet mounted on cluster box"]
[]
[{"v":33,"d":"33 "},null,"Supply",null,"No",1,null,{"$f":"ROUND(F3430*G3430,2)","v":0}]
[]
[{"v":34,"d":"34 "},null,"Install",null,"No",1,null,{"$f":"ROUND(F3432*G3432,2)","v":0}]
[]
[null,null,"RJ11 Tel Outlet"]
[]
[{"v":35,"d":"35 "},null,"Supply",null,"No",1,null,{"$f":"ROUND(F3436*G3436,2)","v":0}]
[]
[{"v":36,"d":"36 "},null,"Install",null,"No",1,null,{"$f":"ROUND(F3438*G3438,2)","v":0}]
[]
[null,null,"RJ 45 Data Outlet"]
[]
[{"v":37,"d":"37 "},null,"Supply",null,"No",1,null,{"$f":"ROUND(F3442*G3442,2)","v":0}]
[]
[{"v":38,"d":"38 "},null,"Install",null,"No",1,null,{"$f":"ROUND(F3444*G3444,2)","v":0}]
[]
[null,null,"POWER TRUNKING"]
[]
[null,null,"Supply, Installation and commissioning of the Galvanized compact trunking, including all additional supports which may be required."]
[]
[null,null,"P2000 (41mm x 41mm) Galvanised Trunking"]
[]
[{"v":39,"d":"39 "},null,"Supply",null,"m",52,null,{"$f":"ROUND(F3452*G3452,2)","v":0}]
[]
[{"v":40,"d":"40 "},null,"Install",null,"m",52,null,{"$f":"ROUND(F3454*G3454,2)","v":0}]
[]
[null,null,"CONDUIT"]
[]
[null,null,"Supply and installation of PVC or Bosal conduit as specified. Lengths given shall be taken as measured horizontal and vertical runs between conduit terminations. Rates quoted shall allow for westage, offcuts, couplings, saddles, cuttings, bending, jointing socket and tees."]
[]
[null,null,"20 mm Ø PVC conduit fixed to steel/timber roof structure"]
[]
[{"v":41,"d":"41 "},null,"Supply",null,"m",200,null,{"$f":"ROUND(F3462*G3462,2)","v":0}]
[]
[{"v":42,"d":"42 "},null,"Install",null,"m",200,null,{"$f":"ROUND(F3464*G3464,2)","v":0}]
[]
[null,null,"20 mm Ø PVC conduit fixed onto common brick/ cast into concrete"]
[]
[{"v":43,"d":"43 "},null,"Supply",null,"m",260,null,{"$f":"ROUND(F3468*G3468,2)","v":0}]
[]
[{"v":44,"d":"44 "},null,"Install",null,"m",260,null,{"$f":"ROUND(F3470*G3470,2)","v":0}]
[]
[null,null,"20 mm Ø Galvanised Steel pipe fixed onto the wall."]
[]
[{"v":45,"d":"45 "},null,"Supply",null,"m",60,null,{"$f":"ROUND(F3474*G3474,2)","v":0}]
[]
[{"v":46,"d":"46 "},null,"Install",null,"m",60,null,{"$f":"ROUND(F3476*G3476,2)","v":0}]
[]
[null,null,"32 mm Ø Galvanised Steel pipe fixed onto the wall."]
[]
[{"v":47,"d":"47 "},null,"Supply",null,"m",12,null,{"$f":"ROUND(F3480*G3480,2)","v":0}]
[]
[{"v":48,"d":"48 "},null,"Install",null,"m",12,null,{"$f":"ROUND(F3482*G3482,2)","v":0}]
[]
[null,null,"Terminate and connect one pair of conduit ends including supply and installation of 1, 2, 3 or 4 way box on surface or in brickwork(excluding cover plates), including holes for conduit."]
[]
[null,null,"20mm round PVC conduit box c/w covers."]
[]
[{"v":49,"d":"49 "},null,"Supply",null,"No",60,null,{"$f":"ROUND(F3488*G3488,2)","v":0}]
[]
[{"v":50,"d":"50 "},null,"Install",null,"No",60,null,{"$f":"ROUND(F3490*G3490,2)","v":0}]
[]
[null,null,"100 x 50 x 50mm Galvanized box"]
[]
[{"v":51,"d":"51 "},null,"Supply",null,"No",10,null,{"$f":"ROUND(F3494*G3494,2)","v":0}]
[]
[{"v":52,"d":"52 "},null,"Install",null,"No",10,null,{"$f":"ROUND(F3496*G3496,2)","v":0}]
[]
[null,null,"100 x 100 x 50mm Galvanized box"]
[]
[{"v":53,"d":"53 "},null,"Supply",null,"No",14,null,{"$f":"ROUND(F3500*G3500,2)","v":0}]
[]
[{"v":54,"d":"54 "},null,"Install",null,"No",14,null,{"$f":"ROUND(F3502*G3502,2)","v":0}]
[]
[null,null,"COPPER CONDUCTORS"]
[]
[null,null,"Supply and Installation of PVC insulated copper conductors drawn into conduit or wiring channel in groups of 2, 3, 4 etc. with the required colour coding, but excluding any wiring connections."]
[]
[null,null,"2,5 mm² red PVC insulated"]
[]
[{"v":55,"d":"55 "},null,"Supply",null,"m",600,null,{"$f":"ROUND(F3510*G3510,2)","v":0}]
[]
[{"v":56,"d":"56 "},null,"Install",null,"m",600,null,{"$f":"ROUND(F3512*G3512,2)","v":0}]
[]
[null,null,"2,5 mm² black PVC insulated"]
[]
[{"v":57,"d":"57 "},null,"Supply",null,"m",500,null,{"$f":"ROUND(F3516*G3516,2)","v":0}]
[]
[{"v":58,"d":"58 "},null,"Install",null,"m",500,null,{"$f":"ROUND(F3518*G3518,2)","v":0}]
[]
[null,null,"4,0 mm² red PVC insulated"]
[]
[{"v":59,"d":"59 "},null,"Supply",null,"m",500,null,{"$f":"ROUND(F3522*G3522,2)","v":0}]
[]
[{"v":60,"d":"60 "},null,"Install",null,"m",500,null,{"$f":"ROUND(F3524*G3524,2)","v":0}]
[]
[null,null,"4,0 mm² black PVC insulated"]
[]
[{"v":61,"d":"61 "},null,"Supply",null,"m",500,null,{"$f":"ROUND(F3528*G3528,2)","v":0}]
[]
[{"v":62,"d":"62 "},null,"Install",null,"m",500,null,{"$f":"ROUND(F3530*G3530,2)","v":0}]
[]
[null,null,"EARTH CONDUCTORS"]
[]
[null,null,"Supply and Installation of PVC insulated earth conductors drawn into conduit or wiring channel with the required colour coding, but excluding any wiring connections."]
[]
[null,null,"2,5 mm² yellow/green PVC insulated"]
[]
[{"v":63,"d":"63 "},null,"Supply",null,"m",1000,null,{"$f":"ROUND(F3538*G3538,2)","v":0}]
[]
[{"v":64,"d":"64 "},null,"Install",null,"m",1000,null,{"$f":"ROUND(F3540*G3540,2)","v":0}]
[]
[null,null,"EARTHING SYSTEM"]
[]
[null,null,"EARTH SPIKE"]
[]
[null,null,"1.5m copper coated earth spike at the Distribution Board"]
[]
[{"v":65,"d":"65 "},null,"Supply",null,"No",1,null,{"$f":"ROUND(F3548*G3548,2)","v":0}]
[]
[{"v":66,"d":"66 "},null,"Install",null,"No",1,null,{"$f":"ROUND(F3550*G3550,2)","v":0}]
[]
[{"v":67,"d":"67 "},null,"Allow for earthing and bonding of cold and hot water pipes and all the metal to comply with SANS regulations.",null,"Item",1,null,{"$f":"ROUND(F3552*G3552,2)","v":0}]
[]
[null,null,"LIGHTNING  PROTECTION"]
[]
[null,null,"PVC CONDUITS"]
[]
[null,null,"Supply and installation of conduit as specified in General Specification Lengths shall be taken as measured horizontal and vertical runs between terminations. Rates quoted shall allow for wastage off-cuts, couplings, bends, extention boxes, covers fixing and chasing etc. in accordance with the specification."]
[]
[null,null,"20mm diameter CIB, FOS, CIC"]
[]
[{"v":68,"d":"68 "},null,"Supply",null,"m",30,null,{"$f":"ROUND(F3562*G3562,2)","v":0}]
[]
[{"v":69,"d":"69 "},null,"Install",null,"m",30,null,{"$f":"ROUND(F3564*G3564,2)","v":0}]
[]
[null,null,"LIGHTNING PROTECTION SYSTEM"]
[]
[null,null,"50mm² Diameter copper conductor installed in conduit"]
[]
[{"v":70,"d":"70 "},null,"Supply",null,"m",30,null,{"$f":"ROUND(F3570*G3570,2)","v":0}]
[]
[{"v":71,"d":"71 "},null,"Install",null,"m",30,null,{"$f":"ROUND(F3572*G3572,2)","v":0}]
[]
[null,null,"Caldweld copper earth electrodes driven in ground 16mm Diameter x 1500mm long earth electrode driven into ground"]
[]
[{"v":72,"d":"72 "},null,"Supply",null,"No",6,null,{"$f":"ROUND(F3576*G3576,2)","v":0}]
[]
[{"v":73,"d":"73 "},null,"Install",null,"No",6,null,{"$f":"ROUND(F3578*G3578,2)","v":0}]
[]
[null,null,"Bonds from down conductor to roof sheets or gutters"]
[]
[{"v":74,"d":"74 "},null,"Supply",null,"No",6,null,{"$f":"ROUND(F3582*G3582,2)","v":0}]
[]
[{"v":75,"d":"75 "},null,"Install",null,"No",6,null,{"$f":"ROUND(F3584*G3584,2)","v":0}]
[]
[null,null,"Bond down conductors to Copper Earth Electrode"]
[]
[{"v":76,"d":"76 "},null,"Supply",null,"No",6,null,{"$f":"ROUND(F3588*G3588,2)","v":0}]
[]
[{"v":77,"d":"77 "},null,"Install",null,"No",6,null,{"$f":"ROUND(F3590*G3590,2)","v":0}]
[]
[null,null,"Lightning protection Test point incl 100x100x50 box and engraved cover as per specification"]
[]
[{"v":78,"d":"78 "},null,"Supply",null,"No",4,null,{"$f":"ROUND(F3594*G3594,2)","v":0}]
[]
[{"v":79,"d":"79 "},null,"Install",null,"No",4,null,{"$f":"ROUND(F3596*G3596,2)","v":0}]
[]
[{"v":80,"d":"80 "},null,"Allow for site survey, resistivity test reports and    issuing of workshop drawing to the engineer prior to installation.",null,"Item",1,null,{"$f":"ROUND(F3598*G3598,2)","v":0}]
[]
[{"v":81,"d":"81 "},null,"Allow for resistivity tests after completion",null,"Item",1,null,{"$f":"ROUND(F3600*G3600,2)","v":0}]
[]
[{"v":82,"d":"82 "},null,"Allow for testing, commissioning and issuing of Certificate.",null,"Item",1,null,{"$f":"ROUND(F3602*G3602,2)","v":0}]
[]
[null,null,"TESTING AND COMMISSIONING"]
[]
[{"v":83,"d":"83 "},null,"Allow for a Lump Sum for testing and commissioning of the entire electrical installation, including the provision of Compliance Certificate",null,"Item",1,null,{"$f":"ROUND(F3606*G3606,2)","v":0}]
[]
[null,null,"GENERAL"]
[]
[{"v":84,"d":"84 "},null,"Allow for the 12 months guarantee period",null,"Item",1,null,{"$f":"ROUND(F3610*G3610,2)","v":0}]
[]
[{"v":85,"d":"85 "},null,"Allow all necessary labelling of equipment where required",null,"Item",1,null,{"$f":"ROUND(F3612*G3612,2)","v":0}]
[]
[{"v":86,"d":"86 "},null,"Allow for the submission of Asbuilt drawings",null,"Item",1,null,{"$f":"ROUND(F3614*G3614,2)","v":0}]
[]
[null,null,"Carried to Summary",{"$nulls":4},{"$f":"SUM(H3300:H3615)","v":0}]
[]
[]
[null,null,"SECTION 4 : ELECTRICAL INSTALLATION (PROVISIONAL)"]
[]
[null,null,"BILL 4"]
[]
[null,null,"BLOCK C"]
[]
[null,null,"LV RETICULATION"]
[]
[null,null,"COPPER CABLES"]
[]
[null,null,"Supply and Installation of 1000/600 volts PVC/SWA/PVC ECC copper cables as specified, excluding terminations and cable supports. Lengths ginen shall be taken as measured lengths to cable runs from terminal to terminal and rates quoted shall include for off-cuts and wastage. Note should cables without ECC be utilized the tenderer will supply the additional external earth at no additional cost."]
[]
[null,null,"10mm² 3C PVC/SWA/PVC ECC Cable"]
[]
[{"v":1,"d":"1 "},null,"Supply",null,"m",40,null,{"$f":"ROUND(F3633*G3633,2)","v":0}]
[]
[{"v":2,"d":"2 "},null,"Install",null,"m",40,null,{"$f":"ROUND(F3635*G3635,2)","v":0}]
[]
[null,null,"CABLE TERMINATIONS"]
[]
[null,null,"For PVC/SWA/PVC shall include supply and fitting of the cable gland, neoprene shroud, making-off the cable, lugs, and fitting the gland to the board gland plate, switchgear and final connection of cable tails into board or terminals."]
[]
[null,null,"10mm² 3C PVC/SWA/PVC ECC Cable"]
[]
[{"v":3,"d":"3 "},null,"Supply",null,"No",2,null,{"$f":"ROUND(F3643*G3643,2)","v":0}]
[]
[{"v":4,"d":"4 "},null,"Install",null,"No",2,null,{"$f":"ROUND(F3645*G3645,2)","v":0}]
[]
[null,null,"DRAW WIRES"]
[]
[null,null,"Supply and Installation of galvanized steel draw wires drawn into conduit, cable sleeve or wiring channel."]
[]
[null,null,"1mm² Galvanized draw wire"]
[]
[{"v":5,"d":"5 "},null,"Supply",null,"m",150,null,{"$f":"ROUND(F3653*G3653,2)","v":0}]
[]
[{"v":6,"d":"6 "},null,"Install",null,"m",150,null,{"$f":"ROUND(F3655*G3655,2)","v":0}]
[]
[null,null,"LIGHTING AND POWER I"]
[]
[null,null,"DISTRIBUTION BOARDS"]
[]
[null,null,"Supply and Installation of the specified Distribution Boards, including making off all wire connections, earthing and conduit terminations but exclude cable terminations."]
[]
[null,null,"DB -C Sub Distribution Board as per Schematic Layout"]
[]
[{"v":7,"d":"7 "},null,"Supply",null,"No",1,null,{"$f":"ROUND(F3665*G3665,2)","v":0}]
[]
[{"v":8,"d":"8 "},null,"Install",null,"No",1,null,{"$f":"ROUND(F3667*G3667,2)","v":0}]
[]
[null,null,"LUMINAIRES"]
[]
[null,null,"Supply and Installation of the following SABS approved luminaries, complete with lamps as specified"]
[]
[null,null,"Type B The Luminaire shall be LIHLE or other SABS approved 1500mm T8, 2x22W LED Open Channel surface mounted fitting complete with LED tubes"]
[]
[{"v":9,"d":"9 "},null,"Supply",null,"No",8,null,{"$f":"ROUND(F3675*G3675,2)","v":0}]
[]
[{"v":10,"d":"10 "},null,"Install",null,"No",8,null,{"$f":"ROUND(F3677*G3677,2)","v":0}]
[]
[null,null,"Type G The Luminaire shall be Round  LIHLE or other SABS approved MC 15W LED Bulkhead ceiling/wall mounted fitting at 2200mm AFFL (black trim external/white trim internal)."]
[]
[{"v":11,"d":"11 "},null,"Supply",null,"No",3,null,{"$f":"ROUND(F3681*G3681,2)","v":0}]
[]
[{"v":12,"d":"12 "},null,"Install",null,"No",3,null,{"$f":"ROUND(F3683*G3683,2)","v":0}]
[]
[null,null,"LIGHTING AND POWER II"]
[]
[null,null,"LIGHT SWITCHES"]
[]
[null,null,"Supply and Installation of the following SABS approved flush or surface mounted 16A switched socket outlet, complete with 100x50 PVC box and cover plates"]
[]
[null,null,"1 Lever, 1 Way 16A Light Switch complete with PVC Cover plate (Crabtree or Clipsal)"]
[]
[{"v":13,"d":"13 "},null,"Supply",null,"No",2,null,{"$f":"ROUND(F3693*G3693,2)","v":0}]
[]
[{"v":14,"d":"14 "},null,"Install",null,"No",2,null,{"$f":"ROUND(F3695*G3695,2)","v":0}]
[]
[null,null,"Type ZS 20A National Day Light electric cell or similar"]
[]
[{"v":15,"d":"15 "},null,"Supply",null,"No",1,null,{"$f":"ROUND(F3699*G3699,2)","v":0}]
[]
[{"v":16,"d":"16 "},null,"Install",null,"No",1,null,{"$f":"ROUND(F3701*G3701,2)","v":0}]
[]
[null,null,"SOCKET OUTLETS"]
[]
[null,null,"Supply and Installation of flush or surface mounted switched or un-switched socket outlets in 100x100,100x50, round box or wiring channel, excluding box (for flush type ) and conduit connections, but including cover plate."]
[]
[null,null,"16A Flush wall mounted normal Double switched socket outlet complete with 100x100x50mm"]
[]
[{"v":17,"d":"17 "},null,"Supply",null,"No",4,null,{"$f":"ROUND(F3709*G3709,2)","v":0}]
[]
[{"v":18,"d":"18 "},null,"Install",null,"No",4,null,{"$f":"ROUND(F3711*G3711,2)","v":0}]
[]
[null,null,"POWER TRUNKING"]
[]
[null,null,"Supply, Installation and commissioning of the Galvanized compact trunking, including all additional supports which may be required."]
[]
[null,null,"P2000 (41mm x 41mm) Galvanised Trunking"]
[]
[{"v":19,"d":"19 "},null,"Supply",null,"m",52,null,{"$f":"ROUND(F3719*G3719,2)","v":0}]
[]
[{"v":20,"d":"20 "},null,"Install",null,"m",52,null,{"$f":"ROUND(F3721*G3721,2)","v":0}]
[]
[null,null,"CONDUIT"]
[]
[null,null,"Supply and installation of PVC or Bosal conduit as specified. Lengths given shall be taken as measured horizontal and vertical runs between conduit terminations. Rates quoted shall allow for westage, offcuts, couplings,saddles, cuttings, bending, jointing socket and tees."]
[]
[null,null,"20 mm Ø PVC conduit fixed to steel/timber roof structure"]
[]
[{"v":21,"d":"21 "},null,"Supply",null,"m",200,null,{"$f":"ROUND(F3729*G3729,2)","v":0}]
[]
[{"v":22,"d":"22 "},null,"Install",null,"m",200,null,{"$f":"ROUND(F3731*G3731,2)","v":0}]
[]
[null,null,"20 mm Ø PVC conduit fixed onto common brick/ cast into concrete"]
[]
[{"v":23,"d":"23 "},null,"Supply",null,"m",260,null,{"$f":"ROUND(F3735*G3735,2)","v":0}]
[]
[{"v":24,"d":"24 "},null,"Install",null,"m",260,null,{"$f":"ROUND(F3737*G3737,2)","v":0}]
[]
[null,null,"20 mm Ø Galvanised Steel pipe fixed onto the wall."]
[]
[{"v":25,"d":"25 "},null,"Supply",null,"m",40,null,{"$f":"ROUND(F3741*G3741,2)","v":0}]
[]
[{"v":26,"d":"26 "},null,"Install",null,"m",40,null,{"$f":"ROUND(F3743*G3743,2)","v":0}]
[]
[null,null,"32 mm Ø Galvanised Steel pipe fixed onto the wall."]
[]
[{"v":27,"d":"27 "},null,"Supply",null,"m",8,null,{"$f":"ROUND(F3747*G3747,2)","v":0}]
[]
[{"v":28,"d":"28 "},null,"Install",null,"m",8,null,{"$f":"ROUND(F3749*G3749,2)","v":0}]
[]
[null,null,"Terminate and connect one pair of conduit ends including supply and installation of 1, 2, 3 or 4 way box on surface or in brickwork(excluding cover plates), including holes for conduit."]
[]
[null,null,"20mm round PVC conduit box c/w covers."]
[]
[{"v":29,"d":"29 "},null,"Supply",null,"No",40,null,{"$f":"ROUND(F3755*G3755,2)","v":0}]
[]
[{"v":30,"d":"30 "},null,"Install",null,"No",40,null,{"$f":"ROUND(F3757*G3757,2)","v":0}]
[]
[null,null,"100 x 50 x 50mm Galvanized box"]
[]
[{"v":31,"d":"31 "},null,"Supply",null,"No",4,null,{"$f":"ROUND(F3761*G3761,2)","v":0}]
[]
[{"v":32,"d":"32 "},null,"Install",null,"No",4,null,{"$f":"ROUND(F3763*G3763,2)","v":0}]
[]
[null,null,"100 x 100 x 50mm Galvanized box"]
[]
[{"v":33,"d":"33 "},null,"Supply",null,"No",4,null,{"$f":"ROUND(F3767*G3767,2)","v":0}]
[]
[{"v":34,"d":"34 "},null,"Install",null,"No",4,null,{"$f":"ROUND(F3769*G3769,2)","v":0}]
[]
[null,null,"COPPER CONDUCTORS"]
[]
[null,null,"Supply and Installation of PVC insulated copper conductors drawn into conduit or wiring channel in groups of 2, 3, 4 etc. with the required colour coding, but excluding any wiring connections."]
[]
[null,null,"2,5 mm² red PVC insulated"]
[]
[{"v":35,"d":"35 "},null,"Supply",null,"m",500,null,{"$f":"ROUND(F3777*G3777,2)","v":0}]
[]
[{"v":36,"d":"36 "},null,"Install",null,"m",500,null,{"$f":"ROUND(F3779*G3779,2)","v":0}]
[]
[null,null,"2,5 mm² black PVC insulated"]
[]
[{"v":37,"d":"37 "},null,"Supply",null,"m",400,null,{"$f":"ROUND(F3783*G3783,2)","v":0}]
[]
[{"v":38,"d":"38 "},null,"Install",null,"m",400,null,{"$f":"ROUND(F3785*G3785,2)","v":0}]
[]
[null,null,"4,0 mm² red PVC insulated"]
[]
[{"v":39,"d":"39 "},null,"Supply",null,"m",400,null,{"$f":"ROUND(F3789*G3789,2)","v":0}]
[]
[{"v":40,"d":"40 "},null,"Install",null,"m",400,null,{"$f":"ROUND(F3791*G3791,2)","v":0}]
[]
[null,null,"4,0 mm² black PVC insulated"]
[]
[{"v":41,"d":"41 "},null,"Supply",null,"m",400,null,{"$f":"ROUND(F3795*G3795,2)","v":0}]
[]
[{"v":42,"d":"42 "},null,"Install",null,"m",400,null,{"$f":"ROUND(F3797*G3797,2)","v":0}]
[]
[null,null,"EARTH CONDUCTORS"]
[]
[null,null,"Supply and Installation of PVC insulated earth conductors drawn into conduit or wiring channel with the required colour coding, but excluding any wiring connections."]
[]
[null,null,"2,5 mm² yellow/green PVC insulated"]
[]
[{"v":43,"d":"43 "},null,"Supply",null,"m",1000,null,{"$f":"ROUND(F3805*G3805,2)","v":0}]
[]
[{"v":44,"d":"44 "},null,"Install",null,"m",1000,null,{"$f":"ROUND(F3807*G3807,2)","v":0}]
[]
[null,null,"EARTHING SYSTEM"]
[]
[null,null,"EARTH SPIKE"]
[]
[null,null,"1.5m copper coated earth spike at the Distribution Board"]
[]
[{"v":45,"d":"45 "},null,"Supply",null,"No",1,null,{"$f":"ROUND(F3815*G3815,2)","v":0}]
[]
[{"v":46,"d":"46 "},null,"Install",null,"No",1,null,{"$f":"ROUND(F3817*G3817,2)","v":0}]
[]
[{"v":47,"d":"47 "},null,"Allow for earthing and bonding of cold and hot water pipes and all the metal to comply with SANS regulations.",null,"Item",1,null,{"$f":"ROUND(F3819*G3819,2)","v":0}]
[]
[null,null,"LIGHTNING  PROTECTION"]
[]
[null,null,"PVC CONDUITS"]
[]
[null,null,"Supply and installation of conduit as specified in General Specification Lengths shall be taken as measured horizontal and vertical runs between terminations. Rates quoted shall allow for wastage off-cuts, couplings, bends, extention boxes, covers fixing and chasing etc. in accordance with the specification."]
[]
[null,null,"20mm diameter CIB, FOS, CIC"]
[]
[{"v":48,"d":"48 "},null,"Supply",null,"m",16,null,{"$f":"ROUND(F3829*G3829,2)","v":0}]
[]
[{"v":49,"d":"49 "},null,"Install",null,"m",16,null,{"$f":"ROUND(F3831*G3831,2)","v":0}]
[]
[null,null,"LIGHTNING PROTECTION SYSTEM"]
[]
[null,null,"50mm² Diameter copper conductor installed in conduit"]
[]
[{"v":50,"d":"50 "},null,"Supply",null,"m",16,null,{"$f":"ROUND(F3837*G3837,2)","v":0}]
[]
[{"v":51,"d":"51 "},null,"Install",null,"m",16,null,{"$f":"ROUND(F3839*G3839,2)","v":0}]
[]
[null,null,"Caldweld copper earth electrodes driven in ground 16mm Diameter x 1500mm long earth electrode driven into ground"]
[]
[{"v":52,"d":"52 "},null,"Supply",null,"No",4,null,{"$f":"ROUND(F3843*G3843,2)","v":0}]
[]
[{"v":53,"d":"53 "},null,"Install",null,"No",4,null,{"$f":"ROUND(F3845*G3845,2)","v":0}]
[]
[null,null,"Bonds from down conductor to roof sheets or gutters"]
[]
[{"v":54,"d":"54 "},null,"Supply",null,"No",4,null,{"$f":"ROUND(F3849*G3849,2)","v":0}]
[]
[{"v":55,"d":"55 "},null,"Install",null,"No",4,null,{"$f":"ROUND(F3851*G3851,2)","v":0}]
[]
[null,null,"Bond down conductors to Copper Earth Electrode"]
[]
[{"v":56,"d":"56 "},null,"Supply",null,"No",4,null,{"$f":"ROUND(F3855*G3855,2)","v":0}]
[]
[{"v":57,"d":"57 "},null,"Install",null,"No",4,null,{"$f":"ROUND(F3857*G3857,2)","v":0}]
[]
[null,null,"Lightning protection Test point incl 100x100x50 box and engraved cover as per specification"]
[]
[{"v":58,"d":"58 "},null,"Supply",null,"No",2,null,{"$f":"ROUND(F3861*G3861,2)","v":0}]
[]
[{"v":59,"d":"59 "},null,"Install",null,"No",2,null,{"$f":"ROUND(F3863*G3863,2)","v":0}]
[]
[{"v":60,"d":"60 "},null,"Allow for site survey, resistivity test reports and issuing of workshop drawing to the engineer prior to installation.",null,"Item",1,null,{"$f":"ROUND(F3865*G3865,2)","v":0}]
[]
[{"v":61,"d":"61 "},null,"Allow for resistivity tests after completion",null,"Item",1,null,{"$f":"ROUND(F3867*G3867,2)","v":0}]
[]
[{"v":62,"d":"62 "},null,"Allow for testing, commissioning and issuing of Certificate.",null,"Item",1,null,{"$f":"ROUND(F3869*G3869,2)","v":0}]
[]
[null,null,"TESTING AND COMMISSIONING"]
[]
[{"v":63,"d":"63 "},null,"Allow for a Lump Sum for testing and commissioning of the entire electrical installation, including the provision of Compliance Certificate",null,"Item",1,null,{"$f":"ROUND(F3873*G3873,2)","v":0}]
[]
[null,null,"GENERAL"]
[]
[{"v":64,"d":"64 "},null,"Allow for the 12 months guarantee period",null,"Item",1,null,{"$f":"ROUND(F3877*G3877,2)","v":0}]
[]
[{"v":65,"d":"65 "},null,"Allow all necessary labelling of equipment where required",null,"Item",1,null,{"$f":"ROUND(F3879*G3879,2)","v":0}]
[]
[{"v":66,"d":"66 "},null,"Allow for the submission of Asbuilt drawings",null,"Item",1,null,{"$f":"ROUND(F3881*G3881,2)","v":0}]
[]
[null,null,"Carried to Summary",{"$nulls":4},{"$f":"SUM(H3633:H3882)","v":0}]
[]
[]
[null,null,"SECTION 4 : ELECTRICAL INSTALLATION (PROVISIONAL)"]
[]
[null,null,"BILL 5"]
[]
[null,null,"BLOCK D"]
[]
[null,null,"LV RETICULATION"]
[]
[null,null,"COPPER CABLES"]
[]
[null,null,"Supply and Installation of 1000/600 volts PVC/SWA/PVC ECC copper cables as specified, excluding terminations and cable supports. Lengths ginen shall be taken as measured lengths to cable runs from terminal to terminal and rates quoted shall include for off-cuts and wastage. Note should cables without ECC be utilized the tenderer will supply the additional external earth at no additional cost."]
[]
[null,null,"16mm² 4C PVC/SWA/PVC ECC Cable"]
[]
[{"v":1,"d":"1 "},null,"Supply",null,"m",140,null,{"$f":"ROUND(F3900*G3900,2)","v":0}]
[]
[{"v":2,"d":"2 "},null,"Install",null,"m",140,null,{"$f":"ROUND(F3902*G3902,2)","v":0}]
[]
[null,null,"CABLE TERMINATIONS"]
[]
[null,null,"For PVC/SWA/PVC shall include supply and fitting of the cable gland, neoprene shroud, making-off the cable, lugs, and fitting the gland to the board gland plate, switchgear and final connection of cable tails into board or terminals."]
[]
[null,null,"16mm² 4C PVC/SWA/PVC ECC Cable"]
[]
[{"v":3,"d":"3 "},null,"Supply",null,"No",2,null,{"$f":"ROUND(F3910*G3910,2)","v":0}]
[]
[{"v":4,"d":"4 "},null,"Install",null,"No",2,null,{"$f":"ROUND(F3912*G3912,2)","v":0}]
[]
[null,null,"DRAW WIRES"]
[]
[null,null,"Supply and Installation of galvanized steel draw wires drawn into conduit, cable sleeve or wiring channel."]
[]
[null,null,"1mm² Galvanized draw wire"]
[]
[{"v":5,"d":"5 "},null,"Supply",null,"m",200,null,{"$f":"ROUND(F3920*G3920,2)","v":0}]
[]
[{"v":6,"d":"6 "},null,"Install",null,"m",200,null,{"$f":"ROUND(F3922*G3922,2)","v":0}]
[]
[null,null,"LIGHTING AND POWER I"]
[]
[null,null,"DISTRIBUTION BOARDS"]
[]
[null,null,"Supply and Installation of the specified Distribution Boards, including making off all wire connections, earthing and conduit terminations but exclude cable terminations."]
[]
[null,null,"DB - D Sub Distribution Board as per Schematic Layout"]
[]
[{"v":7,"d":"7 "},null,"Supply",null,"No",1,null,{"$f":"ROUND(F3932*G3932,2)","v":0}]
[]
[{"v":8,"d":"8 "},null,"Install",null,"No",1,null,{"$f":"ROUND(F3934*G3934,2)","v":0}]
[]
[null,null,"LUMINAIRES"]
[]
[null,null,"Supply and Installation of the following SABS approved luminaries, complete with lamps as specified"]
[]
[null,null,"Type A The Luminaire shall be LIHLE or other SABS approved 1500x300mm T8, 2x22W LED low  brightness with clip in louvre surface mounted fitting, complete with LED tubes"]
[]
[{"v":9,"d":"9 "},null,"Supply",null,"No",2,null,{"$f":"ROUND(F3942*G3942,2)","v":0}]
[]
[{"v":10,"d":"10 "},null,"Install",null,"No",2,null,{"$f":"ROUND(F3944*G3944,2)","v":0}]
[]
[null,null,"The Luminaire shall be LIHLE or other SABS approved 1500mm T8, 2x22W LED Open Channel surface mounted fitting complete with LED tubes"]
[]
[{"v":11,"d":"11 "},null,"Supply",null,"No",20,null,{"$f":"ROUND(F3948*G3948,2)","v":0}]
[]
[{"v":12,"d":"12 "},null,"Install",null,"No",20,null,{"$f":"ROUND(F3950*G3950,2)","v":0}]
[]
[null,null,"Type G The Luminaire shall be Round  LIHLE or other SABS approved MC 15W LED Bulkhead ceiling/wall mounted fitting at 2200mm AFFL (black trim external/white trim internal)."]
[]
[{"v":13,"d":"13 "},null,"Supply",null,"No",16,null,{"$f":"ROUND(F3954*G3954,2)","v":0}]
[]
[{"v":14,"d":"14 "},null,"Install",null,"No",16,null,{"$f":"ROUND(F3956*G3956,2)","v":0}]
[]
[null,null,"LIGHTING AND POWER II"]
[]
[null,null,"LIGHT SWITCHES"]
[]
[null,null,"Supply and Installation of the following SABS approved flush or surface mounted 16A switched socket outlet, complete with 100x50 PVC box and cover plates"]
[]
[null,null,"1 Lever, 1 Way 16A Light Switch complete with PVC Cover plate (Crabtree or Clipsal)"]
[]
[{"v":15,"d":"15 "},null,"Supply",null,"No",9,null,{"$f":"ROUND(F3966*G3966,2)","v":0}]
[]
[{"v":16,"d":"16 "},null,"Install",null,"No",9,null,{"$f":"ROUND(F3968*G3968,2)","v":0}]
[]
[null,null,"2 Lever, 1 Way 16A Light Switch complete with Steel Cover plate (Crabtree or Clipsal)"]
[]
[{"v":17,"d":"17 "},null,"Supply",null,"No",1,null,{"$f":"ROUND(F3972*G3972,2)","v":0}]
[]
[{"v":18,"d":"18 "},null,"Install",null,"No",1,null,{"$f":"ROUND(F3974*G3974,2)","v":0}]
[]
[null,null,"Type ZS 20A National Day Light electric cell or similar"]
[]
[{"v":19,"d":"19 "},null,"Supply",null,"No",1,null,{"$f":"ROUND(F3978*G3978,2)","v":0}]
[]
[{"v":20,"d":"20 "},null,"Install",null,"No",1,null,{"$f":"ROUND(F3980*G3980,2)","v":0}]
[]
[null,null,"OCCUPANCY SENSOR"]
[]
[null,null,"Type 1 ( OS1 ) as type schneider Electric SLSCPS 1000  or other approved .This sensor to be the PIR  ceiling mounted sensor with time delay, sensitivity and light level adjustment.Minimum 7m radius detection ( minor detection ) and 9.7m radius ( Major detection )"]
[]
[{"v":21,"d":"21 "},null,"Supply",null,"No",3,null,{"$f":"ROUND(F3986*G3986,2)","v":0}]
[]
[{"v":22,"d":"22 "},null,"Install",null,"No",3,null,{"$f":"ROUND(F3988*G3988,2)","v":0}]
[]
[null,null,"SOCKET OUTLETS"]
[]
[null,null,"Supply and Installation of flush or surface mounted switched or un-switched socket outlets in 100x100,100x50, round box or wiring channel, excluding box (for flush type ) and conduit connections, but including cover plate."]
[]
[null,null,"16A Flush wall mounted normal Single switched socket outlet complete with 100x100x50mm"]
[]
[{"v":23,"d":"23 "},null,"Supply",null,"No",1,null,{"$f":"ROUND(F3996*G3996,2)","v":0}]
[]
[{"v":24,"d":"24 "},null,"Install",null,"No",1,null,{"$f":"ROUND(F3998*G3998,2)","v":0}]
[]
[null,null,"16A Flush wall mounted normal Double switched socket outlet complete with 100x100x50mm"]
[]
[{"v":25,"d":"25 "},null,"Supply",null,"No",11,null,{"$f":"ROUND(F4002*G4002,2)","v":0}]
[]
[{"v":26,"d":"26 "},null,"Install",null,"No",11,null,{"$f":"ROUND(F4004*G4004,2)","v":0}]
[]
[null,null,"CLUSTER BOXES"]
[]
[null,null,"Supply and Installation of powercomm or other cluster box, complete with dividers."]
[]
[null,null,"9 - Way cluster box"]
[]
[{"v":27,"d":"27 "},null,"Supply",null,"No",1,null,{"$f":"ROUND(F4012*G4012,2)","v":0}]
[]
[{"v":28,"d":"28 "},null,"Install",null,"No",1,null,{"$f":"ROUND(F4014*G4014,2)","v":0}]
[]
[null,null,"9 - Way cover plate to cluster box, complete with yoke"]
[]
[{"v":29,"d":"29 "},null,"Supply",null,"No",1,null,{"$f":"ROUND(F4018*G4018,2)","v":0}]
[]
[{"v":30,"d":"30 "},null,"Install",null,"No",1,null,{"$f":"ROUND(F4020*G4020,2)","v":0}]
[]
[null,null,"16A  Normal Single EURO with 2 Pin and USB switched socket outlet mounted on cluster box"]
[]
[{"v":31,"d":"31 "},null,"Supply",null,"No",1,null,{"$f":"ROUND(F4024*G4024,2)","v":0}]
[]
[{"v":32,"d":"32 "},null,"Install",null,"No",1,null,{"$f":"ROUND(F4026*G4026,2)","v":0}]
[]
[null,null,"16A  Standard Dedicated switched socket outlet mounted on cluster box"]
[]
[{"v":33,"d":"33 "},null,"Supply",null,"No",1,null,{"$f":"ROUND(F4030*G4030,2)","v":0}]
[]
[{"v":34,"d":"34 "},null,"Install",null,"No",1,null,{"$f":"ROUND(F4032*G4032,2)","v":0}]
[]
[null,null,"RJ11 Tel Outlet"]
[]
[{"v":35,"d":"35 "},null,"Supply",null,"No",1,null,{"$f":"ROUND(F4036*G4036,2)","v":0}]
[]
[{"v":36,"d":"36 "},null,"Install",null,"No",1,null,{"$f":"ROUND(F4038*G4038,2)","v":0}]
[]
[null,null,"RJ 45 Data Outlet"]
[]
[{"v":37,"d":"37 "},null,"Supply",null,"No",1,null,{"$f":"ROUND(F4042*G4042,2)","v":0}]
[]
[{"v":38,"d":"38 "},null,"Install",null,"No",1,null,{"$f":"ROUND(F4044*G4044,2)","v":0}]
[]
[null,null,"POWER TRUNKING"]
[]
[null,null,"Supply, Installation and commissioning of the Galvanized compact trunking, including all additional supports which may be required."]
[]
[null,null,"P2000 (41mm x 41mm) Galvanised Trunking"]
[]
[{"v":39,"d":"39 "},null,"Supply",null,"m",52,null,{"$f":"ROUND(F4052*G4052,2)","v":0}]
[]
[{"v":40,"d":"40 "},null,"Install",null,"m",52,null,{"$f":"ROUND(F4054*G4054,2)","v":0}]
[]
[null,null,"CONDUIT"]
[]
[null,null,"Supply and installation of PVC or Bosal conduit as specified. Lengths given shall be taken as measured horizontal and vertical runs between conduit terminations. Rates quoted shall allow for westage, offcuts, couplings,saddles, cuttings, bending, jointing socket and tees."]
[]
[null,null,"20 mm Ø PVC conduit fixed to steel/timber roof structure"]
[]
[{"v":41,"d":"41 "},null,"Supply",null,"m",200,null,{"$f":"ROUND(F4062*G4062,2)","v":0}]
[]
[{"v":42,"d":"42 "},null,"Install",null,"m",200,null,{"$f":"ROUND(F4064*G4064,2)","v":0}]
[]
[null,null,"20 mm Ø PVC conduit fixed onto common brick/ cast into concrete"]
[]
[{"v":43,"d":"43 "},null,"Supply",null,"m",260,null,{"$f":"ROUND(F4068*G4068,2)","v":0}]
[]
[{"v":44,"d":"44 "},null,"Install",null,"m",260,null,{"$f":"ROUND(F4070*G4070,2)","v":0}]
[]
[null,null,"20 mm Ø Galvanised Steel pipe fixed onto the wall."]
[]
[{"v":45,"d":"45 "},null,"Supply",null,"m",60,null,{"$f":"ROUND(F4074*G4074,2)","v":0}]
[]
[{"v":46,"d":"46 "},null,"Install",null,"m",60,null,{"$f":"ROUND(F4076*G4076,2)","v":0}]
[]
[null,null,"32 mm Ø Galvanised Steel pipe fixed onto the wall."]
[]
[{"v":47,"d":"47 "},null,"Supply",null,"m",12,null,{"$f":"ROUND(F4080*G4080,2)","v":0}]
[]
[{"v":48,"d":"48 "},null,"Install",null,"m",12,null,{"$f":"ROUND(F4082*G4082,2)","v":0}]
[]
[null,null,"Terminate and connect one pair of conduit ends including supply and installation of 1, 2, 3 or 4 way box on surface or in brickwork(excluding cover plates), including holes for conduit."]
[]
[null,null,"20mm round PVC conduit box c/w covers."]
[]
[{"v":49,"d":"49 "},null,"Supply",null,"No",60,null,{"$f":"ROUND(F4088*G4088,2)","v":0}]
[]
[{"v":50,"d":"50 "},null,"Install",null,"No",60,null,{"$f":"ROUND(F4090*G4090,2)","v":0}]
[]
[null,null,"100 x 50 x 50mm Galvanized box"]
[]
[{"v":51,"d":"51 "},null,"Supply",null,"No",10,null,{"$f":"ROUND(F4094*G4094,2)","v":0}]
[]
[{"v":52,"d":"52 "},null,"Install",null,"No",10,null,{"$f":"ROUND(F4096*G4096,2)","v":0}]
[]
[null,null,"100 x 100 x 50mm Galvanized box"]
[]
[{"v":53,"d":"53 "},null,"Supply",null,"No",14,null,{"$f":"ROUND(F4100*G4100,2)","v":0}]
[]
[{"v":54,"d":"54 "},null,"Install",null,"No",14,null,{"$f":"ROUND(F4102*G4102,2)","v":0}]
[]
[null,null,"COPPER CONDUCTORS"]
[]
[null,null,"Supply and Installation of PVC insulated copper conductors drawn into conduit or wiring channel in groups of 2, 3, 4 etc. with the required colour coding, but excluding any wiring connections."]
[]
[null,null,"2,5 mm² red PVC insulated"]
[]
[{"v":55,"d":"55 "},null,"Supply",null,"m",600,null,{"$f":"ROUND(F4110*G4110,2)","v":0}]
[]
[{"v":56,"d":"56 "},null,"Install",null,"m",600,null,{"$f":"ROUND(F4112*G4112,2)","v":0}]
[]
[null,null,"2,5 mm² black PVC insulated"]
[]
[{"v":57,"d":"57 "},null,"Supply",null,"m",500,null,{"$f":"ROUND(F4116*G4116,2)","v":0}]
[]
[{"v":58,"d":"58 "},null,"Install",null,"m",500,null,{"$f":"ROUND(F4118*G4118,2)","v":0}]
[]
[null,null,"4,0 mm² red PVC insulated"]
[]
[{"v":59,"d":"59 "},null,"Supply",null,"m",500,null,{"$f":"ROUND(F4122*G4122,2)","v":0}]
[]
[{"v":60,"d":"60 "},null,"Install",null,"m",500,null,{"$f":"ROUND(F4124*G4124,2)","v":0}]
[]
[null,null,"4,0 mm² black PVC insulated"]
[]
[{"v":61,"d":"61 "},null,"Supply",null,"m",500,null,{"$f":"ROUND(F4128*G4128,2)","v":0}]
[]
[{"v":62,"d":"62 "},null,"Install",null,"m",500,null,{"$f":"ROUND(F4130*G4130,2)","v":0}]
[]
[null,null,"EARTH CONDUCTORS"]
[]
[null,null,"Supply and Installation of PVC insulated earth conductors drawn into conduit or wiring channel with the required colour coding, but excluding any wiring connections."]
[]
[null,null,"2,5 mm² yellow/green PVC insulated"]
[]
[{"v":63,"d":"63 "},null,"Supply",null,"m",1000,null,{"$f":"ROUND(F4138*G4138,2)","v":0}]
[]
[{"v":64,"d":"64 "},null,"Install",null,"m",1000,null,{"$f":"ROUND(F4140*G4140,2)","v":0}]
[]
[null,null,"EARTHING SYSTEM"]
[]
[null,null,"EARTH SPIKE"]
[]
[null,null,"1.5m copper coated earth spike at the Distribution Board"]
[]
[{"v":65,"d":"65 "},null,"Supply",null,"No",1,null,{"$f":"ROUND(F4148*G4148,2)","v":0}]
[]
[{"v":66,"d":"66 "},null,"Install",null,"No",1,null,{"$f":"ROUND(F4150*G4150,2)","v":0}]
[]
[{"v":67,"d":"67 "},null,"Allow for earthing and bonding of cold and hot water pipes and all the metal to comply with SANS regulations.",null,"Item",1,null,{"$f":"ROUND(F4152*G4152,2)","v":0}]
[]
[null,null,"LIGHTNING  PROTECTION"]
[]
[null,null,"PVC CONDUITS"]
[]
[null,null,"Supply and installation of conduit as specified in General Specification Lengths shall be taken as measured horizontal and vertical runs between terminations. Rates quoted shall allow for wastage off-cuts, couplings, bends, extention boxes, covers fixing and chasing etc. in accordance with the specification."]
[]
[null,null,"20mm diameter CIB, FOS, CIC"]
[]
[{"v":68,"d":"68 "},null,"Supply",null,"m",30,null,{"$f":"ROUND(F4162*G4162,2)","v":0}]
[]
[{"v":69,"d":"69 "},null,"Install",null,"m",30,null,{"$f":"ROUND(F4164*G4164,2)","v":0}]
[]
[null,null,"LIGHTNING PROTECTION SYSTEM"]
[]
[null,null,"50mm² Diameter copper conductor installed in conduit"]
[]
[{"v":70,"d":"70 "},null,"Supply",null,"m",30,null,{"$f":"ROUND(F4170*G4170,2)","v":0}]
[]
[{"v":71,"d":"71 "},null,"Install",null,"m",30,null,{"$f":"ROUND(F4172*G4172,2)","v":0}]
[]
[null,null,"Caldweld copper earth electrodes driven in ground 16mm Diameter x 1500mm long earth electrode driven into ground"]
[]
[{"v":72,"d":"72 "},null,"Supply",null,"No",6,null,{"$f":"ROUND(F4176*G4176,2)","v":0}]
[]
[{"v":73,"d":"73 "},null,"Install",null,"No",6,null,{"$f":"ROUND(F4178*G4178,2)","v":0}]
[]
[null,null,"Bonds from down conductor to roof sheets or gutters"]
[]
[{"v":74,"d":"74 "},null,"Supply",null,"No",6,null,{"$f":"ROUND(F4182*G4182,2)","v":0}]
[]
[{"v":75,"d":"75 "},null,"Install",null,"No",6,null,{"$f":"ROUND(F4184*G4184,2)","v":0}]
[]
[null,null,"Bond down conductors to Copper Earth Electrode"]
[]
[{"v":76,"d":"76 "},null,"Supply",null,"No",4,null,{"$f":"ROUND(F4188*G4188,2)","v":0}]
[]
[{"v":77,"d":"77 "},null,"Install",null,"No",4,null,{"$f":"ROUND(F4190*G4190,2)","v":0}]
[]
[null,null,"Lightning protection Test point incl 100x100x50 box and engraved cover as per specification"]
[]
[{"v":78,"d":"78 "},null,"Supply",null,"No",1,null,{"$f":"ROUND(F4194*G4194,2)","v":0}]
[]
[{"v":79,"d":"79 "},null,"Install",null,"No",1,null,{"$f":"ROUND(F4196*G4196,2)","v":0}]
[]
[{"v":80,"d":"80 "},null,"Allow for site survey, resistivity test reports and    issuing of workshop drawing to the engineer prior to installation.",null,"Item",1,null,{"$f":"ROUND(F4198*G4198,2)","v":0}]
[]
[{"v":81,"d":"81 "},null,"Allow for resistivity tests after completion",null,"Item",1,null,{"$f":"ROUND(F4200*G4200,2)","v":0}]
[]
[{"v":82,"d":"82 "},null,"Allow for testing, commissioning and issuing of Certificate.",null,"Item",1,null,{"$f":"ROUND(F4202*G4202,2)","v":0}]
[]
[null,null,"TESTING AND COMMISSIONING"]
[]
[{"v":83,"d":"83 "},null,"Allow for a Lump Sum for testing and commissioning of the entire electrical installation, including the provision of Compliance Certificate",null,"Item",1,null,{"$f":"ROUND(F4206*G4206,2)","v":0}]
[]
[null,null,"GENERAL"]
[]
[{"v":84,"d":"84 "},null,"Allow for the 12 months guarantee period",null,"Item",1,null,{"$f":"ROUND(F4210*G4210,2)","v":0}]
[]
[{"v":85,"d":"85 "},null,"Allow all necessary labelling of equipment where required",null,"Item",1,null,{"$f":"ROUND(F4212*G4212,2)","v":0}]
[]
[{"v":86,"d":"86 "},null,"Allow for the submission of Asbuilt drawings",null,"Item",1,null,{"$f":"ROUND(F4214*G4214,2)","v":0}]
[]
[null,null,"Carried to Summary",{"$nulls":4},{"$f":"SUM(H3900:H4215)","v":0}]
[]
[]
[null,null,"SECTION 4 : ELECTRICAL INSTALLATION (PROVISIONAL)"]
[]
[null,null,"BILL 6"]
[]
[null,null,"BLOCK E"]
[]
[null,null,"LV RETICULATION"]
[]
[null,null,"COPPER CABLES"]
[]
[null,null,"Supply and Installation of 1000/600 volts PVC/SWA/PVC ECC copper cables as specified, excluding terminations and cable supports. Lengths ginen shall be taken as measured lengths to cable runs from terminal to terminal and rates quoted shall include for off-cuts and wastage. Note should cables without ECC be utilized the tenderer will supply the additional external earth at no additional cost."]
[]
[null,null,"10mm² 3C PVC/SWA/PVC ECC Cable"]
[]
[{"v":1,"d":"1 "},null,"Supply",null,"m",80,null,{"$f":"ROUND(F4233*G4233,2)","v":0}]
[]
[{"v":2,"d":"2 "},null,"Install",null,"m",80,null,{"$f":"ROUND(F4235*G4235,2)","v":0}]
[]
[null,null,"CABLE TERMINATIONS"]
[]
[null,null,"For PVC/SWA/PVC shall include supply and fitting of the cable gland, neoprene shroud, making-off the cable, lugs, and fitting the gland to the board gland plate, switchgear and final connection of cable tails into board or terminals."]
[]
[null,null,"10mm² 3C PVC/SWA/PVC ECC Cable"]
[]
[{"v":3,"d":"3 "},null,"Supply",null,"No",2,null,{"$f":"ROUND(F4243*G4243,2)","v":0}]
[]
[{"v":4,"d":"4 "},null,"Install",null,"No",2,null,{"$f":"ROUND(F4245*G4245,2)","v":0}]
[]
[null,null,"DRAW WIRES"]
[]
[null,null,"Supply and Installation of galvanized steel draw wires drawn into conduit, cable sleeve or wiring channel."]
[]
[null,null,"1mm² Galvanized draw wire"]
[]
[{"v":5,"d":"5 "},null,"Supply",null,"m",200,null,{"$f":"ROUND(F4253*G4253,2)","v":0}]
[]
[{"v":6,"d":"6 "},null,"Install",null,"m",200,null,{"$f":"ROUND(F4255*G4255,2)","v":0}]
[]
[null,null,"LIGHTING AND POWER I"]
[]
[null,null,"DISTRIBUTION BOARDS"]
[]
[null,null,"Supply and Installation of the specified Distribution Boards, including making off all wire connections, earthing and conduit terminations but exclude cable terminations."]
[]
[null,null,"DB -E Sub Distribution Board as per Schematic Layout"]
[]
[{"v":7,"d":"7 "},null,"Supply",null,"No",1,null,{"$f":"ROUND(F4265*G4265,2)","v":0}]
[]
[{"v":8,"d":"8 "},null,"Install",null,"No",1,null,{"$f":"ROUND(F4267*G4267,2)","v":0}]
[]
[null,null,"LUMINAIRES"]
[]
[null,null,"Supply and Installation of the following SABS approved luminaries, complete with lamps as specified"]
[]
[null,null,"Type B The Luminaire shall be LIHLE or other SABS approved 1500mm T8, 2x22W LED Open Channel surface mounted fitting complete with LED tubes"]
[]
[{"v":9,"d":"9 "},null,"Supply",null,"No",8,null,{"$f":"ROUND(F4275*G4275,2)","v":0}]
[]
[{"v":10,"d":"10 "},null,"Install",null,"No",8,null,{"$f":"ROUND(F4277*G4277,2)","v":0}]
[]
[null,null,"Type G The Luminaire shall be Round  LIHLE or other SABS approved MC 15W LED Bulkhead ceiling/wall mounted fitting at 2200mm AFFL (black trim external/white trim internal)."]
[]
[{"v":11,"d":"11 "},null,"Supply",null,"No",3,null,{"$f":"ROUND(F4281*G4281,2)","v":0}]
[]
[{"v":12,"d":"12 "},null,"Install",null,"No",3,null,{"$f":"ROUND(F4283*G4283,2)","v":0}]
[]
[null,null,"LIGHTING AND POWER II"]
[]
[null,null,"LIGHT SWITCHES"]
[]
[null,null,"Supply and Installation of the following SABS approved flush or surface mounted 16A switched socket outlet, complete with 100x50 PVC box and cover plates"]
[]
[null,null,"1 Lever, 1 Way 16A Light Switch complete with PVC Cover plate (Crabtree or Clipsal)"]
[]
[{"v":13,"d":"13 "},null,"Supply",null,"No",3,null,{"$f":"ROUND(F4293*G4293,2)","v":0}]
[]
[{"v":14,"d":"14 "},null,"Install",null,"No",3,null,{"$f":"ROUND(F4295*G4295,2)","v":0}]
[]
[null,null,"Type ZS 20A National Day Light electric cell or similar"]
[]
[{"v":15,"d":"15 "},null,"Supply",null,"No",1,null,{"$f":"ROUND(F4299*G4299,2)","v":0}]
[]
[{"v":16,"d":"16 "},null,"Install",null,"No",1,null,{"$f":"ROUND(F4301*G4301,2)","v":0}]
[]
[null,null,"SOCKET OUTLETS"]
[]
[null,null,"Supply and Installation of flush or surface mounted switched or un-switched socket outlets in 100x100,100x50, round box or wiring channel, excluding box (for flush type ) and conduit connections, but including cover plate."]
[]
[null,null,"16A Flush wall mounted normal Double switched socket outlet complete with 100x100x50mm"]
[]
[{"v":17,"d":"17 "},null,"Supply",null,"No",3,null,{"$f":"ROUND(F4309*G4309,2)","v":0}]
[]
[{"v":18,"d":"18 "},null,"Install",null,"No",3,null,{"$f":"ROUND(F4311*G4311,2)","v":0}]
[]
[null,null,"POWER SKIRTING"]
[]
[null,null,"Supply and Installation of 2 compartment 2 cover PVC power skirting SABS approved complete with bends and all other accessorie"]
[]
[null,null,"Two compartment power skirting plus cover"]
[]
[{"v":19,"d":"19 "},null,"Supply",null,"m",16,null,{"$f":"ROUND(F4319*G4319,2)","v":0}]
[]
[{"v":20,"d":"20 "},null,"Install",null,"m",16,null,{"$f":"ROUND(F4321*G4321,2)","v":0}]
[]
[null,null,"End covers"]
[]
[{"v":21,"d":"21 "},null,"Supply",null,"No",2,null,{"$f":"ROUND(F4325*G4325,2)","v":0}]
[]
[{"v":22,"d":"22 "},null,"Install",null,"No",2,null,{"$f":"ROUND(F4327*G4327,2)","v":0}]
[]
[null,null,"Elbows"]
[]
[{"v":23,"d":"23 "},null,"Supply",null,"No",1,null,{"$f":"ROUND(F4331*G4331,2)","v":0}]
[]
[{"v":24,"d":"24 "},null,"Install",null,"No",1,null,{"$f":"ROUND(F4333*G4333,2)","v":0}]
[]
[null,null,"16A Normal Single EURO with 2 Pin and USB switched socket outlet mounted on the power skirting"]
[]
[{"v":25,"d":"25 "},null,"Supply",null,"No",6,null,{"$f":"ROUND(F4337*G4337,2)","v":0}]
[]
[{"v":26,"d":"26 "},null,"Install",null,"No",6,null,{"$f":"ROUND(F4339*G4339,2)","v":0}]
[]
[null,null,"16A Standard Dedicated switched socket outlet mounted on the power skirting"]
[]
[{"v":27,"d":"27 "},null,"Supply",null,"No",6,null,{"$f":"ROUND(F4343*G4343,2)","v":0}]
[]
[{"v":28,"d":"28 "},null,"Install",null,"No",6,null,{"$f":"ROUND(F4345*G4345,2)","v":0}]
[]
[null,null,"RJ 45 Data Outlet"]
[]
[{"v":29,"d":"29 "},null,"Supply",null,"No",6,null,{"$f":"ROUND(F4349*G4349,2)","v":0}]
[]
[{"v":30,"d":"30 "},null,"Install",null,"No",6,null,{"$f":"ROUND(F4351*G4351,2)","v":0}]
[]
[null,null,"POWER TRUNKING"]
[]
[null,null,"Supply, Installation and commissioning of the Galvanized compact trunking, including all additional supports which may be required."]
[]
[null,null,"P2000 (41mm x 41mm) Galvanised Trunking"]
[]
[{"v":31,"d":"31 "},null,"Supply",null,"m",24,null,{"$f":"ROUND(F4359*G4359,2)","v":0}]
[]
[{"v":32,"d":"32 "},null,"Install",null,"m",24,null,{"$f":"ROUND(F4361*G4361,2)","v":0}]
[]
[null,null,"CONDUIT"]
[]
[null,null,"Supply and installation of PVC or Bosal conduit as specified. Lengths given shall be taken as measured horizontal and vertical runs between conduit terminations. Rates quoted shall allow for westage, offcuts, couplings,saddles, cuttings, bending, jointing socket and tees."]
[]
[null,null,"20 mm Ø PVC conduit fixed to steel/timber roof structure"]
[]
[{"v":33,"d":"33 "},null,"Supply",null,"m",200,null,{"$f":"ROUND(F4369*G4369,2)","v":0}]
[]
[{"v":34,"d":"34 "},null,"Install",null,"m",200,null,{"$f":"ROUND(F4371*G4371,2)","v":0}]
[]
[null,null,"20 mm Ø PVC conduit fixed onto common brick/ cast into concrete"]
[]
[{"v":35,"d":"35 "},null,"Supply",null,"m",260,null,{"$f":"ROUND(F4375*G4375,2)","v":0}]
[]
[{"v":36,"d":"36 "},null,"Install",null,"m",260,null,{"$f":"ROUND(F4377*G4377,2)","v":0}]
[]
[null,null,"25 mm Ø PVC conduit fixed to steel/timber roof"]
[]
[{"v":37,"d":"37 "},null,"Supply",null,"m",20,null,{"$f":"ROUND(F4381*G4381,2)","v":0}]
[]
[{"v":38,"d":"38 "},null,"Install",null,"m",20,null,{"$f":"ROUND(F4383*G4383,2)","v":0}]
[]
[null,null,"25 mm Ø PVC conduit fixed onto common brick/ cast into concrete"]
[]
[{"v":39,"d":"39 "},null,"Supply",null,"m",20,null,{"$f":"ROUND(F4387*G4387,2)","v":0}]
[]
[{"v":40,"d":"40 "},null,"Install",null,"m",20,null,{"$f":"ROUND(F4389*G4389,2)","v":0}]
[]
[null,null,"20 mm Ø PVC Galvanised Steel pipe fixed onto the wall."]
[]
[{"v":41,"d":"41 "},null,"Supply",null,"m",40,null,{"$f":"ROUND(F4393*G4393,2)","v":0}]
[]
[{"v":42,"d":"42 "},null,"Install",null,"m",40,null,{"$f":"ROUND(F4395*G4395,2)","v":0}]
[]
[null,null,"32 mm Ø Galvanised Steel pipe fixed onto the wall."]
[]
[{"v":43,"d":"43 "},null,"Supply",null,"m",8,null,{"$f":"ROUND(F4399*G4399,2)","v":0}]
[]
[{"v":44,"d":"44 "},null,"Install",null,"m",8,null,{"$f":"ROUND(F4401*G4401,2)","v":0}]
[]
[null,null,"Terminate and connect one pair of conduit ends including supply and installation of 1, 2, 3 or 4 way box on surface or in brickwork(excluding cover plates), including holes for conduit."]
[]
[null,null,"20mm round PVC conduit box c/w covers."]
[]
[{"v":45,"d":"45 "},null,"Supply",null,"No",30,null,{"$f":"ROUND(F4407*G4407,2)","v":0}]
[]
[{"v":46,"d":"46 "},null,"Install",null,"No",30,null,{"$f":"ROUND(F4409*G4409,2)","v":0}]
[]
[null,null,"25mm round PVC conduit box c/w covers."]
[]
[{"v":47,"d":"47 "},null,"Supply",null,"No",5,null,{"$f":"ROUND(F4413*G4413,2)","v":0}]
[]
[{"v":48,"d":"48 "},null,"Install",null,"No",5,null,{"$f":"ROUND(F4415*G4415,2)","v":0}]
[]
[null,null,"100 x 50 x 50mm Galvanized box"]
[]
[{"v":49,"d":"49 "},null,"Supply",null,"No",5,null,{"$f":"ROUND(F4419*G4419,2)","v":0}]
[]
[{"v":50,"d":"50 "},null,"Install",null,"No",5,null,{"$f":"ROUND(F4421*G4421,2)","v":0}]
[]
[null,null,"100 x 100 x 50mm Galvanized box"]
[]
[{"v":51,"d":"51 "},null,"Supply",null,"No",6,null,{"$f":"ROUND(F4425*G4425,2)","v":0}]
[]
[{"v":52,"d":"52 "},null,"Install",null,"No",6,null,{"$f":"ROUND(F4427*G4427,2)","v":0}]
[]
[null,null,"COPPER CONDUCTORS"]
[]
[null,null,"Supply and Installation of PVC insulated copper conductors drawn into conduit or wiring channel in groups of 2, 3, 4 etc. with the required colour coding, but excluding any wiring connections."]
[]
[null,null,"2,5 mm² red PVC insulated"]
[]
[{"v":53,"d":"53 "},null,"Supply",null,"m",500,null,{"$f":"ROUND(F4435*G4435,2)","v":0}]
[]
[{"v":54,"d":"54 "},null,"Install",null,"m",500,null,{"$f":"ROUND(F4437*G4437,2)","v":0}]
[]
[null,null,"2,5 mm² black PVC insulated"]
[]
[{"v":55,"d":"55 "},null,"Supply",null,"m",400,null,{"$f":"ROUND(F4441*G4441,2)","v":0}]
[]
[{"v":56,"d":"56 "},null,"Install",null,"m",400,null,{"$f":"ROUND(F4443*G4443,2)","v":0}]
[]
[null,null,"4,0 mm² red PVC insulated"]
[]
[{"v":57,"d":"57 "},null,"Supply",null,"m",400,null,{"$f":"ROUND(F4447*G4447,2)","v":0}]
[]
[{"v":58,"d":"58 "},null,"Install",null,"m",400,null,{"$f":"ROUND(F4449*G4449,2)","v":0}]
[]
[null,null,"4,0 mm² black PVC insulated"]
[]
[{"v":59,"d":"59 "},null,"Supply",null,"m",400,null,{"$f":"ROUND(F4453*G4453,2)","v":0}]
[]
[{"v":60,"d":"60 "},null,"Install",null,"m",400,null,{"$f":"ROUND(F4455*G4455,2)","v":0}]
[]
[null,null,"EARTH CONDUCTORS"]
[]
[null,null,"Supply and Installation of PVC insulated earth conductors drawn into conduit or wiring channel with the required colour coding, but excluding any wiring connections."]
[]
[null,null,"2,5 mm² yellow/green PVC insulated"]
[]
[{"v":61,"d":"61 "},null,"Supply",null,"m",1000,null,{"$f":"ROUND(F4463*G4463,2)","v":0}]
[]
[{"v":62,"d":"62 "},null,"Install",null,"m",1000,null,{"$f":"ROUND(F4465*G4465,2)","v":0}]
[]
[null,null,"EARTHING SYSTEM"]
[]
[null,null,"EARTH SPIKE"]
[]
[null,null,"1.5m copper coated earth spike at the Distribution Board"]
[]
[{"v":63,"d":"63 "},null,"Supply",null,"No",1,null,{"$f":"ROUND(F4473*G4473,2)","v":0}]
[]
[{"v":64,"d":"64 "},null,"Install",null,"No",1,null,{"$f":"ROUND(F4475*G4475,2)","v":0}]
[]
[{"v":65,"d":"65 "},null,"Allow for earthing and bonding of cold and hot water pipes and all the metal to comply with SANS regulations.",null,"Item",1,null,{"$f":"ROUND(F4477*G4477,2)","v":0}]
[]
[null,null,"LIGHTNING  PROTECTION"]
[]
[null,null,"PVC CONDUITS"]
[]
[null,null,"Supply and installation of conduit as specified in General Specification Lengths shall be taken as measured horizontal and vertical runs between terminations. Rates quoted shall allow for wastage off-cuts, couplings, bends, extention boxes, covers fixing and chasing etc. in accordance with the specification."]
[]
[null,null,"20mm diameter CIB, FOS, CIC"]
[]
[{"v":66,"d":"66 "},null,"Supply",null,"m",16,null,{"$f":"ROUND(F4487*G4487,2)","v":0}]
[]
[{"v":67,"d":"67 "},null,"Install",null,"m",16,null,{"$f":"ROUND(F4489*G4489,2)","v":0}]
[]
[null,null,"LIGHTNING PROTECTION SYSTEM"]
[]
[null,null,"50mm² Diameter copper conductor installed in conduit"]
[]
[{"v":68,"d":"68 "},null,"Supply",null,"m",16,null,{"$f":"ROUND(F4495*G4495,2)","v":0}]
[]
[{"v":69,"d":"69 "},null,"Install",null,"m",16,null,{"$f":"ROUND(F4497*G4497,2)","v":0}]
[]
[null,null,"Caldweld copper earth electrodes driven in ground 16mm Diameter x 1500mm long earth electrode driven into ground"]
[]
[{"v":70,"d":"70 "},null,"Supply",null,"No",4,null,{"$f":"ROUND(F4501*G4501,2)","v":0}]
[]
[{"v":71,"d":"71 "},null,"Install",null,"No",4,null,{"$f":"ROUND(F4503*G4503,2)","v":0}]
[]
[null,null,"Bonds from down conductor to roof sheets or gutters"]
[]
[{"v":72,"d":"72 "},null,"Supply",null,"No",4,null,{"$f":"ROUND(F4507*G4507,2)","v":0}]
[]
[{"v":73,"d":"73 "},null,"Install",null,"No",4,null,{"$f":"ROUND(F4509*G4509,2)","v":0}]
[]
[null,null,"Bond down conductors to Copper Earth Electrode"]
[]
[{"v":74,"d":"74 "},null,"Supply",null,"No",4,null,{"$f":"ROUND(F4513*G4513,2)","v":0}]
[]
[{"v":75,"d":"75 "},null,"Install",null,"No",4,null,{"$f":"ROUND(F4515*G4515,2)","v":0}]
[]
[null,null,"Lightning protection Test point incl 100x100x50 box and engraved cover as per specification"]
[]
[{"v":76,"d":"76 "},null,"Supply",null,"No",2,null,{"$f":"ROUND(F4519*G4519,2)","v":0}]
[]
[{"v":77,"d":"77 "},null,"Install",null,"No",2,null,{"$f":"ROUND(F4521*G4521,2)","v":0}]
[]
[{"v":78,"d":"78 "},null,"Allow for site survey, resistivity test reports and    issuing of workshop drawing to the engineer prior to installation.",null,"Item",1,null,{"$f":"ROUND(F4523*G4523,2)","v":0}]
[]
[{"v":79,"d":"79 "},null,"Allow for resistivity tests after completion",null,"Item",1,null,{"$f":"ROUND(F4525*G4525,2)","v":0}]
[]
[{"v":80,"d":"80 "},null,"Allow for testing, commissioning and issuing of Certificate.",null,"Item",1,null,{"$f":"ROUND(F4527*G4527,2)","v":0}]
[]
[null,null,"TESTING AND COMMISSIONING"]
[]
[{"v":81,"d":"81 "},null,"Allow for a Lump Sum for testing and commissioning of the entire electrical installation, including the provision of Compliance Certificate",null,"Item",1,null,{"$f":"ROUND(F4531*G4531,2)","v":0}]
[]
[null,null,"GENERAL"]
[]
[{"v":82,"d":"82 "},null,"Allow for the 12 months guarantee period",null,"Item",1,null,{"$f":"ROUND(F4535*G4535,2)","v":0}]
[]
[{"v":83,"d":"83 "},null,"Allow all necessary labelling of equipment where required",null,"Item",1,null,{"$f":"ROUND(F4537*G4537,2)","v":0}]
[]
[{"v":84,"d":"84 "},null,"Allow for the submission of Asbuilt drawings",null,"Item",1,null,{"$f":"ROUND(F4539*G4539,2)","v":0}]
[]
[null,null,"Carried to Summary",{"$nulls":4},{"$f":"SUM(H4233:H4540)","v":0}]
[]
[]
[null,null,"SECTION 4 : ELECTRICAL INSTALLATION (PROVISIONAL)"]
[]
[null,null,"BILL 7"]
[]
[null,null,"BLOCK F"]
[]
[null,null,"LV RETICULATION"]
[]
[null,null,"COPPER CABLES"]
[]
[null,null,"Supply and Installation of 1000/600 volts PVC/SWA/PVC ECC copper cables as specified, excluding terminations and cable supports. Lengths ginen shall be taken as measured lengths to cable runs from terminal to terminal and rates quoted shall include for off-cuts and wastage. Note should cables without ECC be utilized the tenderer will supply the additional external earth at no additional cost."]
[]
[null,null,"35mm² 3C PVC/SWA/PVC ECC Cable"]
[]
[{"v":1,"d":"1 "},null,"Supply",null,"m",100,null,{"$f":"ROUND(F4558*G4558,2)","v":0}]
[]
[{"v":2,"d":"2 "},null,"Install",null,"m",100,null,{"$f":"ROUND(F4560*G4560,2)","v":0}]
[]
[null,null,"CABLE TERMINATIONS"]
[]
[null,null,"For PVC/SWA/PVC shall include supply and fitting of the cable gland, neoprene shroud, making-off the cable, lugs, and fitting the gland to the board gland plate, switchgear and final connection of cable tails into board or terminals."]
[]
[null,null,"35mm² 3C PVC/SWA/PVC ECC Cable"]
[]
[{"v":3,"d":"3 "},null,"Supply",null,"No",2,null,{"$f":"ROUND(F4568*G4568,2)","v":0}]
[]
[{"v":4,"d":"4 "},null,"Install",null,"No",2,null,{"$f":"ROUND(F4570*G4570,2)","v":0}]
[]
[null,null,"DRAW WIRES"]
[]
[null,null,"Supply and Installation of galvanized steel draw wires drawn into conduit, cable sleeve or wiring channel."]
[]
[null,null,"1mm² Galvanized draw wire"]
[]
[{"v":5,"d":"5 "},null,"Supply",null,"m",200,null,{"$f":"ROUND(F4578*G4578,2)","v":0}]
[]
[{"v":6,"d":"6 "},null,"Install",null,"m",200,null,{"$f":"ROUND(F4580*G4580,2)","v":0}]
[]
[null,null,"LIGHTING AND POWER I"]
[]
[null,null,"DISTRIBUTION BOARDS"]
[]
[null,null,"Supply and Installation of the specified Distribution Boards, including making off all wire connections, earthing and conduit terminations but exclude cable terminations."]
[]
[null,null,"DB - MAIN Distribution Board as per Schematic Layout"]
[]
[{"v":7,"d":"7 "},null,"Supply",null,"No",1,null,{"$f":"ROUND(F4590*G4590,2)","v":0}]
[]
[{"v":8,"d":"8 "},null,"Install",null,"No",1,null,{"$f":"ROUND(F4592*G4592,2)","v":0}]
[]
[null,null,"LUMINAIRES"]
[]
[null,null,"Supply and Installation of the following SABS approved luminaries, complete with lamps as specified"]
[]
[null,null,"Type A The Luminaire shall be LIHLE or other SABS approved 1500x300mm T8, 2x22W LED low  brightness with clip in louvre surface mounted fitting, complete with LED tubes"]
[]
[{"v":9,"d":"9 "},null,"Supply",null,"No",17,null,{"$f":"ROUND(F4600*G4600,2)","v":0}]
[]
[{"v":10,"d":"10 "},null,"Install",null,"No",17,null,{"$f":"ROUND(F4602*G4602,2)","v":0}]
[]
[null,null,"Type B The Luminaire shall be LIHLE or other SABS approved 1500mm T8, 2x22W LED Open Channel surface mounted fitting complete with LED tubes"]
[]
[{"v":11,"d":"11 "},null,"Supply",null,"No",4,null,{"$f":"ROUND(F4606*G4606,2)","v":0}]
[]
[{"v":12,"d":"12 "},null,"Install",null,"No",4,null,{"$f":"ROUND(F4608*G4608,2)","v":0}]
[]
[null,null,"Type D The Luminaire shall be LIHLE or other SABS approved 15W LED recessed Downlight ceiling mounted fitting."]
[]
[{"v":13,"d":"13 "},null,"Supply",null,"No",8,null,{"$f":"ROUND(F4612*G4612,2)","v":0}]
[]
[{"v":14,"d":"14 "},null,"Install",null,"No",8,null,{"$f":"ROUND(F4614*G4614,2)","v":0}]
[]
[null,null,"Type G The Luminaire shall be Round  LIHLE or other SABS approved MC 15W LED Bulkhead ceiling/wall mounted fitting at 2200mm AFFL (black trim external/white trim internal)."]
[]
[{"v":15,"d":"15 "},null,"Supply",null,"No",15,null,{"$f":"ROUND(F4618*G4618,2)","v":0}]
[]
[{"v":16,"d":"16 "},null,"Install",null,"No",15,null,{"$f":"ROUND(F4620*G4620,2)","v":0}]
[]
[null,null,"LIGHTING AND POWER II"]
[]
[null,null,"LIGHT SWITCHES"]
[]
[null,null,"Supply and Installation of the following SABS approved flush or surface mounted 16A switched socket outlet, complete with 100x50 PVC box and cover plates"]
[]
[null,null,"1 Lever, 1 Way 16A Light Switch complete with PVC Cover plate (Crabtree or Clipsal)"]
[]
[{"v":17,"d":"17 "},null,"Supply",null,"No",16,null,{"$f":"ROUND(F4630*G4630,2)","v":0}]
[]
[{"v":18,"d":"18 "},null,"Install",null,"No",16,null,{"$f":"ROUND(F4632*G4632,2)","v":0}]
[]
[null,null,"1 Lever, 2 Way 16A Light Switch complete with PVC Cover plate (Crabtree or Clipsal)"]
[]
[{"v":19,"d":"19 "},null,"Supply",null,"No",6,null,{"$f":"ROUND(F4636*G4636,2)","v":0}]
[]
[{"v":20,"d":"20 "},null,"Install",null,"No",6,null,{"$f":"ROUND(F4638*G4638,2)","v":0}]
[]
[null,null,"Type ZS 20A National Day Light electric cell or similar"]
[]
[{"v":21,"d":"21 "},null,"Supply",null,"No",1,null,{"$f":"ROUND(F4642*G4642,2)","v":0}]
[]
[{"v":22,"d":"22 "},null,"Install",null,"No",1,null,{"$f":"ROUND(F4644*G4644,2)","v":0}]
[]
[null,null,"OCCUPANCY SENSOR"]
[]
[null,null,"Type 1 ( OS1 ) as type schneider Electric SLSCPS 1000  or other approved .This sensor to be the PIR  ceiling mounted sensor with time delay, sensitivity and light level adjustment.Minimum 7m radius detection ( minor detection ) and 9.7m radius ( Major detection )"]
[]
[{"v":23,"d":"23 "},null,"Supply",null,"No",6,null,{"$f":"ROUND(F4650*G4650,2)","v":0}]
[]
[{"v":24,"d":"24 "},null,"Install",null,"No",6,null,{"$f":"ROUND(F4652*G4652,2)","v":0}]
[]
[null,null,"SOCKET OUTLETS"]
[]
[null,null,"Supply and Installation of flush or surface mounted switched or un-switched socket outlets in 100x100,100x50, round box or wiring channel, excluding box (for flush type ) and conduit connections, but including cover plate."]
[]
[null,null,"16A Flush wall mounted normal Single switched socket outlet complete with 100x100x50mm"]
[]
[{"v":25,"d":"25 "},null,"Supply",null,"No",6,null,{"$f":"ROUND(F4660*G4660,2)","v":0}]
[]
[{"v":26,"d":"26 "},null,"Install",null,"No",6,null,{"$f":"ROUND(F4662*G4662,2)","v":0}]
[]
[null,null,"16A Flush wall mounted normal Double switched socket outlet complete with 100x100x50mm"]
[]
[{"v":27,"d":"27 "},null,"Supply",null,"No",12,null,{"$f":"ROUND(F4666*G4666,2)","v":0}]
[]
[{"v":28,"d":"28 "},null,"Install",null,"No",12,null,{"$f":"ROUND(F4668*G4668,2)","v":0}]
[]
[null,null,"5A Un-Switched Socket Outlet"]
[]
[{"v":29,"d":"29 "},null,"Supply",null,"No",2,null,{"$f":"ROUND(F4672*G4672,2)","v":0}]
[]
[{"v":30,"d":"30 "},null,"Install",null,"No",2,null,{"$f":"ROUND(F4674*G4674,2)","v":0}]
[]
[null,null,"ISOLATORS"]
[]
[null,null,"Supply and Installation of a flush or surface mounted Metal Clad Isolators either in 100x100, 100x50, round box or wiring channel, excluding box (for flush type) and conduit connections, but including cover plate."]
[]
[null,null,"20A DP Metal Clad Flush mounted isolator"]
[]
[{"v":31,"d":"31 "},null,"Supply",null,"No",1,null,{"$f":"ROUND(F4682*G4682,2)","v":0}]
[]
[{"v":32,"d":"32 "},null,"Install",null,"No",1,null,{"$f":"ROUND(F4684*G4684,2)","v":0}]
[]
[null,null,"POWER SKIRTING"]
[]
[null,null,"Supply and Installation of 2 compartment 2 cover PVC power skirting SABS approved complete with bends and all other accessorie"]
[]
[null,null,"Two compartment power skirting plus cover"]
[]
[{"v":33,"d":"33 "},null,"Supply",null,"m",24,null,{"$f":"ROUND(F4692*G4692,2)","v":0}]
[]
[{"v":34,"d":"34 "},null,"Install",null,"m",24,null,{"$f":"ROUND(F4694*G4694,2)","v":0}]
[]
[null,null,"End covers"]
[]
[{"v":35,"d":"35 "},null,"Supply",null,"No",4,null,{"$f":"ROUND(F4698*G4698,2)","v":0}]
[]
[{"v":36,"d":"36 "},null,"Install",null,"No",4,null,{"$f":"ROUND(F4700*G4700,2)","v":0}]
[]
[null,null,"Elbows"]
[]
[{"v":37,"d":"37 "},null,"Supply",null,"No",4,null,{"$f":"ROUND(F4704*G4704,2)","v":0}]
[]
[{"v":38,"d":"38 "},null,"Install",null,"No",4,null,{"$f":"ROUND(F4706*G4706,2)","v":0}]
[]
[null,null,"16A Normal Single EURO with 2 Pin and USB switched socket outlet mounted on the power skirting"]
[]
[{"v":39,"d":"39 "},null,"Supply",null,"No",7,null,{"$f":"ROUND(F4710*G4710,2)","v":0}]
[]
[{"v":40,"d":"40 "},null,"Install",null,"No",7,null,{"$f":"ROUND(F4712*G4712,2)","v":0}]
[]
[null,null,"16A Standard dedicated switched socket outlet mounted on the power skirting"]
[]
[{"v":41,"d":"41 "},null,"Supply",null,"No",4,null,{"$f":"ROUND(F4716*G4716,2)","v":0}]
[]
[{"v":42,"d":"42 "},null,"Install",null,"No",4,null,{"$f":"ROUND(F4718*G4718,2)","v":0}]
[]
[null,null,"RJ 45 Data Outlet"]
[]
[{"v":43,"d":"43 "},null,"Supply",null,"No",7,null,{"$f":"ROUND(F4722*G4722,2)","v":0}]
[]
[{"v":44,"d":"44 "},null,"Install",null,"No",7,null,{"$f":"ROUND(F4724*G4724,2)","v":0}]
[]
[null,null,"RJ11 Tel Outlet"]
[]
[{"v":45,"d":"45 "},null,"Supply",null,"No",1,null,{"$f":"ROUND(F4728*G4728,2)","v":0}]
[]
[{"v":46,"d":"46 "},null,"Install",null,"No",1,null,{"$f":"ROUND(F4730*G4730,2)","v":0}]
[]
[null,null,"CLUSTER BOXES"]
[]
[null,null,"Supply and Installation of powercomm or other approved cluster box, complete with dividers."]
[]
[null,null,"16A  Normal Single EURO with 2 Pin and USB switched socket outlet mounted on cluster box."]
[]
[{"v":47,"d":"47 "},null,"Supply",null,"No",7,null,{"$f":"ROUND(F4738*G4738,2)","v":0}]
[]
[{"v":48,"d":"48 "},null,"Install",null,"No",7,null,{"$f":"ROUND(F4740*G4740,2)","v":0}]
[]
[null,null,"16A  Standard Dedicated switched socket outlet mounted on cluster box"]
[]
[{"v":49,"d":"49 "},null,"Supply",null,"No",7,null,{"$f":"ROUND(F4744*G4744,2)","v":0}]
[]
[{"v":50,"d":"50 "},null,"Install",null,"No",7,null,{"$f":"ROUND(F4746*G4746,2)","v":0}]
[]
[null,null,"RJ11 Tel Outlet"]
[]
[{"v":51,"d":"51 "},null,"Supply",null,"No",2,null,{"$f":"ROUND(F4750*G4750,2)","v":0}]
[]
[{"v":52,"d":"52 "},null,"Install",null,"No",2,null,{"$f":"ROUND(F4752*G4752,2)","v":0}]
[]
[null,null,"RJ 45 Data Outlet"]
[]
[{"v":53,"d":"53 "},null,"Supply",null,"No",1,null,{"$f":"ROUND(F4756*G4756,2)","v":0}]
[]
[{"v":54,"d":"54 "},null,"Install",null,"No",1,null,{"$f":"ROUND(F4758*G4758,2)","v":0}]
[]
[null,null,"EXTRACTION FANS"]
[]
[null,null,"Supply and Installation of wall mounted extraction fans consisting of 250mm diameter through the wall fans complete with internal and external louvres."]
[]
[null,null,"Xpelair G9 extraction fan or other approved"]
[]
[{"v":55,"d":"55 "},null,"Supply",null,"No",5,null,{"$f":"ROUND(F4766*G4766,2)","v":0}]
[]
[{"v":56,"d":"56 "},null,"Install",null,"No",5,null,{"$f":"ROUND(F4768*G4768,2)","v":0}]
[]
[null,null,"SIREN"]
[]
[null,null,"Supply  and Installation of  a complete SABS approved siren including all accessories as specified."]
[]
[null,null,"SABS approved 220/230 V Siren"]
[]
[{"v":57,"d":"57 "},null,"Supply",null,"m",1,null,{"$f":"ROUND(F4776*G4776,2)","v":0}]
[]
[{"v":58,"d":"58 "},null,"Install",null,"m",1,null,{"$f":"ROUND(F4778*G4778,2)","v":0}]
[]
[null,null,"APPLIANCE CONNECTIONS"]
[]
[null,null,"Electrical connections of appliances from the isolator outlet to the equipment connection terminals. Provisions for flexible conduit and wiring or cables required to be included."]
[]
[{"v":59,"d":"59 "},null,"Single phase Hydro boil",null,"No",1,null,{"$f":"ROUND(F4784*G4784,2)","v":0}]
[]
[{"v":60,"d":"60 "},null,"Single phase Extraction Fans",null,"No",4,null,{"$f":"ROUND(F4786*G4786,2)","v":0}]
[]
[{"v":61,"d":"61 "},null,"Single phase Siren Bell",null,"No",1,null,{"$f":"ROUND(F4788*G4788,2)","v":0}]
[]
[null,null,"EARTHING SYSTEM"]
[]
[null,null,"EARTH SPIKE"]
[]
[null,null,"1.5m copper coated earth spike at the Distribution Board"]
[]
[{"v":62,"d":"62 "},null,"Supply",null,"No",1,null,{"$f":"ROUND(F4796*G4796,2)","v":0}]
[]
[{"v":63,"d":"63 "},null,"Install",null,"No",1,null,{"$f":"ROUND(F4798*G4798,2)","v":0}]
[]
[{"v":64,"d":"64 "},null,"Allow for earthing and bonding of cold and hot water pipes and all the metal to comply with SANS regulations.",null,"Item",1,null,{"$f":"ROUND(F4800*G4800,2)","v":0}]
[]
[null,null,"LIGHTNING PROTECTION SYSTEM"]
[]
[{"v":65,"d":"65 "},null,"Allow for site survey, resistivity test reports and    issuing of workshop drawing to the engineer prior to installation.",null,"Item",1,null,{"$f":"ROUND(F4804*G4804,2)","v":0}]
[]
[{"v":66,"d":"66 "},null,"Allow for resistivity tests after completion",null,"Item",1,null,{"$f":"ROUND(F4806*G4806,2)","v":0}]
[]
[{"v":67,"d":"67 "},null,"Allow for testing, commissioning and issuing of Certificate.",null,"Item",1,null,{"$f":"ROUND(F4808*G4808,2)","v":0}]
[]
[null,null,"TESTING AND COMMISSIONING"]
[]
[{"v":68,"d":"68 "},null,"Allow for a Lump Sum for testing and commissioning of the entire electrical installation, including the provision of Compliance Certificate",null,"Item",1,null,{"$f":"ROUND(F4812*G4812,2)","v":0}]
[]
[null,null,"GENERAL"]
[]
[{"v":69,"d":"69 "},null,"Allow for the 12 months guarantee period",null,"Item",1,null,{"$f":"ROUND(F4816*G4816,2)","v":0}]
[]
[{"v":70,"d":"70 "},null,"Allow all necessary labelling of equipment where required",null,"Item",1,null,{"$f":"ROUND(F4818*G4818,2)","v":0}]
[]
[{"v":71,"d":"71 "},null,"Allow for the submission of Asbuilt drawings",null,"Item",1,null,{"$f":"ROUND(F4820*G4820,2)","v":0}]
[]
[null,null,"Carried to Summary",{"$nulls":4},{"$f":"SUM(H4558:H4821)","v":0}]
[]
[]
[null,null,"SECTION 4 : ELECTRICAL INSTALLATION (PROVISIONAL)"]
[]
[null,null,"BILL 8"]
[]
[null,null,"BLOCK G"]
[]
[null,null,"LV RETICULATION"]
[]
[null,null,"COPPER CABLES"]
[]
[null,null,"Supply and Installation of 1000/600 volts PVC/SWA/PVC ECC copper cables as specified, excluding terminations and cable supports. Lengths ginen shall be taken as measured lengths to cable runs from terminal to terminal and rates quoted shall include for off-cuts and wastage. Note should cables without ECC be utilized the tenderer will supply the additional external earth at no additional cost."]
[]
[null,null,"10mm² 3C PVC/SWA/PVC ECC Cable"]
[]
[{"v":1,"d":"1 "},null,"Supply",null,"m",50,null,{"$f":"ROUND(F4839*G4839,2)","v":0}]
[]
[{"v":2,"d":"2 "},null,"Install",null,"m",50,null,{"$f":"ROUND(F4841*G4841,2)","v":0}]
[]
[null,null,"CABLE TERMINATIONS"]
[]
[null,null,"For PVC/SWA/PVC shall include supply and fitting of the cable gland, neoprene shroud, making-off the cable, lugs, and fitting the gland to the board gland plate, switchgear and final connection of cable tails into board or terminals."]
[]
[null,null,"10mm² 3C PVC/SWA/PVC ECC Cable"]
[]
[{"v":3,"d":"3 "},null,"Supply",null,"No",2,null,{"$f":"ROUND(F4849*G4849,2)","v":0}]
[]
[{"v":4,"d":"4 "},null,"Install",null,"No",2,null,{"$f":"ROUND(F4851*G4851,2)","v":0}]
[]
[null,null,"DRAW WIRES"]
[]
[null,null,"Supply and Installation of galvanized steel draw wires drawn into conduit, cable sleeve or wiring channel."]
[]
[null,null,"1mm² Galvanized draw wire"]
[]
[{"v":5,"d":"5 "},null,"Supply",null,"m",200,null,{"$f":"ROUND(F4859*G4859,2)","v":0}]
[]
[{"v":6,"d":"6 "},null,"Install",null,"m",200,null,{"$f":"ROUND(F4861*G4861,2)","v":0}]
[]
[null,null,"LIGHTING AND POWER I"]
[]
[null,null,"DISTRIBUTION BOARDS"]
[]
[null,null,"Supply and Installation of the specified Distribution Boards, including making off all wire connections, earthing and conduit terminations but exclude cable terminations."]
[]
[null,null,"DB -G Sub Distribution Board as per Schematic Layout"]
[]
[{"v":7,"d":"7 "},null,"Supply",null,"No",1,null,{"$f":"ROUND(F4871*G4871,2)","v":0}]
[]
[{"v":8,"d":"8 "},null,"Install",null,"No",1,null,{"$f":"ROUND(F4873*G4873,2)","v":0}]
[]
[null,null,"LUMINAIRES"]
[]
[null,null,"Supply and Installation of the following SABS approved luminaries, complete with lamps as specified"]
[]
[null,null,"Type B The Luminaire shall be LIHLE or other SABS approved 1500mm T8, 2x22W LED Open Channel surface mounted fitting complete with LED tubes"]
[]
[{"v":9,"d":"9 "},null,"Supply",null,"No",3,null,{"$f":"ROUND(F4881*G4881,2)","v":0}]
[]
[{"v":10,"d":"10 "},null,"Install",null,"No",3,null,{"$f":"ROUND(F4883*G4883,2)","v":0}]
[]
[null,null,"Type C The Luminaire shall be LIHLE or other SABS approved 1500x200mm T8, 2x22W LED Vapour Proof surface mounted fitting complete with LED tubes"]
[]
[{"v":11,"d":"11 "},null,"Supply",null,"No",2,null,{"$f":"ROUND(F4887*G4887,2)","v":0}]
[]
[{"v":12,"d":"12 "},null,"Install",null,"No",2,null,{"$f":"ROUND(F4889*G4889,2)","v":0}]
[]
[null,null,"Type G The Luminaire shall be Round  LIHLE or other SABS approved MC 15W LED Bulkhead ceiling/wall mounted fitting at 2200mm AFFL (black trim external/white trim internal)."]
[]
[{"v":13,"d":"13 "},null,"Supply",null,"No",4,null,{"$f":"ROUND(F4893*G4893,2)","v":0}]
[]
[{"v":14,"d":"14 "},null,"Install",null,"No",4,null,{"$f":"ROUND(F4895*G4895,2)","v":0}]
[]
[null,null,"LIGHTING AND POWER II"]
[]
[null,null,"LIGHT SWITCHES"]
[]
[null,null,"Supply and Installation of the following SABS approved flush or surface mounted 16A switched socket outlet, complete with 100x50 PVC box and cover plates"]
[]
[null,null,"1 Lever, 1 Way 16A Light Switch complete with PVC Cover plate (Crabtree or Clipsal)"]
[]
[{"v":15,"d":"15 "},null,"Supply",null,"No",5,null,{"$f":"ROUND(F4905*G4905,2)","v":0}]
[]
[{"v":16,"d":"16 "},null,"Install",null,"No",5,null,{"$f":"ROUND(F4907*G4907,2)","v":0}]
[]
[null,null,"Type ZS 20A National Day Light electric cell or similar"]
[]
[{"v":17,"d":"17 "},null,"Supply",null,"No",1,null,{"$f":"ROUND(F4911*G4911,2)","v":0}]
[]
[{"v":18,"d":"18 "},null,"Install",null,"No",1,null,{"$f":"ROUND(F4913*G4913,2)","v":0}]
[]
[null,null,"SOCKET OUTLETS"]
[]
[null,null,"Supply and Installation of flush or surface mounted switched or un-switched socket outlets in 100x100,100x50, round box or wiring channel, excluding box (for flush type ) and conduit connections, but including cover plate."]
[]
[null,null,"16A Flush wall mounted normal Double switched socket outlet complete with 100x100x50mm"]
[]
[{"v":19,"d":"19 "},null,"Supply",null,"No",3,null,{"$f":"ROUND(F4921*G4921,2)","v":0}]
[]
[{"v":20,"d":"20 "},null,"Install",null,"No",3,null,{"$f":"ROUND(F4923*G4923,2)","v":0}]
[]
[null,null,"ISOLATORS"]
[]
[null,null,"Supply and Installation of a flush or surface mounted Metal Clad Isolators either in 100x100, 100x50, round box or wiring channel, excluding box (for flush type) and conduit connections, but including cover plate."]
[]
[null,null,"20A DP Metal Clad Flush mounted isolator"]
[]
[{"v":21,"d":"21 "},null,"Supply",null,"No",2,null,{"$f":"ROUND(F4931*G4931,2)","v":0}]
[]
[{"v":22,"d":"22 "},null,"Install",null,"No",2,null,{"$f":"ROUND(F4933*G4933,2)","v":0}]
[]
[null,null,"POWER TRUNKING"]
[]
[null,null,"Supply, Installation and commissioning of the Galvanized compact trunking, including all additional supports which may be required."]
[]
[null,null,"P2000 (41mm x 41mm) Galvanised Trunking"]
[]
[{"v":23,"d":"23 "},null,"Supply",null,"m",24,null,{"$f":"ROUND(F4941*G4941,2)","v":0}]
[]
[{"v":24,"d":"24 "},null,"Install",null,"m",24,null,{"$f":"ROUND(F4943*G4943,2)","v":0}]
[]
[null,null,"CONDUIT"]
[]
[null,null,"Supply and installation of PVC or Bosal conduit as specified. Lengths given shall be taken as measured horizontal and vertical runs between conduit terminations. Rates quoted shall allow for westage, offcuts, couplings,saddles, cuttings, bending, jointing socket and tees."]
[]
[null,null,"20 mm Ø PVC conduit fixed to steel/timber roof structure"]
[]
[{"v":25,"d":"25 "},null,"Supply",null,"m",200,null,{"$f":"ROUND(F4951*G4951,2)","v":0}]
[]
[{"v":26,"d":"26 "},null,"Install",null,"m",200,null,{"$f":"ROUND(F4953*G4953,2)","v":0}]
[]
[null,null,"20 mm Ø PVC conduit fixed onto common brick/ cast into concrete"]
[]
[{"v":27,"d":"27 "},null,"Supply",null,"m",260,null,{"$f":"ROUND(F4957*G4957,2)","v":0}]
[]
[{"v":28,"d":"28 "},null,"Install",null,"m",260,null,{"$f":"ROUND(F4959*G4959,2)","v":0}]
[]
[null,null,"25 mm Ø PVC conduit fixed to steel/timber roof"]
[]
[{"v":29,"d":"29 "},null,"Supply",null,"m",20,null,{"$f":"ROUND(F4963*G4963,2)","v":0}]
[]
[{"v":30,"d":"30 "},null,"Install",null,"m",20,null,{"$f":"ROUND(F4965*G4965,2)","v":0}]
[]
[null,null,"25 mm Ø PVC conduit fixed onto common brick/ cast into concrete"]
[]
[{"v":31,"d":"31 "},null,"Supply",null,"m",20,null,{"$f":"ROUND(F4969*G4969,2)","v":0}]
[]
[{"v":32,"d":"32 "},null,"Install",null,"m",20,null,{"$f":"ROUND(F4971*G4971,2)","v":0}]
[]
[null,null,"20 mm Ø PVC Galvanised Steel pipe fixed onto the wall."]
[]
[{"v":33,"d":"33 "},null,"Supply",null,"m",40,null,{"$f":"ROUND(F4975*G4975,2)","v":0}]
[]
[{"v":34,"d":"34 "},null,"Install",null,"m",40,null,{"$f":"ROUND(F4977*G4977,2)","v":0}]
[]
[null,null,"32 mm Ø Galvanised Steel pipe fixed onto the wall."]
[]
[{"v":35,"d":"35 "},null,"Supply",null,"m",8,null,{"$f":"ROUND(F4981*G4981,2)","v":0}]
[]
[{"v":36,"d":"36 "},null,"Install",null,"m",8,null,{"$f":"ROUND(F4983*G4983,2)","v":0}]
[]
[null,null,"Terminate and connect one pair of conduit ends including supply and installation of 1, 2, 3 or 4 way box on surface or in brickwork(excluding cover plates), including holes for conduit."]
[]
[null,null,"20mm round PVC conduit box c/w covers."]
[]
[{"v":37,"d":"37 "},null,"Supply",null,"No",30,null,{"$f":"ROUND(F4989*G4989,2)","v":0}]
[]
[{"v":38,"d":"38 "},null,"Install",null,"No",30,null,{"$f":"ROUND(F4991*G4991,2)","v":0}]
[]
[null,null,"25mm round PVC conduit box c/w covers."]
[]
[{"v":39,"d":"39 "},null,"Supply",null,"No",5,null,{"$f":"ROUND(F4995*G4995,2)","v":0}]
[]
[{"v":40,"d":"40 "},null,"Install",null,"No",5,null,{"$f":"ROUND(F4997*G4997,2)","v":0}]
[]
[null,null,"100 x 50 x 50mm Galvanized box"]
[]
[{"v":41,"d":"41 "},null,"Supply",null,"No",5,null,{"$f":"ROUND(F5001*G5001,2)","v":0}]
[]
[{"v":42,"d":"42 "},null,"Install",null,"No",5,null,{"$f":"ROUND(F5003*G5003,2)","v":0}]
[]
[null,null,"100 x 100 x 50mm Galvanized box"]
[]
[{"v":43,"d":"43 "},null,"Supply",null,"No",3,null,{"$f":"ROUND(F5007*G5007,2)","v":0}]
[]
[{"v":44,"d":"44 "},null,"Install",null,"No",3,null,{"$f":"ROUND(F5009*G5009,2)","v":0}]
[]
[null,null,"COPPER CONDUCTORS"]
[]
[null,null,"Supply and Installation of PVC insulated copper conductors drawn into conduit or wiring channel in groups of 2, 3, 4 etc. with the required colour coding, but excluding any wiring connections."]
[]
[null,null,"2,5 mm² red PVC insulated"]
[]
[{"v":45,"d":"45 "},null,"Supply",null,"m",500,null,{"$f":"ROUND(F5017*G5017,2)","v":0}]
[]
[{"v":46,"d":"46 "},null,"Install",null,"m",500,null,{"$f":"ROUND(F5019*G5019,2)","v":0}]
[]
[null,null,"2,5 mm² black PVC insulated"]
[]
[{"v":47,"d":"47 "},null,"Supply",null,"m",400,null,{"$f":"ROUND(F5023*G5023,2)","v":0}]
[]
[{"v":48,"d":"48 "},null,"Install",null,"m",400,null,{"$f":"ROUND(F5025*G5025,2)","v":0}]
[]
[null,null,"4,0 mm² red PVC insulated"]
[]
[{"v":49,"d":"49 "},null,"Supply",null,"m",400,null,{"$f":"ROUND(F5029*G5029,2)","v":0}]
[]
[{"v":50,"d":"50 "},null,"Install",null,"m",400,null,{"$f":"ROUND(F5031*G5031,2)","v":0}]
[]
[null,null,"4,0 mm² black PVC insulated"]
[]
[{"v":51,"d":"51 "},null,"Supply",null,"m",400,null,{"$f":"ROUND(F5035*G5035,2)","v":0}]
[]
[{"v":52,"d":"52 "},null,"Install",null,"m",400,null,{"$f":"ROUND(F5037*G5037,2)","v":0}]
[]
[null,null,"10,0 mm² red PVC insulated"]
[]
[{"v":53,"d":"53 "},null,"Supply",null,"m",15,null,{"$f":"ROUND(F5041*G5041,2)","v":0}]
[]
[{"v":54,"d":"54 "},null,"Install",null,"m",15,null,{"$f":"ROUND(F5043*G5043,2)","v":0}]
[]
[null,null,"10,0 mm² black PVC insulated"]
[]
[{"v":55,"d":"55 "},null,"Supply",null,"m",15,null,{"$f":"ROUND(F5047*G5047,2)","v":0}]
[]
[{"v":56,"d":"56 "},null,"Install",null,"m",15,null,{"$f":"ROUND(F5049*G5049,2)","v":0}]
[]
[null,null,"EARTH CONDUCTORS"]
[]
[null,null,"Supply and Installation of PVC insulated earth conductors drawn into conduit or wiring channel with the required colour coding, but excluding any wiring connections."]
[]
[null,null,"2,5 mm² yellow/green PVC insulated"]
[]
[{"v":57,"d":"57 "},null,"Supply",null,"m",1000,null,{"$f":"ROUND(F5057*G5057,2)","v":0}]
[]
[{"v":58,"d":"58 "},null,"Install",null,"m",1000,null,{"$f":"ROUND(F5059*G5059,2)","v":0}]
[]
[null,null,"6,0 mm² yellow/green PVC insulated"]
[]
[{"v":59,"d":"59 "},null,"Supply",null,"m",15,null,{"$f":"ROUND(F5063*G5063,2)","v":0}]
[]
[{"v":60,"d":"60 "},null,"Install",null,"m",15,null,{"$f":"ROUND(F5065*G5065,2)","v":0}]
[]
[null,null,"APPLIANCE CONNECTIONS"]
[]
[null,null,"Electrical connections of appliances from the isolator outlet to the equipment connection terminals. Provisions for flexible conduit and wiring or cables required to be included."]
[]
[{"v":61,"d":"61 "},null,"Single Phase Stove",null,"No",1,null,{"$f":"ROUND(F5071*G5071,2)","v":0}]
[]
[{"v":62,"d":"62 "},null,"Single Phase Hydro Boil",null,"No",1,null,{"$f":"ROUND(F5073*G5073,2)","v":0}]
[]
[null,null,"EARTHING SYSTEM"]
[]
[null,null,"EARTH SPIKE"]
[]
[null,null,"1.5m copper coated earth spike at the Distribution Board"]
[]
[{"v":63,"d":"63 "},null,"Supply",null,"No",1,null,{"$f":"ROUND(F5081*G5081,2)","v":0}]
[]
[{"v":64,"d":"64 "},null,"Install",null,"No",1,null,{"$f":"ROUND(F5083*G5083,2)","v":0}]
[]
[{"v":65,"d":"65 "},null,"Allow for earthing and bonding of cold and hot water pipes and all the metal to comply with SANS regulations.",null,"Item",1,null,{"$f":"ROUND(F5085*G5085,2)","v":0}]
[]
[null,null,"LIGHTNING  PROTECTION"]
[]
[null,null,"PVC CONDUITS"]
[]
[null,null,"Supply and installation of conduit as specified in General Specification Lengths shall be taken as measured horizontal and vertical runs between terminations. Rates quoted shall allow for wastage off-cuts, couplings, bends, extention boxes, covers fixing and chasing etc. in accordance with the specification."]
[]
[null,null,"20mm diameter CIB, FOS, CIC"]
[]
[{"v":66,"d":"66 "},null,"Supply",null,"m",16,null,{"$f":"ROUND(F5095*G5095,2)","v":0}]
[]
[{"v":67,"d":"67 "},null,"Install",null,"m",16,null,{"$f":"ROUND(F5097*G5097,2)","v":0}]
[]
[null,null,"LIGHTNING PROTECTION SYSTEM"]
[]
[null,null,"50mm² Diameter copper conductor installed in conduit"]
[]
[{"v":68,"d":"68 "},null,"Supply",null,"m",16,null,{"$f":"ROUND(F5103*G5103,2)","v":0}]
[]
[{"v":69,"d":"69 "},null,"Install",null,"m",16,null,{"$f":"ROUND(F5105*G5105,2)","v":0}]
[]
[null,null,"Caldweld copper earth electrodes driven in ground 16mm Diameter x 1500mm long earth electrode driven into ground"]
[]
[{"v":70,"d":"70 "},null,"Supply",null,"No",4,null,{"$f":"ROUND(F5109*G5109,2)","v":0}]
[]
[{"v":71,"d":"71 "},null,"Install",null,"No",4,null,{"$f":"ROUND(F5111*G5111,2)","v":0}]
[]
[null,null,"Bonds from down conductor to roof sheets or gutters"]
[]
[{"v":72,"d":"72 "},null,"Supply",null,"No",4,null,{"$f":"ROUND(F5115*G5115,2)","v":0}]
[]
[{"v":73,"d":"73 "},null,"Install",null,"No",4,null,{"$f":"ROUND(F5117*G5117,2)","v":0}]
[]
[null,null,"Bond down conductors to Copper Earth Electrode"]
[]
[{"v":74,"d":"74 "},null,"Supply",null,"No",4,null,{"$f":"ROUND(F5121*G5121,2)","v":0}]
[]
[{"v":75,"d":"75 "},null,"Install",null,"No",4,null,{"$f":"ROUND(F5123*G5123,2)","v":0}]
[]
[null,null,"Lightning protection Test point incl 100x100x50 box and engraved cover as per specification"]
[]
[{"v":76,"d":"76 "},null,"Supply",null,"No",2,null,{"$f":"ROUND(F5127*G5127,2)","v":0}]
[]
[{"v":77,"d":"77 "},null,"Install",null,"No",2,null,{"$f":"ROUND(F5129*G5129,2)","v":0}]
[]
[{"v":78,"d":"78 "},null,"Allow for site survey, resistivity test reports and    issuing of workshop drawing to the engineer prior to installation.",null,"Item",1,null,{"$f":"ROUND(F5131*G5131,2)","v":0}]
[]
[{"v":79,"d":"79 "},null,"Allow for resistivity tests after completion",null,"Item",1,null,{"$f":"ROUND(F5133*G5133,2)","v":0}]
[]
[{"v":80,"d":"80 "},null,"Allow for testing, commissioning and issuing of Certificate.",null,"Item",1,null,{"$f":"ROUND(F5135*G5135,2)","v":0}]
[]
[null,null,"TESTING AND COMMISSIONING"]
[]
[{"v":81,"d":"81 "},null,"Allow for a Lump Sum for testing and commissioning of the entire electrical installation, including the provision of Compliance Certificate",null,"Item",1,null,{"$f":"ROUND(F5139*G5139,2)","v":0}]
[]
[null,null,"GENERAL"]
[]
[{"v":82,"d":"82 "},null,"Allow for the 12 months guarantee period",null,"Item",1,null,{"$f":"ROUND(F5143*G5143,2)","v":0}]
[]
[{"v":83,"d":"83 "},null,"Allow all necessary labelling of equipment where required",null,"Item",1,null,{"$f":"ROUND(F5145*G5145,2)","v":0}]
[]
[{"v":84,"d":"84 "},null,"Allow for the submission of Asbuilt drawings",null,"Item",1,null,{"$f":"ROUND(F5147*G5147,2)","v":0}]
[]
[null,null,"Carried to Summary",{"$nulls":4},{"$f":"SUM(H4839:H5148)","v":0}]
[]
[]
[null,null,"SECTION 4 : ELECTRICAL INSTALLATION (PROVISIONAL)"]
[]
[null,null,"BILL 9"]
[]
[null,null,"BLOCK H"]
[]
[null,null,"LV RETICULATION"]
[]
[null,null,"COPPER CABLES"]
[]
[null,null,"Supply and Installation of 1000/600 volts PVC/SWA/PVC ECC copper cables as specified, excluding terminations and cable supports. Lengths ginen shall be taken as measured lengths to cable runs from terminal to terminal and rates quoted shall include for off-cuts and wastage. Note should cables without ECC be utilized the tenderer will supply the additional external earth at no additional cost."]
[]
[null,null,"16mm² 4C PVC/SWA/PVC ECC Cable"]
[]
[{"v":1,"d":"1 "},null,"Supply",null,"m",40,null,{"$f":"ROUND(F5166*G5166,2)","v":0}]
[]
[{"v":2,"d":"2 "},null,"Install",null,"m",40,null,{"$f":"ROUND(F5168*G5168,2)","v":0}]
[]
[null,null,"CABLE TERMINATIONS"]
[]
[null,null,"For PVC/SWA/PVC shall include supply and fitting of the cable gland, neoprene shroud, making-off the cable, lugs, and fitting the gland to the board gland plate, switchgear and final connection of cable tails into board or terminals."]
[]
[null,null,"16mm² 4C PVC/SWA/PVC ECC Cable"]
[]
[{"v":3,"d":"3 "},null,"Supply",null,"No",2,null,{"$f":"ROUND(F5176*G5176,2)","v":0}]
[]
[{"v":4,"d":"4 "},null,"Install",null,"No",2,null,{"$f":"ROUND(F5178*G5178,2)","v":0}]
[]
[null,null,"DRAW WIRES"]
[]
[null,null,"Supply and Installation of galvanized steel draw wires drawn into conduit, cable sleeve or wiring channel."]
[]
[null,null,"1mm² Galvanized draw wire"]
[]
[{"v":5,"d":"5 "},null,"Supply",null,"m",300,null,{"$f":"ROUND(F5186*G5186,2)","v":0}]
[]
[{"v":6,"d":"6 "},null,"Install",null,"m",300,null,{"$f":"ROUND(F5188*G5188,2)","v":0}]
[]
[null,null,"LIGHTING AND POWER I"]
[]
[null,null,"DISTRIBUTION BOARDS"]
[]
[null,null,"Supply and Installation of the specified Distribution Boards, including making off all wire connections, earthing and conduit terminations but exclude cable terminations."]
[]
[null,null,"DB -H Sub Distribution Board as per Schematic Layout"]
[]
[{"v":7,"d":"7 "},null,"Supply",null,"No",1,null,{"$f":"ROUND(F5198*G5198,2)","v":0}]
[]
[{"v":8,"d":"8 "},null,"Install",null,"No",1,null,{"$f":"ROUND(F5200*G5200,2)","v":0}]
[]
[null,null,"LUMINAIRES"]
[]
[null,null,"Supply and Installation of the following SABS approved luminaries, complete with lamps as specified"]
[]
[null,null,"Type A The Luminaire shall be LIHLE or other SABS approved 1500x300mm T8, 2x22W LED low  brightness with clip in louvre surface mounted fitting, complete with LED tubes"]
[]
[{"v":9,"d":"9 "},null,"Supply",null,"No",1,null,{"$f":"ROUND(F5208*G5208,2)","v":0}]
[]
[{"v":10,"d":"10 "},null,"Install",null,"No",1,null,{"$f":"ROUND(F5210*G5210,2)","v":0}]
[]
[null,null,"Type B The Luminaire shall be LIHLE or other SABS approved 1500mm T8, 2x22W LED Open Channel surface mounted fitting complete with LED tubes"]
[]
[{"v":11,"d":"11 "},null,"Supply",null,"No",19,null,{"$f":"ROUND(F5214*G5214,2)","v":0}]
[]
[{"v":12,"d":"12 "},null,"Install",null,"No",19,null,{"$f":"ROUND(F5216*G5216,2)","v":0}]
[]
[null,null,"Type G The Luminaire shall be Round  LIHLE or other SABS approved MC 15W LED Bulkhead ceiling/wall mounted fitting at 2200mm AFFL (black trim external/white trim internal)."]
[]
[{"v":13,"d":"13 "},null,"Supply",null,"No",5,null,{"$f":"ROUND(F5220*G5220,2)","v":0}]
[]
[{"v":14,"d":"14 "},null,"Install",null,"No",5,null,{"$f":"ROUND(F5222*G5222,2)","v":0}]
[]
[null,null,"LIGHTING AND POWER II"]
[]
[null,null,"LIGHT SWITCHES"]
[]
[null,null,"Supply and Installation of the following SABS approved flush or surface mounted 16A switched socket outlet, complete with 100x50 PVC box and cover plates"]
[]
[null,null,"1 Lever, 1 Way 16A Light Switch complete with PVC Cover plate (Crabtree or Clipsal)"]
[]
[{"v":15,"d":"15 "},null,"Supply",null,"No",3,null,{"$f":"ROUND(F5232*G5232,2)","v":0}]
[]
[{"v":16,"d":"16 "},null,"Install",null,"No",3,null,{"$f":"ROUND(F5234*G5234,2)","v":0}]
[]
[null,null,"2 Lever, 1 Way 16A Light Switch complete with PVC Cover plate (Crabtree or Clipsal)"]
[]
[{"v":17,"d":"17 "},null,"Supply",null,"No",1,null,{"$f":"ROUND(F5238*G5238,2)","v":0}]
[]
[{"v":18,"d":"18 "},null,"Install",null,"No",1,null,{"$f":"ROUND(F5240*G5240,2)","v":0}]
[]
[null,null,"Type ZS 20A National Day Light electric cell or similar"]
[]
[{"v":19,"d":"19 "},null,"Supply",null,"No",1,null,{"$f":"ROUND(F5244*G5244,2)","v":0}]
[]
[{"v":20,"d":"20 "},null,"Install",null,"No",1,null,{"$f":"ROUND(F5246*G5246,2)","v":0}]
[]
[null,null,"SOCKET OUTLETS"]
[]
[null,null,"Supply and Installation of flush or surface mounted switched or un-switched socket outlets in 100x100,100x50, round box or wiring channel, excluding box (for flush type ) and conduit connections, but including cover plate."]
[]
[null,null,"16A Flush wall mounted normal Double switched socket outlet complete with 100x100x50mm"]
[]
[{"v":21,"d":"21 "},null,"Supply",null,"No",8,null,{"$f":"ROUND(F5254*G5254,2)","v":0}]
[]
[{"v":22,"d":"22 "},null,"Install",null,"No",8,null,{"$f":"ROUND(F5256*G5256,2)","v":0}]
[]
[null,null,"5A Un-Switched Socket Outlet"]
[]
[{"v":23,"d":"23 "},null,"Supply",null,"No",4,null,{"$f":"ROUND(F5260*G5260,2)","v":0}]
[]
[{"v":24,"d":"24 "},null,"Install",null,"No",4,null,{"$f":"ROUND(F5262*G5262,2)","v":0}]
[]
[null,null,"ISOLATORS"]
[]
[null,null,"Supply and Installation of a flush or surface mounted Metal Clad Isolators either in 100x100, 100x50, round box or wiring channel, excluding box (for flush type) and conduit connections, but including cover plate."]
[]
[null,null,"20A DP Metal Clad Flush mounted isolator"]
[]
[{"v":25,"d":"25 "},null,"Supply",null,"No",1,null,{"$f":"ROUND(F5270*G5270,2)","v":0}]
[]
[{"v":26,"d":"26 "},null,"Install",null,"No",1,null,{"$f":"ROUND(F5272*G5272,2)","v":0}]
[]
[null,null,"20A DP Weather Proof surface mounted isolator"]
[]
[{"v":27,"d":"27 "},null,"Supply",null,"No",1,null,{"$f":"ROUND(F5276*G5276,2)","v":0}]
[]
[{"v":28,"d":"28 "},null,"Install",null,"No",1,null,{"$f":"ROUND(F5278*G5278,2)","v":0}]
[]
[null,null,"POWER SKIRTING"]
[]
[null,null,"Supply and Installation of 2 compartment 2 cover PVC power skirting SABS approved complete with bends and all other accessorie"]
[]
[null,null,"Two compartment power skirting plus cover"]
[]
[{"v":29,"d":"29 "},null,"Supply",null,"m",36,null,{"$f":"ROUND(F5286*G5286,2)","v":0}]
[]
[{"v":30,"d":"30 "},null,"Install",null,"m",36,null,{"$f":"ROUND(F5288*G5288,2)","v":0}]
[]
[null,null,"End covers"]
[]
[{"v":31,"d":"31 "},null,"Supply",null,"No",8,null,{"$f":"ROUND(F5292*G5292,2)","v":0}]
[]
[{"v":32,"d":"32 "},null,"Install",null,"No",8,null,{"$f":"ROUND(F5294*G5294,2)","v":0}]
[]
[null,null,"Elbows"]
[]
[{"v":33,"d":"33 "},null,"Supply",null,"No",1,null,{"$f":"ROUND(F5298*G5298,2)","v":0}]
[]
[{"v":34,"d":"34 "},null,"Install",null,"No",1,null,{"$f":"ROUND(F5300*G5300,2)","v":0}]
[]
[null,null,"16A Normal Single EURO with 2 Pin and USB switched socket outlet mounted on power skirting"]
[]
[{"v":35,"d":"35 "},null,"Supply",null,"No",37,null,{"$f":"ROUND(F5304*G5304,2)","v":0}]
[]
[{"v":36,"d":"36 "},null,"Install",null,"No",37,null,{"$f":"ROUND(F5306*G5306,2)","v":0}]
[]
[null,null,"16A Standard dedicated switched socket outlet mounted on the power skirting"]
[]
[{"v":37,"d":"37 "},null,"Supply",null,"No",37,null,{"$f":"ROUND(F5310*G5310,2)","v":0}]
[]
[{"v":38,"d":"38 "},null,"Install",null,"No",37,null,{"$f":"ROUND(F5312*G5312,2)","v":0}]
[]
[null,null,"RJ 45 Data Outlet"]
[]
[{"v":39,"d":"39 "},null,"Supply",null,"No",37,null,{"$f":"ROUND(F5316*G5316,2)","v":0}]
[]
[{"v":40,"d":"40 "},null,"Install",null,"No",37,null,{"$f":"ROUND(F5318*G5318,2)","v":0}]
[]
[null,null,"RJ11 Tel Outlet"]
[]
[{"v":41,"d":"41 "},null,"Supply",null,"No",1,null,{"$f":"ROUND(F5322*G5322,2)","v":0}]
[]
[{"v":42,"d":"42 "},null,"Install",null,"No",1,null,{"$f":"ROUND(F5324*G5324,2)","v":0}]
[]
[null,null,"POWER TRUNKING & DATA WIRE MESH BASKET"]
[]
[null,null,"Supply, Installation and commissioning of the Galvanized compact trunking, including all additional supports which may be required."]
[]
[null,null,"P2000 (41mm x 41mm) Galvanised Trunking"]
[]
[{"v":43,"d":"43 "},null,"Supply",null,"m",36,null,{"$f":"ROUND(F5332*G5332,2)","v":0}]
[]
[{"v":44,"d":"44 "},null,"Install",null,"m",36,null,{"$f":"ROUND(F5334*G5334,2)","v":0}]
[]
[null,null,"Erect, fix, connect and commission the Galvanized Wire Mesh Basket, including any additional supports which may be required."]
[]
[null,null,"150mm Wire Mesh Basket"]
[]
[{"v":45,"d":"45 "},null,"Supply",null,"m",36,null,{"$f":"ROUND(F5340*G5340,2)","v":0}]
[]
[{"v":46,"d":"46 "},null,"Install",null,"m",36,null,{"$f":"ROUND(F5342*G5342,2)","v":0}]
[]
[null,null,"CLUSTER BOXES"]
[]
[null,null,"Supply and Installation of powercomm or other approved cluster box, complete with dividers."]
[]
[null,null,"9 - Way cluster box"]
[]
[{"v":47,"d":"47 "},null,"Supply",null,"No",1,null,{"$f":"ROUND(F5350*G5350,2)","v":0}]
[]
[{"v":48,"d":"48 "},null,"Install",null,"No",1,null,{"$f":"ROUND(F5352*G5352,2)","v":0}]
[]
[null,null,"16A  Normal Single EURO with 2 Pin and USB switched socket outlet  mounted on cluster box."]
[]
[{"v":49,"d":"49 "},null,"Supply",null,"No",1,null,{"$f":"ROUND(F5356*G5356,2)","v":0}]
[]
[{"v":50,"d":"50 "},null,"Install",null,"No",1,null,{"$f":"ROUND(F5358*G5358,2)","v":0}]
[]
[null,null,"16A  Standard Dedicated switched socket outlet mounted on cluster box"]
[]
[{"v":51,"d":"51 "},null,"Supply",null,"No",1,null,{"$f":"ROUND(F5362*G5362,2)","v":0}]
[]
[{"v":52,"d":"52 "},null,"Install",null,"No",1,null,{"$f":"ROUND(F5364*G5364,2)","v":0}]
[]
[null,null,"RJ11 Tel Outlet"]
[]
[{"v":53,"d":"53 "},null,"Supply",null,"No",1,null,{"$f":"ROUND(F5368*G5368,2)","v":0}]
[]
[{"v":54,"d":"54 "},null,"Install",null,"No",1,null,{"$f":"ROUND(F5370*G5370,2)","v":0}]
[]
[null,null,"RJ 45 Data Outlet"]
[]
[{"v":55,"d":"55 "},null,"Supply",null,"No",1,null,{"$f":"ROUND(F5374*G5374,2)","v":0}]
[]
[{"v":56,"d":"56 "},null,"Install",null,"No",1,null,{"$f":"ROUND(F5376*G5376,2)","v":0}]
[]
[null,null,"CONDUIT & BOXES"]
[]
[null,null,"Supply and installation of PVC or Bosal conduit as specified. Lengths given shall be taken as measured horizontal and vertical runs between conduit terminations. Rates quoted shall allow for westage, offcuts, couplings,saddles, cuttings, bending, jointing socket and tees."]
[]
[null,null,"20 mm Ø PVC conduit fixed to steel/timber roof structure"]
[]
[{"v":57,"d":"57 "},null,"Supply",null,"m",400,null,{"$f":"ROUND(F5384*G5384,2)","v":0}]
[]
[{"v":58,"d":"58 "},null,"Install",null,"m",400,null,{"$f":"ROUND(F5386*G5386,2)","v":0}]
[]
[null,null,"20 mm Ø PVC conduit fixed onto common brick/ cast into concrete"]
[]
[{"v":59,"d":"59 "},null,"Supply",null,"m",500,null,{"$f":"ROUND(F5390*G5390,2)","v":0}]
[]
[{"v":60,"d":"60 "},null,"Install",null,"m",500,null,{"$f":"ROUND(F5392*G5392,2)","v":0}]
[]
[null,null,"25 mm Ø PVC conduit fixed to steel/timber roof"]
[]
[{"v":61,"d":"61 "},null,"Supply",null,"m",40,null,{"$f":"ROUND(F5396*G5396,2)","v":0}]
[]
[{"v":62,"d":"62 "},null,"Install",null,"m",40,null,{"$f":"ROUND(F5398*G5398,2)","v":0}]
[]
[null,null,"25 mm Ø PVC conduit fixed onto common brick/ cast into concrete"]
[]
[{"v":63,"d":"63 "},null,"Supply",null,"m",40,null,{"$f":"ROUND(F5402*G5402,2)","v":0}]
[]
[{"v":64,"d":"64 "},null,"Install",null,"m",40,null,{"$f":"ROUND(F5404*G5404,2)","v":0}]
[]
[null,null,"20 mm Ø PVC Galvanised Steel pipe fixed onto the wall."]
[]
[{"v":65,"d":"65 "},null,"Supply",null,"m",40,null,{"$f":"ROUND(F5408*G5408,2)","v":0}]
[]
[{"v":66,"d":"66 "},null,"Install",null,"m",40,null,{"$f":"ROUND(F5410*G5410,2)","v":0}]
[]
[null,null,"32 mm Ø Galvanised Steel pipe fixed onto the wall."]
[]
[{"v":67,"d":"67 "},null,"Supply",null,"m",8,null,{"$f":"ROUND(F5414*G5414,2)","v":0}]
[]
[{"v":68,"d":"68 "},null,"Install",null,"m",8,null,{"$f":"ROUND(F5416*G5416,2)","v":0}]
[]
[null,null,"Terminate and connect one pair of conduit ends including supply and installation of 1, 2, 3 or 4 way box on surface or in brickwork(excluding cover plates), including holes for conduit."]
[]
[null,null,"20mm round PVC conduit box c/w covers."]
[]
[{"v":69,"d":"69 "},null,"Supply",null,"No",60,null,{"$f":"ROUND(F5422*G5422,2)","v":0}]
[]
[{"v":70,"d":"70 "},null,"Install",null,"No",60,null,{"$f":"ROUND(F5424*G5424,2)","v":0}]
[]
[null,null,"25mm round PVC conduit box c/w covers."]
[]
[{"v":71,"d":"71 "},null,"Supply",null,"No",10,null,{"$f":"ROUND(F5428*G5428,2)","v":0}]
[]
[{"v":72,"d":"72 "},null,"Install",null,"No",10,null,{"$f":"ROUND(F5430*G5430,2)","v":0}]
[]
[null,null,"100 x 50 x 50mm Galvanized box"]
[]
[{"v":73,"d":"73 "},null,"Supply",null,"No",4,null,{"$f":"ROUND(F5434*G5434,2)","v":0}]
[]
[{"v":74,"d":"74 "},null,"Install",null,"No",4,null,{"$f":"ROUND(F5436*G5436,2)","v":0}]
[]
[null,null,"100 x 100 x 50mm Galvanized box"]
[]
[{"v":75,"d":"75 "},null,"Supply",null,"No",8,null,{"$f":"ROUND(F5440*G5440,2)","v":0}]
[]
[{"v":76,"d":"76 "},null,"Install",null,"No",8,null,{"$f":"ROUND(F5442*G5442,2)","v":0}]
[]
[null,null,"COPPER CONDUCTORS"]
[]
[null,null,"Supply and Installation of PVC insulated copper conductors drawn into conduit or wiring channel in groups of 2, 3, 4 etc. with the required colour coding, but excluding any wiring connections."]
[]
[null,null,"2,5 mm² red PVC insulated"]
[]
[{"v":77,"d":"77 "},null,"Supply",null,"m",1000,null,{"$f":"ROUND(F5450*G5450,2)","v":0}]
[]
[{"v":78,"d":"78 "},null,"Install",null,"m",1000,null,{"$f":"ROUND(F5452*G5452,2)","v":0}]
[]
[null,null,"2,5 mm² black PVC insulated"]
[]
[{"v":79,"d":"79 "},null,"Supply",null,"m",800,null,{"$f":"ROUND(F5456*G5456,2)","v":0}]
[]
[{"v":80,"d":"80 "},null,"Install",null,"m",800,null,{"$f":"ROUND(F5458*G5458,2)","v":0}]
[]
[null,null,"4,0 mm² red PVC insulated"]
[]
[{"v":81,"d":"81 "},null,"Supply",null,"m",800,null,{"$f":"ROUND(F5462*G5462,2)","v":0}]
[]
[{"v":82,"d":"82 "},null,"Install",null,"m",800,null,{"$f":"ROUND(F5464*G5464,2)","v":0}]
[]
[null,null,"4,0 mm² black PVC insulated"]
[]
[{"v":83,"d":"83 "},null,"Supply",null,"m",800,null,{"$f":"ROUND(F5468*G5468,2)","v":0}]
[]
[{"v":84,"d":"84 "},null,"Install",null,"m",800,null,{"$f":"ROUND(F5470*G5470,2)","v":0}]
[]
[null,null,"EARTH CONDUCTORS"]
[]
[null,null,"Supply and Installation of PVC insulated earth conductors drawn into conduit or wiring channel with the required colour coding, but excluding any wiring connections."]
[]
[null,null,"2,5 mm² yellow/green PVC insulated"]
[]
[{"v":85,"d":"85 "},null,"Supply",null,"m",1500,null,{"$f":"ROUND(F5478*G5478,2)","v":0}]
[]
[{"v":86,"d":"86 "},null,"Install",null,"m",1500,null,{"$f":"ROUND(F5480*G5480,2)","v":0}]
[]
[null,null,"CEILING FANS"]
[]
[null,null,"Supply  and Installation of ceiling fans complete with all accessories including the controllers"]
[]
[null,null,"SK48 - 48\" ( 1219mm) Aluminium blades and 4 speed Surface mounted controller"]
[]
[{"v":87,"d":"87 "},null,"Supply",null,"No",5,null,{"$f":"ROUND(F5488*G5488,2)","v":0}]
[]
[{"v":88,"d":"88 "},null,"Install",null,"No",5,null,{"$f":"ROUND(F5490*G5490,2)","v":0}]
[]
[null,null,"AIR-CONDITIONING"]
[]
[null,null,"Supply and install Midwall Split Units, complete with all necessary piping, insulation, trunking, wiring, electrical work, hard wired controls etc necessary to leave the installation in good work"]
[]
[null,null,"2.6kW 9000 BTU Midwall Split Unit"]
[]
[{"v":89,"d":"89 "},null,"Supply",null,"No",2,null,{"$f":"ROUND(F5498*G5498,2)","v":0}]
[]
[{"v":90,"d":"90 "},null,"Install",null,"No",2,null,{"$f":"ROUND(F5500*G5500,2)","v":0}]
[]
[null,null,"APPLIANCE CONNECTIONS"]
[]
[null,null,"Electrical connections of appliances from the isolator outlet to the equipment connection terminals. Provisions for flexible conduit and wiring or cables required to be included."]
[]
[{"v":91,"d":"91 "},null,"Single phase UPS",null,"No",1,null,{"$f":"ROUND(F5506*G5506,2)","v":0}]
[]
[{"v":92,"d":"92 "},null,"Single phase Ceiling Fans",null,"No",4,null,{"$f":"ROUND(F5508*G5508,2)","v":0}]
[]
[{"v":93,"d":"93 "},null,"Single phase 2.6kW Air- Conditioning",null,"No",2,null,{"$f":"ROUND(F5510*G5510,2)","v":0}]
[]
[null,null,"EARTHING SYSTEM"]
[]
[null,null,"EARTH SPIKE"]
[]
[null,null,"1.5m copper coated earth spike at the Distribution Board"]
[]
[{"v":94,"d":"94 "},null,"Supply",null,"No",1,null,{"$f":"ROUND(F5518*G5518,2)","v":0}]
[]
[{"v":95,"d":"95 "},null,"Install",null,"No",1,null,{"$f":"ROUND(F5520*G5520,2)","v":0}]
[]
[{"v":96,"d":"96 "},null,"Allow for earthing and bonding of cold and hot water pipes and all the metal to comply with SANS regulations.",null,"Item",1,null,{"$f":"ROUND(F5522*G5522,2)","v":0}]
[]
[null,null,"LIGHTNING  PROTECTION"]
[]
[null,null,"PVC CONDUITS"]
[]
[null,null,"Supply and installation of conduit as specified in General Specification Lengths shall be taken as measured horizontal and vertical runs between terminations. Rates quoted shall allow for wastage off-cuts, couplings, bends, extention boxes, covers fixing and chasing etc. in accordance with the specification."]
[]
[null,null,"20mm diameter CIB, FOS, CIC"]
[]
[{"v":97,"d":"97 "},null,"Supply",null,"m",16,null,{"$f":"ROUND(F5532*G5532,2)","v":0}]
[]
[{"v":98,"d":"98 "},null,"Install",null,"m",16,null,{"$f":"ROUND(F5534*G5534,2)","v":0}]
[]
[null,null,"LIGHTNING PROTECTION SYSTEM"]
[]
[null,null,"50mm² Diameter copper conductor installed in conduit"]
[]
[{"v":99,"d":"99 "},null,"Supply",null,"m",16,null,{"$f":"ROUND(F5540*G5540,2)","v":0}]
[]
[{"v":100,"d":"100 "},null,"Install",null,"m",16,null,{"$f":"ROUND(F5542*G5542,2)","v":0}]
[]
[null,null,"Caldweld copper earth electrodes driven in ground 16mm Diameter x 1500mm long earth electrode driven into ground"]
[]
[{"v":101,"d":"101 "},null,"Supply",null,"No",4,null,{"$f":"ROUND(F5546*G5546,2)","v":0}]
[]
[{"v":102,"d":"102 "},null,"Install",null,"No",4,null,{"$f":"ROUND(F5548*G5548,2)","v":0}]
[]
[null,null,"Bonds from down conductor to roof sheets or gutters"]
[]
[{"v":103,"d":"103 "},null,"Supply",null,"No",4,null,{"$f":"ROUND(F5552*G5552,2)","v":0}]
[]
[{"v":104,"d":"104 "},null,"Install",null,"No",4,null,{"$f":"ROUND(F5554*G5554,2)","v":0}]
[]
[null,null,"Bond down conductors to Copper Earth Electrode"]
[]
[{"v":105,"d":"105 "},null,"Supply",null,"No",4,null,{"$f":"ROUND(F5558*G5558,2)","v":0}]
[]
[{"v":106,"d":"106 "},null,"Install",null,"No",4,null,{"$f":"ROUND(F5560*G5560,2)","v":0}]
[]
[null,null,"Lightning protection Test point incl 100x100x50 box and engraved cover as per specification"]
[]
[{"v":107,"d":"107 "},null,"Supply",null,"No",2,null,{"$f":"ROUND(F5564*G5564,2)","v":0}]
[]
[{"v":108,"d":"108 "},null,"Install",null,"No",2,null,{"$f":"ROUND(F5566*G5566,2)","v":0}]
[]
[{"v":109,"d":"109 "},null,"Allow for site survey, resistivity test reports and    issuing of workshop drawing to the engineer prior to installation.",null,"Item",1,null,{"$f":"ROUND(F5568*G5568,2)","v":0}]
[]
[{"v":110,"d":"110 "},null,"Allow for resistivity tests after completion",null,"Item",1,null,{"$f":"ROUND(F5570*G5570,2)","v":0}]
[]
[{"v":111,"d":"111 "},null,"Allow for testing, commissioning and issuing of Certificate.",null,"Item",1,null,{"$f":"ROUND(F5572*G5572,2)","v":0}]
[]
[null,null,"TESTING AND COMMISSIONING"]
[]
[{"v":112,"d":"112 "},null,"Allow for a Lump Sum for testing and commissioning of the entire electrical installation, including the provision of Compliance Certificate",null,"Item",1,null,{"$f":"ROUND(F5576*G5576,2)","v":0}]
[]
[null,null,"GENERAL"]
[]
[{"v":113,"d":"113 "},null,"Allow for the 12 months guarantee period",null,"Item",1,null,{"$f":"ROUND(F5580*G5580,2)","v":0}]
[]
[{"v":114,"d":"114 "},null,"Allow all necessary labelling of equipment where required",null,"Item",1,null,{"$f":"ROUND(F5582*G5582,2)","v":0}]
[]
[{"v":115,"d":"115 "},null,"Allow for the submission of Asbuilt drawings",null,"Item",1,null,{"$f":"ROUND(F5584*G5584,2)","v":0}]
[]
[null,null,"Carried to Summary",{"$nulls":4},{"$f":"SUM(H5166:H5585)","v":0}]
[]
[]
[null,null,"SECTION 4 : ELECTRICAL INSTALLATION (PROVISIONAL)"]
[]
[null,null,"BILL 10"]
[]
[null,null,"BLOCK I"]
[]
[null,null,"LV RETICULATION"]
[]
[null,null,"COPPER CABLES"]
[]
[null,null,"Supply and Installation of 1000/600 volts PVC/SWA/PVC ECC copper cables as specified, excluding terminations and cable supports. Lengths ginen shall be taken as measured lengths to cable runs from terminal to terminal and rates quoted shall include for off-cuts and wastage. Note should cables without ECC be utilized the tenderer will supply the additional external earth at no additional cost."]
[]
[null,null,"16mm² 4C PVC/SWA/PVC ECC Cable"]
[]
[{"v":1,"d":"1 "},null,"Supply",null,"m",40,null,{"$f":"ROUND(F5603*G5603,2)","v":0}]
[]
[{"v":2,"d":"2 "},null,"Install",null,"m",40,null,{"$f":"ROUND(F5605*G5605,2)","v":0}]
[]
[null,null,"CABLE TERMINATIONS"]
[]
[null,null,"For PVC/SWA/PVC shall include supply and fitting of the cable gland, neoprene shroud, making-off the cable, lugs, and fitting the gland to the board gland plate, switchgear and final connection of cable tails into board or terminals."]
[]
[null,null,"16mm² 4C PVC/SWA/PVC ECC Cable"]
[]
[{"v":3,"d":"3 "},null,"Supply",null,"No",2,null,{"$f":"ROUND(F5613*G5613,2)","v":0}]
[]
[{"v":4,"d":"4 "},null,"Install",null,"No",2,null,{"$f":"ROUND(F5615*G5615,2)","v":0}]
[]
[null,null,"DRAW WIRES"]
[]
[null,null,"Supply and Installation of galvanized steel draw wires drawn into conduit, cable sleeve or wiring channel."]
[]
[null,null,"1mm² Galvanized draw wire"]
[]
[{"v":5,"d":"5 "},null,"Supply",null,"m",100,null,{"$f":"ROUND(F5623*G5623,2)","v":0}]
[]
[{"v":6,"d":"6 "},null,"Install",null,"m",100,null,{"$f":"ROUND(F5625*G5625,2)","v":0}]
[]
[null,null,"LIGHTING AND POWER I"]
[]
[null,null,"DISTRIBUTION BOARDS"]
[]
[null,null,"Supply and Installation of the specified Distribution Boards, including making off all wire connections, earthing and conduit terminations but exclude cable terminations."]
[]
[null,null,"DB -I Sub Distribution Board as per Schematic Layout"]
[]
[{"v":7,"d":"7 "},null,"Supply",null,"No",1,null,{"$f":"ROUND(F5635*G5635,2)","v":0}]
[]
[{"v":8,"d":"8 "},null,"Install",null,"No",1,null,{"$f":"ROUND(F5637*G5637,2)","v":0}]
[]
[null,null,"LUMINAIRES"]
[]
[null,null,"Supply and Installation of the following SABS approved luminaries, complete with lamps as specified"]
[]
[null,null,"Type B The Luminaire shall be LIHLE or other SABS approved 1500mm T8, 2x22W LED Open Channel surface mounted fitting complete with LED tubes"]
[]
[{"v":9,"d":"9 "},null,"Supply",null,"No",12,null,{"$f":"ROUND(F5645*G5645,2)","v":0}]
[]
[{"v":10,"d":"10 "},null,"Install",null,"No",12,null,{"$f":"ROUND(F5647*G5647,2)","v":0}]
[]
[null,null,"Type C The Luminaire shall be LIHLE or other SABS approved 1500x200mm T8, 2x22W LED Vapour Proof surface mounted fitting complete with LED tubes"]
[]
[{"v":11,"d":"11 "},null,"Supply",null,"No",1,null,{"$f":"ROUND(F5651*G5651,2)","v":0}]
[]
[{"v":12,"d":"12 "},null,"Install",null,"No",1,null,{"$f":"ROUND(F5653*G5653,2)","v":0}]
[]
[null,null,"Type G The Luminaire shall be Round  LIHLE or other SABS approved MC 15W LED Bulkhead ceiling/wall mounted fitting at 2200mm AFFL (black trim external/white trim internal)."]
[]
[{"v":13,"d":"13 "},null,"Supply",null,"No",6,null,{"$f":"ROUND(F5657*G5657,2)","v":0}]
[]
[{"v":14,"d":"14 "},null,"Install",null,"No",6,null,{"$f":"ROUND(F5659*G5659,2)","v":0}]
[]
[null,null,"LIGHTING AND POWER II"]
[]
[null,null,"LIGHT SWITCHES"]
[]
[null,null,"Supply and Installation of the following SABS approved flush or surface mounted 16A switched socket outlet, complete with 100x50 PVC box and cover plates"]
[]
[null,null,"1 Lever, 1 Way 16A Light Switch complete with PVC Cover plate (Crabtree or Clipsal)"]
[]
[{"v":15,"d":"15 "},null,"Supply",null,"No",4,null,{"$f":"ROUND(F5669*G5669,2)","v":0}]
[]
[{"v":16,"d":"16 "},null,"Install",null,"No",4,null,{"$f":"ROUND(F5671*G5671,2)","v":0}]
[]
[null,null,"2 Lever, 1 Way 16A Light Switch complete with PVC Cover plate (Crabtree or Clipsal)"]
[]
[{"v":17,"d":"17 "},null,"Supply",null,"No",1,null,{"$f":"ROUND(F5675*G5675,2)","v":0}]
[]
[{"v":18,"d":"18 "},null,"Install",null,"No",1,null,{"$f":"ROUND(F5677*G5677,2)","v":0}]
[]
[null,null,"Type ZS 20A National Day Light electric cell or similar"]
[]
[{"v":19,"d":"19 "},null,"Supply",null,"No",1,null,{"$f":"ROUND(F5681*G5681,2)","v":0}]
[]
[{"v":20,"d":"20 "},null,"Install",null,"No",1,null,{"$f":"ROUND(F5683*G5683,2)","v":0}]
[]
[null,null,"OCCUPANCY SENSOR"]
[]
[null,null,"Type 1 ( OS1 ) as type schneider Electric SLSCPS 1000  or other approved .This sensor to switched or un-switched socket outlets in 100x100, 100x50, round box or wiring channel, excluding box (for flush type ) and conduit connections, but including cover plate."]
[]
[{"v":21,"d":"21 "},null,"Supply",null,"No",1,null,{"$f":"ROUND(F5689*G5689,2)","v":0}]
[]
[{"v":22,"d":"22 "},null,"Install",null,"No",1,null,{"$f":"ROUND(F5691*G5691,2)","v":0}]
[]
[null,null,"SOCKET OUTLETS"]
[]
[null,null,"Supply and Installation of flush or surface mounted switched or un-switched socket outlets in 100x100,100x50, round box or wiring channel, excluding box (for flush type ) and conduit connections, but including cover plate."]
[]
[null,null,"16A Flush wall mounted normal Double switched socket outlet complete with 100x100x50mm"]
[]
[{"v":23,"d":"23 "},null,"Supply",null,"No",6,null,{"$f":"ROUND(F5699*G5699,2)","v":0}]
[]
[{"v":24,"d":"24 "},null,"Install",null,"No",6,null,{"$f":"ROUND(F5701*G5701,2)","v":0}]
[]
[null,null,"POWER SKIRTING"]
[]
[null,null,"Supply and Installation of 2 compartment 2 cover PVC power skirting SABS approved complete with bends and all other accessorie"]
[]
[null,null,"Two compartment power skirting plus cover"]
[]
[{"v":25,"d":"25 "},null,"Supply",null,"m",16,null,{"$f":"ROUND(F5709*G5709,2)","v":0}]
[]
[{"v":26,"d":"26 "},null,"Install",null,"m",16,null,{"$f":"ROUND(F5711*G5711,2)","v":0}]
[]
[null,null,"End covers"]
[]
[{"v":27,"d":"27 "},null,"Supply",null,"No",4,null,{"$f":"ROUND(F5715*G5715,2)","v":0}]
[]
[{"v":28,"d":"28 "},null,"Install",null,"No",4,null,{"$f":"ROUND(F5717*G5717,2)","v":0}]
[]
[null,null,"Elbows"]
[]
[{"v":29,"d":"29 "},null,"Supply",null,"No",1,null,{"$f":"ROUND(F5721*G5721,2)","v":0}]
[]
[{"v":30,"d":"30 "},null,"Install",null,"No",1,null,{"$f":"ROUND(F5723*G5723,2)","v":0}]
[]
[null,null,"16A Normal Single EURO with 2Pin and USB switched socket outlet mounted on power skirting"]
[]
[{"v":31,"d":"31 "},null,"Supply",null,"No",11,null,{"$f":"ROUND(F5727*G5727,2)","v":0}]
[]
[{"v":32,"d":"32 "},null,"Install",null,"No",11,null,{"$f":"ROUND(F5729*G5729,2)","v":0}]
[]
[null,null,"16A Standard dedicated switched socket outlet mounted on the power skirting"]
[]
[{"v":33,"d":"33 "},null,"Supply",null,"No",11,null,{"$f":"ROUND(F5733*G5733,2)","v":0}]
[]
[{"v":34,"d":"34 "},null,"Install",null,"No",11,null,{"$f":"ROUND(F5735*G5735,2)","v":0}]
[]
[null,null,"RJ 45 Data Outlet"]
[]
[{"v":35,"d":"35 "},null,"Supply",null,"No",11,null,{"$f":"ROUND(F5739*G5739,2)","v":0}]
[]
[{"v":36,"d":"36 "},null,"Install",null,"No",11,null,{"$f":"ROUND(F5741*G5741,2)","v":0}]
[]
[null,null,"RJ11 Tel Outlet"]
[]
[{"v":37,"d":"37 "},null,"Supply",null,"No",1,null,{"$f":"ROUND(F5745*G5745,2)","v":0}]
[]
[{"v":38,"d":"38 "},null,"Install",null,"No",1,null,{"$f":"ROUND(F5747*G5747,2)","v":0}]
[]
[null,null,"EARTHING SYSTEM"]
[]
[null,null,"EARTH SPIKE"]
[]
[null,null,"1.5m copper coated earth spike at the Distribution Board"]
[]
[{"v":39,"d":"39 "},null,"Supply",null,"No",1,null,{"$f":"ROUND(F5755*G5755,2)","v":0}]
[]
[{"v":40,"d":"40 "},null,"Install",null,"No",1,null,{"$f":"ROUND(F5757*G5757,2)","v":0}]
[]
[{"v":41,"d":"41 "},null,"Allow for earthing and bonding of cold and hot water pipes and all the metal to comply with SANS regulations.",null,"Item",1,null,{"$f":"ROUND(F5759*G5759,2)","v":0}]
[]
[null,null,"LIGHTNING PROTECTION SYSTEM"]
[]
[null,null,"Lightning protection Test point incl 100x100x50 box and engraved cover as per specification"]
[]
[{"v":42,"d":"42 "},null,"Supply",null,"No",2,null,{"$f":"ROUND(F5765*G5765,2)","v":0}]
[]
[{"v":43,"d":"43 "},null,"Install",null,"No",2,null,{"$f":"ROUND(F5767*G5767,2)","v":0}]
[]
[{"v":44,"d":"44 "},null,"Allow for site survey, resistivity test reports and    issuing of workshop drawing to the engineer prior to installation.",null,"Item",1,null,{"$f":"ROUND(F5769*G5769,2)","v":0}]
[]
[{"v":45,"d":"45 "},null,"Allow for resistivity tests after completion",null,"Item",1,null,{"$f":"ROUND(F5771*G5771,2)","v":0}]
[]
[{"v":46,"d":"46 "},null,"Allow for testing, commissioning and issuing of Certificate.",null,"Item",1,null,{"$f":"ROUND(F5773*G5773,2)","v":0}]
[]
[null,null,"TESTING AND COMMISSIONING"]
[]
[{"v":47,"d":"47 "},null,"Allow for a Lump Sum for testing and commissioning of the entire electrical installation, including the provision of Compliance Certificate",null,"Item",1,null,{"$f":"ROUND(F5777*G5777,2)","v":0}]
[]
[null,null,"GENERAL"]
[]
[{"v":48,"d":"48 "},null,"Allow for the 12 months guarantee period",null,"Item",1,null,{"$f":"ROUND(F5781*G5781,2)","v":0}]
[]
[{"v":49,"d":"49 "},null,"Allow all necessary labelling of equipment where required",null,"Item",1,null,{"$f":"ROUND(F5783*G5783,2)","v":0}]
[]
[{"v":50,"d":"50 "},null,"Allow for the submission of Asbuilt drawings",null,"Item",1,null,{"$f":"ROUND(F5785*G5785,2)","v":0}]
[]
[null,null,"Carried to Summary",{"$nulls":4},{"$f":"SUM(H5603:H5786)","v":0}]
[]
[]
[null,null,"SECTION 4 : ELECTRICAL INSTALLATION (PROVISIONAL)"]
[]
[null,null,"BILL 11"]
[]
[null,null,"BLOCK J"]
[]
[null,null,"LV RETICULATION"]
[]
[null,null,"COPPER CABLES"]
[]
[null,null,"Supply and Installation of 1000/600 volts PVC/SWA/PVC ECC copper cables as specified, excluding terminations and cable supports. Lengths ginen shall be taken as measured lengths to cable runs from terminal to terminal and rates quoted shall include for off-cuts and wastage. Note should cables without ECC be utilized the tenderer will supply the additional external earth at no additional cost."]
[]
[null,null,"16mm² 4C PVC/SWA/PVC ECC Cable"]
[]
[{"v":1,"d":"1 "},null,"Supply",null,"m",50,null,{"$f":"ROUND(F5804*G5804,2)","v":0}]
[]
[{"v":2,"d":"2 "},null,"Install",null,"m",50,null,{"$f":"ROUND(F5806*G5806,2)","v":0}]
[]
[null,null,"CABLE TERMINATIONS"]
[]
[null,null,"For PVC/SWA/PVC shall include supply and fitting of the cable gland, neoprene shroud, making-off the cable, lugs, and fitting the gland to the board gland plate, switchgear and final connection of cable tails into board or terminals."]
[]
[null,null,"16mm² 4C PVC/SWA/PVC ECC Cablee"]
[]
[{"v":3,"d":"3 "},null,"Supply",null,"No",2,null,{"$f":"ROUND(F5814*G5814,2)","v":0}]
[]
[{"v":4,"d":"4 "},null,"Install",null,"No",2,null,{"$f":"ROUND(F5816*G5816,2)","v":0}]
[]
[null,null,"DRAW WIRES"]
[]
[null,null,"Supply and Installation of galvanized steel draw wires drawn into conduit, cable sleeve or wiring channel."]
[]
[null,null,"1mm² Galvanized draw wire"]
[]
[{"v":5,"d":"5 "},null,"Supply",null,"m",200,null,{"$f":"ROUND(F5824*G5824,2)","v":0}]
[]
[{"v":6,"d":"6 "},null,"Install",null,"m",200,null,{"$f":"ROUND(F5826*G5826,2)","v":0}]
[]
[null,null,"LIGHTING AND POWER I"]
[]
[null,null,"DISTRIBUTION BOARDS"]
[]
[null,null,"Supply and Installation of the specified Distribution Boards, including making off all wire connections, earthing and conduit terminations but exclude cable terminations."]
[]
[null,null,"DB -J Sub Distribution Board as per Schematic Layout"]
[]
[{"v":7,"d":"7 "},null,"Supply",null,"No",1,null,{"$f":"ROUND(F5836*G5836,2)","v":0}]
[]
[{"v":8,"d":"8 "},null,"Install",null,"No",1,null,{"$f":"ROUND(F5838*G5838,2)","v":0}]
[]
[null,null,"LUMINAIRES"]
[]
[null,null,"Supply and Installation of the following SABS approved luminaries, complete with lamps as specified"]
[]
[null,null,"Type A The Luminaire shall be LIHLE or other SABS approved 1500x300mm T8, 2x22W LED low  brightness with clip in louvre surface mounted fitting, complete with LED tubes"]
[]
[{"v":9,"d":"9 "},null,"Supply",null,"No",4,null,{"$f":"ROUND(F5846*G5846,2)","v":0}]
[]
[{"v":10,"d":"10 "},null,"Install",null,"No",4,null,{"$f":"ROUND(F5848*G5848,2)","v":0}]
[]
[null,null,"Type B The Luminaire shall be LIHLE or other SABS approved 1500mm T8, 2x22W LED Open Channel surface mounted fitting complete with LED tubes"]
[]
[{"v":11,"d":"11 "},null,"Supply",null,"No",16,null,{"$f":"ROUND(F5852*G5852,2)","v":0}]
[]
[{"v":12,"d":"12 "},null,"Install",null,"No",16,null,{"$f":"ROUND(F5854*G5854,2)","v":0}]
[]
[null,null,"Type G The Luminaire shall be Round  LIHLE or other SABS approved MC 15W LED Bulkhead ceiling/wall mounted fitting at 2200mm AFFL (black trim external/white trim internal)."]
[]
[{"v":13,"d":"13 "},null,"Supply",null,"No",7,null,{"$f":"ROUND(F5858*G5858,2)","v":0}]
[]
[{"v":14,"d":"14 "},null,"Install",null,"No",7,null,{"$f":"ROUND(F5860*G5860,2)","v":0}]
[]
[null,null,"LIGHTING AND POWER II"]
[]
[null,null,"LIGHT SWITCHES"]
[]
[null,null,"Supply and Installation of the following SABS approved flush or surface mounted 16A switched socket outlet, complete with 100x50 PVC box and cover plates"]
[]
[null,null,"1 Lever, 1 Way 16A Light Switch complete with PVC Cover plate (Crabtree or Clipsal)"]
[]
[{"v":15,"d":"15 "},null,"Supply",null,"No",8,null,{"$f":"ROUND(F5870*G5870,2)","v":0}]
[]
[{"v":16,"d":"16 "},null,"Install",null,"No",8,null,{"$f":"ROUND(F5872*G5872,2)","v":0}]
[]
[null,null,"Type ZS 20A National Day Light electric cell or similar"]
[]
[{"v":17,"d":"17 "},null,"Supply",null,"No",1,null,{"$f":"ROUND(F5876*G5876,2)","v":0}]
[]
[{"v":18,"d":"18 "},null,"Install",null,"No",1,null,{"$f":"ROUND(F5878*G5878,2)","v":0}]
[]
[null,null,"OCCUPANCY SENSOR"]
[]
[null,null,"Type 1 ( OS1 ) as type schneider Electric SLSCPS 1000  or other approved .This sensor to switched or un-switched socket outlets in 100x100, 100x50, round box or wiring channel, excluding box (for flush type ) and conduit connections, but including cover plate."]
[]
[{"v":19,"d":"19 "},null,"Supply",null,"No",1,null,{"$f":"ROUND(F5884*G5884,2)","v":0}]
[]
[{"v":20,"d":"20 "},null,"Install",null,"No",1,null,{"$f":"ROUND(F5886*G5886,2)","v":0}]
[]
[null,null,"SOCKET OUTLETS"]
[]
[null,null,"Supply and Installation of flush or surface mounted switched or un-switched socket outlets in 100x100,100x50, round box or wiring channel, excluding box (for flush type ) and conduit connections, but including cover plate."]
[]
[null,null,"16A Flush wall mounted normal Single switched socket outlet complete with 100x100x50mm Steel box"]
[]
[{"v":21,"d":"21 "},null,"Supply",null,"No",2,null,{"$f":"ROUND(F5894*G5894,2)","v":0}]
[]
[{"v":22,"d":"22 "},null,"Install",null,"No",2,null,{"$f":"ROUND(F5896*G5896,2)","v":0}]
[]
[null,null,"16A Flush wall mounted normal Double switched socket outlet complete with 100x100x50mm"]
[]
[{"v":23,"d":"23 "},null,"Supply",null,"No",12,null,{"$f":"ROUND(F5900*G5900,2)","v":0}]
[]
[{"v":24,"d":"24 "},null,"Install",null,"No",12,null,{"$f":"ROUND(F5902*G5902,2)","v":0}]
[]
[null,null,"CLUSTER BOXES"]
[]
[null,null,"Supply and Installation of powercomm or other approved cluster box, complete with dividers."]
[]
[null,null,"16A Normal Single EURO with 2 Pin and USB switched socket outlet mounted on cluster box"]
[]
[{"v":25,"d":"25 "},null,"Supply",null,"No",2,null,{"$f":"ROUND(F5910*G5910,2)","v":0}]
[]
[{"v":26,"d":"26 "},null,"Install",null,"No",2,null,{"$f":"ROUND(F5912*G5912,2)","v":0}]
[]
[null,null,"16A  Standard Dedicated switched socket outlet mounted on cluster box"]
[]
[{"v":27,"d":"27 "},null,"Supply",null,"No",2,null,{"$f":"ROUND(F5916*G5916,2)","v":0}]
[]
[{"v":28,"d":"28 "},null,"Install",null,"No",2,null,{"$f":"ROUND(F5918*G5918,2)","v":0}]
[]
[null,null,"RJ11 Tel Outlet"]
[]
[{"v":29,"d":"29 "},null,"Supply",null,"No",2,null,{"$f":"ROUND(F5922*G5922,2)","v":0}]
[]
[{"v":30,"d":"30 "},null,"Install",null,"No",2,null,{"$f":"ROUND(F5924*G5924,2)","v":0}]
[]
[null,null,"RJ 45 Data Outlet"]
[]
[{"v":31,"d":"31 "},null,"Supply",null,"No",2,null,{"$f":"ROUND(F5928*G5928,2)","v":0}]
[]
[{"v":32,"d":"32 "},null,"Install",null,"No",2,null,{"$f":"ROUND(F5930*G5930,2)","v":0}]
[]
[null,null,"COPPER CONDUCTORS"]
[]
[null,null,"Supply and Installation of PVC insulated copper conductors drawn into conduit or wiring channel in groups of 2, 3, 4 etc. with the required colour coding, but excluding any wiring connections."]
[]
[null,null,"2,5 mm² red PVC insulated"]
[]
[{"v":33,"d":"33 "},null,"Supply",null,"m",200,null,{"$f":"ROUND(F5938*G5938,2)","v":0}]
[]
[{"v":34,"d":"34 "},null,"Install",null,"m",200,null,{"$f":"ROUND(F5940*G5940,2)","v":0}]
[]
[null,null,"2,5 mm² black PVC insulated"]
[]
[{"v":35,"d":"35 "},null,"Supply",null,"m",100,null,{"$f":"ROUND(F5944*G5944,2)","v":0}]
[]
[{"v":36,"d":"36 "},null,"Install",null,"m",100,null,{"$f":"ROUND(F5946*G5946,2)","v":0}]
[]
[null,null,"4,0 mm² red PVC insulated"]
[]
[{"v":37,"d":"37 "},null,"Supply",null,"m",100,null,{"$f":"ROUND(F5950*G5950,2)","v":0}]
[]
[{"v":38,"d":"38 "},null,"Install",null,"m",100,null,{"$f":"ROUND(F5952*G5952,2)","v":0}]
[]
[null,null,"4,0 mm² black PVC insulated"]
[]
[{"v":39,"d":"39 "},null,"Supply",null,"m",100,null,{"$f":"ROUND(F5956*G5956,2)","v":0}]
[]
[{"v":40,"d":"40 "},null,"Install",null,"m",100,null,{"$f":"ROUND(F5958*G5958,2)","v":0}]
[]
[null,null,"EARTH CONDUCTORS"]
[]
[null,null,"Supply and Installation of PVC insulated earth conductors drawn into conduit or wiring channel with the required colour coding, but excluding any wiring connections."]
[]
[null,null,"2,5 mm² yellow/green PVC insulated"]
[]
[{"v":41,"d":"41 "},null,"Supply",null,"m",200,null,{"$f":"ROUND(F5966*G5966,2)","v":0}]
[]
[{"v":42,"d":"42 "},null,"Install",null,"m",200,null,{"$f":"ROUND(F5968*G5968,2)","v":0}]
[]
[null,null,"EARTHING SYSTEM"]
[]
[null,null,"EARTH SPIKE"]
[]
[null,null,"1.5m copper coated earth spike at the Distribution Board"]
[]
[{"v":43,"d":"43 "},null,"Supply",null,"No",1,null,{"$f":"ROUND(F5976*G5976,2)","v":0}]
[]
[{"v":44,"d":"44 "},null,"Install",null,"No",1,null,{"$f":"ROUND(F5978*G5978,2)","v":0}]
[]
[{"v":45,"d":"45 "},null,"Allow for earthing and bonding of cold and hot water pipes and all the metal to comply with SANS regulations.",null,"Item",1,null,{"$f":"ROUND(F5980*G5980,2)","v":0}]
[]
[null,null,"LIGHTNING PROTECTION SYSTEM"]
[]
[null,null,"Lightning protection Test point incl 100x100x50 box and engraved cover as per specification"]
[]
[{"v":46,"d":"46 "},null,"Supply",null,"No",4,null,{"$f":"ROUND(F5986*G5986,2)","v":0}]
[]
[{"v":47,"d":"47 "},null,"Install",null,"No",4,null,{"$f":"ROUND(F5988*G5988,2)","v":0}]
[]
[{"v":48,"d":"48 "},null,"Allow for site survey, resistivity test reports and    issuing of workshop drawing to the engineer prior to installation.",null,"Item",1,null,{"$f":"ROUND(F5990*G5990,2)","v":0}]
[]
[{"v":49,"d":"49 "},null,"Allow for resistivity tests after completion",null,"Item",1,null,{"$f":"ROUND(F5992*G5992,2)","v":0}]
[]
[{"v":50,"d":"50 "},null,"Allow for testing, commissioning and issuing of Certificate.",null,"Item",1,null,{"$f":"ROUND(F5994*G5994,2)","v":0}]
[]
[null,null,"TESTING AND COMMISSIONING"]
[]
[{"v":51,"d":"51 "},null,"Allow for a Lump Sum for testing and commissioning of the entire electrical installation, including the provision of Compliance Certificate",null,"Item",1,null,{"$f":"ROUND(F5998*G5998,2)","v":0}]
[]
[null,null,"GENERAL"]
[]
[{"v":52,"d":"52 "},null,"Allow for the 12 months guarantee period",null,"Item",1,null,{"$f":"ROUND(F6002*G6002,2)","v":0}]
[]
[{"v":53,"d":"53 "},null,"Allow all necessary labelling of equipment where required",null,"Item",1,null,{"$f":"ROUND(F6004*G6004,2)","v":0}]
[]
[{"v":54,"d":"54 "},null,"Allow for the submission of Asbuilt drawings",null,"Item",1,null,{"$f":"ROUND(F6006*G6006,2)","v":0}]
[]
[null,null,"Carried to Summary",{"$nulls":4},{"$f":"SUM(H5804:H6007)","v":0}]
[]
[]
[null,null,"SECTION 4 : ELECTRICAL INSTALLATION (PROVISIONAL)"]
[]
[null,null,"BILL 12"]
[]
[null,null,"BLOCK K"]
[]
[null,null,"LV RETICULATION"]
[]
[null,null,"COPPER CABLES"]
[]
[null,null,"Supply and Installation of 1000/600 volts PVC/SWA/PVC ECC copper cables as specified, excluding terminations and cable supports. Lengths ginen shall be taken as measured lengths to cable runs from terminal to terminal and rates quoted shall include for off-cuts and wastage. Note should cables without ECC be utilized the tenderer will supply the additional external earth at no additional cost."]
[]
[null,null,"16mm² 4C PVC/SWA/PVC ECC Cable"]
[]
[{"v":1,"d":"1 "},null,"Supply",null,"m",150,null,{"$f":"ROUND(F6025*G6025,2)","v":0}]
[]
[{"v":2,"d":"2 "},null,"Install",null,"m",150,null,{"$f":"ROUND(F6027*G6027,2)","v":0}]
[]
[null,null,"10mm² 3C PVC/SWA/PVC ECC Cable"]
[]
[{"v":3,"d":"3 "},null,"Supply",null,"m",120,null,{"$f":"ROUND(F6031*G6031,2)","v":0}]
[]
[{"v":4,"d":"4 "},null,"Install",null,"m",120,null,{"$f":"ROUND(F6033*G6033,2)","v":0}]
[]
[null,null,"CABLE TERMINATIONS"]
[]
[null,null,"For PVC/SWA/PVC shall include supply and fitting of the cable gland, neoprene shroud, making-off the cable, lugs, and fitting the gland to the board gland plate, switchgear and final connection of cable tails into board or terminals."]
[]
[null,null,"16mm² 4C PVC/SWA/PVC ECC Cablee"]
[]
[{"v":5,"d":"5 "},null,"Supply",null,"No",4,null,{"$f":"ROUND(F6041*G6041,2)","v":0}]
[]
[{"v":6,"d":"6 "},null,"Install",null,"No",4,null,{"$f":"ROUND(F6043*G6043,2)","v":0}]
[]
[null,null,"10mm² 3C PVC/SWA/PVC ECC Cable"]
[]
[{"v":7,"d":"7 "},null,"Supply",null,"No",4,null,{"$f":"ROUND(F6047*G6047,2)","v":0}]
[]
[{"v":8,"d":"8 "},null,"Install",null,"No",4,null,{"$f":"ROUND(F6049*G6049,2)","v":0}]
[]
[null,null,"DRAW WIRES"]
[]
[null,null,"Supply and Installation of galvanized steel draw wires drawn into conduit, cable sleeve or wiring channel."]
[]
[null,null,"1mm² Galvanized draw wire"]
[]
[{"v":9,"d":"9 "},null,"Supply",null,"m",200,null,{"$f":"ROUND(F6057*G6057,2)","v":0}]
[]
[{"v":10,"d":"10 "},null,"Install",null,"m",200,null,{"$f":"ROUND(F6059*G6059,2)","v":0}]
[]
[null,null,"LIGHTING AND POWER I"]
[]
[null,null,"DISTRIBUTION BOARDS"]
[]
[null,null,"Supply and Installation of the specified Distribution Boards, including making off all wire connections, earthing and conduit terminations but exclude cable terminations."]
[]
[null,null,"DB -KA1 Sub Distribution Board as per Schematic Layout"]
[]
[{"v":11,"d":"11 "},null,"Supply",null,"No",1,null,{"$f":"ROUND(F6069*G6069,2)","v":0}]
[]
[{"v":12,"d":"12 "},null,"Install",null,"No",1,null,{"$f":"ROUND(F6071*G6071,2)","v":0}]
[]
[null,null,"DB -KA2 Sub Distribution Board as per Schematic Layout"]
[]
[{"v":13,"d":"13 "},null,"Supply",null,"No",1,null,{"$f":"ROUND(F6075*G6075,2)","v":0}]
[]
[{"v":14,"d":"14 "},null,"Install",null,"No",1,null,{"$f":"ROUND(F6077*G6077,2)","v":0}]
[]
[null,null,"DB -KB1 Sub Distribution Board as per Schematic Layout"]
[]
[{"v":15,"d":"15 "},null,"Supply",null,"No",1,null,{"$f":"ROUND(F6081*G6081,2)","v":0}]
[]
[{"v":16,"d":"16 "},null,"Install",null,"No",1,null,{"$f":"ROUND(F6083*G6083,2)","v":0}]
[]
[null,null,"DB -KB2 Sub Distribution Board as per Schematic Layout"]
[]
[{"v":17,"d":"17 "},null,"Supply",null,"No",1,null,{"$f":"ROUND(F6087*G6087,2)","v":0}]
[]
[{"v":18,"d":"18 "},null,"Install",null,"No",1,null,{"$f":"ROUND(F6089*G6089,2)","v":0}]
[]
[null,null,"LUMINAIRES"]
[]
[null,null,"Supply and Installation of the following SABS approved luminaries, complete with lamps as specified"]
[]
[null,null,"Type A The Luminaire shall be LIHLE or other SABS approved 1500x300mm T8, 2x22W LED low  brightness with clip in louvre surface mounted fitting, complete with LED tubes"]
[]
[{"v":19,"d":"19 "},null,"Supply",null,"No",3,null,{"$f":"ROUND(F6097*G6097,2)","v":0}]
[]
[{"v":20,"d":"20 "},null,"Install",null,"No",3,null,{"$f":"ROUND(F6099*G6099,2)","v":0}]
[]
[null,null,"Type B The Luminaire shall be LIHLE or other SABS approved 1500mm T8, 2x22W LED Open Channel surface mounted fitting complete with LED tubes"]
[]
[{"v":21,"d":"21 "},null,"Supply",null,"No",66,null,{"$f":"ROUND(F6103*G6103,2)","v":0}]
[]
[{"v":22,"d":"22 "},null,"Install",null,"No",66,null,{"$f":"ROUND(F6105*G6105,2)","v":0}]
[]
[null,null,"Type G The Luminaire shall be Round  LIHLE or other SABS approved MC 15W LED Bulkhead ceiling/wall mounted fitting at 2200mm AFFL (black trim external/white trim internal)."]
[]
[{"v":23,"d":"23 "},null,"Supply",null,"No",48,null,{"$f":"ROUND(F6109*G6109,2)","v":0}]
[]
[{"v":24,"d":"24 "},null,"Install",null,"No",48,null,{"$f":"ROUND(F6111*G6111,2)","v":0}]
[]
[null,null,"LIGHTING AND POWER II"]
[]
[null,null,"LIGHT SWITCHES"]
[]
[null,null,"Supply and Installation of the following SABS approved flush or surface mounted 16A switched socket outlet, complete with 100x50 PVC box and cover plates"]
[]
[null,null,"1 Lever, 1 Way 16A Light Switch complete with PVC Cover plate (Crabtree or Clipsal)"]
[]
[{"v":25,"d":"25 "},null,"Supply",null,"No",24,null,{"$f":"ROUND(F6121*G6121,2)","v":0}]
[]
[{"v":26,"d":"26 "},null,"Install",null,"No",24,null,{"$f":"ROUND(F6123*G6123,2)","v":0}]
[]
[null,null,"2 Lever, 1 Way 16A Light Switch complete with PVC Cover plate (Crabtree or Clipsal)"]
[]
[{"v":27,"d":"27 "},null,"Supply",null,"No",2,null,{"$f":"ROUND(F6127*G6127,2)","v":0}]
[]
[{"v":28,"d":"28 "},null,"Install",null,"No",2,null,{"$f":"ROUND(F6129*G6129,2)","v":0}]
[]
[null,null,"Type ZS 20A National Day Light electric cell or similar"]
[]
[{"v":29,"d":"29 "},null,"Supply",null,"No",4,null,{"$f":"ROUND(F6133*G6133,2)","v":0}]
[]
[{"v":30,"d":"30 "},null,"Install",null,"No",4,null,{"$f":"ROUND(F6135*G6135,2)","v":0}]
[]
[null,null,"OCCUPANCY SENSOR"]
[]
[null,null,"Type 1 ( OS1 ) as type schneider Electric SLSCPS 1000  or other approved .This sensor to switched or un-switched socket outlets in 100x100, 100x50, round box or wiring channel, excluding box (for flush type ) and conduit connections, but including cover plate."]
[]
[{"v":31,"d":"31 "},null,"Supply",null,"No",5,null,{"$f":"ROUND(F6141*G6141,2)","v":0}]
[]
[{"v":32,"d":"32 "},null,"Install",null,"No",5,null,{"$f":"ROUND(F6143*G6143,2)","v":0}]
[]
[null,null,"SOCKET OUTLETS"]
[]
[null,null,"Supply and Installation of flush or surface mounted switched or un-switched socket outlets in 100x100,100x50, round box or wiring channel, excluding box (for flush type ) and conduit connections, but including cover plate."]
[]
[null,null,"16A Flush wall mounted normal Single switched socket outlet complete with 100x100x50mm Steel box"]
[]
[{"v":33,"d":"33 "},null,"Supply",null,"No",2,null,{"$f":"ROUND(F6151*G6151,2)","v":0}]
[]
[{"v":34,"d":"34 "},null,"Install",null,"No",2,null,{"$f":"ROUND(F6153*G6153,2)","v":0}]
[]
[null,null,"16A Flush wall mounted normal Double switched socket outlet complete with 100x100x50mm"]
[]
[{"v":35,"d":"35 "},null,"Supply",null,"No",38,null,{"$f":"ROUND(F6157*G6157,2)","v":0}]
[]
[{"v":36,"d":"36 "},null,"Install",null,"No",38,null,{"$f":"ROUND(F6159*G6159,2)","v":0}]
[]
[null,null,"CLUSTER BOXES"]
[]
[null,null,"Supply and Installation of powercomm or other approved cluster box, complete with dividers."]
[]
[null,null,"9 - Way cluster box"]
[]
[{"v":37,"d":"37 "},null,"Supply",null,"No",2,null,{"$f":"ROUND(F6167*G6167,2)","v":0}]
[]
[{"v":38,"d":"38 "},null,"Install",null,"No",2,null,{"$f":"ROUND(F6169*G6169,2)","v":0}]
[]
[null,null,"16A  Normal Single EURO with 2 Pin and USB switched socket outlet mounted on cluster box"]
[]
[{"v":39,"d":"39 "},null,"Supply",null,"No",2,null,{"$f":"ROUND(F6173*G6173,2)","v":0}]
[]
[{"v":40,"d":"40 "},null,"Install",null,"No",2,null,{"$f":"ROUND(F6175*G6175,2)","v":0}]
[]
[null,null,"RJ11 Tel Outlet"]
[]
[{"v":41,"d":"41 "},null,"Supply",null,"No",2,null,{"$f":"ROUND(F6179*G6179,2)","v":0}]
[]
[{"v":42,"d":"42 "},null,"Install",null,"No",2,null,{"$f":"ROUND(F6181*G6181,2)","v":0}]
[]
[null,null,"RJ 45 Data Outlet"]
[]
[{"v":43,"d":"43 "},null,"Supply",null,"No",2,null,{"$f":"ROUND(F6185*G6185,2)","v":0}]
[]
[{"v":44,"d":"44 "},null,"Install",null,"No",2,null,{"$f":"ROUND(F6187*G6187,2)","v":0}]
[]
[null,null,"POWER TRUNKING"]
[]
[null,null,"Supply, Installation and commissioning of the Galvanized compact trunking, including all additional supports which may be required."]
[]
[null,null,"P2000 (41mm x 41mm) Galvanised Trunking"]
[]
[{"v":45,"d":"45 "},null,"Supply",null,"m",77,null,{"$f":"ROUND(F6195*G6195,2)","v":0}]
[]
[{"v":46,"d":"46 "},null,"Install",null,"m",77,null,{"$f":"ROUND(F6197*G6197,2)","v":0}]
[]
[null,null,"CONDUIT"]
[]
[null,null,"Supply and installation of PVC or Bosal conduit as specified. Lengths given shall be taken as measured horizontal and vertical runs between conduit terminations. Rates quoted shall allow for westage, offcuts, couplings,saddles, cuttings, bending, jointing socket and tees."]
[]
[null,null,"20 mm Ø PVC conduit fixed to steel/timber roof structure"]
[]
[{"v":47,"d":"47 "},null,"Supply",null,"m",200,null,{"$f":"ROUND(F6205*G6205,2)","v":0}]
[]
[{"v":48,"d":"48 "},null,"Install",null,"m",200,null,{"$f":"ROUND(F6207*G6207,2)","v":0}]
[]
[null,null,"20 mm Ø PVC conduit fixed onto common brick/ cast into concrete"]
[]
[{"v":49,"d":"49 "},null,"Supply",null,"m",200,null,{"$f":"ROUND(F6211*G6211,2)","v":0}]
[]
[{"v":50,"d":"50 "},null,"Install",null,"m",200,null,{"$f":"ROUND(F6213*G6213,2)","v":0}]
[]
[null,null,"20 mm Ø PVC Galvanised Steel pipe fixed onto the wall."]
[]
[{"v":51,"d":"51 "},null,"Supply",null,"m",40,null,{"$f":"ROUND(F6217*G6217,2)","v":0}]
[]
[{"v":52,"d":"52 "},null,"Install",null,"m",40,null,{"$f":"ROUND(F6219*G6219,2)","v":0}]
[]
[null,null,"32 mm Ø Galvanised Steel pipe fixed onto the wall."]
[]
[{"v":53,"d":"53 "},null,"Supply",null,"m",6,null,{"$f":"ROUND(F6223*G6223,2)","v":0}]
[]
[{"v":54,"d":"54 "},null,"Install",null,"m",6,null,{"$f":"ROUND(F6225*G6225,2)","v":0}]
[]
[null,null,"Terminate and connect one pair of conduit ends including supply and installation of 1, 2, 3 or 4 way box on surface or in brickwork(excluding cover plates), including holes for conduit."]
[]
[null,null,"20mm round PVC conduit box c/w covers."]
[]
[{"v":55,"d":"55 "},null,"Supply",null,"No",40,null,{"$f":"ROUND(F6231*G6231,2)","v":0}]
[]
[{"v":56,"d":"56 "},null,"Install",null,"No",40,null,{"$f":"ROUND(F6233*G6233,2)","v":0}]
[]
[null,null,"100 x 50 x 50mm Galvanized box"]
[]
[{"v":57,"d":"57 "},null,"Supply",null,"No",5,null,{"$f":"ROUND(F6237*G6237,2)","v":0}]
[]
[{"v":58,"d":"58 "},null,"Install",null,"No",5,null,{"$f":"ROUND(F6239*G6239,2)","v":0}]
[]
[null,null,"100 x 100 x 50mm Galvanized box"]
[]
[{"v":59,"d":"59 "},null,"Supply",null,"No",5,null,{"$f":"ROUND(F6243*G6243,2)","v":0}]
[]
[{"v":60,"d":"60 "},null,"Install",null,"No",5,null,{"$f":"ROUND(F6245*G6245,2)","v":0}]
[]
[null,null,"COPPER CONDUCTORS"]
[]
[null,null,"Supply and Installation of PVC insulated copper conductors drawn into conduit or wiring channel in groups of 2, 3, 4 etc. with the required colour coding, but excluding any wiring connections."]
[]
[null,null,"2,5 mm² red PVC insulated"]
[]
[{"v":61,"d":"61 "},null,"Supply",null,"m",1400,null,{"$f":"ROUND(F6253*G6253,2)","v":0}]
[]
[{"v":62,"d":"62 "},null,"Install",null,"m",1400,null,{"$f":"ROUND(F6255*G6255,2)","v":0}]
[]
[null,null,"2,5 mm² black PVC insulated"]
[]
[{"v":63,"d":"63 "},null,"Supply",null,"m",1200,null,{"$f":"ROUND(F6259*G6259,2)","v":0}]
[]
[{"v":64,"d":"64 "},null,"Install",null,"m",1200,null,{"$f":"ROUND(F6261*G6261,2)","v":0}]
[]
[null,null,"4,0 mm² red PVC insulated"]
[]
[{"v":65,"d":"65 "},null,"Supply",null,"m",1200,null,{"$f":"ROUND(F6265*G6265,2)","v":0}]
[]
[{"v":66,"d":"66 "},null,"Install",null,"m",1200,null,{"$f":"ROUND(F6267*G6267,2)","v":0}]
[]
[null,null,"4,0 mm² black PVC insulated"]
[]
[{"v":67,"d":"67 "},null,"Supply",null,"m",1200,null,{"$f":"ROUND(F6271*G6271,2)","v":0}]
[]
[{"v":68,"d":"68 "},null,"Install",null,"m",1200,null,{"$f":"ROUND(F6273*G6273,2)","v":0}]
[]
[null,null,"EARTH CONDUCTORS"]
[]
[null,null,"Supply and Installation of PVC insulated earth conductors drawn into conduit or wiring channel with the required colour coding, but excluding any wiring connections."]
[]
[null,null,"2,5 mm² yellow/green PVC insulated"]
[]
[{"v":69,"d":"69 "},null,"Supply",null,"m",2500,null,{"$f":"ROUND(F6281*G6281,2)","v":0}]
[]
[{"v":70,"d":"70 "},null,"Install",null,"m",2500,null,{"$f":"ROUND(F6283*G6283,2)","v":0}]
[]
[null,null,"EARTHING SYSTEM"]
[]
[null,null,"EARTH SPIKE"]
[]
[null,null,"1.5m copper coated earth spike at the Distribution Board"]
[]
[{"v":71,"d":"71 "},null,"Supply",null,"No",2,null,{"$f":"ROUND(F6291*G6291,2)","v":0}]
[]
[{"v":72,"d":"72 "},null,"Install",null,"No",2,null,{"$f":"ROUND(F6293*G6293,2)","v":0}]
[]
[{"v":73,"d":"73 "},null,"Allow for earthing and bonding of cold and hot water pipes and all the metal to comply with SANS regulations.",null,"Item",1,null,{"$f":"ROUND(F6295*G6295,2)","v":0}]
[]
[null,null,"LIGHTNING  PROTECTION"]
[]
[null,null,"PVC CONDUITS"]
[]
[null,null,"Supply and installation of conduit as specified in General Specification Lengths shall be taken as measured horizontal and vertical runs between terminations. Rates quoted shall allow for wastage off-cuts, couplings, bends, extention boxes, covers fixing and chasing etc. in accordance with the specification."]
[]
[null,null,"20mm diameter CIB, FOS, CIC"]
[]
[{"v":74,"d":"74 "},null,"Supply",null,"m",80,null,{"$f":"ROUND(F6305*G6305,2)","v":0}]
[]
[{"v":75,"d":"75 "},null,"Install",null,"m",80,null,{"$f":"ROUND(F6307*G6307,2)","v":0}]
[]
[null,null,"LIGHTNING PROTECTION SYSTEM"]
[]
[null,null,"50mm² Diameter copper conductor installed in conduit"]
[]
[{"v":76,"d":"76 "},null,"Supply",null,"m",80,null,{"$f":"ROUND(F6313*G6313,2)","v":0}]
[]
[{"v":77,"d":"77 "},null,"Install",null,"m",80,null,{"$f":"ROUND(F6315*G6315,2)","v":0}]
[]
[null,null,"Caldweld copper earth electrodes driven in ground 16mm Diameter x 1500mm long earth electrode driven into ground"]
[]
[{"v":78,"d":"78 "},null,"Supply",null,"No",12,null,{"$f":"ROUND(F6319*G6319,2)","v":0}]
[]
[{"v":79,"d":"79 "},null,"Install",null,"No",12,null,{"$f":"ROUND(F6321*G6321,2)","v":0}]
[]
[null,null,"Bonds from down conductor to roof sheets or gutters"]
[]
[{"v":80,"d":"80 "},null,"Supply",null,"No",12,null,{"$f":"ROUND(F6325*G6325,2)","v":0}]
[]
[{"v":81,"d":"81 "},null,"Install",null,"No",12,null,{"$f":"ROUND(F6327*G6327,2)","v":0}]
[]
[null,null,"Bond down conductors to Copper Earth Electrode"]
[]
[{"v":82,"d":"82 "},null,"Supply",null,"No",12,null,{"$f":"ROUND(F6331*G6331,2)","v":0}]
[]
[{"v":83,"d":"83 "},null,"Install",null,"No",12,null,{"$f":"ROUND(F6333*G6333,2)","v":0}]
[]
[null,null,"Lightning protection Test point incl 100x100x50 box and engraved cover as per specification"]
[]
[{"v":84,"d":"84 "},null,"Supply",null,"No",6,null,{"$f":"ROUND(F6337*G6337,2)","v":0}]
[]
[{"v":85,"d":"85 "},null,"Install",null,"No",6,null,{"$f":"ROUND(F6339*G6339,2)","v":0}]
[]
[{"v":86,"d":"86 "},null,"Allow for site survey, resistivity test reports and    issuing of workshop drawing to the engineer prior to installation.",null,"Item",1,null,{"$f":"ROUND(F6341*G6341,2)","v":0}]
[]
[{"v":87,"d":"87 "},null,"Allow for resistivity tests after completion",null,"Item",1,null,{"$f":"ROUND(F6343*G6343,2)","v":0}]
[]
[{"v":88,"d":"88 "},null,"Allow for testing, commissioning and issuing of Certificate.",null,"Item",1,null,{"$f":"ROUND(F6345*G6345,2)","v":0}]
[]
[null,null,"TESTING AND COMMISSIONING"]
[]
[{"v":89,"d":"89 "},null,"Allow for a Lump Sum for testing and commissioning of the entire electrical installation, including the provision of Compliance Certificate",null,"Item",1,null,{"$f":"ROUND(F6349*G6349,2)","v":0}]
[]
[null,null,"GENERAL"]
[]
[{"v":90,"d":"90 "},null,"Allow for the 12 months guarantee period",null,"Item",1,null,{"$f":"ROUND(F6353*G6353,2)","v":0}]
[]
[{"v":91,"d":"91 "},null,"Allow all necessary labelling of equipment where required",null,"Item",1,null,{"$f":"ROUND(F6355*G6355,2)","v":0}]
[]
[{"v":92,"d":"92 "},null,"Allow for the submission of Asbuilt drawings",null,"Item",1,null,{"$f":"ROUND(F6357*G6357,2)","v":0}]
[]
[null,null,"Carried to Summary",{"$nulls":4},{"$f":"SUM(H6025:H6358)","v":0}]
[]
[]
[null,null,"SECTION 4 : ELECTRICAL INSTALLATION (PROVISIONAL)"]
[]
[null,null,"BILL 13"]
[]
[null,null,"BLOCK N"]
[]
[null,null,"LV RETICULATION"]
[]
[null,null,"COPPER CABLES"]
[]
[null,null,"Supply and Installation of 1000/600 volts PVC/SWA/PVC ECC copper cables as specified, excluding terminations and cable supports. Lengths ginen shall be taken as measured lengths to cable runs from terminal to terminal and rates quoted shall include for off-cuts and wastage. Note should cables without ECC be utilized the tenderer will supply the additional external earth at no additional cost."]
[]
[null,null,"10mm² 3C PVC/SWA/PVC ECC Cable"]
[]
[{"v":1,"d":"1 "},null,"Supply",null,"m",90,null,{"$f":"ROUND(F6376*G6376,2)","v":0}]
[]
[{"v":2,"d":"2 "},null,"Install",null,"m",90,null,{"$f":"ROUND(F6378*G6378,2)","v":0}]
[]
[null,null,"CABLE TERMINATIONS"]
[]
[null,null,"For PVC/SWA/PVC shall include supply and fitting of the cable gland, neoprene shroud, making-off the cable, lugs, and fitting the gland to the board gland plate, switchgear and final connection of cable tails into board or terminals."]
[]
[null,null,"10mm² 3C PVC/SWA/PVC ECC Cable"]
[]
[{"v":3,"d":"3 "},null,"Supply",null,"No",2,null,{"$f":"ROUND(F6386*G6386,2)","v":0}]
[]
[{"v":4,"d":"4 "},null,"Install",null,"No",2,null,{"$f":"ROUND(F6388*G6388,2)","v":0}]
[]
[null,null,"DRAW WIRES"]
[]
[null,null,"Supply and Installation of galvanized steel draw wires drawn into conduit, cable sleeve or wiring channel."]
[]
[null,null,"1mm² Galvanized draw wire"]
[]
[{"v":5,"d":"5 "},null,"Supply",null,"m",200,null,{"$f":"ROUND(F6396*G6396,2)","v":0}]
[]
[{"v":6,"d":"6 "},null,"Install",null,"m",200,null,{"$f":"ROUND(F6398*G6398,2)","v":0}]
[]
[null,null,"LIGHTING AND POWER I"]
[]
[null,null,"DISTRIBUTION BOARDS"]
[]
[null,null,"Supply and Installation of the specified Distribution Boards, including making off all wire connections, earthing and conduit terminations but exclude cable terminations."]
[]
[null,null,"DB -N Sub Distribution Board as per Schematic Layout"]
[]
[{"v":7,"d":"7 "},null,"Supply",null,"No",1,null,{"$f":"ROUND(F6408*G6408,2)","v":0}]
[]
[{"v":8,"d":"8 "},null,"Install",null,"No",1,null,{"$f":"ROUND(F6410*G6410,2)","v":0}]
[]
[null,null,"LUMINAIRES"]
[]
[null,null,"Supply and Installation of the following SABS approved luminaries, complete with lamps as specified"]
[]
[null,null,"Type B The Luminaire shall be LIHLE or other SABS approved 1500mm T8, 2x22W LED Open Channel surface mounted fitting complete with LED tubes"]
[]
[{"v":9,"d":"9 "},null,"Supply",null,"No",1,null,{"$f":"ROUND(F6418*G6418,2)","v":0}]
[]
[{"v":10,"d":"10 "},null,"Install",null,"No",1,null,{"$f":"ROUND(F6420*G6420,2)","v":0}]
[]
[null,null,"Type G The Luminaire shall be Round  LIHLE or other SABS approved MC 15W LED Bulkhead ceiling/wall mounted fitting at 2200mm AFFL (black trim external/white trim internal)."]
[]
[{"v":11,"d":"11 "},null,"Supply",null,"No",2,null,{"$f":"ROUND(F6424*G6424,2)","v":0}]
[]
[{"v":12,"d":"12 "},null,"Install",null,"No",2,null,{"$f":"ROUND(F6426*G6426,2)","v":0}]
[]
[null,null,"LIGHTING AND POWER II"]
[]
[null,null,"LIGHT SWITCHES"]
[]
[null,null,"Supply and Installation of the following SABS approved flush or surface mounted 16A switched socket outlet, complete with 100x50 PVC box and cover plates"]
[]
[null,null,"1 Lever, 1 Way 16A Light Switch complete with PVC Cover plate (Crabtree or Clipsal)"]
[]
[{"v":13,"d":"13 "},null,"Supply",null,"No",1,null,{"$f":"ROUND(F6436*G6436,2)","v":0}]
[]
[{"v":14,"d":"14 "},null,"Install",null,"No",1,null,{"$f":"ROUND(F6438*G6438,2)","v":0}]
[]
[null,null,"Type ZS 20A National Day Light electric cell or similar"]
[]
[{"v":15,"d":"15 "},null,"Supply",null,"No",1,null,{"$f":"ROUND(F6442*G6442,2)","v":0}]
[]
[{"v":16,"d":"16 "},null,"Install",null,"No",1,null,{"$f":"ROUND(F6444*G6444,2)","v":0}]
[]
[null,null,"SOCKET OUTLETS"]
[]
[null,null,"Supply and Installation of flush or surface mounted switched or un-switched socket outlets in 100x100,100x50, round box or wiring channel, excluding box (for flush type ) and conduit connections, but including cover plate."]
[]
[null,null,"16A Flush wall mounted normal Double switched socket outlet complete with 100x100x50mm"]
[]
[{"v":17,"d":"17 "},null,"Supply",null,"No",1,null,{"$f":"ROUND(F6452*G6452,2)","v":0}]
[]
[{"v":18,"d":"18 "},null,"Install",null,"No",1,null,{"$f":"ROUND(F6454*G6454,2)","v":0}]
[]
[null,null,"CONDUIT"]
[]
[null,null,"Supply and installation of PVC or Bosal conduit as specified. Lengths given shall be taken as measured horizontal and vertical runs between conduit terminations. Rates quoted shall allow for westage, offcuts, couplings,saddles, cuttings, bending, jointing socket and tees."]
[]
[null,null,"20 mm Ø PVC conduit fixed to steel/timber roof structure"]
[]
[{"v":19,"d":"19 "},null,"Supply",null,"m",200,null,{"$f":"ROUND(F6462*G6462,2)","v":0}]
[]
[{"v":20,"d":"20 "},null,"Install",null,"m",200,null,{"$f":"ROUND(F6464*G6464,2)","v":0}]
[]
[null,null,"20 mm Ø PVC conduit fixed onto common brick/ cast into concrete"]
[]
[{"v":21,"d":"21 "},null,"Supply",null,"m",260,null,{"$f":"ROUND(F6468*G6468,2)","v":0}]
[]
[{"v":22,"d":"22 "},null,"Install",null,"m",260,null,{"$f":"ROUND(F6470*G6470,2)","v":0}]
[]
[null,null,"20 mm Ø PVC Galvanised Steel pipe fixed onto the wall."]
[]
[{"v":23,"d":"23 "},null,"Supply",null,"m",20,null,{"$f":"ROUND(F6474*G6474,2)","v":0}]
[]
[{"v":24,"d":"24 "},null,"Install",null,"m",20,null,{"$f":"ROUND(F6476*G6476,2)","v":0}]
[]
[null,null,"32 mm Ø Galvanised Steel pipe fixed onto the wall."]
[]
[{"v":25,"d":"25 "},null,"Supply",null,"m",8,null,{"$f":"ROUND(F6480*G6480,2)","v":0}]
[]
[{"v":26,"d":"26 "},null,"Install",null,"m",8,null,{"$f":"ROUND(F6482*G6482,2)","v":0}]
[]
[null,null,"Terminate and connect one pair of conduit ends including supply and installation of 1, 2, 3 or 4 way box on surface or in brickwork(excluding cover plates), including holes for conduit."]
[]
[null,null,"20mm round PVC conduit box c/w covers."]
[]
[{"v":27,"d":"27 "},null,"Supply",null,"No",10,null,{"$f":"ROUND(F6488*G6488,2)","v":0}]
[]
[{"v":28,"d":"28 "},null,"Install",null,"No",10,null,{"$f":"ROUND(F6490*G6490,2)","v":0}]
[]
[null,null,"100 x 50 x 50mm Galvanized box"]
[]
[{"v":29,"d":"29 "},null,"Supply",null,"No",1,null,{"$f":"ROUND(F6494*G6494,2)","v":0}]
[]
[{"v":30,"d":"30 "},null,"Install",null,"No",1,null,{"$f":"ROUND(F6496*G6496,2)","v":0}]
[]
[null,null,"100 x 100 x 50mm Galvanized box"]
[]
[{"v":31,"d":"31 "},null,"Supply",null,"No",1,null,{"$f":"ROUND(F6500*G6500,2)","v":0}]
[]
[{"v":32,"d":"32 "},null,"Install",null,"No",1,null,{"$f":"ROUND(F6502*G6502,2)","v":0}]
[]
[null,null,"COPPER CONDUCTORS"]
[]
[null,null,"Supply and Installation of PVC insulated copper conductors drawn into conduit or wiring channel in groups of 2, 3, 4 etc. with the required colour coding, but excluding any wiring connections."]
[]
[null,null,"2,5 mm² red PVC insulated"]
[]
[{"v":33,"d":"33 "},null,"Supply",null,"m",300,null,{"$f":"ROUND(F6510*G6510,2)","v":0}]
[]
[{"v":34,"d":"34 "},null,"Install",null,"m",300,null,{"$f":"ROUND(F6512*G6512,2)","v":0}]
[]
[null,null,"2,5 mm² black PVC insulated"]
[]
[{"v":35,"d":"35 "},null,"Supply",null,"m",200,null,{"$f":"ROUND(F6516*G6516,2)","v":0}]
[]
[{"v":36,"d":"36 "},null,"Install",null,"m",200,null,{"$f":"ROUND(F6518*G6518,2)","v":0}]
[]
[null,null,"4,0 mm² red PVC insulated"]
[]
[{"v":37,"d":"37 "},null,"Supply",null,"m",100,null,{"$f":"ROUND(F6522*G6522,2)","v":0}]
[]
[{"v":38,"d":"38 "},null,"Install",null,"m",100,null,{"$f":"ROUND(F6524*G6524,2)","v":0}]
[]
[null,null,"4,0 mm² black PVC insulated"]
[]
[{"v":39,"d":"39 "},null,"Supply",null,"m",100,null,{"$f":"ROUND(F6528*G6528,2)","v":0}]
[]
[{"v":40,"d":"40 "},null,"Install",null,"m",100,null,{"$f":"ROUND(F6530*G6530,2)","v":0}]
[]
[null,null,"EARTH CONDUCTORS"]
[]
[null,null,"Supply and Installation of PVC insulated earth conductors drawn into conduit or wiring channel with the required colour coding, but excluding any wiring connections."]
[]
[null,null,"2,5 mm² yellow/green PVC insulated"]
[]
[{"v":41,"d":"41 "},null,"Supply",null,"m",400,null,{"$f":"ROUND(F6538*G6538,2)","v":0}]
[]
[{"v":42,"d":"42 "},null,"Install",null,"m",400,null,{"$f":"ROUND(F6540*G6540,2)","v":0}]
[]
[null,null,"EARTHING SYSTEM"]
[]
[null,null,"EARTH SPIKE"]
[]
[null,null,"1.5m copper coated earth spike at the Distribution Board"]
[]
[{"v":43,"d":"43 "},null,"Supply",null,"No",1,null,{"$f":"ROUND(F6548*G6548,2)","v":0}]
[]
[{"v":44,"d":"44 "},null,"Install",null,"No",1,null,{"$f":"ROUND(F6550*G6550,2)","v":0}]
[]
[{"v":45,"d":"45 "},null,"Allow for earthing and bonding of cold and hot water pipes and all the metal to comply with SANS regulations.",null,"Item",1,null,{"$f":"ROUND(F6552*G6552,2)","v":0}]
[]
[null,null,"LIGHTNING  PROTECTION"]
[]
[null,null,"PVC CONDUITS"]
[]
[null,null,"Supply and installation of conduit as specified in General Specification Lengths shall be taken as measured horizontal and vertical runs between terminations. Rates quoted shall allow for wastage off-cuts, couplings, bends, extention boxes, covers fixing and chasing etc. in accordance with the specification."]
[]
[null,null,"20mm diameter CIB, FOS, CIC"]
[]
[{"v":46,"d":"46 "},null,"Supply",null,"m",12,null,{"$f":"ROUND(F6562*G6562,2)","v":0}]
[]
[{"v":47,"d":"47 "},null,"Install",null,"m",12,null,{"$f":"ROUND(F6564*G6564,2)","v":0}]
[]
[null,null,"LIGHTNING PROTECTION SYSTEM"]
[]
[null,null,"50mm² Diameter copper conductor installed in conduit"]
[]
[{"v":48,"d":"48 "},null,"Supply",null,"m",12,null,{"$f":"ROUND(F6570*G6570,2)","v":0}]
[]
[{"v":49,"d":"49 "},null,"Install",null,"m",12,null,{"$f":"ROUND(F6572*G6572,2)","v":0}]
[]
[null,null,"Caldweld copper earth electrodes driven in ground 16mm Diameter x 1500mm long earth electrode driven into ground"]
[]
[{"v":50,"d":"50 "},null,"Supply",null,"No",2,null,{"$f":"ROUND(F6576*G6576,2)","v":0}]
[]
[{"v":51,"d":"51 "},null,"Install",null,"No",2,null,{"$f":"ROUND(F6578*G6578,2)","v":0}]
[]
[null,null,"Bonds from down conductor to roof sheets or gutters"]
[]
[{"v":52,"d":"52 "},null,"Supply",null,"No",2,null,{"$f":"ROUND(F6582*G6582,2)","v":0}]
[]
[{"v":53,"d":"53 "},null,"Install",null,"No",2,null,{"$f":"ROUND(F6584*G6584,2)","v":0}]
[]
[null,null,"Bond down conductors to Copper Earth Electrode"]
[]
[{"v":54,"d":"54 "},null,"Supply",null,"No",2,null,{"$f":"ROUND(F6588*G6588,2)","v":0}]
[]
[{"v":55,"d":"55 "},null,"Install",null,"No",2,null,{"$f":"ROUND(F6590*G6590,2)","v":0}]
[]
[null,null,"Lightning protection Test point incl 100x100x50 box and engraved cover as per specification"]
[]
[{"v":56,"d":"56 "},null,"Supply",null,"No",2,null,{"$f":"ROUND(F6594*G6594,2)","v":0}]
[]
[{"v":57,"d":"57 "},null,"Install",null,"No",2,null,{"$f":"ROUND(F6596*G6596,2)","v":0}]
[]
[{"v":58,"d":"58 "},null,"Allow for site survey, resistivity test reports and    issuing of workshop drawing to the engineer prior to installation.",null,"Item",1,null,{"$f":"ROUND(F6598*G6598,2)","v":0}]
[]
[{"v":59,"d":"59 "},null,"Allow for resistivity tests after completion",null,"Item",1,null,{"$f":"ROUND(F6600*G6600,2)","v":0}]
[]
[{"v":60,"d":"60 "},null,"Allow for testing, commissioning and issuing of Certificate.",null,"Item",1,null,{"$f":"ROUND(F6602*G6602,2)","v":0}]
[]
[null,null,"TESTING AND COMMISSIONING"]
[]
[{"v":61,"d":"61 "},null,"Allow for a Lump Sum for testing and commissioning of the entire electrical installation, including the provision of Compliance Certificate",null,"Item",1,null,{"$f":"ROUND(F6606*G6606,2)","v":0}]
[]
[null,null,"GENERAL"]
[]
[{"v":62,"d":"62 "},null,"Allow for the 12 months guarantee period",null,"Item",1,null,{"$f":"ROUND(F6610*G6610,2)","v":0}]
[]
[{"v":63,"d":"63 "},null,"Allow all necessary labelling of equipment where required",null,"Item",1,null,{"$f":"ROUND(F6612*G6612,2)","v":0}]
[]
[{"v":64,"d":"64 "},null,"Allow for the submission of Asbuilt drawings",null,"Item",1,null,{"$f":"ROUND(F6614*G6614,2)","v":0}]
[]
[null,null,"Carried to Summary",{"$nulls":4},{"$f":"SUM(H6376:H6615)","v":0}]
[]
[]
[null,null,"SECTION 4 : ELECTRICAL INSTALLATION (PROVISIONAL)"]
[]
[null,null,"BILL 14"]
[]
[null,null,"DATA AND TELEPHONE INSTALLATION"]
[]
[null,null,"Swing Frame Cabinet - 15U (800 x 600)"]
[]
[{"v":1,"d":"1 "},null,"Supply",null,"No",1,null,{"$f":"ROUND(F6627*G6627,2)","v":0}]
[]
[{"v":2,"d":"2 "},null,"Install",null,"No",1,null,{"$f":"ROUND(F6629*G6629,2)","v":0}]
[]
[null,null,"Swing Frame Cabinet - 12U (800 x 600)"]
[]
[{"v":3,"d":"3 "},null,"Supply",null,"No",4,null,{"$f":"ROUND(F6633*G6633,2)","v":0}]
[]
[{"v":4,"d":"4 "},null,"Install",null,"No",4,null,{"$f":"ROUND(F6635*G6635,2)","v":0}]
[]
[null,null,"Fans"]
[]
[{"v":5,"d":"5 "},null,"Supply",null,"No",10,null,{"$f":"ROUND(F6639*G6639,2)","v":0}]
[]
[{"v":6,"d":"6 "},null,"Install",null,"No",10,null,{"$f":"ROUND(F6641*G6641,2)","v":0}]
[]
[null,null,"5 Way Metal Power"]
[]
[{"v":7,"d":"7 "},null,"Supply",null,"No",5,null,{"$f":"ROUND(F6645*G6645,2)","v":0}]
[]
[{"v":8,"d":"8 "},null,"Install",null,"No",5,null,{"$f":"ROUND(F6647*G6647,2)","v":0}]
[]
[null,null,"Blank Panel"]
[]
[{"v":9,"d":"9 "},null,"Supply",null,"No",5,null,{"$f":"ROUND(F6651*G6651,2)","v":0}]
[]
[{"v":10,"d":"10 "},null,"Install",null,"No",5,null,{"$f":"ROUND(F6653*G6653,2)","v":0}]
[]
[null,null,"Brush Panels"]
[]
[{"v":11,"d":"11 "},null,"Supply",null,"No",30,null,{"$f":"ROUND(F6657*G6657,2)","v":0}]
[]
[{"v":12,"d":"12 "},null,"Install",null,"No",30,null,{"$f":"ROUND(F6659*G6659,2)","v":0}]
[]
[null,null,"CAT 6 Patch Panels - 24 way"]
[]
[{"v":13,"d":"13 "},null,"Supply",null,"No",7,null,{"$f":"ROUND(F6663*G6663,2)","v":0}]
[]
[{"v":14,"d":"14 "},null,"Install",null,"No",7,null,{"$f":"ROUND(F6665*G6665,2)","v":0}]
[]
[null,null,"CAT 6 Keystone - Flush Mount"]
[]
[{"v":15,"d":"15 "},null,"Supply",null,"No",70,null,{"$f":"ROUND(F6669*G6669,2)","v":0}]
[]
[{"v":16,"d":"16 "},null,"Install",null,"No",70,null,{"$f":"ROUND(F6671*G6671,2)","v":0}]
[]
[null,null,"CAT 6 Tel/Data Point"]
[]
[{"v":17,"d":"17 "},null,"Supply",null,"No",70,null,{"$f":"ROUND(F6675*G6675,2)","v":0}]
[]
[{"v":18,"d":"18 "},null,"Install",null,"No",70,null,{"$f":"ROUND(F6677*G6677,2)","v":0}]
[]
[null,null,"CAT 6 Flyleads (3m)"]
[]
[{"v":19,"d":"19 "},null,"Supply",null,"No",70,null,{"$f":"ROUND(F6681*G6681,2)","v":0}]
[]
[{"v":20,"d":"20 "},null,"Install",null,"No",70,null,{"$f":"ROUND(F6683*G6683,2)","v":0}]
[]
[null,null,"CAT 6 Patchleads (1m)"]
[]
[{"v":21,"d":"21 "},null,"Supply",null,"No",70,null,{"$f":"ROUND(F6687*G6687,2)","v":0}]
[]
[{"v":22,"d":"22 "},null,"Install",null,"No",70,null,{"$f":"ROUND(F6689*G6689,2)","v":0}]
[]
[null,null,"CAT 6 Keystone - Flush Mount"]
[]
[{"v":23,"d":"23 "},null,"Supply",null,"No",70,null,{"$f":"ROUND(F6693*G6693,2)","v":0}]
[]
[{"v":24,"d":"24 "},null,"Install",null,"No",70,null,{"$f":"ROUND(F6695*G6695,2)","v":0}]
[]
[null,null,"Fibre Tray LC - Complete with glands (x2) & cassette (x1)"]
[]
[{"v":25,"d":"25 "},null,"Supply",null,"No",5,null,{"$f":"ROUND(F6699*G6699,2)","v":0}]
[]
[{"v":26,"d":"26 "},null,"Install",null,"No",5,null,{"$f":"ROUND(F6701*G6701,2)","v":0}]
[]
[null,null,"Single Mode Fibre - 4 Core"]
[]
[{"v":27,"d":"27 "},null,"Supply",null,"No",485,null,{"$f":"ROUND(F6705*G6705,2)","v":0}]
[]
[{"v":28,"d":"28 "},null,"Install",null,"No",485,null,{"$f":"ROUND(F6707*G6707,2)","v":0}]
[]
[null,null,"Pigtails LC Single Mode"]
[]
[{"v":29,"d":"29 "},null,"Supply",null,"No",28,null,{"$f":"ROUND(F6711*G6711,2)","v":0}]
[]
[{"v":30,"d":"30 "},null,"Install",null,"No",28,null,{"$f":"ROUND(F6713*G6713,2)","v":0}]
[]
[null,null,"Midcouplers LC Single Mode"]
[]
[{"v":31,"d":"31 "},null,"Supply",null,"No",14,null,{"$f":"ROUND(F6717*G6717,2)","v":0}]
[]
[{"v":32,"d":"32 "},null,"Install",null,"No",14,null,{"$f":"ROUND(F6719*G6719,2)","v":0}]
[]
[null,null,"Fibre Leads - 1m Single Mode"]
[]
[{"v":33,"d":"33 "},null,"Supply",null,"No",14,null,{"$f":"ROUND(F6723*G6723,2)","v":0}]
[]
[{"v":34,"d":"34 "},null,"Install",null,"No",14,null,{"$f":"ROUND(F6725*G6725,2)","v":0}]
[]
[null,null,"Fibre Splicing"]
[]
[{"v":35,"d":"35 "},null,"Supply",null,"No",28,null,{"$f":"ROUND(F6729*G6729,2)","v":0}]
[]
[{"v":36,"d":"36 "},null,"Install",null,"No",28,null,{"$f":"ROUND(F6731*G6731,2)","v":0}]
[]
[null,null,"Splice Protectors"]
[]
[{"v":37,"d":"37 "},null,"Supply",null,"No",28,null,{"$f":"ROUND(F6735*G6735,2)","v":0}]
[]
[{"v":38,"d":"38 "},null,"Install",null,"No",28,null,{"$f":"ROUND(F6737*G6737,2)","v":0}]
[]
[null,null,"Cage Nuts, Brother label tape, Velcro, Cable Ties"]
[]
[{"v":39,"d":"39 "},null,"Supply",null,"Item",1,null,{"$f":"ROUND(F6741*G6741,2)","v":0}]
[]
[{"v":40,"d":"40 "},null,"Install",null,"Item",1,null,{"$f":"ROUND(F6743*G6743,2)","v":0}]
[]
[null,null,"Duxbury AI 26 Port Layer 2 Managed Gbe PoE+ with 24 Port PoE+ Gigabit Ports x 2 Gig SFP Port switch. 250W Total PoE budget. AI mode support 4 additional modes. AI VLAN, AI Extend, AI PoE and AI QoS. Layer 2 features provide easier manageability, basic sec."]
[]
[{"v":41,"d":"41 "},null,"Supply",null,"No",3,null,{"$f":"ROUND(F6747*G6747,2)","v":0}]
[]
[{"v":42,"d":"42 "},null,"Install",null,"No",3,null,{"$f":"ROUND(F6749*G6749,2)","v":0}]
[]
[null,null,"Duxbury AI 52 Port Layer 3 Gigabit PoE+ Managed Switch with 48 Port Gigabit PoE+Ports and x 4 10Gbe SFP+ Ports."]
[]
[{"v":43,"d":"43 "},null,"Supply",null,"No",1,null,{"$f":"ROUND(F6753*G6753,2)","v":0}]
[]
[{"v":44,"d":"44 "},null,"Install",null,"No",1,null,{"$f":"ROUND(F6755*G6755,2)","v":0}]
[]
[null,null,"1000Base-LX GBIC Module LC-Connector Single Mode"]
[]
[{"v":45,"d":"45 "},null,"Supply",null,"No",8,null,{"$f":"ROUND(F6759*G6759,2)","v":0}]
[]
[{"v":46,"d":"46 "},null,"Install",null,"No",8,null,{"$f":"ROUND(F6761*G6761,2)","v":0}]
[]
[null,null,"TESTING AND COMMISSIONING"]
[]
[{"v":47,"d":"47 "},null,"Allow for a Lump Sum for testing and commissioning of the entire Data installation, including the provision of Compliance Certificate",null,"Item",1,null,{"$f":"ROUND(F6765*G6765,2)","v":0}]
[]
[null,null,"GENERAL"]
[]
[{"v":48,"d":"48 "},null,"Allow for the 12 months guarantee period",null,"Item",1,null,{"$f":"ROUND(F6769*G6769,2)","v":0}]
[]
[{"v":49,"d":"49 "},null,"Allow all necessary labelling of equipment where required",null,"Item",1,null,{"$f":"ROUND(F6771*G6771,2)","v":0}]
[]
[{"v":50,"d":"50 "},null,"Allow for the submission of As built drawings",null,"Item",1,null,{"$f":"ROUND(F6773*G6773,2)","v":0}]
[]
[null,null,"Carried to Summary",{"$nulls":4},{"$f":"SUM(H6627:H6774)","v":0}]
[]
[null,null,"SECTION 4 : ELECTRICAL INSTALLATION (PROVISIONAL)"]
[]
[null,null,"BILL 15"]
[]
[null,null,"SMART BOARD AND EQUIPMENT"]
[]
[null,null,"Supply, install, test and commission the smart interactive boards complete with all hardware, software, terminations and fixings etc. System to come complete with a 5 year warranty. Huawei IdealHub Pro or equal and approved system to be used and comprise of: Smart Board to be complete with the following technical aspect: Size - 75 - 85 inch Components; Main Body - Codec, Camera, Mircophone array and Speakers Stylus Pen - 2 No. Installation - Wall mounted bracket Styluses - 2 No. System; CPU - Dual-chip 4 core @1.5 Ghz + 4 core @ 1.8 Ghz RAM - 12GB Flash - 64GB Screen; Backlighting Type - D-LED Resolution - 4K Refresh rate - 60Hz Precision - ± 1mm Multi-touch - 20 points Camera; Resolution - 4K30 Features - Auto voice tracking, auto framing, Anti-fog etc. Speakers; Frequency - 10Hz to 20 KHz Mircophone; Sound Pick-Up - Up to 8m Features - Echo cancellation, noise suppression, auto gain etc. Ports; Video input and output, Audio input and output, WIFI Weight & Dimension; Package Dimension - 1404 x 2236 x 356mm Net Weight - 90kgs"]
[]
[{"v":1,"d":"1 "},null,"Supply",null,"No",1,null,{"$f":"ROUND(F6785*G6785,2)","v":0}]
[]
[{"v":2,"d":"2 "},null,"Install",null,"No",1,null,{"$f":"ROUND(F6787*G6787,2)","v":0}]
[]
[null,null,"Wireless presentation dongle"]
[]
[{"v":3,"d":"3 "},null,"Supply",null,"Item",1,null,{"$f":"ROUND(F6791*G6791,2)","v":0}]
[]
[null,null,"PROJECTORS AND OTHER EQUIPMENT"]
[]
[null,null,"Supply, install, test and commission the projectors complete with all hardware, software, terminations and fixings etc. System to come complete with a 5 year warranty"]
[]
[null,null,"PROJECTOR"]
[]
[null,null,"Projector complete with the following technical aspect: Resoultion - 1920 x 1200 (WUXGA) Brightness - 3800 Lumens Aspect Ratio - 4:3 Lens - F=1,5 - 2,08, f = 17,2 - 27,7mmContrast Ratio - 20 000:1Zoom - Manual; x 1.6Connectivity - RGB, Digital, Video, Audio, Control, LAN, USB 3,0 andRemote Control - Aspect ratio, Auto-Adjust, AV mute, Digital Zoom,Lamp Life - Full Power - 4000 hrs; Eco - 15000 hrsFeatures - Professional Ultra-Short Throw Projector, Dual Pen CapabilityScalable screen size of up to 100 inches,Projector to be complete with 500mm mounting bracket, powercords etc. (NEC ME382U or equal and approved). 3 year warranty"]
[]
[{"v":4,"d":"4 "},null,"Supply",null,"No",36,null,{"$f":"ROUND(F6801*G6801,2)","v":0}]
[]
[{"v":5,"d":"5 "},null,"Install",null,"No",36,null,{"$f":"ROUND(F6803*G6803,2)","v":0}]
[]
[null,null," Epson EB-725/60wi. Ultra-Short Throw Interactive projector projector. (Including pens and Epson wall brackets)"]
[]
[{"v":6,"d":"6 "},null,"Supply",null,"No",1,null,{"$f":"ROUND(F6807*G6807,2)","v":0}]
[]
[{"v":7,"d":"7 "},null,"Install",null,"No",1,null,{"$f":"ROUND(F6809*G6809,2)","v":0}]
[]
[null,null,"CABLING & ACCESSORIES"]
[]
[null,null,"HDMI cabling in 20m lengths"]
[]
[{"v":8,"d":"8 "},null,"Supply",null,"No",36,null,{"$f":"ROUND(F6815*G6815,2)","v":0}]
[]
[{"v":9,"d":"9 "},null,"Install",null,"No",36,null,{"$f":"ROUND(F6817*G6817,2)","v":0}]
[]
[null,null,"Pin IEC Power Cable; Trucking (16x25)/ PVC conduit per class; 10m Power Cable IEC to 3 pin; Universal ceiling mount brackets]"]
[]
[{"v":10,"d":"10 "},null,"Supply",null,"No",36,null,{"$f":"ROUND(F6821*G6821,2)","v":0}]
[]
[{"v":11,"d":"11 "},null,"Install",null,"No",36,null,{"$f":"ROUND(F6823*G6823,2)","v":0}]
[]
[null,null,"TRAINING AND COMPLIANCE"]
[]
[{"v":12,"d":"12 "},null," Induction, Training and handover",null,"Item",1,null,{"$f":"ROUND(F6827*G6827,2)","v":0}]
[]
[{"v":13,"d":"13 "},null,"Health and Safety compliance",null,"Item",1,null,{"$f":"ROUND(F6829*G6829,2)","v":0}]
[]
[{"v":14,"d":"14 "},null,"Allow for a Lump Sum for testing and commissioning of the entire  installation.",null,"Item",1,null,{"$f":"ROUND(F6831*G6831,2)","v":0}]
[]
[{"v":15,"d":"15 "},null,"Allow for the 12 months guarantee period",null,"Item",1,null,{"$f":"ROUND(F6833*G6833,2)","v":0}]
[]
[null,null,"Carried to Summary",{"$nulls":4},{"$f":"SUM(H6785:H6834)","v":0}]
[]
[null,null,"ELECTRICAL WORKS SUMMARY"]
[]
[{"v":1,"d":"1 "},null,"EXTERNAL WORKS",null,"Page",122,null,{"$f":"H2996","v":0}]
[]
[{"v":2,"d":"2 "},null,"BLOCK A",null,"Page",130,null,{"$f":"H3283","v":0}]
[]
[{"v":3,"d":"3 "},null,"BLOCK B",null,"Page",140,null,{"$f":"H3616","v":0}]
[]
[{"v":4,"d":"4 "},null,"BLOCK C",null,"Page",148,null,{"$f":"H3883","v":0}]
[]
[{"v":5,"d":"5 "},null,"BLOCK D",null,"Page",158,null,{"$f":"H4216","v":0}]
[]
[{"v":6,"d":"6 "},null,"BLOCK E",null,"Page",167,null,{"$f":"H4541","v":0}]
[]
[{"v":7,"d":"7 "},null,"BLOCK F",null,"Page",175,null,{"$f":"H4822","v":0}]
[]
[{"v":8,"d":"8 "},null,"BLOCK G",null,"Page",184,null,{"$f":"H5149","v":0}]
[]
[{"v":9,"d":"9 "},null,"BLOCK H",null,"Page",196,null,{"$f":"H5586","v":0}]
[]
[{"v":10,"d":"10 "},null,"BLOCK I",null,"Page",202,null,{"$f":"H5787","v":0}]
[]
[{"v":11,"d":"11 "},null,"BLOCK J",null,"Page",209,null,{"$f":"H6008","v":0}]
[]
[{"v":12,"d":"12 "},null,"BLOCK K",null,"Page",219,null,{"$f":"H6359","v":0}]
[]
[{"v":13,"d":"13 "},null,"BLOCK N",null,"Page",227,null,{"$f":"H6616","v":0}]
[]
[{"v":14,"d":"14 "},null,"DATA AND TELEPHONE",null,"Page",231,null,{"$f":"H6775","v":0}]
[]
[{"v":15,"d":"15 "},null,"SMART BOARDS AND PROJECTORS",null,"Page",234,null,{"$f":"H6835","v":0}]
[]
[null,null,"Carried to Final Summary",{"$nulls":4},{"$f":"SUM(H6839:H6867)","v":0}]
[]
[]
[null,null,"SECTION 5 : TEMPORARY ACCOMMODATION(PROVISIONAL)"]
[]
[null,null,"BILL NO. 1"]
[]
[null,null,"Parkhomes"]
[]
[{"v":1,"d":"1 "},null,"Disconnect all services, and move a 7m x 7m \"parkhome type\" classroom +/-100km's from its current location to be delivered +/-100km's from construction site to a location to be determined by the client and establish electrical and stormwater connections.",null,"No",14,null,{"$f":"ROUND(F6878*G6878,2)","v":0}]
[]
[null,null,"Carried to Final Summary",{"$nulls":4},{"$f":"SUM(H6877:H6879)","v":0}]
[]
[]
[null,null,"SECTION 6 : REMEDIAL WORK (PROVISIONAL)"]
[]
[null,null,"BILL. 1"]
[]
[null,null,"SUB-STRUCTURE (PROVISIONAL)"]
[]
[null,null,"EARTHWORKS (PROVISIONAL) (WORKGROUP 104) (LI)"]
[]
[null,null,"Tenderers are referred to the relevant clauses in the separate document: ASAQS General Preambles for trades (2017 edition) and the ASAQS supplementary preambles which are incorporated in this Bill of Quantities."]
[]
[null,null,"Note : Where trade names and catalogue numbers are given, it shall be taken to mean to be followed by the words \"equal or other approved\"."]
[]
[null,null,"EPWP Conditions and Specifications"]
[]
[null,null,"The tenderer/bidder is advised that all items within this bill are subject to the terms, conditions and specifications of section C12 as expanded from sub-sections C 12.1 to C12.10 within the P's & G's section of this bid document."]
[]
[null,null,"EXCAVATIONS, FILLING ETC (LI)"]
[]
[null,null,"Earth filling supplied by the contractor compacted to 95% Mod AASHTO density (imported G5 type material)"]
[]
[{"v":1,"d":"1 "},null,"Under floors, steps, pavings, etc",null,"m³",3,null,{"$f":"ROUND(F6903*G6903,2)","v":0}]
[]
[{"v":2,"d":"2 "},null,"Backfilling to trenches, holes, etc",null,"m³",2,null,{"$f":"ROUND(F6905*G6905,2)","v":0}]
[]
[null,null,"Extra over all excavations for loading and carting away"]
[]
[{"v":3,"d":"3 "},null,"Surplus material from excavations and/or stock piles on site to a dumping site to be located by the Contractor",null,"m³",8,null,{"$f":"ROUND(F6909*G6909,2)","v":0}]
[]
[null,null,"Coarse river sand filling supplied by the contractor"]
[]
[{"v":4,"d":"4 "},null,"50mm Under floors etc",null,"m³",3,null,{"$f":"ROUND(F6913*G6913,2)","v":0}]
[]
[null,null,"Compaction of surfaces"]
[]
[{"v":5,"d":"5 "},null,"Compaction of ground surface under floors, etc. including excavating or filling, ripping and scarifying as necessary for a depth of 300mm, breaking down oversized materials, adding suitable material where necessary and compacting to 98% Modified AASTHO density.",null,"m²",51,null,{"$f":"ROUND(F6917*G6917,2)","v":0}]
[]
[null,null,"TESTS"]
[]
[null,null,"Prescribed density test on filling"]
[]
[{"v":6,"d":"6 "},null,"\"Modified AASHTO Density\" test",null,"No",6,null,{"$f":"ROUND(F6923*G6923,2)","v":0}]
[]
[{"v":7,"d":"7 "},null,"\"Field Density\" test including \"Optimum Moisture Content\". (four readings per test)",null,"No",2,null,{"$f":"ROUND(F6925*G6925,2)","v":0}]
[]
[null,null,"SOIL POISONING"]
[]
[null,null,"Approved brand of anti- termite soil poison applied by a Registered Pest Control company and guaranteed against termite infestation for ten years"]
[]
[{"v":8,"d":"8 "},null,"Under concrete surface bed, etc. including forming and poisoning shallow furrows against foundation walls etc., filling in furrows and ramming.",null,"m²",38,null,{"$f":"ROUND(F6931*G6931,2)","v":0}]
[]
[{"v":9,"d":"9 "},null,"Under footings and bases including forming and poisoning shallow furrows against foundation walls etc., filling in furrows and ramming",null,"m²",8,null,{"$f":"ROUND(F6933*G6933,2)","v":0}]
[]
[null,null,"CONCRETE, FORMWORK AND REINFORCEMENT"]
[]
[null,null,"CONCRETE (WORKGROUP 110)"]
[]
[null,null,"UNREINFORCED CONCRETE"]
[]
[null,null,"Cement concrete class 15MPa/19mm in:"]
[]
[{"v":10,"d":"10 "},null,"Blinding layer under footings, bases and foundation beams",null,"m³",4,null,{"$f":"ROUND(F6943*G6943,2)","v":0}]
[]
[null,null,"REINFORCED CONCRETE"]
[]
[null,null,"Cement concrete class 25MPa/19mm in:"]
[]
[{"v":11,"d":"11 "},null,"Strip footings",null,"m³",17,null,{"$f":"ROUND(F6949*G6949,2)","v":0}]
[]
[{"v":12,"d":"12 "},null,"Bases",null,"m³",4,null,{"$f":"ROUND(F6951*G6951,2)","v":0}]
[]
[{"v":13,"d":"13 "},null,"Plinths",null,"m³",2,null,{"$f":"ROUND(F6953*G6953,2)","v":0}]
[]
[null,null,"TEST BLOCKS"]
[]
[{"v":14,"d":"14 "},null,"Allow for making set of test cubes, sending to an approved testing authority for testing and paying all charges in connection therewith",null,"No",6,null,{"$f":"ROUND(F6957*G6957,2)","v":0}]
[]
[null,null,"FORMWORK (WORKGROUP 111) (LI)"]
[]
[null,null,"Formwork To Impart Class I Finish (Rough)"]
[]
[null,null,"Rough formwork to sides"]
[]
[{"v":15,"d":"15 "},null,"Bases",null,"m²",20,null,{"$f":"ROUND(F6965*G6965,2)","v":0}]
[]
[{"v":16,"d":"16 "},null,"Plinths",null,"m²",17,null,{"$f":"ROUND(F6967*G6967,2)","v":0}]
[]
[null,null,"REINFORCEMENT (WORKGROUP 114)"]
[]
[null,null,"Mild and High Tensile steel reinforcement to structural concrete work"]
[]
[{"v":17,"d":"17 "},null,"Y 10 Bars",null,"t",1,null,{"$f":"ROUND(F6973*G6973,2)","v":0}]
[]
[{"v":18,"d":"18 "},null,"Y 12 Bars",null,"t",0.95,null,{"$f":"ROUND(F6975*G6975,2)","v":0}]
[]
[{"v":19,"d":"19 "},null,"Y 16 Bars",null,"t",1.8,null,{"$f":"ROUND(F6977*G6977,2)","v":0}]
[]
[null,null,"FOUNDATIONS (PROVISIONAL)"]
[]
[null,null,"BRICKWORK (WORKGROUP 116) (LI)"]
[]
[null,null,"Brickwork of NFX bricks (14 MPa nominal compressive strength) in class I mortar"]
[]
[{"v":20,"d":"20 "},null,"One Brick Walls",null,"m²",40,null,{"$f":"ROUND(F6985*G6985,2)","v":0}]
[]
[null,null,"Carried to Summary",{"$nulls":4},{"$f":"SUM(H6903:H6986)","v":0}]
[]
[null,null,"SECTION 6 : REMEDIAL WORK (PROVISIONAL)"]
[]
[null,null,"BILL. 2"]
[]
[null,null,"CONCRETE, FORMWORK AND REINFORCEMENT"]
[]
[null,null,"Tenderers are referred to the relevant clauses in the separate document: ASAQS General Preambles for trades (2017 edition) and the ASAQS supplementary preambles which are incorporated in this Bill of Quantities."]
[]
[null,null,"Note : Where trade names and catalogue numbers are given, it shall be taken to mean to be followed by the words \"equal or other approved\"."]
[]
[null,null,"CONCRETE (WORKGROUP 110)"]
[]
[null,null,"REINFORCED CONCRETE"]
[]
[null,null,"Cement concrete class 30MPa/19mm in:"]
[]
[{"v":1,"d":"1 "},null,"Surface beds cast in panels on waterproofing 125mm thick",null,"m³",27,null,{"$f":"ROUND(F7005*G7005,2)","v":0}]
[]
[null,null,"TEST BLOCKS"]
[]
[{"v":2,"d":"2 "},null,"Allow for making set of test cubes, sending to an approved testing authority for testing and paying all charges in connection therewith",null,"No",3,null,{"$f":"ROUND(F7009*G7009,2)","v":0}]
[]
[null,null,"CONCRETE SUNDRIES"]
[]
[null,null,"Finishing top surfaces of concrete smooth with a power float"]
[]
[{"v":3,"d":"3 "},null,"Surface beds, slabs, etc",null,"m²",271,null,{"$f":"ROUND(F7015*G7015,2)","v":0}]
[]
[null,null,"MOVEMENT JOINTS ETC"]
[]
[null,null,"Construction joints with 12mm \"Sondor Jointex\" or other approved closed cell expanded polyethylene preformed joint filler with hinged blocking piece between vertical concrete and brick surfaces"]
[]
[{"v":4,"d":"4 "},null,"Joints not exceeding 300mm high or wide",null,"m",29,null,{"$f":"ROUND(F7021*G7021,2)","v":0}]
[]
[null,null,"Saw Cut joints between horizontal concrete and brick surfaces including cement mortar bed (S.C.J)"]
[]
[{"v":5,"d":"5 "},null,"Joints not exceeding 300mm high or wide",null,"m",148,null,{"$f":"ROUND(F7025*G7025,2)","v":0}]
[]
[null,null,"REINFORCEMENT (PROVISIONAL) (WORKGROUP 114)"]
[]
[null,null,"Fabric reinforcement"]
[]
[{"v":6,"d":"6 "},null,"Type 193 Mesh reinforcement in concrete surface beds, slabs, etc",null,"m²",271,null,{"$f":"ROUND(F7031*G7031,2)","v":0}]
[]
[null,null,"Carried to Summary",{"$nulls":4},{"$f":"SUM(H7005:H7032)","v":0}]
[]
[]
[null,null,"SECTION 6 : REMEDIAL WORK (PROVISIONAL)"]
[]
[null,null,"BILL. 3"]
[]
[null,null,"BRICKWORK (WORKGROUP 116) (LI)"]
[]
[null,null,"Tenderers are referred to the relevant clauses in the separate document: ASAQS General Preambles for trades (2017 edition) and the ASAQS supplementary preambles which are incorporated in this Bill of Quantities."]
[]
[null,null,"Note : Where trade names and catalogue numbers are given, it shall be taken to mean to be followed by the words \"equal or other approved\"."]
[]
[null,null,"SUPPLEMENTARY PREAMBLES"]
[]
[null,null,"EPWP Conditions and Specifications"]
[]
[null,null,"The tenderer/bidder is advised that all items within this bill are subject to the terms, conditions and specifications of section C12 as expanded from sub-sections C 12.1 to C12.10 within the P's & G's section of this bid document."]
[]
[null,null,"Sizes in descriptions"]
[]
[null,null,"Where sizes in descriptions are given in brick units, \"one brick\" shall represent the length and \"half brick\" the width of a brick"]
[]
[null,null,"Hollow walls etc"]
[]
[null,null,"Descriptions of hollow walls shall be deemed to include leaving every fifth perpend of the bottom course of the external skin open as a weep hole."]
[]
[null,null,"Walls in two skins described as \"bagged and sealed\" shall be deemed to include having the outer face of the inner skin bagged with 1:6 cement and sand mixture and sealed with two coats \"Brixeal\" bitumen emulsion waterproofing coating."]
[]
[null,null,"Face bricks"]
[]
[null,null,"Bricks shall be ordered timeously to obtain uniformity in size and colour. The Principal Agent is, from time to time, at liberty to request batching information and these must be produced within 48 hours thereof."]
[]
[null,null,"Pointing"]
[]
[null,null,"Descriptions of recessed pointing to fair face brickwork and face brickwork shall be deemed to include square recessed, hollow recessed, weathered pointing, etc"]
[]
[null,null,"BRICKWORK (LI)"]
[]
[null,null,"Brickwork in class II mortar"]
[]
[{"v":1,"d":"1 "},null,"Half brick walls",null,"m²",10,null,{"$f":"ROUND(F7074*G7074,2)","v":0}]
[]
[{"v":2,"d":"2 "},null,"One brick walls",null,"m²",5,null,{"$f":"ROUND(F7076*G7076,2)","v":0}]
[]
[{"v":3,"d":"3 "},null,"One and a Half Brick walls",null,"m²",15,null,{"$f":"ROUND(F7078*G7078,2)","v":0}]
[]
[{"v":4,"d":"4 "},null,"Two Brick walls in Columns",null,"m²",18,null,{"$f":"ROUND(F7080*G7080,2)","v":0}]
[]
[null,null,"BRICKWORK SUNDRIES"]
[]
[null,null,"Brick reinforcement"]
[]
[{"v":5,"d":"5 "},null,"75mm Wide galvanised reinforcement built in horizontally",null,"m",117,null,{"$f":"ROUND(F7086*G7086,2)","v":0}]
[]
[{"v":6,"d":"6 "},null,"150mm Wide galvanised reinforcement built in horizontally",null,"m",1262,null,{"$f":"ROUND(F7088*G7088,2)","v":0}]
[]
[null,null,"Galvanised wire ties"]
[]
[{"v":7,"d":"7 "},null,"30 x 1.6mm roof tie 1.5m long with one end fixed to timber and other end built into brickwork",null,"No",16,null,{"$f":"ROUND(F7092*G7092,2)","v":0}]
[]
[null,null,"Galvanised hoop iron, cramps, ties, etc."]
[]
[{"v":8,"d":"8 "},null,"40 x 1,6mm tie bond \"Tibond\" wall tie strips shot pinned to concrete and with the ties bent out and built into brickwork",null,"No",16,null,{"$f":"ROUND(F7096*G7096,2)","v":0}]
[]
[null,null,"FACE BRICKWORK"]
[]
[null,null,"Corobrik \"Roan Satin\" face bricks  pointed with recessed horizontal and vertical joints"]
[]
[{"v":9,"d":"9 "},null,"Extra over brickwork for face brickwork to External Walls",null,"m²",15,null,{"$f":"ROUND(F7102*G7102,2)","v":0}]
[]
[{"v":10,"d":"10 "},null,"Extra over brickwork for face brickwork to External Columns",null,"m²",15,null,{"$f":"ROUND(F7104*G7104,2)","v":0}]
[]
[null,null,"Carried to Summary",{"$nulls":4},{"$f":"SUM(H7074:H7105)","v":0}]
[]
[]
[null,null,"SECTION 6 : REMEDIAL WORK (PROVISIONAL)"]
[]
[null,null,"BILL. 4"]
[]
[null,null,"WATERPROOFING (WORKGROUP 120)"]
[]
[null,null,"Tenderers are referred to the relevant clauses in the separate document: ASAQS General Preambles for trades (2017 edition) and the ASAQS supplementary preambles which are incorporated in this Bill of Quantities."]
[]
[null,null,"Note : Where trade names and catalogue numbers are given, it shall be taken to mean to be followed by the words \"equal or other approved\"."]
[]
[null,null,"SUPPLEMENTARY PREAMBLES"]
[]
[null,null,"Waterproofing"]
[]
[null,null,"Waterproofing of roofs, basements, etc shall be laid under a ten year guarantee.  Waterproofing to roofs shall be laid to even falls to outlets etc with necessary ridges, hips and valleys. Descriptions of sheet or membrane waterproofing shall be deemed to include additional labour to turn-ups and turn-downs"]
[]
[null,null,"DAMPPROOFING OF WALLS AND FLOORS"]
[]
[null,null,"One layer of 250 Micron \"Consol Plastics Gunplas USB Green\" waterproof sheeting sealed at laps with Gunplas Pressure Sensitive Tape"]
[]
[{"v":1,"d":"1 "},null,"Under surface beds and thickenings",null,"m²",271,null,{"$f":"ROUND(F7129*G7129,2)","v":0}]
[]
[null,null,"Carried to Summary",{"$nulls":4},{"$f":"SUM(H7127:H7130)","v":0}]
[]
[]
[null,null,"SECTION 6 : REMEDIAL WORK (PROVISIONAL)"]
[]
[null,null,"BILL. 5"]
[]
[null,null,"CARPENTRY AND JOINERY (WORKGROUP 126) (LI)"]
[]
[null,null,"Tenderers are referred to the relevant clauses in the separate document: ASAQS General Preambles for trades (2017 edition) and the ASAQS supplementary preambles which are incorporated in this Bill of Quantities."]
[]
[null,null,"Note : Where trade names and catalogue numbers are given, it shall be taken to mean to be followed by the words \"equal or other approved\"."]
[]
[null,null,"SUPPLEMENTARY PREAMBLES"]
[]
[null,null,"ROOFS ETC"]
[]
[null,null,"Refer to the Standard Preambles to all trades pages SP22 and SP23 and the engineers drawings. Both the preambles and the drawings are issued with these bills of quantities. All timber roof trusses including nail plated trusses and bolted trusses with lapped members must comply with SABS 0243: THE DESIGN, MANUFACTURE and ERECTION OF TIMBER TRUSSES inclusive of the provision of T1 and T2 Certificates. The trusses vary between centres. Roof covering is interlocking concrete tiles and the ceiling where applicable, is gypsum plasterboard. Where applicable, fascias are pressed NUTEC cement and eaves gutters rainwater are aluminium. Roof ties, bearer plates, roof coverings, fascias, sprockets, ceilings, brandering, flashings, soffit and verge linings, rainwater goods etc are all elsewhere measured.  Prices for roof trusses are to include for all temporary bracing and supports and for all necessary top and bottom chord bracing, wind bracing and runners, where required."]
[]
[null,null,"GENERAL SPECIFICATIONS OF MATERIAL TO BE USED"]
[]
[null,null,"All prices include for supply and installation of joinery fittings complete as per Architect's drawings including ironmongery as specified and as necessary, precast concrete plinths, metalwork, shelving, brackets and wall bands, glazing, finishes, sealing, aluminium work, making good finishes, etc. and fixing in position"]
[]
[null,null,"NOTE: All services (water, waste, electricity, gas, etc.) to fittings have been included in the relevant fittings unless otherwise stated."]
[]
[null,null,"EAVES, VERGES, ETC"]
[]
[null,null,"\"Everite Flexit\" or other equal and approved pressed nutec-cement"]
[]
[{"v":1,"d":"1 "},null,"12 x 225mm Fascias and barge boards including galvanised steel H-profile jointing strips",null,"m",259,null,{"$f":"ROUND(F7160*G7160,2)","v":0}]
[]
[null,null,"Carried to Summary",{"$nulls":4},{"$f":"SUM(H7159:H7161)","v":0}]
[]
[]
[null,null,"SECTION 6 : REMEDIAL WORK (PROVISIONAL)"]
[]
[null,null,"BILL. 6"]
[]
[null,null,"PLASTERING (WORKGROUP 142) (LI)"]
[]
[null,null,"Tenderers are referred to the relevant clauses in the separate document: ASAQS General Preambles for trades (2017 edition) and the ASAQS supplementary preambles which are incorporated in this Bill of Quantities."]
[]
[null,null,"Note : Where trade names and catalogue numbers are given, it shall be taken to mean to be followed by the words \"equal or other approved\"."]
[]
[null,null,"SUPPLEMENTARY PREAMBLES"]
[]
[null,null,"EPWP Conditions and Specifications"]
[]
[null,null,"The tenderer/bidder is advised that all items within this bill are subject to the terms, conditions and specifications of section C12 as expanded from sub-sections C 12.1 to C12.10 within the P's & G's section of this bid document."]
[]
[null,null,"Screed Specification"]
[]
[null,null,"The screed is to be a cementitious material made from a 1:3 or 1:4.5 ratio of cement to sharp sand. It may be applied onto either a solid in-situ concrete ground floor slab or onto a precast concrete floor unit. Materials for screeds SandThe quality of the sand, i.e. its concrete-making properties, has a large influence on the quality of the resulting screed. It should be a “concrete” sand – not a “plaster” sand – but the largest particles should be removed by sieving the sand through a sieve with openings about 5mm wide to facilitate finishing. Where possible, the sand should be tested in a laboratorybeforehand. It should then, in a mix of 3,5 parts of dry sand and 1 part of cement by mass, produce a plastic, easy-working, cohesive mortar of plastering consistence (i.e. a slump of about 40 mm) with a water content per cubic metre of not more than 320 l but preferably not more than 300 l. To produce a mix that is easy to finish to a smooth surface, it may be necessary to blend two or more sands. Commonly a blend consisting of 4 parts of crusher sand, sieved as above, and 1 part of a clean “plaster” sand, gives good results. Note: Sieving must be done on horizontal sieves whichare shaken, or on cylindrical sieves which are rotated. The practice of throwing the sand onto a sloping sieve with a shovel is unacceptable because it is inaccurate, unreliable and wasteful.CementUse cement complying with SANS 50197-1 type CEM I orCEM II A."]
[]
[null,null,"SCREEDS"]
[]
[null,null,"Screeds on concrete"]
[]
[{"v":1,"d":"1 "},null,"25mm Thick on floors and landings to receive vinyl tiles",null,"m²",253,null,{"$f":"ROUND(F7189*G7189,2)","v":0}]
[]
[null,null,"INTERNAL PLASTER"]
[]
[null,null,"Cement plaster on brickwork"]
[]
[{"v":2,"d":"2 "},null,"On narrow widths",null,"m²",54,null,{"$f":"ROUND(F7195*G7195,2)","v":0}]
[]
[null,null,"Cement plaster on concrete"]
[]
[{"v":3,"d":"3 "},null,"On soffit of slab",null,"m²",662,null,{"$f":"ROUND(F7199*G7199,2)","v":0}]
[]
[null,null,"Carried to Summary",{"$nulls":4},{"$f":"SUM(H7189:H7200)","v":0}]
[]
[]
[null,null,"SECTION 6 : REMEDIAL WORK (PROVISIONAL)"]
[]
[null,null,"BILL. 7"]
[]
[null,null,"PLUMBING AND DRAINAGE (PROVISIONAL)"]
[]
[null,null,"Tenderers are referred to the relevant clauses in the separate document: ASAQS General Preambles for trades (2017 edition) and the ASAQS supplementary preambles which are incorporated in this Bill of Quantities."]
[]
[null,null,"Note : Where trade names and catalogue numbers are given, it shall be taken to mean to be followed by the words \"equal or other approved\"."]
[]
[null,null,"SUPPLEMENTARY PREAMBLES"]
[]
[null,null,"\"Polycop\" polypropylene pipes:"]
[]
[null,null,"Polypropylene pipes 54mm diameter and under shall be seamless copper coloured class 16 pipes jointed with \"Fast-fuse\" heat welded thermoplastic or brass compression fittings as designed for use with copper pipes as stated"]
[]
[null,null,"Pipes shall be firmly fixed to walls etc with coloured nylon snap-in pipe clips with provision for accommodating thermal movement and jointed and fixed strictly in accordance with the manufacturer's instructions"]
[]
[null,null,"All pipe diameters are nominal external"]
[]
[null,null,"\"Polylink\" polypropylene pipes:"]
[]
[null,null,"Polypropylene pipes 63mm diameter and over shall be class 12 pipes jointed with cast iron \"Supraclamp\" running joints"]
[]
[null,null,"Fusion welded bends, once or twice mitred as necessary, and tees shall be factory manufactured"]
[]
[null,null,"Fusion welded bends and tees shall include jointing to pipes with PVC rubber ring double Z joint couplers"]
[]
[null,null,"Branch tees shall include flanged and bolted joints to \"Polycop\" branch pipes in addition and for brass compression male iron to copper straight couplers"]
[]
[null,null,"Reducers shall include jointing to pipes with PVC rubber ring double Z joint couplers and reducers shall be of sufficient overall length to accommodate same"]
[]
[null,null,"All pipes shall be jointed and fixed strictly in accordance with the manufacturer's instructions"]
[]
[null,null,"All pipe diameters are nominal external"]
[]
[null,null,"Concrete pipes:"]
[]
[null,null,"Pipes shall be jointed with ogee joints with rubber collars or socket and spigot joints with rubber rings"]
[]
[null,null,"Vitrified clay pipes:"]
[]
[null,null,"Pipes shall rest on solid ground and, where necessary, pockets of sufficient size shall be cut around joints to enable the jointing to be properly performed or, alternatively, pipes shall be bedded full length on and including unreinforced concrete laid in a semi-dry state immediately before pipes are laid"]
[]
[null,null,"uPVC pipes and fittings:"]
[]
[null,null,"Sewer and drainage pipes and fittings shall be jointed and sealed with butyl rubber rings"]
[]
[null,null,"Soil, waste and vent pipes and fittings shall be solvent weld jointed"]
[]
[null,null,"uPVC pressure pipes and fittings:"]
[]
[null,null,"Pipes for water supply shall be of the class stated"]
[]
[null,null,"Pipes of 40mm diameter and smaller shall be plain ended with solvent welded uPVC loose sockets and fittings"]
[]
[null,null,"Pipes of 50mm diameter and greater shall have sockets and spigots with push in type integral rubber ring joints.  Bends shall be uPVC and all other fittings shall be cast iron, all with similar push-in type joints"]
[]
[null,null,"Copper pipes:"]
[]
[null,null,"Pipes shall be hard drawn and half-hard pipes of the class stated.  Class 0 (thin walled hard drawn) pipes shall not be bent.  Class 1 (thin walled half-hard), class 2 (half-hard) and class 3 (heavy walled half-hard) pipes shall only be bent with benders with inner and outer formers.  Fittings to copper waste, vent and anti-syphon pipes, capillary solder fittings and compression fittings shall be \"Cobra Watertech\" type.  Capillary solder fittings shall comply with ISO 2016.  Only compression fittings shall be used in walls or in ground"]
[]
[null,null,"Lead pipes and traps"]
[]
[null,null,"All soldered joints shall be wiped and brass unions shall be used for jointing lead to steel"]
[]
[null,null,"Reducing fittings"]
[]
[null,null,"Where fittings have reducing ends or branches they are described as \"reducing\".  In the case of pipes with diameters not exceeding 60mm only the largest end or branch size is given. Should the contractor wish to use other fittings and bushes or reducers he may do so on the understanding that no claim in this regard will be entertained.  In the case of pipes with diameters exceeding 60mm all sizes are given and no claim for extra bushes, reducers, etc will be entertained"]
[]
[null,null,"Wire gratings"]
[]
[null,null,"Descriptions of gutter outlets etc shall be deemed to include wire balloon gratings"]
[]
[null,null,"Septic tanks"]
[]
[null,null,"Descriptions of septic tanks shall be deeemed to include excavation, bedding and jointing, concrete base slabs, jointing to drains and backfilling, compaction, etc all in accordance with the manufacturer's instrucions"]
[]
[null,null,"Exposed concrete surfaces"]
[]
[null,null,"Exposed surfaces of concrete stormwater channels, cover slabs, inspection eye marker slabs, gulley tops, cleaning eye tops, catchpits, inspection chambers, etc shall be finished smooth with plaster"]
[]
[null,null,"Excavations"]
[]
[null,null,"No claim for rock excavation will be entertained unless the contractor has timeously notified the quantity surveyor thereof prior to backfilling"]
[]
[null,null,"\"Soft rock\" and \"hard rock\" shall be as defined in \"Earthworks\""]
[]
[null,null,"All excavations are measured as being in \"soft material\" and/or filling compacted to 98% Modified AASHTO density"]
[]
[null,null,"Descriptions of excavations shall be deemed to include for setting aside surplus excavated material in spoil heaps for use as filling or for depositing within 150m of the perimeter of the excavations and spreading and roughly levelling as directed, as well as for increase in bulk and multiple handling of excavated material caused by the contractor's method of operation"]
[]
[null,null,"Descriptions of carting away of excavated material shall be deemed to include loading excavated material onto trucks directly from the excavations or, alternatively, from stock piles situated on the building site and for bulking"]
[]
[null,null,"Laying, backfilling, bedding, etc. of pipes"]
[]
[null,null,"Pipes shall be laid and bedded and trenches shall be carefully backfilled in accordance with manufacturers' instructions"]
[]
[null,null,"Where no manufacturers' instructions exist pipes shall be laid in accordance with clauses 5.1 and 5.2 of each of the following: SABS 1200 L : Medium-pressure pipelines LD : Sewers LE : Stormwater drainage Pipe trenches etc shall be backfilled in accordance with clauses 3, 5.5, 5.6, 5.7 and 7 of SABS 1200 DB : Earthworks (Pipe trenches) Pipes shall be bedded in accordance with clauses 3.1 to 3.4.1, 5.1 to 5.3 and 7 of SABS 1200 LB : Bedding (Pipes). Unless otherwise described bedding of rigid pipes shall be class B bedding"]
[]
[null,null,"Flush pans"]
[]
[null,null,"Flush pans shall have straight or side outlets and \"P\" or \"S\" traps as necessary"]
[]
[null,null,"Stainless steelbasins, sinks, wash troughs, urinals, etc."]
[]
[null,null,"Units shall have standard aprons on all exposed edges and tiling keys against walls where applicable"]
[]
[null,null,"Waste unions"]
[]
[null,null,"Descriptions of waste unions shall be deemed to include rubber or vulcanite plugs and chains fixed to fittings"]
[]
[null,null,"\"Densyl\" petrolatum anti-corrosion tape as manufactured by Denso SA (Pty) Ltd."]
[]
[null,null,"Pipes to be taped shall be coated with the appropriate primer and the tape shall be applied with minimum 15mm lap per spiral unless otherwise described"]
[]
[null,null,"Couplings and fittings to pipes shall be taped in strict accordance with the manufacturer's instructions including all mastic, tape, \"Layflat\" sheeting, securing of same, etc"]
[]
[null,null,"Prices for wrapping of pipes shall include for all work as described to couplings in the length"]
[]
[null,null,"Stormwater and Soil Drainage"]
[]
[null,null,"Note:  The Tenderer is to make provision in his rates for any imported selected material that may be necessary below, around and above the pipe (i.e. pipe bedding only) as per manufacturer's recommendations (includes Stormwater and Soilwater rates)"]
[]
[null,null,"PLUMBING (WORKGROUP 148)"]
[]
[null,null,"RAINWATER DISPOSAL"]
[]
[null,null,"0,6mm Baked enamel prepainted (white) aluminium alloy H13-35H4"]
[]
[{"v":1,"d":"1 "},null,"150 x 125mm OGEE profile eaves gutter with 20mm wide overlapping joints sealed with and including \"Compriband\" or other approved sealing strip and riveted at 20mm centres, hung on internal aluminium hangers at 600mm centres",null,"m",336,null,{"$f":"ROUND(F7334*G7334,2)","v":0}]
[]
[{"v":2,"d":"2 "},null,"Extra for stopped end",null,"No",12,null,{"$f":"ROUND(F7336*G7336,2)","v":0}]
[]
[{"v":3,"d":"3 "},null,"Extra for eaves outlet with nozzle for and joint to 100 x 75mm rectangular downpipe including wire balloon grating",null,"No",16,null,{"$f":"ROUND(F7338*G7338,2)","v":0}]
[]
[{"v":4,"d":"4 "},null,"100 x 75mm Rectangular rainwater pipes with aluminium brackets fixed to brickwall or concrete",null,"m",81,null,{"$f":"ROUND(F7340*G7340,2)","v":0}]
[]
[{"v":5,"d":"5 "},null,"Extra for shoe",null,"No",20,null,{"$f":"ROUND(F7342*G7342,2)","v":0}]
[]
[{"v":6,"d":"6 "},null,"Extra over eaves offset 600mm projection",null,"No",16,null,{"$f":"ROUND(F7344*G7344,2)","v":0}]
[]
[null,null,"Carried to Summary",{"$nulls":4},{"$f":"SUM(H7332:H7345)","v":0}]
[]
[]
[null,null,"SECTION 6 : REMEDIAL WORK (PROVISIONAL)"]
[]
[null,null,"BILL. 8"]
[]
[null,null,"GLAZING (WORKGROUP 150) (LI)"]
[]
[null,null,"Tenderers are referred to the relevant clauses in the separate document: ASAQS General Preambles for trades (2017 edition) and the ASAQS supplementary preambles which are incorporated in this Bill of Quantities."]
[]
[null,null,"Note : Where trade names and catalogue numbers are given, it shall be taken to mean to be followed by the words \"equal or other approved\"."]
[]
[null,null,"GLAZING"]
[]
[null,null,"GLAZING TO STEEL WITH PUTTY"]
[]
[null,null,"6mm clear float glass"]
[]
[{"v":1,"d":"1 "},null,"Panes exceeding 0,1m2 but not exceeding  0,5m2",null,"m²",227,null,{"$f":"ROUND(F7365*G7365,2)","v":0}]
[]
[null,null,"6mm \"Pacific\" obscure glass"]
[]
[{"v":2,"d":"2 "},null,"Panes not exceeding  0,1m2",null,"m²",8,null,{"$f":"ROUND(F7369*G7369,2)","v":0}]
[]
[null,null,"Carried to Summary",{"$nulls":4},{"$f":"SUM(H7363:H7370)","v":0}]
[]
[]
[null,null,"SECTION 6 : REMEDIAL WORK (PROVISIONAL)"]
[]
[null,null,"BILL. 9"]
[]
[null,null,"PAINTWORK (WORKGROUP 152) (LI)"]
[]
[null,null,"Tenderers are referred to the relevant clauses in the separate document: ASAQS General Preambles for trades (2017 edition) and the ASAQS supplementary preambles which are incorporated in this Bill of Quantities."]
[]
[null,null,"Note : Where trade names and catalogue numbers are given, it shall be taken to mean to be followed by the words \"equal or other approved\"."]
[]
[null,null,"SUPPLEMENTARY PREAMBLES"]
[]
[null,null,"EPWP Conditions and Specifications"]
[]
[null,null,"The tenderer/bidder is advised that all items within this bill are subject to the terms, conditions and specifications of section C12 as expanded from sub-sections C 12.1 to C12.10 within the P's & G's section of this bid document."]
[]
[null,null,"PAINTWORK ETC TO NEW WORK"]
[]
[null,null,"ON FLOATED PLASTER"]
[]
[null,null,"One coat primer, one undercoat and two coats poly acrylic emulsion paint"]
[]
[{"v":1,"d":"1 "},null,"On internal walls",null,"m²",1066,null,{"$f":"ROUND(F7396*G7396,2)","v":0}]
[]
[{"v":2,"d":"2 "},null,"On external walls",null,"m²",377,null,{"$f":"ROUND(F7398*G7398,2)","v":0}]
[]
[{"v":3,"d":"3 "},null,"On internal ceilings, soffits of slabs",null,"m²",461,null,{"$f":"ROUND(F7400*G7400,2)","v":0}]
[]
[null,null,"ON PLASTER BOARD"]
[]
[null,null,"One coat primer, one undercoat and two coats poly acrylic emulsion paint"]
[]
[{"v":4,"d":"4 "},null,"On internal ceilings and cornices",null,"m²",728,null,{"$f":"ROUND(F7406*G7406,2)","v":0}]
[]
[null,null,"ON FIBRE CEMENT"]
[]
[null,null,"One coat primer, one undercoat and two coats poly acrylic emulsion paint"]
[]
[{"v":5,"d":"5 "},null,"On fascia boards",null,"m²",104,null,{"$f":"ROUND(F7412*G7412,2)","v":0}]
[]
[{"v":6,"d":"6 "},null,"On barge boards",null,"m²",29,null,{"$f":"ROUND(F7414*G7414,2)","v":0}]
[]
[null,null,"ON METAL"]
[]
[null,null,"Two coats bitumen paint"]
[]
[{"v":7,"d":"7 "},null,"On backs of steel doors, windows, etc",null,"m²",55,null,{"$f":"ROUND(F7420*G7420,2)","v":0}]
[]
[null,null,"Clean down, prepare, decrease with galvoclean, one coat calcium plumbate primer and two coats polyurethane enamel paint"]
[]
[{"v":8,"d":"8 "},null,"On door frames",null,"m²",102,null,{"$f":"ROUND(F7424*G7424,2)","v":0}]
[]
[{"v":9,"d":"9 "},null,"On windows with burglar bars",null,"m²",421,null,{"$f":"ROUND(F7426*G7426,2)","v":0}]
[]
[{"v":10,"d":"10 "},null,"On gates, grills, burglar screens, balustrades, etc (Both sides measured over the full flat area)",null,"m²",289,null,{"$f":"ROUND(F7428*G7428,2)","v":0}]
[]
[null,null,"ON WOOD"]
[]
[null,null,"One coat pink wood primer, one undercoat and two coats polyurethane enamel paint"]
[]
[{"v":11,"d":"11 "},null,"On roof truss overhangs and exposed trusses",null,"m",441,null,{"$f":"ROUND(F7434*G7434,2)","v":0}]
[]
[null,null,"Carried to Summary",{"$nulls":4},{"$f":"SUM(H7396:H7435)","v":0}]
[]
[]
[null,null,"SECTION 6 : REMEDIAL WORK (PROVISIONAL)"]
[]
[null,null,"BILL. 10"]
[]
[null,null,"EXTERNAL WORKS (PROVISIONAL)"]
[]
[null,null,"Tenderers are referred to the relevant clauses in the separate document: ASAQS General Preambles for trades (2017 edition) and the ASAQS supplementary preambles which are incorporated in this Bill of Quantities."]
[]
[null,null,"Where posible abbreviated descriptions have been used in the following bills and except where otherwise described all preambles and full descriptions of the items appearing in the preceding bills are to apply equally to these bills."]
[]
[null,null,"Note : Where trade names and catalogue numbers are given, it shall be taken to mean to be followed by the words \"equal or other approved\"."]
[]
[null,null,"EARTHWORKS (WORK GROUP NO. 104 )"]
[]
[null,null,"BULK EXCAVATION, FILLING, ETC"]
[]
[null,null,"User Note:"]
[]
[null,null,"This section is given as an alternative option and in the event of it being exercised the excavation, filling, etc other than bulk is to be given under the later section"]
[]
[null,null,"EXCAVATION, FILLING, ETC OTHER THAN BULK"]
[]
[null,null,"Open face excavation in earth over sloping site"]
[]
[{"v":1,"d":"1 "},null,"Cut to spoil",null,"m³",1998,null,{"$f":"ROUND(F7463*G7463,2)","v":0}]
[]
[null,null,"Extra over bulk excavation in earth for excavation in"]
[]
[{"v":2,"d":"2 "},null,"Soft rock",null,"m³",114,null,{"$f":"ROUND(F7467*G7467,2)","v":0}]
[]
[{"v":3,"d":"3 "},null,"Hard rock",null,"m³",76,null,{"$f":"ROUND(F7469*G7469,2)","v":0}]
[]
[null,null,"Imported material to be used as earthfilling compacted to 93% Mod AASHTO density"]
[]
[{"v":4,"d":"4 "},null,"Over site",null,"m³",920,null,{"$f":"ROUND(F7473*G7473,2)","v":0}]
[]
[null,null,"HARD SURFACE"]
[]
[null,null,"EXCAVATION, FILLING, ETC OTHER THAN BULK"]
[]
[null,null,"Excavation in earth not exceeding 2m deep (LI)"]
[]
[{"v":5,"d":"5 "},null,"Reduce levels (LI)",null,"m³",40,null,{"$f":"ROUND(F7481*G7481,2)","v":0}]
[]
[null,null,"Extra over all excavations for Carting away (LI)"]
[]
[{"v":6,"d":"6 "},null,"Surplus material from excavations and/or stock piles on site to  a dumping site to be contractor (LI)",null,"m³",40,null,{"$f":"ROUND(F7485*G7485,2)","v":0}]
[]
[null,null,"Earth filling with G6 material and compacted in layers of 150mm to 98% Mod  AASHTO density (LI)"]
[]
[{"v":7,"d":"7 "},null,"Backfilling to trenches and holes (LI)",null,"m³",40,null,{"$f":"ROUND(F7489*G7489,2)","v":0}]
[]
[null,null,"Compaction of surfaces (LI)"]
[]
[{"v":8,"d":"8 "},null,"Compaction of ground surface including scarifying for a depth of 150mm, breaking down oversize  material, adding suitable material where necessary and  compacting to 98% Mod AASHTO density (LI)",null,"m²",200,null,{"$f":"ROUND(F7493*G7493,2)","v":0}]
[]
[null,null,"Prescribed density tests on filling (LI)"]
[]
[{"v":9,"d":"9 "},null,"\"Modified AASHTO Density\" test (LI)",null,"No",6,null,{"$f":"ROUND(F7497*G7497,2)","v":0}]
[]
[null,null,"SOIL POISONING"]
[]
[null,null,"Soil insecticide"]
[]
[{"v":10,"d":"10 "},null,"Under floors etc including forming and poisoning shallow  furrows against foundation walls etc, filling in furrows and  ramming (LI)",null,"m²",2000,null,{"$f":"ROUND(F7503*G7503,2)","v":0}]
[]
[null,null,"FORMWORK (WORKGROUP 111)"]
[]
[null,null,"Smooth Formwork to sides:"]
[]
[{"v":11,"d":"11 "},null,"Edges and risers not exceeding 300mm",null,"m",60,null,{"$f":"ROUND(F7509*G7509,2)","v":0}]
[]
[null,null,"REINFORCEMENT (PROVISIONAL) (WORKGROUP 114)"]
[]
[null,null,"Fabric reinforcement"]
[]
[{"v":12,"d":"12 "},null,"Type 395 Mesh reinforcement in concrete surface beds, slabs, etc",null,"m²",200,null,{"$f":"ROUND(F7515*G7515,2)","v":0}]
[]
[null,null,"STORMWATER RETICULATION (WORK GROUP 146)"]
[]
[null,null,"V-DRAINS (Stormwater)"]
[]
[null,null,"EXCAVATION, FILLING, ETC OTHER THAN BULK"]
[]
[null,null,"Excavation in earth not exceeding 2m deep"]
[]
[{"v":13,"d":"13 "},null,"Reduced levels under floors",null,"m³",241,null,{"$f":"ROUND(F7525*G7525,2)","v":0}]
[]
[null,null,"Extra over all excavations for loading and carting away"]
[]
[{"v":14,"d":"14 "},null,"Surplus material from excavations and/or stock piles on site to a dumping site to be located by the Contractor",null,"m³",241,null,{"$f":"ROUND(F7529*G7529,2)","v":0}]
[]
[null,null,"Earth filling supplied by the contractor compacted to 98% MOD AASHTO density test"]
[]
[{"v":15,"d":"15 "},null,"Approved G5 material under floors etc",null,"m³",121,null,{"$f":"ROUND(F7533*G7533,2)","v":0}]
[]
[null,null,"Compaction of surfaces"]
[]
[{"v":16,"d":"16 "},null,"Compaction of ground surface under floors, etc. including excavating or filling, ripping and scarifying as necessary for a depth of 150mm, breaking down oversized materials, adding suitable material where necessary and compacting to 95% Modified AASTHO density.",null,"m²",804,null,{"$f":"ROUND(F7537*G7537,2)","v":0}]
[]
[null,null,"TESTS"]
[]
[null,null,"Prescribed density tests on filling"]
[]
[{"v":17,"d":"17 "},null,"\"Modified AASHTO Density\" test",null,"No",33,null,{"$f":"ROUND(F7543*G7543,2)","v":0}]
[]
[{"v":18,"d":"18 "},null,"\"Field Density\" test including \"Optimum Moisture Content\". (four readings per test)",null,"No",11,null,{"$f":"ROUND(F7545*G7545,2)","v":0}]
[]
[null,null,"SOIL POISONING"]
[]
[null,null,"Approved brand of anti- termite soil poison applied by a Registered Pest Control company and guaranteed against termite infestation for ten years"]
[]
[{"v":19,"d":"19 "},null,"Under concrete surface bed, etc. including forming and poisoning shallow furrows against foundation walls etc., filling in furrows and ramming.",null,"m²",804,null,{"$f":"ROUND(F7551*G7551,2)","v":0}]
[]
[null,null,"CONCRETE (WORKGROUP 110)"]
[]
[null,null,"VIBRATED REINFORCED CONCRETE"]
[]
[null,null,"Cement concrete class 25/19mm in:"]
[]
[{"v":20,"d":"20 "},null,"Surface beds cast in panels",null,"m³",105,null,{"$f":"ROUND(F7559*G7559,2)","v":0}]
[]
[null,null,"TEST BLOCKS"]
[]
[{"v":21,"d":"21 "},null,"Allow for making set of test cubes, sending to an approved testing authority for testing and paying all charges in connection therewith",null,"No",7,null,{"$f":"ROUND(F7563*G7563,2)","v":0}]
[]
[null,null,"CONCRETE SUNDRIES"]
[]
[null,null,"Finishing top surfaces of concrete to an evenly non-slip surface"]
[]
[{"v":22,"d":"22 "},null,"To falls and currents",null,"m²",420,null,{"$f":"ROUND(F7569*G7569,2)","v":0}]
[]
[null,null,"FORMWORK (WORKGROUP 111)"]
[]
[null,null,"Formwork To Impart Class I Finish (Smooth)"]
[]
[null,null,"Rough formwork to sides"]
[]
[{"v":23,"d":"23 "},null,"Edges, risers, ends and reveals not exceeding 300mm high or wide",null,"m",381,null,{"$f":"ROUND(F7577*G7577,2)","v":0}]
[]
[null,null,"MOVEMENT JOINTS ETC"]
[]
[null,null,"Expansion joints with 10mm polystyrene between vertical concrete surfaces"]
[]
[{"v":24,"d":"24 "},null,"10mm Joints not exceeding 300mm high",null,"m",536,null,{"$f":"ROUND(F7583*G7583,2)","v":0}]
[]
[null,null,"Saw cut joints"]
[]
[{"v":25,"d":"25 "},null,"3 x 30mm saw cut joints in top of concrete surface bed",null,"m",536,null,{"$f":"ROUND(F7587*G7587,2)","v":0}]
[]
[null,null,"REINFORCEMENT (WORKGROUP 114)"]
[]
[null,null,"Fabric reinforcement"]
[]
[{"v":26,"d":"26 "},null,"Type 193 fabric reinforcement in concrete surface beds, slabs, etc",null,"m²",804,null,{"$f":"ROUND(F7593*G7593,2)","v":0}]
[]
[null,null,"EXTERNAL STAIRCASES"]
[]
[null,null,"EXCAVATION, FILLING, ETC OTHER THAN BULK"]
[]
[null,null,"Excavation in earth not exceeding 2m  (LI)"]
[]
[{"v":27,"d":"27 "},null,"Trenches and holes (LI)",null,"m³",27,null,{"$f":"ROUND(F7601*G7601,2)","v":0}]
[]
[null,null,"Extra over all excavations for Carting away (LI)"]
[]
[{"v":28,"d":"28 "},null,"Surplus material from excavations and/or stock piles on site to  a dumping site to be contractor (LI)",null,"m³",28,null,{"$f":"ROUND(F7605*G7605,2)","v":0}]
[]
[null,null,"Earth filling with G6 material and compacted in layers of 150mm to 98% Mod  AASHTO density (LI)"]
[]
[{"v":29,"d":"29 "},null,"Backfilling to trenches and holes (LI)",null,"m³",9,null,{"$f":"ROUND(F7609*G7609,2)","v":0}]
[]
[null,null,"Compaction of surfaces (LI)"]
[]
[{"v":30,"d":"30 "},null,"Compaction of ground surface including scarifying for a depth of 150mm, breaking down oversize  material, adding suitable material where necessary and  compacting to 98% Mod AASHTO density (LI)",null,"m²",60,null,{"$f":"ROUND(F7613*G7613,2)","v":0}]
[]
[null,null,"Prescribed density tests on filling (LI)"]
[]
[{"v":31,"d":"31 "},null,"\"Modified AASHTO Density\" test (LI)",null,"No",2,null,{"$f":"ROUND(F7617*G7617,2)","v":0}]
[]
[null,null,"SOIL POISONING"]
[]
[null,null,"Soil insecticide"]
[]
[{"v":32,"d":"32 "},null,"Under floors etc including forming and poisoning shallow  furrows against foundation walls etc, filling in furrows and  ramming (LI)",null,"m²",60,null,{"$f":"ROUND(F7623*G7623,2)","v":0}]
[]
[null,null,"WALKWAYS"]
[]
[null,null,"Excavation in earth not exceeding 2m  (LI)"]
[]
[{"v":33,"d":"33 "},null,"Trenches (LI)",null,"m³",207,null,{"$f":"ROUND(F7629*G7629,2)","v":0}]
[]
[null,null,"Extra over all excavations for Carting away (LI)"]
[]
[{"v":34,"d":"34 "},null,"Surplus material from excavations and/or stock piles on site to  a dumping site to be contractor (LI)",null,"m³",207,null,{"$f":"ROUND(F7633*G7633,2)","v":0}]
[]
[null,null,"Earth filling material and compacted in layers of 150mm to 97% Mod  AASHTO density (LI)"]
[]
[{"v":35,"d":"35 "},null,"G5 material (LI)",null,"m³",138,null,{"$f":"ROUND(F7637*G7637,2)","v":0}]
[]
[{"v":36,"d":"36 "},null,"G7 material (LI)",null,"m³",69,null,{"$f":"ROUND(F7639*G7639,2)","v":0}]
[]
[null,null,"Compaction of surfaces (LI)"]
[]
[{"v":37,"d":"37 "},null,"Compaction of ground surface including scarifying for a depth of 150mm, breaking down oversize  material, adding suitable material where necessary and  compacting to 95% Mod AASHTO density (LI)",null,"m²",460,null,{"$f":"ROUND(F7643*G7643,2)","v":0}]
[]
[null,null,"Prescribed density tests on filling (LI)"]
[]
[{"v":38,"d":"38 "},null,"\"Modified AASHTO Density\" test (LI)",null,"No",24,null,{"$f":"ROUND(F7647*G7647,2)","v":0}]
[]
[null,null,"SOIL POISONING"]
[]
[null,null,"Soil insecticide"]
[]
[{"v":39,"d":"39 "},null,"Under floors etc including forming and poisoning shallow  furrows against foundation walls etc, filling in furrows and  ramming (LI)",null,"m²",460,null,{"$f":"ROUND(F7653*G7653,2)","v":0}]
[]
[null,null,"One layer of 250 Micron \"Consol Plastics Gunplas USB Green\" waterproof sheeting sealed at laps with Gunplas Pressure Sensitive Tape"]
[]
[{"v":40,"d":"40 "},null,"Under surface beds and thickenings",null,"m²",460,null,{"$f":"ROUND(F7657*G7657,2)","v":0}]
[]
[null,null,"Carried to Summary",{"$nulls":4},{"$f":"SUM(H7463:H7658)","v":0}]
[]
[null,null,"REMEDIAL WORKS SUMMARY"]
[]
[{"v":1,"d":"1 "},null,"SUB-STRUCTURE (PROVISIONAL)",null,"Page",240,null,{"$f":"H6987","v":0}]
[]
[{"v":2,"d":"2 "},null,"CONCRETE, FORMWORK  AND REINFORCING",null,"Page",242,null,{"$f":"H7033","v":0}]
[]
[{"v":3,"d":"3 "},null,"MASONRY",null,"Page",245,null,{"$f":"H7106","v":0}]
[]
[{"v":4,"d":"4 "},null,"WATERPROOFING",null,"Page",246,null,{"$f":"H7131","v":0}]
[]
[{"v":5,"d":"5 "},null,"CARPENTRY AND JOINERY",null,"Page",248,null,{"$f":"H7162","v":0}]
[]
[{"v":6,"d":"6 "},null,"PLASTERING",null,"Page",251,null,{"$f":"H7201","v":0}]
[]
[{"v":7,"d":"7 "},null,"PLUMBING AND DRAINAGE (PROVISIONAL)",null,"Page",257,null,{"$f":"H7346","v":0}]
[]
[{"v":8,"d":"8 "},null,"GLAZING",null,"Page",258,null,{"$f":"H7371","v":0}]
[]
[{"v":9,"d":"9 "},null,"PAINTWORK",null,"Page",260,null,{"$f":"H7436","v":0}]
[]
[{"v":10,"d":"10 "},null,"EXTERNAL WORKS",null,"Page",267,null,{"$f":"H7659","v":0}]
[]
[null,null,"Carried to Final Summary",{"$nulls":4},{"$f":"SUM(H7662:H7682)","v":0}]
[]
[null,null,"SECTION 7 : PROVISIONAL SUMS"]
[]
[null,null,"BILL NO. 1"]
[]
[null,null,"PROVISIONAL SUMS"]
[]
[null,null,"Tenderers are referred to the relevant clauses in the separate document: ASAQS General Preambles for trades (2017 edition) and the ASAQS supplementary preambles which are incorporated in this Bill of Quantities."]
[]
[null,null,"Where possible abbreviated descriptions have been used in the following bills and except where otherwise described all preambles and full descriptions of the items appearing in the preceding bills are to apply equally to these bills."]
[]
[null,null,"Note : Where trade names and catalogue numbers are given, it shall be taken to mean to be followed by the words \"equal or other approved\"."]
[]
[null,null,"RETAINING WALL"]
[]
[{"v":1,"d":"1 "},null,"Allow the Provisional Sum of R 1,200,000.00 (One Million Two Hundred Thousand Rand) for design and construction of retaining wall",null,"Item",1,null,{"$f":"ROUND(F7699*G7699,2)","v":0}]
[]
[{"v":2,"d":"2 "},null,"Add profit",null,"Item",1,null,{"$f":"ROUND(F7701*G7701,2)","v":0}]
[]
[{"v":3,"d":"3 "},null,"Add for general attendance",null,"Item",1,null,{"$f":"ROUND(F7703*G7703,2)","v":0}]
[]
[null,null,"ROOF CONSTRUCTION"]
[]
[{"v":4,"d":"4 "},null,"Allow the Provisional Sum of R 800,000.00 (Eight Hundred Thousand Rand) for the complete design and installation of roof construction including trusses, purlins, wall plates, etc. to buildings and walkways",null,"Item",1,null,{"$f":"ROUND(F7707*G7707,2)","v":0}]
[]
[{"v":5,"d":"5 "},null,"Add profit",null,"Item",1,null,{"$f":"ROUND(F7709*G7709,2)","v":0}]
[]
[{"v":6,"d":"6 "},null,"Add for general attendance",null,"Item",1,null,{"$f":"ROUND(F7711*G7711,2)","v":0}]
[]
[null,null,"TREES"]
[]
[{"v":7,"d":"7 "},null,"Allow the Provisional Sum of R 50,000.00 (Fifty Thousand Rand) for landscaping trees",null,"Item",1,null,{"$f":"ROUND(F7715*G7715,2)","v":0}]
[]
[{"v":8,"d":"8 "},null,"Add profit",null,"Item",1,null,{"$f":"ROUND(F7717*G7717,2)","v":0}]
[]
[{"v":9,"d":"9 "},null,"Add for general attendance",null,"Item",1,null,{"$f":"ROUND(F7719*G7719,2)","v":0}]
[]
[null,null,"Carried to Final Summary",{"$nulls":4},{"$f":"SUM(H7698:H7720)","v":0}]
[]
[]
[null,null,"SECTION 8 : BUILD PROGRAMME"]
[]
[null,null,"BILL NO. 1"]
[]
[null,null,"PROVISIONAL SUMS - B.U.I.L.D PROGRAMME"]
[]
[null,null,"The contractor shall achieve in the performance of the contract a minimum of 30% for Contract participation Goals(CPG) relating to the engagement of the targeted enterprises, which includes for the following outlined skills development, as established in the CIDB Standard for Indirect Targeting for Enterprise Development through Construction Works Contracts Gazette Notice No.36190 of 25 February 2013.  The contractor shall achieve in the performance of the contract the Contract Skills Development Goal (CSDG) as established in the Standard for Development Skills through Infrastructure Contracts Gazette Notice No. 4891 of 28 April 2023  Profit items in the bill shall not be subject to escalation  All provisional sums are NET and cover supply of material and equipment and installation where applicable by firms of specialists. Provisional sums do NOT include builders discount but the tenderer may allow under the 'profit' item any profit he considers necessary"]
[]
[null,null,"SUPPLEMENTARY PREAMBLES  The following Provisional Amounts are for work to be carried out by selected sub-contractors/accredited facilitators/development co-ordinators in terms of Clause 4.4 of the General Conditions of Contractor (GCC) for construction works, 2nd Edition, 2010  The contractor shall provide and maintain for each local labourer / trainee PPE, stationary. medicals and work tools, for the duration of the training"]
[]
[null,null,"General attendance on nominated / selected subcontractors and / or Targeted Enterprises:  The item 'Attendance' which follows the provisional sum for nominated / selected subcontractors and or Targeted Enterprises' work shall be deemed to cover all the contractors costs incurred in providing free of charge to the nominated / selected subcontractors and / or Targeted Enterprises, the following: 1) Access to the site and places where the sub-contract and / or Targeted Enterprise work is to be carried out, including the reasonable use of any temporary personnel hoists erected b y the contractor 2) The provision of water and lighting and of single phase electric to a position within 50 meters of the place where the sub-contractor or sub-contractors and / or Targeted Enterprise work is to be carried out other than water, fuel and power commissioning of any installation 3) The provision of an area for the sub-contractor and / or Targeted Enterprise to establish temporary office accommodation and workshops and for the storage of plant and materials and goods 4) The use of scaffolding belonging to the contractor, in common with others having the like right. The contractor shall provide scaffolding if and when required by subcontractors and / or Targeted Enterprises, should the contractors own scaffolding not be erected, for the execution of the works for the duration of the project. It is submitted that the contractor is only entitled to charge a sub-contractor and / or Targeted Enterprise for the use of the scaffolding if it is needed by the subcontractor and /or Targeted Enterprise for an extended period due to his own fault 5) The use of ablutions facilities and the like, where provided 6) The use of the site telecommunications facilities, where provided subject to payment by the subcontractor and / or Targeted Enterprise for usage thereof 7) Making good all trades and cleaning down and removal of rubbish on completion"]
[]
[null,null,"CONTRACT SKILLS DEVELOPMENT GOALS (CSDG)"]
[]
[null,null,"Allow the Provisional Amount for stipend for the following Skills Methods Training for Contract Skills Development Goal (CSDG) as per Gazette Notice No.48491 of 28 April 2023, to be executed by main contractor as directed by employer / principal agent:"]
[]
[null,null,"SKILLS METHODS"]
[]
[{"v":1,"d":"1 "},null,"Stipend for Method 1 skills type Occupational qualification for 15 months (@ R7 000/q)",null,"Item",1,null,{"$f":"ROUND(F7742*G7742,2)","v":0}]
[]
[{"v":2,"d":"2 "},null,"Stipend for Method 2 skills type TVET College Graduate for 15 months (@ R14 000/q) for two Graduates",null,"Item",1,null,{"$f":"ROUND(F7744*G7744,2)","v":0}]
[]
[{"v":3,"d":"3 "},null,"Provision for additional cost, employed learner (PPE, Medical assessment, course fees, assessment and monitoring)",null,"Item",1,null,{"$f":"ROUND(F7746*G7746,2)","v":0}]
[]
[null,null,"SKILLS DEVELOPMENT COORDINATOR"]
[]
[{"v":4,"d":"4 "},null,"Needs analysis and Development Plan as prepared by appointed development co-ordinator for all targeted method skills training",null,"Item",1,null,{"$f":"ROUND(F7750*G7750,2)","v":0}]
[]
[{"v":5,"d":"5 "},null,"Monitoring, Mentoring and interim reporting as prepared by appointed development co-ordinator for all targeted method skills training for the duration of the contract",null,"Item",1,null,{"$f":"ROUND(F7752*G7752,2)","v":0}]
[]
[{"v":6,"d":"6 "},null,"Project completion report as prepared by appointed development co-ordinator for all targeted method skills training",null,"Item",1,null,{"$f":"ROUND(F7754*G7754,2)","v":0}]
[]
[null,null,"PROFIT AND ATTENDANCE"]
[]
[{"v":7,"d":"7 "},null,"Add profit for Contract Skills Development Goal (CSDG) and General items",null,"Item",1,null,{"$f":"ROUND(F7758*G7758,2)","v":0}]
[]
[{"v":8,"d":"8 "},null,"Add for general attendance for Contract Skills Development Goal (CSDG) and General items",null,"Item",1,null,{"$f":"ROUND(F7760*G7760,2)","v":0}]
[]
[null,null,"TRAINING PRICE INCREASE"]
[]
[{"v":9,"d":"9 "},null,"Provide the amount of R30 000 (Thirty Thousand Rands) for price increases for graduates",null,"Item",1,null,{"$f":"ROUND(F7764*G7764,2)","v":0}]
[]
[null,null,"Carried to Final Summary",{"$nulls":4},{"$f":"SUM(H7741:H7765)","v":0}]
[]
[]
[{"v":1,"d":"1 "},null,"SECTION ONE : PRELIMINARIES",null,"Page",18,null,{"$f":"H5","v":0}]
[]
[{"v":2,"d":"2 "},null,"SECTION TWO : BUILDING WORKS",null,"Page",83,null,{"$f":"H1721","v":0}]
[]
[{"v":3,"d":"3 "},null,"SECTION THREE : EXTERNAL WORKS (PROVISIONAL)",null,"Page",119,null,{"$f":"H2887","v":0}]
[]
[{"v":4,"d":"4 "},null,"SECTION FOUR : ELECTRICAL INSTALLATION (PROVISIONAL)",null,"Page",235,null,{"$f":"H6869","v":0}]
[]
[{"v":5,"d":"5 "},null,"SECTION FIVE - TEMPORARY ACCOMODATION (PROVISIONAL)",null,"Page",236,null,{"$f":"H6880","v":0}]
[]
[{"v":6,"d":"6 "},null,"SECTION SIX - REMEDIAL WORK (PROVISIONAL)",null,"Page",268,null,{"$f":"H7683","v":0}]
[]
[{"v":7,"d":"7 "},null,"SECTION SEVEN - PROVISIONAL SUMS",null,"Page",270,null,{"$f":"H7721","v":0}]
[]
[{"v":8,"d":"8 "},null,"SECTION EIGHT - BUILD PROGRAMME",null,"Page",273,null,{"$f":"H7766","v":0}]
[]
[null,null,"SUB-TOTAL",null,"ST",0,null,{"$f":"SUM(H7769:H7783)","v":0}]
[]
[null,null,"VAT at 15%",{"$nulls":4},{"$f":"H7785*0.15","v":0}]
[]
[null,null,"TOTAL",{"$nulls":4},{"$f":"SUM(H7785:H7788)","v":0}]